Workbook

Sheet START

Sheet Instructions
D2: 2020
X4: Yes
X5: No
W7: Type of Entities Range:
X8: Parent Municipality
X9: Consolidated Information
F14: START
F15: Instructions
F16: Template names
F17: Lookup and lists | W17: MTREF Range: | X17: 2013
F18: Org structure | X18: 2014
F19: Contacts | X19: 2015
F20: A1-Sum | X20: 2016
F21: A2-FinPerf SC | X21: 2017
F22: A2A | X22: 2018
F23: A3-FinPerf V | X23: 2019
F24: A3A | X24: 2020
F25: A4-FinPerf RE | X25: 2021
F26: A5-Capex | X26: 2022
F27: A5A | X27: 2023
F28: A6-FinPos | X28: 2024
F29: A7-CFlow | X29: 2025
F30: A8-ResRecon | X30: 2026
F31: A9-Asset | X31: 2027
F32: A10-SerDel
F33: SA1 | W33: MTREF Linked: | X33: 10
F34: SA2 | W34: MTREF: | X34: =INDEX(X17:X26,X33,1) -> 2022
F35: SA3
F36: SA4 | W36: Fin Year: | X36: =MTREF&"/"&RIGHT(MTREF,2)+1 -> 2022/23
F37: SA5
F38: SA6
F39: SA7
F40: SA8
F41: SA9
F42: SA10
F43: SA11
F44: SA12a
F45: SA12b
F46: SA13a
F47: SA13b
F48: SA14
F49: SA15
F50: SA16
F51: SA17
F52: SA18
F53: SA19
F54: SA20
F55: SA21
F56: SA22
F57: SA23
F58: SA24
F59: SA25
F60: SA26
F61: SA27
F62: SA28
F63: SA29
F64: SA30
F65: SA31
F66: SA32
F67: SA33
F68: SA34a
F69: SA34b
F70: SA34c
F71: SA34d
F72: SA34e
F73: SA35
F74: SA36
F75: SA37
F76: SA38
F77: LGDB_EXPORT

Sheet Template names (hidden)
A1: Common sheet headings
A2: Head1 | B2: =HLOOKUP(MTREF,Headings,2) -> 2020/21 | C2: Prior year -1
A3: Head1A | B3: =HLOOKUP(MTREF,Headings,3) -> 2019/20 | C3: Prior year -2
A4: Head1B | B4: =HLOOKUP(MTREF,Headings,4) -> 2018/19 | C4: Prior year -3
A5: Head2 | B5: =HLOOKUP(MTREF,Headings,5) -> Current Year 2021/22 | C5: Year in which budget is being prepared
A6: Head2A | B6: =HLOOKUP(MTREF,Headings,6) -> 2021/22 | C6: Year in which budget is being prepared
A7: Head3 | B7: =HLOOKUP(MTREF,Headings,7) -> 2022/23 Medium Term Revenue & Expenditure Framework | C7: MTREF name
A8: Head4 | B8: LTFS | C8: Long term financial strategy
A9: Head5 | B9: Audited Outcome
A10: Head5A | B10: Outcome
A11: Head5B | B11: Pre-audit outcome
A12: Head6 | B12: Original Budget
A13: Head7 | B13: Adjusted Budget
A14: Head8 | B14: Full Year Forecast
A15: Head9 | B15: =HLOOKUP(MTREF,Headings,8) -> Budget Year 2022/23 | C15: 1st year of MTREF | D15: Year1
A16: Head10 | B16: =HLOOKUP(MTREF,Headings,9) -> Budget Year +1 2023/24 | C16: 2nd year of MTREF | D16: Year2
A17: Head11 | B17: =HLOOKUP(MTREF,Headings,10) -> Budget Year +2 2024/25 | C17: 3rd year of MTREF | D17: Year3
A18: Head12 | B18: =HLOOKUP(MTREF,Headings,11) -> Forecast 2025/26 | C18: 1st yr of long term forecast | D18: Year4
A19: Head13 | B19: =HLOOKUP(MTREF,Headings,12) -> Forecast 2026/27 | C19: Next yr of long term forecast | D19: Year5
A20: Head14 | B20: =HLOOKUP(MTREF,Headings,13) -> Forecast 2027/28 | C20: Next yr of long term forecast | D20: Year6
A21: Head15 | B21: =HLOOKUP(MTREF,Headings,14) -> Forecast 2028/29 | C21: Next yr of long term forecast | D21: Year7
A22: Head16 | B22: =HLOOKUP(MTREF,Headings,15) -> Forecast 2029/30 | C22: Next yr of long term forecast | D22: Year8
A23: Head17 | B23: =HLOOKUP(MTREF,Headings,16) -> Forecast 2030/31 | C23: Next yr of long term forecast | D23: Year9
A24: Head18 | B24: =HLOOKUP(MTREF,Headings,17) -> Forecast 2031/32 | C24: Next yr of long term forecast | D24: Year10
A25: Head19 | B25: =HLOOKUP(MTREF,Headings,18) -> Forecast 2032/33 | C25: Next yr of long term forecast | D25: Year11
A26: Head20 | B26: =HLOOKUP(MTREF,Headings,19) -> Forecast 2033/34 | C26: Next yr of long term forecast | D26: Year12
A27: Head21 | B27: =HLOOKUP(MTREF,Headings,20) -> Forecast 2034/35 | C27: Next yr of long term forecast | D27: Year13
A28: Head22 | B28: =HLOOKUP(MTREF,Headings,21) -> Forecast 2035/36 | C28: Next yr of long term forecast | D28: Year14
A29: Head23 | B29: =HLOOKUP(MTREF,Headings,22) -> Forecast 2036/37 | C29: Next yr of long term forecast | D29: Year15
A30: Head24 | B30: Description
A31: Head25
A32: Head26 | B32: Vote Description
A33: Head27 | B33: Ref
A34: Head27a | B34: References
A35: Head28 | B35: Surplus/(Deficit) for the year | D35: Result
A36: Head29 | B36: =HLOOKUP(MTREF,Headings,23) -> Annual target 2022/23
A37: Head30 | B37: =HLOOKUP(MTREF,Headings,24) -> Revised target 2022/23
A38: Head31 | B38: Quarter ended 30 September
A39: Head32 | B39: Quarter ended 31 December
A40: Head33 | B40: Quarter ended 31 March
A41: Head34 | B41: Quarter ended 30 June
A42: Head35 | B42: Variance explanation
A43: Head36 | B43: YTD Actual 31 Dec
A44: Head37 | B44: YTD Budget 31 Dec
A45: Head38 | B45: Monthly actual
A46: Head39 | B46: YTD actual
A47: Head40 | B47: YTD budget
A48: Head41 | B48: YTD variance
A49: Head42 | B49: Surplus/ (Deficit) for the yr/period
A50: Head43 | B50: =Head3&" Summary" -> 2022/23 Medium Term Revenue & Expenditure Framework Summary
A51: Head44 | B51: 2001 Census
A52: Head45 | B52: 2011 Census
A53: Head46 | B53: - Adjustments Budget - January 2007
A54: Head47 | B54: Previous target year to complete
A55: Head48 | B55: Present value
A56: Head49
A57: Head50 | B57: Other Adjusts.
A58: Head51 | B58: Accum. Funds
A59: Head52 | B59: Multi-year capital
A60: Head53 | B60: Unfore. Unavoid.
A61: Head54 | B61: Prior Adjusted
A62: Head55 | B62: Nat. or Prov. Govt
A63: Head56 | B63: Total Adjusts.
A64: SFPerf1 | B64: Budgeted Financial Performance
A65: SFPerf2 | B65: Forecast Financial Performance
A66: SFPos1 | B66: Budgeted Financial Position
A67: SFPos2 | B67: Forecast Financial Position
A68: Cash1 | B68: Budget Cash Flow
A69: Cash2 | B69: Forecast Cash Flow
A70: RandM | B70: Expenditure includes repairs & maintenance of R'000
A71: Depart1 | B71: Department 1 - | D71: DEP1
A72: Depart2 | B72: Department 2 - | D72: DEP2
A73: Depart3 | B73: Department 3 - | D73: DEP3
A74: Depart4 | B74: Department 4 - | D74: DEP4
A75: Depart5 | B75: Department 5 - | D75: DEP5
A76: Depart6 | B76: Department 6 - | D76: DEP6
A77: Depart7 | B77: Department 7 - | D77: DEP7
A78: Depart8 | B78: Department 8 - | D78: DEP8
A79: Depart9 | B79: Department 9 - | D79: DEP9
A80: Depart10 | B80: Department 10 - | D80: DEP10
A81: Depart11 | B81: Department 11 - | D81: DEP11
A82: Depart12 | B82: Department 12 - | D82: DEP12
A83: Depart13 | B83: Department 13 - | D83: DEP13
A84: Depart14 | B84: Department 14 - | D84: DEP14
A87: Base year of forecast column selection names
A88: Choose | B88: ACT
B89: APP
B90: ADJ
A92: Standard nomenclature
A93: Muni | B93: ='Lookup and lists'!B28 -> DC47 Sekhukhune
A94: Municipal Entities | B94: 1 | C94: Type of report: | D94: 1
A95: =IF((MuniEntities=1)*(MuniType=2),"YES","NO") -> NO | B95: Does this municipality have entities (consolidated budget and entity budgets required)? YES/NO
A96: Entity 1 | B96: (Pty) Ltd Example 1 - Municipal entity - | D96: Ent1
A97: Entity 2 | B97: (Pty) Ltd Example 2 - Municipal entity - | D97: Ent2
A98: Entity 3 | B98: Municipal Entity Example 3 | D98: Ent3
A99: Budget approval tables | C99: Chart x-ref | D99: Sch/Tab/Ch | E99: Alternative for municipalities without entities | F99: Alternative for municipalities without entities
B100: =IF(Consolques="YES",E100,F100) -> Table A1 Budget Summary | D100: Table A1 | E100: =D100&"Consolidated Budget Summary" -> Table A1 Consolidated Budget Summary | F100: =D100&"Budget Summary" -> Table A1 Budget Summary
B101: Table A2 Budgeted Financial Performance (revenue and expenditure by functional classification) | C101: Charts 5, 6 | D101: Table A2 | E101: =D101&"Consolidated Budgeted Financial Performance (revenue and expenditure by functional classification)" -> Table A2 Consolidated Budgeted Financial Performance (revenue and expenditure by functional classification) | F101: =D101&"Budgeted Financial Performance (revenue and expenditure by functional classification)" -> Table A2 Budgeted Financial Performance (revenue and expenditure by functional classification)
B102: Table A3 Budgeted Financial Performance (revenue and expenditure by municipal vote) | D102: Table A3 | E102: =D102&"Consolidated Budgeted Financial Performance (revenue and expenditure by municipal vote)" -> Table A3 Consolidated Budgeted Financial Performance (revenue and expenditure by municipal vote) | F102: =D102&"Budgeted Financial Performance (revenue and expenditure by municipal vote)" -> Table A3 Budgeted Financial Performance (revenue and expenditure by municipal vote)
B103: Table A4 Budgeted Financial Performance (revenue and expenditure) | C103: Charts 1, 2, 3, 4 | D103: Table A4 | E103: =D103&"Consolidated Budgeted Financial Performance (revenue and expenditure)" -> Table A4 Consolidated Budgeted Financial Performance (revenue and expenditure) | F103: =D103&"Budgeted Financial Performance (revenue and expenditure)" -> Table A4 Budgeted Financial Performance (revenue and expenditure)
B104: Table A5 Budgeted Capital Expenditure by vote, functional classification and funding | C104: Charts 7, 8, 9, 10, 20 | D104: Table A5 | E104: =D104&"Consolidated Budgeted Capital Expenditure by vote, functional classification and funding" -> Table A5 Consolidated Budgeted Capital Expenditure by vote, functional classification and funding | F104: =D104&"Budgeted Capital Expenditure by vote, functional classification and funding" -> Table A5 Budgeted Capital Expenditure by vote, functional classification and funding
B105: Table A6 Budgeted Financial Position | D105: Table A6 | E105: =D105&"Consolidated Budgeted Financial Position" -> Table A6 Consolidated Budgeted Financial Position | F105: =D105&"Budgeted Financial Position" -> Table A6 Budgeted Financial Position
B106: Table A7 Budgeted Cash Flows | D106: Table A7 | E106: =D106&"Consolidated Budgeted Cash Flows" -> Table A7 Consolidated Budgeted Cash Flows | F106: =D106&"Budgeted Cash Flows" -> Table A7 Budgeted Cash Flows
B107: Table A8 Cash backed reserves/accumulated surplus reconciliation | D107: Table A8 | E107: =D107&"Consolidated Cash backed reserves/accumulated surplus reconciliation" -> Table A8 Consolidated Cash backed reserves/accumulated surplus reconciliation | F107: =D107&"Cash backed reserves/accumulated surplus reconciliation" -> Table A8 Cash backed reserves/accumulated surplus reconciliation
B108: Table A9 Asset Management | D108: Table A9 | E108: =D108&"Consolidated Asset Management" -> Table A9 Consolidated Asset Management | F108: =D108&"Asset Management" -> Table A9 Asset Management
B109: Table A10 Basic service delivery measurement | D109: Table A10 | E109: =D109&"Consolidated basic service delivery measurement" -> Table A10 Consolidated basic service delivery measurement | F109: =D109&"Basic service delivery measurement" -> Table A10 Basic service delivery measurement
A110: Supportinging Tables to the Budget Approval Tables | C110: =$C$99 -> Chart x-ref | D110: =$D$99 -> Sch/Tab/Ch
A111: Supporting Table SA1 | B111: =A111&" Supportinging detail to 'Budgeted Financial Performance'" -> Supporting Table SA1 Supportinging detail to 'Budgeted Financial Performance'
A112: Supporting Table SA2 | B112: =IF(Consolques="YES",E112,F112) -> Supporting Table SA2 Matrix Financial Performance Budget (revenue source/expenditure type and dept.) | E112: =A112&"Consolidated Matrix Financial Performance Budget (revenue source/expenditure type & dept.)" -> Supporting Table SA2 Consolidated Matrix Financial Performance Budget (revenue source/expenditure type & dept.) | F112: =A112&"Matrix Financial Performance Budget (revenue source/expenditure type and dept.)" -> Supporting Table SA2 Matrix Financial Performance Budget (revenue source/expenditure type and dept.)
A113: Supporting Table SA3 | B113: =A113&"Supportinging detail to 'Budgeted Financial Position'" -> Supporting Table SA3 Supportinging detail to 'Budgeted Financial Position'
A114: Supporting Table SA4 | B114: =A114&"Reconciliation of IDP strategic objectives and budget (revenue)" -> Supporting Table SA4 Reconciliation of IDP strategic objectives and budget (revenue) | C114: Chart 11
A115: Supporting Table SA5 | B115: =A115&"Reconciliation of IDP strategic objectives and budget (operating expenditure)" -> Supporting Table SA5 Reconciliation of IDP strategic objectives and budget (operating expenditure) | C115: Chart 12
A116: Supporting Table SA6 | B116: =A116&"Reconciliation of IDP strategic objectives and budget (capital expenditure)" -> Supporting Table SA6 Reconciliation of IDP strategic objectives and budget (capital expenditure) | C116: Chart 13
A117: Supporting Table SA7 | B117: =A117&" Measureable performance objectives" -> Supporting Table SA7 Measureable performance objectives
A118: Supporting Table SA8 | B118: =A118&" Performance indicators and benchmarks" -> Supporting Table SA8 Performance indicators and benchmarks | C118: Chts 15-19
A119: Supporting Table SA9 | B119: =A119&" Social, economic and demographic statistics and assumptions" -> Supporting Table SA9 Social, economic and demographic statistics and assumptions
A120: Supporting Table SA10 | B120: =A120&" Funding measurement" -> Supporting Table SA10 Funding measurement | C120: Chart 14
A121: Supporting Table SA11 | B121: =A121&" Property rates summary" -> Supporting Table SA11 Property rates summary
A122: Supporting Table SA12a | B122: =A122&" Property rates by category (current year)" -> Supporting Table SA12a Property rates by category (current year)
A123: Supporting Table SA12b | B123: =A123&" Property rates by category (budget year)" -> Supporting Table SA12b Property rates by category (budget year)
A124: Supporting Table SA13a | B124: =A124&" Service Tariffs by category" -> Supporting Table SA13a Service Tariffs by category
A125: Supporting Table SA13b | B125: =A125&" Service Tariffs by category - explanatory" -> Supporting Table SA13b Service Tariffs by category - explanatory
A126: Supporting Table SA14 | B126: =A126&" Household bills" -> Supporting Table SA14 Household bills
A127: Supporting Table SA15 | B127: =A127&" Investment particulars by type" -> Supporting Table SA15 Investment particulars by type
A128: Supporting Table SA16 | B128: =A128&" Investment particulars by maturity" -> Supporting Table SA16 Investment particulars by maturity
A129: Supporting Table SA17 | B129: =A129&" Borrowing" -> Supporting Table SA17 Borrowing
A130: Supporting Table SA18 | B130: =A130&" Transfers and grant receipts" -> Supporting Table SA18 Transfers and grant receipts
A131: Supporting Table SA19 | B131: =A131&" Expenditure on transfers and grant programme" -> Supporting Table SA19 Expenditure on transfers and grant programme
A132: Supporting Table SA20 | B132: =A132&" Reconciliation of transfers, grant receipts and unspent funds" -> Supporting Table SA20 Reconciliation of transfers, grant receipts and unspent funds
A133: Supporting Table SA21 | B133: =A133&" Transfers and grants made by the municipality" -> Supporting Table SA21 Transfers and grants made by the municipality
A134: Supporting Table SA22 | B134: =A134&" Summary councillor and staff benefits" -> Supporting Table SA22 Summary councillor and staff benefits
A135: Supporting Table SA23 | B135: =A135&" Salaries, allowances & benefits (political office bearers/councillors/senior managers)" -> Supporting Table SA23 Salaries, allowances & benefits (political office bearers/councillors/senior managers)
A136: Supporting Table SA24 | B136: =A136&" Summary of personnel numbers" -> Supporting Table SA24 Summary of personnel numbers
A137: Supporting Table SA25 | B137: =IF(Consolques="YES",E137,F137) -> Supporting Table SA25 Budgeted monthly revenue and expenditure | E137: =A137&" Consolidated budgeted monthly revenue and expenditure" -> Supporting Table SA25 Consolidated budgeted monthly revenue and expenditure | F137: =A137&" Budgeted monthly revenue and expenditure" -> Supporting Table SA25 Budgeted monthly revenue and expenditure
A138: Supporting Table SA26 | B138: Supporting Table SA26 Budgeted monthly revenue and expenditure (municipal vote) | E138: =A138&" Consolidated budgeted monthly revenue and expenditure (municipal vote)" -> Supporting Table SA26 Consolidated budgeted monthly revenue and expenditure (municipal vote) | F138: =A138&" Budgeted monthly revenue and expenditure (municipal vote)" -> Supporting Table SA26 Budgeted monthly revenue and expenditure (municipal vote)
A139: Supporting Table SA27 | B139: Supporting Table SA27 Budgeted monthly revenue and expenditure (functional classification) | E139: =A139&" Consolidated budgeted monthly revenue and expenditure (functional classification)" -> Supporting Table SA27 Consolidated budgeted monthly revenue and expenditure (functional classification) | F139: =A139&" Budgeted monthly revenue and expenditure (functional classification)" -> Supporting Table SA27 Budgeted monthly revenue and expenditure (functional classification)
A140: Supporting Table SA28 | B140: Supporting Table SA28 Budgeted monthly capital expenditure (municipal vote) | E140: =A140&" Consolidated budgeted monthly capital expenditure (municipal vote)" -> Supporting Table SA28 Consolidated budgeted monthly capital expenditure (municipal vote) | F140: =A140&" Budgeted monthly capital expenditure (municipal vote)" -> Supporting Table SA28 Budgeted monthly capital expenditure (municipal vote)
A141: Supporting Table SA29 | B141: Supporting Table SA29 Budgeted monthly capital expenditure (functional classification) | E141: =A141&" Consolidated budgeted monthly capital expenditure (functional classification)" -> Supporting Table SA29 Consolidated budgeted monthly capital expenditure (functional classification) | F141: =A141&" Budgeted monthly capital expenditure (functional classification)" -> Supporting Table SA29 Budgeted monthly capital expenditure (functional classification)
A142: Supporting Table SA30 | B142: Supporting Table SA30 Budgeted monthly cash flow | E142: =A142&" Consolidated budgeted monthly cash flow" -> Supporting Table SA30 Consolidated budgeted monthly cash flow | F142: =A142&" Budgeted monthly cash flow" -> Supporting Table SA30 Budgeted monthly cash flow
A143: Supporting Table SA31 | B143: NOT REQUIRED - municipality does not have entities | E143: =A143&" Aggregated entity budget" -> Supporting Table SA31 Aggregated entity budget | F143: NOT REQUIRED - municipality does not have entities
A144: Supporting Table SA32 | B144: =A144&" List of external mechanisms" -> Supporting Table SA32 List of external mechanisms
A145: Supporting Table SA33 | B145: =A145&" Contracts having future budgetary implications" -> Supporting Table SA33 Contracts having future budgetary implications
A146: Supporting Table SA34a | B146: =IF(Consolques="YES",E146,F146) -> Supporting Table SA34a Capital expenditure on new assets by asset class | E146: =A146&" Consolidated capital expenditure on new assets by asset class" -> Supporting Table SA34a Consolidated capital expenditure on new assets by asset class | F146: =A146&" Capital expenditure on new assets by asset class" -> Supporting Table SA34a Capital expenditure on new assets by asset class
A147: Supporting Table SA34b | B147: Supporting Table SA34b Capital expenditure on the renewal of existing assets by asset class | E147: =A147&" Consolidated capital expenditure on the renewal of existing assets by asset class" -> Supporting Table SA34b Consolidated capital expenditure on the renewal of existing assets by asset class | F147: =A147&" Capital expenditure on the renewal of existing assets by asset class" -> Supporting Table SA34b Capital expenditure on the renewal of existing assets by asset class
A148: Supporting Table SA34c | B148: Supporting Table SA34c Repairs and maintenance expenditure by asset class | E148: =A148&" Consolidated repairs and maintenance by asset class" -> Supporting Table SA34c Consolidated repairs and maintenance by asset class | F148: =A148&" Repairs and maintenance expenditure by asset class" -> Supporting Table SA34c Repairs and maintenance expenditure by asset class
A149: Supporting Table SA34d | B149: =IF(Consolques="YES",E149,F149) -> Supporting Table SA34d Depreciation by asset class | E149: =A149&" Consolidated Depreciation by asset class" -> Supporting Table SA34d Consolidated Depreciation by asset class | F149: =A149&" Depreciation by asset class" -> Supporting Table SA34d Depreciation by asset class
A150: Supporting Table SA34e | B150: =IF(Consolques="YES",E150,F150) -> Supporting Table SA34e Capital expenditure on the upgrading of existing assets by asset class | E150: =A150&" Consolidated capital expenditure on the upgrading of existing assets by asset class" -> Supporting Table SA34e Consolidated capital expenditure on the upgrading of existing assets by asset class | F150: =A150&" Capital expenditure on the upgrading of existing assets by asset class" -> Supporting Table SA34e Capital expenditure on the upgrading of existing assets by asset class
A151: Supporting Table SA35 | B151: Supporting Table SA35 Future financial implications of the capital budget | E151: =A151&" Consolidated future financial implications of the capital budget" -> Supporting Table SA35 Consolidated future financial implications of the capital budget | F151: =A151& " Future financial implications of the capital budget" -> Supporting Table SA35 Future financial implications of the capital budget
A152: Supporting Table SA36 | B152: Supporting Table SA36 Detailed capital budget | E152: =A152&" Consolidated detailed capital budget" -> Supporting Table SA36 Consolidated detailed capital budget | F152: =A152& " Detailed capital budget" -> Supporting Table SA36 Detailed capital budget
A153: Supporting Table SA37 | B153: Supporting Table SA37 Projects delayed from previous financial year/s | E153: =A153&" Consolidated projects delayed from previous financial year/s" -> Supporting Table SA37 Consolidated projects delayed from previous financial year/s | F153: =A153& " Projects delayed from previous financial year/s" -> Supporting Table SA37 Projects delayed from previous financial year/s
A154: Supporting Table SA38 | B154: =IF(Consolques="YES",E154,F154) -> Supporting Table SA38 Detailed operational projects | E154: =A154&" Consolidated detailed operational projects" -> Supporting Table SA38 Consolidated detailed operational projects | F154: =A154& " Detailed operational projects" -> Supporting Table SA38 Detailed operational projects
A156: Budget Charts | B156: Charts | C156: Cross reference
A157: Chart A1 | B157: =A157&"Revenue by Municipal Vote" -> Chart A1 Revenue by Municipal Vote
A158: Chart A2 | B158: =A158&"Expenditure by Municipal Vote" -> Chart A2 Expenditure by Municipal Vote
A159: Chart A3 | B159: =A159&"Revenue by Standard Classification" -> Chart A3 Revenue by Standard Classification | C159: A2
A160: Chart A4 | B160: =A160&"Expenditure by Standard Classification" -> Chart A4 Expenditure by Standard Classification | C160: A2
A161: Chart A5 | B161: =A161&"Revenue by Major Source (refer 'Minor' source for 'Other Revenue' allocation" -> Chart A5 Revenue by Major Source (refer 'Minor' source for 'Other Revenue' allocation | C161: A3
A162: Chart A6 | B162: =A162&"Revenue by Minor Source (Other)" -> Chart A6 Revenue by Minor Source (Other) | C162: A3
A163: Chart A7 | B163: =A163&"Expenditure by Major Type" -> Chart A7 Expenditure by Major Type | C163: A3
A164: Chart A8 | B164: =A164&"Expenditure by Minor Type (Other)" -> Chart A8 Expenditure by Minor Type (Other) | C164: A3
A165: Chart A9 | B165: =A165&"Capital Expenditure by Municipal Vote/Appropriation (Major)" -> Chart A9 Capital Expenditure by Municipal Vote/Appropriation (Major) | C165: A5
A166: Chart A10 | B166: =A166&"Capital Expenditure by Municipal Vote/Appropriation (Minor)" -> Chart A10 Capital Expenditure by Municipal Vote/Appropriation (Minor) | C166: A5
A167: Chart A11 | B167: =A166&"Capital Expenditure by Standard Classification" -> Chart A10 Capital Expenditure by Standard Classification | C167: A5
A168: Chart A12 | B168: =A168&"Capital expenditure performance trend" -> Chart A12 Capital expenditure performance trend | C168: A5
A169: Chart A13 | B169: =A169&"Capital funding by Source" -> Chart A13 Capital funding by Source | C169: A5
A170: Chart A14 | B170: =A170&"Cash flow trend" -> Chart A14 Cash flow trend | C170: A7
A171: Chart A15 | B171: =A171&"IDP Strategic Objective - Revenue" -> Chart A15 IDP Strategic Objective - Revenue | C171: Table A4
A172: Chart A16 | B172: =A172&"IDP Strategic Objective - Expenditure" -> Chart A16 IDP Strategic Objective - Expenditure | C172: Table A5
A173: Chart A17 | B173: =A173&"IDP Strategic Objective - Capital Expenditure" -> Chart A17 IDP Strategic Objective - Capital Expenditure | C173: Table A6
A174: Chart A18 | B174: =A174&"Debt (borrowing to Total Revenue)" -> Chart A18 Debt (borrowing to Total Revenue) | C174: Table A8
A175: Chart A19 | B175: =A175&"Debtors' trend analysis" -> Chart A19 Debtors' trend analysis | C175: Table A8
A176: Chart A20 | B176: =A176&"Distribution losses" -> Chart A20 Distribution losses | C176: Table A8
A177: Chart A21 | B177: =A177&"Borrowed funding of capital expenditure" -> Chart A21 Borrowed funding of capital expenditure | C177: Table A8
A178: Chart A22 | B178: =A178&"Expenditure analysis (% of Revenue)" -> Chart A22 Expenditure analysis (% of Revenue) | C178: Table A8
A179: Chart A23 | B179: =A179&"Increases in service charges" -> Chart A23 Increases in service charges | C179: Table A10

Sheet Lookup and lists (hidden)
A1: Description | B1: 2013 | C1: 2014 | D1: 2015 | E1: 2016 | F1: 2017 | G1: 2018 | H1: 2019 | I1: 2020 | J1: 2021 | K1: 2022 | L1: 2023 | M1: 2024 | N1: 2025 | O1: 2026 | Q1: Lists | Y1: Grants: | Z1: National - opex | AA1: Provincial - opex | AB1: National - capex | AC1: Provincial - capex
A2: ='Template names'!C2 -> Prior year -1 | B2: =B1-2&"/"&RIGHT(B1,2)-1 -> 2011/12 | C2: 2012/13 | D2: 2013/14 | E2: 2014/15 | F2: 2015/16 | G2: 2016/17 | H2: 2017/18 | I2: 2018/19 | J2: =J1-2&"/"&RIGHT(J1,2)-1 -> 2019/20 | K2: 2020/21 | L2: 2021/22 | M2: 2022/23 | N2: 2023/24 | O2: 2024/25 | Q2: Yes | R2: <1 | S2: <4 | T2: Market | U2: Land & impr. | V2: Yes | W2: Uniform | X2: Yrs | Z2: Local Government Equitable Share | AA2: Health subsidy | AB2: Municipal Infrastructure Grant (MIG) | AC2: Agriculture
A3: ='Template names'!C3 -> Prior year -2 | B3: =B1-3&"/"&RIGHT(B1,2)-2 -> 2010/11 | C3: 2011/12 | D3: 2012/13 | E3: 2013/14 | F3: 2014/15 | G3: 2015/16 | H3: 2016/17 | I3: 2017/18 | J3: =J1-3&"/"&RIGHT(J1,2)-2 -> 2018/19 | K3: 2019/20 | L3: 2020/21 | M3: 2021/22 | N3: 2022/23 | O3: 2023/24 | Q3: No | R3: 1 | S3: 4 | T3: Dep.Replace | U3: Land only | V3: No | W3: Variable | X3: Mths | Z3: RSC Levy Replacement | AA3: Ambulance subsidy | AB3: Public Transport and Systems | AC3: Education
A4: ='Template names'!C4 -> Prior year -3 | B4: =B1-4&"/"&RIGHT(B1,2)-3 -> 2009/10 | C4: 2010/11 | D4: 2011/12 | E4: 2012/13 | F4: 2013/14 | G4: 2014/15 | H4: 2015/16 | I4: 2016/17 | J4: =J1-4&"/"&RIGHT(J1,2)-3 -> 2017/18 | K4: 2018/19 | L4: 2019/20 | M4: 2020/21 | N4: 2021/22 | O4: 2022/23 | R4: 2 | S4: 5 | T4: Other | U4: Other | Z4: Finance Management | AA4: Housing | AB4: Rural Transport Services and Infrastructure | AC4: Health
A5: ='Template names'!C5 -> Year in which budget is being prepared | B5: ="Current Year "& B1-1&"/"&RIGHT(B1,2) -> Current Year 2012/13 | C5: Current Year 2013/14 | D5: Current Year 2014/15 | E5: Current Year 2015/16 | F5: Current Year 2016/17 | G5: Current Year 2017/18 | H5: Current Year 2018/19 | I5: Current Year 2019/20 | J5: ="Current Year "& J1-1&"/"&RIGHT(J1,2) -> Current Year 2020/21 | K5: Current Year 2021/22 | L5: Current Year 2022/23 | M5: Current Year 2023/24 | N5: Current Year 2024/25 | O5: Current Year 2025/26 | R5: 3 | S5: 6 | Z5: Municipal Systems Improvement | AA5: Sport and Recreation | AB5: Regional Bulk Infrastructure | AC5: Housing and Local Government
A6: ='Template names'!C6 -> Year in which budget is being prepared | B6: =B1-1&"/"&RIGHT(B1,2) -> 2012/13 | C6: 2013/14 | D6: 2014/15 | E6: 2015/16 | F6: 2016/17 | G6: 2017/18 | H6: 2018/19 | I6: 2019/20 | J6: =J1-1&"/"&RIGHT(J1,2) -> 2020/21 | K6: 2021/22 | L6: 2022/23 | M6: 2023/24 | N6: 2024/25 | O6: 2025/26 | R6: 4 | S6: 6-10 | Z6: Water Services Operating Subsidy | AB6: Rural Households Infrastructure | AC6: Other Departments
A7: ='Template names'!C7 -> MTREF name | B7: =B1&"/"&RIGHT(B1,2)+1&" Medium Term Revenue & Expenditure Framework" -> 2013/14 Medium Term Revenue & Expenditure Framework | C7: 2014/15 Medium Term Revenue & Expenditure Framework | D7: 2015/16 Medium Term Revenue & Expenditure Framework | E7: 2016/17 Medium Term Revenue & Expenditure Framework | F7: 2017/18 Medium Term Revenue & Expenditure Framework | G7: 2018/19 Medium Term Revenue & Expenditure Framework | H7: 2019/20 Medium Term Revenue & Expenditure Framework | I7: 2020/21 Medium Term Revenue & Expenditure Framework | J7: =J1&"/"&RIGHT(J1,2)+1&" Medium Term Revenue & Expenditure Framework" -> 2021/22 Medium Term Revenue & Expenditure Framework | K7: 2022/23 Medium Term Revenue & Expenditure Framework | L7: 2023/24 Medium Term Revenue & Expenditure Framework | M7: 2024/25 Medium Term Revenue & Expenditure Framework | N7: 2025/26 Medium Term Revenue & Expenditure Framework | O7: 2026/27 Medium Term Revenue & Expenditure Framework | R7: 5 | S7: >10 | Z7: Energy Efficiency and Demand Management | AB7: Neighbourhood Development Partnership | AC7: Public Works, Roads, Transport
A8: ='Template names'!C15 -> 1st year of MTREF | B8: ="Budget Year "&B1&"/"&RIGHT(B1,2)+1 -> Budget Year 2013/14 | C8: Budget Year 2014/15 | D8: Budget Year 2015/16 | E8: Budget Year 2016/17 | F8: Budget Year 2017/18 | G8: Budget Year 2018/19 | H8: Budget Year 2019/20 | I8: Budget Year 2020/21 | J8: ="Budget Year "&J1&"/"&RIGHT(J1,2)+1 -> Budget Year 2021/22 | K8: Budget Year 2022/23 | L8: Budget Year 2023/24 | M8: Budget Year 2024/25 | N8: Budget Year 2025/26 | O8: Budget Year 2026/27 | R8: >5 | Z8: Integrated National Electrification Programme | AB8: 2010 FIFA World Cup Stadiums Development | AC8: Sport and Recreation
A9: ='Template names'!C16 -> 2nd year of MTREF | B9: ="Budget Year +1 "&B1+1&"/"&RIGHT(B1,2)+2 -> Budget Year +1 2014/15 | C9: Budget Year +1 2015/16 | D9: Budget Year +1 2016/17 | E9: Budget Year +1 2017/18 | F9: Budget Year +1 2018/19 | G9: Budget Year +1 2019/20 | H9: Budget Year +1 2020/21 | I9: Budget Year +1 2021/22 | J9: ="Budget Year +1 "&J1+1&"/"&RIGHT(J1,2)+2 -> Budget Year +1 2022/23 | K9: Budget Year +1 2023/24 | L9: Budget Year +1 2024/25 | M9: Budget Year +1 2025/26 | N9: Budget Year +1 2026/27 | O9: Budget Year +1 2027/28 | Z9: Municipal Drought Relief
A10: ='Template names'!C17 -> 3rd year of MTREF | B10: ="Budget Year +2 "&B1+2&"/"&RIGHT(B1,2)+3 -> Budget Year +2 2015/16 | C10: Budget Year +2 2016/17 | D10: Budget Year +2 2017/18 | E10: Budget Year +2 2018/19 | F10: Budget Year +2 2019/20 | G10: Budget Year +2 2020/21 | H10: Budget Year +2 2021/22 | I10: Budget Year +2 2022/23 | J10: ="Budget Year +2 "&J1+2&"/"&RIGHT(J1,2)+3 -> Budget Year +2 2023/24 | K10: Budget Year +2 2024/25 | L10: Budget Year +2 2025/26 | M10: Budget Year +2 2026/27 | N10: Budget Year +2 2027/28 | O10: Budget Year +2 2028/29 | Z10: 2010 FIFA World Cup Operating
A11: ='Template names'!C18 -> 1st yr of long term forecast | B11: ="Forecast "&B1+3&"/"&RIGHT(B1,2)+4 -> Forecast 2016/17 | C11: Forecast 2017/18 | D11: Forecast 2018/19 | E11: Forecast 2019/20 | F11: Forecast 2020/21 | G11: Forecast 2021/22 | H11: Forecast 2022/23 | I11: Forecast 2023/24 | J11: ="Forecast "&J1+3&"/"&RIGHT(J1,2)+4 -> Forecast 2024/25 | K11: Forecast 2025/26 | L11: Forecast 2026/27 | M11: Forecast 2027/28 | N11: Forecast 2028/29 | O11: Forecast 2029/30 | Z11: Electricity Demand Side Management
A12: ='Template names'!C19 -> Next yr of long term forecast | B12: ="Forecast "&B1+4&"/"&RIGHT(B1,2)+5 -> Forecast 2017/18 | C12: Forecast 2018/19 | D12: Forecast 2019/20 | E12: Forecast 2020/21 | F12: Forecast 2021/22 | G12: Forecast 2022/23 | H12: Forecast 2023/24 | I12: Forecast 2024/25 | J12: ="Forecast "&J1+4&"/"&RIGHT(J1,2)+5 -> Forecast 2025/26 | K12: Forecast 2026/27 | L12: Forecast 2027/28 | M12: Forecast 2028/29 | N12: Forecast 2029/30 | O12: Forecast 2030/31 | Z12: EPWP Incentive
A13: ='Template names'!C20 -> Next yr of long term forecast | B13: ="Forecast "&B1+5&"/"&RIGHT(B1,2)+6 -> Forecast 2018/19 | C13: Forecast 2019/20 | D13: Forecast 2020/21 | E13: Forecast 2021/22 | F13: Forecast 2022/23 | G13: Forecast 2023/24 | H13: Forecast 2024/25 | I13: Forecast 2025/26 | J13: ="Forecast "&J1+5&"/"&RIGHT(J1,2)+6 -> Forecast 2026/27 | K13: Forecast 2027/28 | L13: Forecast 2028/29 | M13: Forecast 2029/30 | N13: Forecast 2030/31 | O13: Forecast 2031/32
A14: ='Template names'!C21 -> Next yr of long term forecast | B14: ="Forecast "&B1+6&"/"&RIGHT(B1,2)+7 -> Forecast 2019/20 | C14: Forecast 2020/21 | D14: Forecast 2021/22 | E14: Forecast 2022/23 | F14: Forecast 2023/24 | G14: Forecast 2024/25 | H14: Forecast 2025/26 | I14: Forecast 2026/27 | J14: ="Forecast "&J1+6&"/"&RIGHT(J1,2)+7 -> Forecast 2027/28 | K14: Forecast 2028/29 | L14: Forecast 2029/30 | M14: Forecast 2030/31 | N14: Forecast 2031/32 | O14: Forecast 2032/33 | Z14: Asset Class | AA14: Asset sub-class old | AB14: Asset sub-class | AC14: IUDF | AD14: MTSF
A15: ='Template names'!C22 -> Next yr of long term forecast | B15: ="Forecast "&B1+7&"/"&RIGHT(B1,2)+8 -> Forecast 2020/21 | C15: Forecast 2021/22 | D15: Forecast 2022/23 | E15: Forecast 2023/24 | F15: Forecast 2024/25 | G15: Forecast 2025/26 | H15: Forecast 2026/27 | I15: Forecast 2027/28 | J15: ="Forecast "&J1+7&"/"&RIGHT(J1,2)+8 -> Forecast 2028/29 | K15: Forecast 2029/30 | L15: Forecast 2030/31 | M15: Forecast 2031/32 | N15: Forecast 2032/33 | O15: Forecast 2033/34
A16: ='Template names'!C23 -> Next yr of long term forecast | B16: ="Forecast "&B1+8&"/"&RIGHT(B1,2)+9 -> Forecast 2021/22 | C16: Forecast 2022/23 | D16: Forecast 2023/24 | E16: Forecast 2024/25 | F16: Forecast 2025/26 | G16: Forecast 2026/27 | H16: Forecast 2027/28 | I16: Forecast 2028/29 | J16: ="Forecast "&J1+8&"/"&RIGHT(J1,2)+9 -> Forecast 2029/30 | K16: Forecast 2030/31 | L16: Forecast 2031/32 | M16: Forecast 2032/33 | N16: Forecast 2033/34 | O16: Forecast 2034/35 | Z16: Roads Infrastructure | AA16: Roads, Pavements & Bridges | AB16: Roads | AC16: Spatial integration | AD16: Quality basic education
A17: ='Template names'!C24 -> Next yr of long term forecast | B17: ="Forecast "&B1+9&"/"&RIGHT(B1,2)+10 -> Forecast 2022/23 | C17: Forecast 2023/24 | D17: Forecast 2024/25 | E17: Forecast 2025/26 | F17: Forecast 2026/27 | G17: Forecast 2027/28 | H17: Forecast 2028/29 | I17: Forecast 2029/30 | J17: ="Forecast "&J1+9&"/"&RIGHT(J1,2)+10 -> Forecast 2030/31 | K17: Forecast 2031/32 | L17: Forecast 2032/33 | M17: Forecast 2033/34 | N17: Forecast 2034/35 | O17: Forecast 2035/36 | Z17: Storm water Infrastructure | AA17: Storm water | AB17: Road Structures | AC17: Inclusion and access | AD17: A long and healthy life for all South Africans
A18: ='Template names'!C25 -> Next yr of long term forecast | B18: ="Forecast "&B1+10&"/"&RIGHT(B1,2)+11 -> Forecast 2023/24 | C18: Forecast 2024/25 | D18: Forecast 2025/26 | E18: Forecast 2026/27 | F18: Forecast 2027/28 | G18: Forecast 2028/29 | H18: Forecast 2029/30 | I18: Forecast 2030/31 | J18: ="Forecast "&J1+10&"/"&RIGHT(J1,2)+11 -> Forecast 2031/32 | K18: Forecast 2032/33 | L18: Forecast 2033/34 | M18: Forecast 2034/35 | N18: Forecast 2035/36 | O18: Forecast 2036/37 | Z18: Electrical Infrastructure | AA18: Generation | AB18: Road Furniture | AC18: Growth | AD18: All people in South Africa are and feel safe
A19: ='Template names'!C26 -> Next yr of long term forecast | B19: ="Forecast "&B1+11&"/"&RIGHT(B1,2)+12 -> Forecast 2024/25 | C19: Forecast 2025/26 | D19: Forecast 2026/27 | E19: Forecast 2027/28 | F19: Forecast 2028/29 | G19: Forecast 2029/30 | H19: Forecast 2030/31 | I19: Forecast 2031/32 | J19: ="Forecast "&J1+11&"/"&RIGHT(J1,2)+12 -> Forecast 2032/33 | K19: Forecast 2033/34 | L19: Forecast 2034/35 | M19: Forecast 2035/36 | N19: Forecast 2036/37 | O19: Forecast 2037/38 | Z19: Water Supply Infrastructure | AA19: Transmission & Reticulation | AB19: Capital Spares | AC19: Governance | AD19: Decent employment through inclusive growth
A20: ='Template names'!C27 -> Next yr of long term forecast | B20: ="Forecast "&B1+12&"/"&RIGHT(B1,2)+13 -> Forecast 2025/26 | C20: Forecast 2026/27 | D20: Forecast 2027/28 | E20: Forecast 2028/29 | F20: Forecast 2029/30 | G20: Forecast 2030/31 | H20: Forecast 2031/32 | I20: Forecast 2032/33 | J20: ="Forecast "&J1+12&"/"&RIGHT(J1,2)+13 -> Forecast 2033/34 | K20: Forecast 2034/35 | L20: Forecast 2035/36 | M20: Forecast 2036/37 | N20: Forecast 2037/38 | O20: Forecast 2038/39 | Z20: Sanitation Infrastructure | AA20: Street Lighting | AB20: Drainage Collection | AD20: A skilled and capable workforce to support an inclusive growth path
A21: ='Template names'!C28 -> Next yr of long term forecast | B21: ="Forecast "&B1+13&"/"&RIGHT(B1,2)+14 -> Forecast 2026/27 | C21: Forecast 2027/28 | D21: Forecast 2028/29 | E21: Forecast 2029/30 | F21: Forecast 2030/31 | G21: Forecast 2031/32 | H21: Forecast 2032/33 | I21: Forecast 2033/34 | J21: ="Forecast "&J1+13&"/"&RIGHT(J1,2)+14 -> Forecast 2034/35 | K21: Forecast 2035/36 | L21: Forecast 2036/37 | M21: Forecast 2037/38 | N21: Forecast 2038/39 | O21: Forecast 2039/40 | Z21: Solid Waste Infrastructure | AA21: Dams & Reservoirs | AB21: Storm water Conveyance | AD21: An efficient, competitive and responsive economic infrastructure network
A22: ='Template names'!C29 -> Next yr of long term forecast | B22: ="Forecast "&B1+14&"/"&RIGHT(B1,2)+15 -> Forecast 2027/28 | C22: Forecast 2028/29 | D22: Forecast 2029/30 | E22: Forecast 2030/31 | F22: Forecast 2031/32 | G22: Forecast 2032/33 | H22: Forecast 2033/34 | I22: Forecast 2034/35 | J22: ="Forecast "&J1+14&"/"&RIGHT(J1,2)+15 -> Forecast 2035/36 | K22: Forecast 2036/37 | L22: Forecast 2037/38 | M22: Forecast 2038/39 | N22: Forecast 2039/40 | O22: Forecast 2040/41 | Z22: Rail Infrastructure | AA22: Water purification | AB22: Attenuation | AD22: Vibrant, equitable, sustainable rural communities contributing towards food security for all
A23: Adjustments Budget | B23: ="Annual target " & B1&"/"&RIGHT(B1,2)+1 -> Annual target 2013/14 | C23: Annual target 2014/15 | D23: Annual target 2015/16 | E23: Annual target 2016/17 | F23: Annual target 2017/18 | G23: Annual target 2018/19 | H23: Annual target 2019/20 | I23: Annual target 2020/21 | J23: ="Annual target " & J1&"/"&RIGHT(J1,2)+1 -> Annual target 2021/22 | K23: Annual target 2022/23 | L23: Annual target 2023/24 | M23: Annual target 2024/25 | N23: Annual target 2025/26 | O23: Annual target 2026/27 | Z23: Coastal Infrastructure | AA23: Reticulation | AB23: Power Plants | AD23: Sustainable human settlements and improved quality of household life
A24: =A23 -> Adjustments Budget | B24: ="Revised target "& B1&"/"&RIGHT(B1,2)+1 -> Revised target 2013/14 | C24: Revised target 2014/15 | D24: Revised target 2015/16 | E24: Revised target 2016/17 | F24: Revised target 2017/18 | G24: Revised target 2018/19 | H24: Revised target 2019/20 | I24: Revised target 2020/21 | J24: ="Revised target "& J1&"/"&RIGHT(J1,2)+1 -> Revised target 2021/22 | K24: Revised target 2022/23 | L24: Revised target 2023/24 | M24: Revised target 2024/25 | N24: Revised target 2025/26 | O24: Revised target 2026/27 | Z24: Information and Communication Infrastructure | AA24: Sewerage purification | AB24: HV Substations | AD24: Responsive, accountable, effective and efficient local government
A25: NOTE: This sheet should not be directly amended - select headings from sheet 'S' | Z25: Community Facilities | AA25: Waste Management | AB25: HV Switching Station | AD25: Protect and enhance our environmental assets and natural resources
Z26: Sport and Recreation Facilities | AA26: Transportation | AB26: HV Transmission Conductors | AD26: Create a better South Africa and contribute to a better Africa and a better world
A27: Name link | B27: 155 | Z27: Heritage assets | AA27: Gas | AB27: MV Substations | AD27: An efficient, effective and development-oriented public service
A28: Name of Muni | B28: =INDEX(B29:B307,B27,1) -> DC47 Sekhukhune | Z28: Revenue Generating | AA28: Parks & gardens | AB28: MV Switching Stations | AD28: A comprehensive, responsive and sustainable social protection system
B29: Choose name from list | C29: Set name on 'Instructions' sheet | Z29: Non-revenue Generating | AA29: Sportsfields & stadia | AB29: MV Networks | AD29: A diverse, socially cohesive society with a common national identity
B30: BUF Buffalo City | C30: EC EASTERN CAPE | Z30: Operational Buildings | AA30: Swimming pools | AB30: LV Networks
B31: NMA Nelson Mandela Bay | C31: EC EASTERN CAPE | Z31: Housing | AA31: Community halls | AB31: Capital Spares
B32: EC101 Dr Beyers Naude | C32: EC EASTERN CAPE | Z32: Biological or Cultivated Assets | AA32: Libraries | AB32: Dams and Weirs
B33: EC102 Blue Crane Route | C33: EC EASTERN CAPE | Z33: Servitudes | AA33: Recreational facilities | AB33: Boreholes
B34: EC104 Makana | C34: EC EASTERN CAPE | Z34: Licences and Rights | AA34: Fire, safety & emergency | AB34: Reservoirs
B35: EC105 Ndlambe | C35: EC EASTERN CAPE | Z35: Computer Equipment | AA35: Security and policing | AB35: Pump Stations
B36: EC106 Sundays River Valley | C36: EC EASTERN CAPE | Z36: Furniture and Office Equipment | AA36: Buses | AB36: Water Treatment Works
B37: EC108 Kouga | C37: EC EASTERN CAPE | Z37: Machinery and Equipment | AA37: Clinics | AB37: Bulk Mains
B38: EC109 Kou-Kamma | C38: EC EASTERN CAPE | Z38: Transport Assets | AA38: Museums & Art Galleries | AB38: Distribution
B39: DC10 Sarah Baartman | C39: EC EASTERN CAPE | Z39: Land | AA39: Cemeteries | AB39: Distribution Points
B40: EC121 Mbhashe | C40: EC EASTERN CAPE | Z40: Zoo's, Marine and Non-biological Animals | AA40: Social rental housing | AB40: PRV Stations
B41: EC122 Mnquma | C41: EC EASTERN CAPE | AA41: Buildings | AB41: Capital Spares
B42: EC123 Great Kei | C42: EC EASTERN CAPE | AA42: Housing development | AB42: Pump Station
B43: EC124 Amahlathi | C43: EC EASTERN CAPE | AA43: General vehicles | AB43: Reticulation
B44: EC126 Ngqushwa | C44: EC EASTERN CAPE | AA44: Specialised vehicles - Refuse | AB44: Waste Water Treatment Works
B45: EC129 Raymond Mhlaba | C45: EC EASTERN CAPE | AA45: Specialised vehicles - Fire | AB45: Outfall Sewers
B46: DC12 Amathole | C46: EC EASTERN CAPE | AA46: Specialised vehicles - Conservancy | AB46: Toilet Facilities
B47: EC131 Inxuba Yethemba | C47: EC EASTERN CAPE | AA47: Specialised vehicles - Ambulances | AB47: Capital Spares
B48: EC135 Intsika Yethu | C48: EC EASTERN CAPE | AA48: Plant & equipment | AB48: Landfill Sites
B49: EC136 Emalahleni (Ec) | C49: EC EASTERN CAPE | AA49: Computers - hardware/equipment | AB49: Waste Transfer Stations
B50: EC137 Engcobo | C50: EC EASTERN CAPE | AA50: Furniture and other office equipment | AB50: Waste Processing Facilities
B51: EC138 Sakhisizwe | C51: EC EASTERN CAPE | AA51: Abattoirs | AB51: Waste Drop-off Points
B52: EC139 Enoch Mgijima | C52: EC EASTERN CAPE | AA52: Markets | AB52: Waste Separation Facilities
B53: DC13 Chris Hani | C53: EC EASTERN CAPE | AA53: Civic Land and Buildings | AB53: Electricity Generation Facilities
B54: EC141 Elundini | C54: EC EASTERN CAPE | AA54: Other Buildings | AB54: Capital Spares
B55: EC142 Senqu | C55: EC EASTERN CAPE | AA55: Other Land | AB55: Rail Lines
B56: EC145 Walter Sisulu | C56: EC EASTERN CAPE | AA56: Surplus Assets - (Investment or Inventory) | AB56: Rail Structures
B57: DC14 Joe Gqabi | C57: EC EASTERN CAPE | AA57: Computers - software & programming | AB57: Rail Furniture
B58: EC153 Ngquza Hills | C58: EC EASTERN CAPE | AA58: Other | AB58: Drainage Collection
B59: EC154 Port St Johns | C59: EC EASTERN CAPE | AB59: Storm water Conveyance
B60: EC155 Nyandeni | C60: EC EASTERN CAPE | Z60: SA16 - Investments | AB60: Attenuation
B61: EC156 Mhlontlo | C61: EC EASTERN CAPE | Z61: Security | AA61: Interest rate | AB61: MV Substations
B62: EC157 King Sabata Dalindyebo | C62: EC EASTERN CAPE | Z62: Yes | AA62: Fixed | AB62: LV Networks
B63: DC15 O .R. Tambo | C63: EC EASTERN CAPE | Z63: No | AA63: Variable | AB63: Capital Spares
B64: EC441 Matatiele | C64: EC EASTERN CAPE | AB64: Sand Pumps
B65: EC442 Umzimvubu | C65: EC EASTERN CAPE | AB65: Piers
B66: EC443 Winnie Madikizela Mandela | C66: EC EASTERN CAPE | Z66: SA36, SA37 - Capital projects | AB66: Revetments
B67: EC444 Ntabankulu | C67: EC EASTERN CAPE | Z67: Yes | AB67: Promenades
B68: DC44 Alfred Nzo | C68: EC EASTERN CAPE | Z68: No | AB68: Capital Spares
B69: MAN Mangaung | C69: FS FREE STATE | AB69: Data Centres
B70: FS161 Letsemeng | C70: FS FREE STATE | AB70: Core Layers
B71: FS162 Kopanong | C71: FS FREE STATE | AB71: Distribution Layers
B72: FS163 Mohokare | C72: FS FREE STATE | AB72: Capital Spares
B73: DC16 Xhariep | C73: FS FREE STATE | AB73: Halls
B74: FS181 Masilonyana | C74: FS FREE STATE | AB74: Centres
B75: FS182 Tokologo | C75: FS FREE STATE | AB75: Crèches
B76: FS183 Tswelopele | C76: FS FREE STATE | AB76: Clinics/Care Centres
B77: FS184 Matjhabeng | C77: FS FREE STATE | AB77: Fire/Ambulance Stations
B78: FS185 Nala | C78: FS FREE STATE | AB78: Testing Stations
B79: DC18 Lejweleputswa | C79: FS FREE STATE | AB79: Museums
B80: FS191 Setsoto | C80: FS FREE STATE | AB80: Galleries
B81: FS192 Dihlabeng | C81: FS FREE STATE | AB81: Theatres
B82: FS193 Nketoana | C82: FS FREE STATE | AB82: Libraries
B83: FS194 Maluti-a-Phofung | C83: FS FREE STATE | AB83: Cemeteries/Crematoria
B84: FS195 Phumelela | C84: FS FREE STATE | AB84: Police
B85: FS196 Mantsopa | C85: FS FREE STATE | AB85: Purls
B86: DC19 Thabo Mofutsanyana | C86: FS FREE STATE | AB86: Public Open Space
B87: FS201 Moqhaka | C87: FS FREE STATE | AB87: Nature Reserves
B88: FS203 Ngwathe | C88: FS FREE STATE | AB88: Public Ablution Facilities
B89: FS204 Metsimaholo | C89: FS FREE STATE | AB89: Markets
B90: FS205 Mafube | C90: FS FREE STATE | AB90: Stalls
B91: DC20 Fezile Dabi | C91: FS FREE STATE | AB91: Abattoirs
B92: EKU City of Ekurhuleni | C92: GT GAUTENG | AB92: Airports
B93: JHB City Of Johannesburg | C93: GT GAUTENG | AB93: Taxi Ranks/Bus Terminals
B94: TSH City Of Tshwane | C94: GT GAUTENG | AB94: Capital Spares
B95: GT421 Emfuleni | C95: GT GAUTENG | AB95: Indoor Facilities
B96: GT422 Midvaal | C96: GT GAUTENG | AB96: Outdoor Facilities
B97: GT423 Lesedi | C97: GT GAUTENG | AB97: Capital Spares
B98: DC42 Sedibeng | C98: GT GAUTENG | AB98: Monuments
B99: GT481 Mogale City | C99: GT GAUTENG | AB99: Historic Buildings
B100: GT484 Merafong City | C100: GT GAUTENG | AB100: Works of Art
B101: GT485 Rand West City | C101: GT GAUTENG | AB101: Conservation Areas
B102: DC48 West Rand | C102: GT GAUTENG | AB102: Other Heritage
B103: ETH eThekwini | C103: KZN KWAZULU-NATAL | AB103: Improved Property
B104: KZN212 Umdoni | C104: KZN KWAZULU-NATAL | AB104: Unimproved Property
B105: KZN213 Umzumbe | C105: KZN KWAZULU-NATAL | AB105: Municipal Offices
B106: KZN214 uMuziwabantu | C106: KZN KWAZULU-NATAL | AB106: Pay/Enquiry Points
B107: KZN216 Ray Nkonyeni | C107: KZN KWAZULU-NATAL | AB107: Building Plan Offices
B108: DC21 Ugu | C108: KZN KWAZULU-NATAL | AB108: Workshops
B109: KZN221 uMshwathi | C109: KZN KWAZULU-NATAL | AB109: Yards
B110: KZN222 uMngeni | C110: KZN KWAZULU-NATAL | AB110: Stores
B111: KZN223 Mpofana | C111: KZN KWAZULU-NATAL | AB111: Laboratories
B112: KZN224 Impendle | C112: KZN KWAZULU-NATAL | AB112: Training Centres
B113: KZN225 Msunduzi | C113: KZN KWAZULU-NATAL | AB113: Manufacturing Plant
B114: KZN226 Mkhambathini | C114: KZN KWAZULU-NATAL | AB114: Depots
B115: KZN227 Richmond | C115: KZN KWAZULU-NATAL | AB115: Capital Spares
B116: DC22 uMgungundlovu | C116: KZN KWAZULU-NATAL | AB116: Staff Housing
B117: KZN235 Okhahlamba | C117: KZN KWAZULU-NATAL | AB117: Social Housing
B118: KZN237 Inkosi Langalibalele | C118: KZN KWAZULU-NATAL | AB118: Capital Spares
B119: KZN238 Alfred Duma | C119: KZN KWAZULU-NATAL | AB119: Water Rights
B120: DC23 Uthukela | C120: KZN KWAZULU-NATAL | AB120: Effluent Licenses
B121: KZN241 Endumeni | C121: KZN KWAZULU-NATAL | AB121: Solid Waste Licenses
B122: KZN242 Nquthu | C122: KZN KWAZULU-NATAL | AB122: Computer Software and Applications
B123: KZN244 Msinga | C123: KZN KWAZULU-NATAL | AB123: Load Settlement Software Applications
B124: KZN245 Umvoti | C124: KZN KWAZULU-NATAL | AB124: Unspecified
B125: DC24 Umzinyathi | C125: KZN KWAZULU-NATAL
B126: KZN252 Newcastle | C126: KZN KWAZULU-NATAL
B127: KZN253 Emadlangeni | C127: KZN KWAZULU-NATAL
B128: KZN254 Dannhauser | C128: KZN KWAZULU-NATAL
B129: DC25 Amajuba | C129: KZN KWAZULU-NATAL
B130: KZN261 eDumbe | C130: KZN KWAZULU-NATAL
B131: KZN262 uPhongolo | C131: KZN KWAZULU-NATAL
B132: KZN263 Abaqulusi | C132: KZN KWAZULU-NATAL
B133: KZN265 Nongoma | C133: KZN KWAZULU-NATAL
B134: KZN266 Ulundi | C134: KZN KWAZULU-NATAL
B135: DC26 Zululand | C135: KZN KWAZULU-NATAL
B136: KZN271 Umhlabuyalingana | C136: KZN KWAZULU-NATAL
B137: KZN272 Jozini | C137: KZN KWAZULU-NATAL
B138: KZN275 Mtubatuba | C138: KZN KWAZULU-NATAL
B139: KZN276 Hlabisa Big Five | C139: KZN KWAZULU-NATAL
B140: DC27 Umkhanyakude | C140: KZN KWAZULU-NATAL
B141: KZN281 Mfolozi | C141: KZN KWAZULU-NATAL
B142: KZN282 uMhlathuze | C142: KZN KWAZULU-NATAL
B143: KZN284 uMlalazi | C143: KZN KWAZULU-NATAL
B144: KZN285 Mthonjaneni | C144: KZN KWAZULU-NATAL
B145: KZN286 Nkandla | C145: KZN KWAZULU-NATAL
B146: DC28 King Cetshwayo | C146: KZN KWAZULU-NATAL
B147: KZN291 Mandeni | C147: KZN KWAZULU-NATAL
B148: KZN292 KwaDukuza | C148: KZN KWAZULU-NATAL
B149: KZN293 Ndwedwe | C149: KZN KWAZULU-NATAL
B150: KZN294 Maphumulo | C150: KZN KWAZULU-NATAL
B151: DC29 iLembe | C151: KZN KWAZULU-NATAL
B152: KZN433 Greater Kokstad | C152: KZN KWAZULU-NATAL
B153: KZN434 Ubuhlebezwe | C153: KZN KWAZULU-NATAL
B154: KZN435 Umzimkhulu | C154: KZN KWAZULU-NATAL
B155: KZN436 Dr Nkosazana Dlamini Zuma | C155: KZN KWAZULU-NATAL
B156: DC43 Harry Gwala | C156: KZN KWAZULU-NATAL
B157: LIM331 Greater Giyani | C157: LIM LIMPOPO
B158: LIM332 Greater Letaba | C158: LIM LIMPOPO
B159: LIM333 Greater Tzaneen | C159: LIM LIMPOPO
B160: LIM334 Ba-Phalaborwa | C160: LIM LIMPOPO
B161: LIM335 Maruleng | C161: LIM LIMPOPO
B162: DC33 Mopani | C162: LIM LIMPOPO
B163: LIM341 Musina | C163: LIM LIMPOPO
B164: LIM343 Thulamela | C164: LIM LIMPOPO
B165: LIM344 Makhado | C165: LIM LIMPOPO
B166: LIM345 Collins Chabane | C166: LIM LIMPOPO
B167: DC34 Vhembe | C167: LIM LIMPOPO
B168: LIM351 Blouberg | C168: LIM LIMPOPO
B169: LIM353 Molemole | C169: LIM LIMPOPO
B170: LIM354 Polokwane | C170: LIM LIMPOPO
B171: LIM355 Lepelle-Nkumpi | C171: LIM LIMPOPO
B172: DC35 Capricorn | C172: LIM LIMPOPO
B173: LIM361 Thabazimbi | C173: LIM LIMPOPO
B174: LIM362 Lephalale | C174: LIM LIMPOPO
B175: LIM366 Bela Bela | C175: LIM LIMPOPO
B176: LIM367 Mogalakwena | C176: LIM LIMPOPO
B177: LIM368 Modimolle-Mookgopong | C177: LIM LIMPOPO
B178: DC36 Waterberg | C178: LIM LIMPOPO
B179: LIM471 Ephraim Mogale | C179: LIM LIMPOPO
B180: LIM472 Elias Motsoaledi | C180: LIM LIMPOPO
B181: LIM473 Makhuduthamaga | C181: LIM LIMPOPO
B182: LIM476 Tubatse Fetakgomo | C182: LIM LIMPOPO
B183: DC47 Sekhukhune | C183: LIM LIMPOPO
B184: MP301 Albert Luthuli | C184: MP MPUMALANGA
B185: MP302 Msukaligwa | C185: MP MPUMALANGA
B186: MP303 Mkhondo | C186: MP MPUMALANGA
B187: MP304 Pixley Ka Seme (MP) | C187: MP MPUMALANGA
B188: MP305 Lekwa | C188: MP MPUMALANGA
B189: MP306 Dipaleseng | C189: MP MPUMALANGA
B190: MP307 Govan Mbeki | C190: MP MPUMALANGA
B191: DC30 Gert Sibande | C191: MP MPUMALANGA
B192: MP311 Victor Khanye | C192: MP MPUMALANGA
B193: MP312 Emalahleni (Mp) | C193: MP MPUMALANGA
B194: MP313 Steve Tshwete | C194: MP MPUMALANGA
B195: MP314 Emakhazeni | C195: MP MPUMALANGA
B196: MP315 Thembisile Hani | C196: MP MPUMALANGA
B197: MP316 Dr J.S. Moroka | C197: MP MPUMALANGA
B198: DC31 Nkangala | C198: MP MPUMALANGA
B199: MP321 Thaba Chweu | C199: MP MPUMALANGA
B200: MP324 Nkomazi | C200: MP MPUMALANGA
... 87 more rows

Sheet Org structure
A1: Organisational Structure Votes | C1: Organisational Structure Sub-Votes | E1: Display Sub-Votes
A2: =B2&" - "&C2 -> Vote 01 - Speakers Office | B2: Vote 01 | C2: Speakers Office
A3: =B5&" - "&C5 -> Vote 02 - Executive Mayor's Office | B3: 01.1 | C3: Office Of The Speaker | D3: =CONCATENATE(B3, " - ", C3) -> 01.1 - Office Of The Speaker | E3: 01.1 - Office Of The Speaker
A4: =B7&" - "&C7 -> Vote 03 - Municipal Manager Office | B4: 01.2 | C4: Office Of The Chief Whip | D4: =CONCATENATE(B4, " - ", C4) -> 01.2 - Office Of The Chief Whip | E4: 01.2 - Office Of The Chief Whip
A5: =B9&" - "&C9 -> Vote 04 - Budget And Treasury | B5: Vote 02 | C5: Executive Mayor's Office
A6: =B12&" - "&C12 -> Vote 05 - Infrustracture And Water Services | B6: 02.1 | C6: Executive Mayor's Office | D6: =CONCATENATE(B6, " - ", C6) -> 02.1 - Executive Mayor's Office | E6: 02.1 - Executive Mayor's Office
A7: =B16&" - "&C16 -> Vote 06 - Planning And Economic Development | B7: Vote 03 | C7: Municipal Manager Office
A8: =B18&" - "&C18 -> Vote 07 - Community Services | B8: 03.1 | C8: Municipal Manager Admin | D8: =CONCATENATE(B8, " - ", C8) -> 03.1 - Municipal Manager Admin | E8: 03.1 - Municipal Manager Admin
A9: =B20&" - "&C20 -> Vote 08 - Sekhukhune Development Angancy | B9: Vote 04 | C9: Budget And Treasury
A10: =B22&" - "&C22 -> Vote 09 - Corporate Services | B10: 04.1 | C10: Budget & Treasury Admin | D10: =CONCATENATE(B10, " - ", C10) -> 04.1 - Budget & Treasury Admin | E10: 04.1 - Budget & Treasury Admin
A11: =B24&" - "&C24 -> Vote 10 - | B11: 04.2 | C11: Budget & Treasury Admin | D11: =CONCATENATE(B11, " - ", C11) -> 04.2 - Budget & Treasury Admin | E11: 04.2 - Budget & Treasury Admin
A12: Vote 11 - | B12: Vote 05 | C12: Infrustracture And Water Services
A13: Vote 12 - | B13: 05.1 | C13: Technical Services Admin | D13: =CONCATENATE(B13, " - ", C13) -> 05.1 - Technical Services Admin | E13: 05.1 - Technical Services Admin
A14: Vote 13 - | B14: 05.2 | C14: Water Services | D14: =CONCATENATE(B14, " - ", C14) -> 05.2 - Water Services | E14: 05.2 - Water Services
A15: Vote 14 - | B15: 05.3 | C15: Sanitation Services | D15: =CONCATENATE(B15, " - ", C15) -> 05.3 - Sanitation Services | E15: 05.3 - Sanitation Services
A16: Vote 15 - Other | B16: Vote 06 | C16: Planning And Economic Development
B17: 06.1 | C17: Planning & Economic Dev Admin | D17: =CONCATENATE(B17, " - ", C17) -> 06.1 - Planning & Economic Dev Admin | E17: 06.1 - Planning & Economic Dev Admin
B18: Vote 07 | C18: Community Services
B19: 07.1 | C19: Community Services Admin | D19: =CONCATENATE(B19, " - ", C19) -> 07.1 - Community Services Admin | E19: 07.1 - Community Services Admin
B20: Vote 08 | C20: Sekhukhune Development Angancy
B21: 08.1 | C21: Sekhukhune Development Agency | D21: =CONCATENATE(B21, " - ", C21) -> 08.1 - Sekhukhune Development Agency | E21: 08.1 - Sekhukhune Development Agency
B22: Vote 09 | C22: Corporate Services
B23: 09.1 | C23: Corporate Services Admin | D23: =CONCATENATE(B23, " - ", C23) -> 09.1 - Corporate Services Admin | E23: 09.1 - Corporate Services Admin
B24: Vote 10
B25: Vote 11
B26: Vote 12
B27: Vote 13
B28: Vote 14
B29: Vote 15 | C29: Other
B30: 15.1 | C30: Electricity Reporting Function | D30: =CONCATENATE(B30, " - ", C30) -> 15.1 - Electricity Reporting Function | E30: 15.1 - Electricity Reporting Function

Sheet Contacts
A1: =muni&" - "&" Contact Information" -> DC47 Sekhukhune - Contact Information
A3: A. GENERAL INFORMATION
A4: Municipality | B4: =muni -> DC47 Sekhukhune | C4: =IF(B4="Choose name from List","Set name on 'Instructions' sheet", "") -> 
A6: Grade | B6: grade 4 | C6: 1 Grade in terms of the Remuneration of Public Office Bearers Act.
A8: Province | B8: =IF(B4>" ",VLOOKUP(B4,'Lookup and lists'!B29:C307,2, FALSE)," ") -> LIM LIMPOPO
A10: Web Address | B10: www.sekhukhune.gov.za
A12: e-mail Address | B12: www.sekhukhune.gov.za
A14: B. CONTACT INFORMATION
A15: Postal address:
A16: P.O. Box | B16: 8611
A17: City / Town | B17: Groblersdal
A18: Postal Code | B18: 0470
A20: Street address
A21: Building | B21: Bareki Mall
A22: Street No. & Name | B22: Cnr Van Rebeck and Cris Wild
A23: City / Town | B23: groblersdal
A24: Postal Code | B24: 0470
A26: General Contacts
A27: Telephone number | B27: 0132627000
A28: Fax number | B28: 0132623688
A30: C. POLITICAL LEADERSHIP
A31: Speaker: | C31: Secretary/PA to the Speaker:
A32: ID Number | B32: 6902027028084 | C32: ID Number | D32: 7612010524085
A33: Title | B33: Mr | C33: Title | D33: Ms
A34: Name | B34: Chego David Kgwediebotse | C34: Name | D34: Patricia Madibane
A35: Telephone number | B35: 0132627300 | C35: Telephone number | D35: 0132627301
A36: Cell number | B36: 0721852639 | C36: Cell number | D36: 0727496229
A37: Fax number | B37: 0132623688 | C37: Fax number | D37: 0132627300
A38: E-mail address | B38: chegod@sekhukhune.gov.za | C38: E-mail address | D38: madibanep@sekhukhune.gov.za
A40: Mayor/Executive Mayor: | C40: Secretary/PA to the Mayor/Executive Mayor:
A41: ID Number | B41: 7202200395080 | C41: ID Number | D41: 8207020769082
A42: Title | B42: Miss | C42: Title | D42: Ms
A43: Name | B43: Julia LATA Mathebe | C43: Name | D43: Mpai Rammupudu
A44: Telephone number | B44: 0132627459 | C44: Telephone number | D44: 0132627300
A45: Cell number | C45: Cell number | D45: 0727496336
A46: Fax number | B46: 0132623688 | C46: Fax number | D46: 0132623688
A47: E-mail address | B47: mathebej@Sekhukhune.gov.za | C47: E-mail address | D47: rammupudum@sekhukhune.gov.za
A49: Deputy Mayor/Executive Mayor: | C49: Secretary/PA to the Deputy Mayor/Executive Mayor:
A50: ID Number | C50: ID Number
A51: Title | C51: Title
A52: Name | C52: Name
A53: Telephone number | C53: Telephone number
A54: Cell number | C54: Cell number
A55: Fax number | C55: Fax number
A56: E-mail address | C56: E-mail address
A58: D. MANAGEMENT LEADERSHIP
A59: Municipal Manager: | C59: Secretary/PA to the Municipal Manager:
A60: ID Number | B60: 7203140607089 | C60: ID Number | D60: 8705310747080
A61: Title | B61: Ms | C61: Title | D61: Ms
A62: Name | B62: Maureen Ntshudisane | C62: Name | D62: Rachel Maunatlala
A63: Telephone number | B63: 0132627312 | C63: Telephone number | D63: 0132627312
A64: Cell number | B64: 0825519666 | C64: Cell number | D64: 0728168285
A65: Fax number | B65: 0132623688 | C65: Fax number | D65: 0132623688
A66: E-mail address | B66: 0825519666 | C66: E-mail address | D66: Maunatlalar@sekhukhune.gov.za
A68: Chief Financial Officer | C68: Secretary/PA to the Chief Financial Officer
A69: ID Number | B69: 8602245736082 | C69: ID Number | D69: 9503010837080
A70: Title | B70: Mr | C70: Title | D70: Ms
A71: Name | B71: Hendrick Legamane Nkadimeng | C71: Name | D71: Lethabo Matlala
A72: Telephone number | B72: 0132627584 | C72: Telephone number | D72: 0132627584
A73: Cell number | B73: 0832691411 | C73: Cell number | D73: 0723790629
A74: Fax number | B74: 013 262 4303 | C74: Fax number | D74: 0132623688
A75: E-mail address | B75: nkadimengh@sekhukhune.gov.za | C75: E-mail address | D75: Matlalalm@sekhukhune.gov.za
A77: Official responsible for submitting financial information | C77: Official responsible for submitting financial information
A78: ID Number | B78: 8612040651089 | C78: ID Number | D78: 7809030373085
A79: Title | B79: Ms | C79: Title | D79: Ms
A80: Name | B80: MAPHOKENG PETUNIA PITJO | C80: Name | D80: MATHUNG MATLALA
A81: Telephone number | B81: 0132627666 | C81: Telephone number | D81: 013 262 7522
A82: Cell number | B82: 0605269306 | C82: Cell number | D82: 0828529934
A83: Fax number | B83: 0132623688 | C83: Fax number | D83: 013 262 4303
A84: E-mail address | B84: pitjom@sekhukhune.gov.za | C84: E-mail address | D84: matlalam@Sekhukhune.gov.za
A85: Official responsible for submitting financial information | C85: Official responsible for submitting financial information
A86: ID Number | B86: 910712 0452 008 | C86: ID Number
A87: Title | B87: Ms | C87: Title
A88: Name | B88: SENZILE MASEKO | C88: Name
A89: Telephone number | B89: 013 262 7670 | C89: Telephone number
A90: Cell number | B90: 073 985 1961 | C90: Cell number
A91: Fax number | B91: 013 262 4303 | C91: Fax number
A92: E-mail address | B92: masekos@sekhukhune.gov.za | C92: E-mail address
A93: Official responsible for submitting financial information | C93: Official responsible for submitting financial information
A94: ID Number | C94: ID Number
A95: Title | C95: Title
A96: Name | C96: Name
A97: Telephone number | C97: Telephone number
A98: Cell number | C98: Cell number
A99: Fax number | C99: Fax number
A100: E-mail address | C100: E-mail address
A101: Official responsible for submitting financial information | C101: Official responsible for submitting financial information
A102: ID Number | C102: ID Number
A103: Title | C103: Title
A104: Name | C104: Name
A105: Telephone number | C105: Telephone number
A106: Cell number | C106: Cell number
A107: Fax number | C107: Fax number
A108: E-mail address | C108: E-mail address
A109: Official responsible for submitting financial information | C109: Official responsible for submitting financial information
A110: ID Number | C110: ID Number
A111: Title | C111: Title
A112: Name | C112: Name
A113: Telephone number | C113: Telephone number
A114: Cell number | C114: Cell number
A115: Fax number | C115: Fax number
A116: E-mail address | C116: E-mail address
A117: Official responsible for submitting financial information | C117: Official responsible for submitting financial information
A118: ID Number | C118: ID Number
A119: Title | C119: Title
A120: Name | C120: Name
A121: Telephone number | C121: Telephone number
A122: Cell number | C122: Cell number
A123: Fax number | C123: Fax number
A124: E-mail address | C124: E-mail address
A125: Official responsible for submitting financial information | C125: Official responsible for submitting financial information
A126: ID Number | C126: ID Number
A127: Title | C127: Title
A128: Name | C128: Name
A129: Telephone number | C129: Telephone number
A130: Cell number | C130: Cell number
A131: Fax number | C131: Fax number
A132: E-mail address | C132: E-mail address
A133: Official responsible for submitting financial information
A134: ID Number
A135: Title
A136: Name
A137: Telephone number
A138: Cell number
A139: Fax number
A140: E-mail address

Sheet A1-Sum
A1: =muni&" - "&Approve1 -> DC47 Sekhukhune - Table A1 Budget Summary
A2: =desc -> Description | B2: =head1b -> 2018/19 | C2: =head1A -> 2019/20 | D2: =Head1 -> 2020/21 | E2: =Head2 -> Current Year 2021/22 | I2: =Head3 -> 2022/23 Medium Term Revenue & Expenditure Framework
A3: R thousands | B3: =Head5 -> Audited Outcome | C3: =Head5 -> Audited Outcome | D3: =Head5 -> Audited Outcome | E3: =Head6 -> Original Budget | F3: =Head7 -> Adjusted Budget | G3: =Head8 -> Full Year Forecast | H3: =Head5b -> Pre-audit outcome | I3: =Head9 -> Budget Year 2022/23 | J3: =Head10 -> Budget Year +1 2023/24 | K3: =Head11 -> Budget Year +2 2024/25
A4: Financial Performance
A5: Property rates | B5: ='A4-FinPerf RE'!C5 -> 0 | C5: ='A4-FinPerf RE'!D5 -> 0 | D5: ='A4-FinPerf RE'!E5 -> 0 | E5: ='A4-FinPerf RE'!F5 -> 0 | F5: ='A4-FinPerf RE'!G5 -> 0 | G5: ='A4-FinPerf RE'!H5 -> 0 | H5: ='A4-FinPerf RE'!I5 -> 0 | I5: ='A4-FinPerf RE'!J5 -> 0 | J5: ='A4-FinPerf RE'!K5 -> 0 | K5: ='A4-FinPerf RE'!L5 -> 0
A6: Service charges | B6: =SUM('A4-FinPerf RE'!C6:C9) -> 86094738.89 | C6: =SUM('A4-FinPerf RE'!D6:D9) -> 94840931.75 | D6: =SUM('A4-FinPerf RE'!E6:E9) -> 85340370.1 | E6: =SUM('A4-FinPerf RE'!F6:F9) -> 95858109 | F6: =SUM('A4-FinPerf RE'!G6:G9) -> 98638109 | G6: =SUM('A4-FinPerf RE'!H6:H9) -> 98638109 | H6: =SUM('A4-FinPerf RE'!I6:I9) -> 84321917.17 | I6: =SUM('A4-FinPerf RE'!J6:J9) -> 103570014 | J6: =SUM('A4-FinPerf RE'!K6:K9) -> 108748515 | K6: =SUM('A4-FinPerf RE'!L6:L9) -> 114185942
A7: Investment revenue | B7: ='A4-FinPerf RE'!C12 -> 2264470.08 | C7: ='A4-FinPerf RE'!D12 -> 9889632.36 | D7: ='A4-FinPerf RE'!E12 -> 15003055.27 | E7: ='A4-FinPerf RE'!F12 -> 17485844 | F7: ='A4-FinPerf RE'!G12 -> 21485844 | G7: ='A4-FinPerf RE'!H12 -> 21485844 | H7: ='A4-FinPerf RE'!I12 -> 19684813.4 | I7: ='A4-FinPerf RE'!J12 -> 21659404 | J7: ='A4-FinPerf RE'!K12 -> 22612419 | K7: ='A4-FinPerf RE'!L12 -> 23629977
A8: Transfers recognised - operational | B8: ='A4-FinPerf RE'!C18 -> 1194612913 | C8: ='A4-FinPerf RE'!D18 -> 859188517 | D8: ='A4-FinPerf RE'!E18 -> 1074694103 | E8: ='A4-FinPerf RE'!F18 -> 982113000 | F8: ='A4-FinPerf RE'!G18 -> 1024213000 | G8: ='A4-FinPerf RE'!H18 -> 1024213000 | H8: ='A4-FinPerf RE'!I18 -> 893473483.8 | I8: ='A4-FinPerf RE'!J18 -> 1087843560 | J8: ='A4-FinPerf RE'!K18 -> 1149230990 | K8: ='A4-FinPerf RE'!L18 -> 1253412000
A9: Other own revenue | B9: ='A4-FinPerf RE'!C11+'A4-FinPerf RE'!C13+'A4-FinPerf RE'!C14+'A4-FinPerf RE'!C15+'A4-FinPerf RE'!C16+'A4-FinPerf RE'!C17+'A4-FinPerf RE'!C19+'A4-FinPerf RE'!C20 -> 36754061.8 | C9: ='A4-FinPerf RE'!D11+'A4-FinPerf RE'!D13+'A4-FinPerf RE'!D14+'A4-FinPerf RE'!D15+'A4-FinPerf RE'!D16+'A4-FinPerf RE'!D17+'A4-FinPerf RE'!D19+'A4-FinPerf RE'!D20 -> 18655253.36 | D9: ='A4-FinPerf RE'!E11+'A4-FinPerf RE'!E13+'A4-FinPerf RE'!E14+'A4-FinPerf RE'!E15+'A4-FinPerf RE'!E16+'A4-FinPerf RE'!E17+'A4-FinPerf RE'!E19+'A4-FinPerf RE'!E20 -> 95926888.9 | E9: ='A4-FinPerf RE'!F11+'A4-FinPerf RE'!F13+'A4-FinPerf RE'!F14+'A4-FinPerf RE'!F15+'A4-FinPerf RE'!F16+'A4-FinPerf RE'!F17+'A4-FinPerf RE'!F19+'A4-FinPerf RE'!F20 -> 17589924 | F9: ='A4-FinPerf RE'!G11+'A4-FinPerf RE'!G13+'A4-FinPerf RE'!G14+'A4-FinPerf RE'!G15+'A4-FinPerf RE'!G16+'A4-FinPerf RE'!G17+'A4-FinPerf RE'!G19+'A4-FinPerf RE'!G20 -> 17024924 | G9: ='A4-FinPerf RE'!H11+'A4-FinPerf RE'!H13+'A4-FinPerf RE'!H14+'A4-FinPerf RE'!H15+'A4-FinPerf RE'!H16+'A4-FinPerf RE'!H17+'A4-FinPerf RE'!H19+'A4-FinPerf RE'!H20 -> 17024924 | H9: ='A4-FinPerf RE'!I11+'A4-FinPerf RE'!I13+'A4-FinPerf RE'!I14+'A4-FinPerf RE'!I15+'A4-FinPerf RE'!I16+'A4-FinPerf RE'!I17+'A4-FinPerf RE'!I19+'A4-FinPerf RE'!I20 -> 13081413.07 | I9: ='A4-FinPerf RE'!J11+'A4-FinPerf RE'!J13+'A4-FinPerf RE'!J14+'A4-FinPerf RE'!J15+'A4-FinPerf RE'!J16+'A4-FinPerf RE'!J17+'A4-FinPerf RE'!J19+'A4-FinPerf RE'!J20 -> 17876171 | J9: ='A4-FinPerf RE'!K11+'A4-FinPerf RE'!K13+'A4-FinPerf RE'!K14+'A4-FinPerf RE'!K15+'A4-FinPerf RE'!K16+'A4-FinPerf RE'!K17+'A4-FinPerf RE'!K19+'A4-FinPerf RE'!K20 -> 18769978 | K9: ='A4-FinPerf RE'!L11+'A4-FinPerf RE'!L13+'A4-FinPerf RE'!L14+'A4-FinPerf RE'!L15+'A4-FinPerf RE'!L16+'A4-FinPerf RE'!L17+'A4-FinPerf RE'!L19+'A4-FinPerf RE'!L20 -> 19708478
A10: ='A4-FinPerf RE'!A21 -> Total Revenue (excluding capital transfers and contributions) | B10: =SUM(B5:B9) -> 1319726184 | C10: 982574334.5 | D10: 1270964417 | E10: 1113046877 | F10: 1161361877 | G10: 1161361877 | H10: 1010561627 | I10: 1230949149 | J10: 1299361902 | K10: 1410936397
A11: Employee costs | B11: ='A4-FinPerf RE'!C24 -> 373154682.8 | C11: ='A4-FinPerf RE'!D24 -> 395222658.9 | D11: ='A4-FinPerf RE'!E24 -> 413179304.5 | E11: ='A4-FinPerf RE'!F24 -> 433126807 | F11: ='A4-FinPerf RE'!G24 -> 419505838 | G11: ='A4-FinPerf RE'!H24 -> 419505838 | H11: ='A4-FinPerf RE'!I24 -> 369587724.4 | I11: ='A4-FinPerf RE'!J24 -> 459428896 | J11: ='A4-FinPerf RE'!K24 -> 458356373 | K11: ='A4-FinPerf RE'!L24 -> 483772787
A12: Remuneration of councillors | B12: ='A4-FinPerf RE'!C25 -> 16597723.23 | C12: ='A4-FinPerf RE'!D25 -> 15466714.2 | D12: ='A4-FinPerf RE'!E25 -> 15042795.47 | E12: ='A4-FinPerf RE'!F25 -> 18330456 | F12: ='A4-FinPerf RE'!G25 -> 18330456 | G12: ='A4-FinPerf RE'!H25 -> 18330456 | H12: ='A4-FinPerf RE'!I25 -> 14029089.23 | I12: ='A4-FinPerf RE'!J25 -> 18422108 | J12: ='A4-FinPerf RE'!K25 -> 19232682 | K12: ='A4-FinPerf RE'!L25 -> 20098150
A13: Depreciation & asset impairment | B13: ='A4-FinPerf RE'!C27 -> 101039968 | C13: ='A4-FinPerf RE'!D27 -> 122229924.3 | D13: ='A4-FinPerf RE'!E27 -> 94331435.57 | E13: ='A4-FinPerf RE'!F27 -> 102514292 | F13: ='A4-FinPerf RE'!G27 -> 102554292 | G13: ='A4-FinPerf RE'!H27 -> 102554292 | H13: ='A4-FinPerf RE'!I27 -> 0 | I13: ='A4-FinPerf RE'!J27 -> 106884864 | J13: ='A4-FinPerf RE'!K27 -> 111671318 | K13: ='A4-FinPerf RE'!L27 -> 127396528
A14: Finance charges | B14: ='A4-FinPerf RE'!C28 -> 346933.09 | C14: ='A4-FinPerf RE'!D28 -> 0 | D14: ='A4-FinPerf RE'!E28 -> 0 | E14: ='A4-FinPerf RE'!F28 -> 489818 | F14: ='A4-FinPerf RE'!G28 -> 489818 | G14: ='A4-FinPerf RE'!H28 -> 489818 | H14: ='A4-FinPerf RE'!I28 -> 0 | I14: ='A4-FinPerf RE'!J28 -> 509411 | J14: ='A4-FinPerf RE'!K28 -> 531825 | K14: ='A4-FinPerf RE'!L28 -> 555757
A15: Inventory consumed and bulk purchases | B15: ='A4-FinPerf RE'!C29+'A4-FinPerf RE'!C30 -> 12465554.89 | C15: ='A4-FinPerf RE'!D29+'A4-FinPerf RE'!D30 -> 25650772.94 | D15: ='A4-FinPerf RE'!E29+'A4-FinPerf RE'!E30 -> 24307533.88 | E15: ='A4-FinPerf RE'!F29+'A4-FinPerf RE'!F30 -> 177905447 | F15: ='A4-FinPerf RE'!G29+'A4-FinPerf RE'!G30 -> 168470546 | G15: ='A4-FinPerf RE'!H29+'A4-FinPerf RE'!H30 -> 168470546 | H15: ='A4-FinPerf RE'!I29+'A4-FinPerf RE'!I30 -> 19642284.58 | I15: ='A4-FinPerf RE'!J29+'A4-FinPerf RE'!J30 -> 191075226 | J15: ='A4-FinPerf RE'!K29+'A4-FinPerf RE'!K30 -> 187994806 | K15: ='A4-FinPerf RE'!L29+'A4-FinPerf RE'!L30 -> 207271499
A16: Transfers and grants | B16: ='A4-FinPerf RE'!C32 -> 7415578.35 | C16: ='A4-FinPerf RE'!D32 -> 3497209.2 | D16: ='A4-FinPerf RE'!E32 -> 2556298.03 | E16: ='A4-FinPerf RE'!F32 -> 758211 | F16: ='A4-FinPerf RE'!G32 -> 796171 | G16: ='A4-FinPerf RE'!H32 -> 796171 | H16: ='A4-FinPerf RE'!I32 -> 734369.14 | I16: ='A4-FinPerf RE'!J32 -> 0 | J16: ='A4-FinPerf RE'!K32 -> 0 | K16: ='A4-FinPerf RE'!L32 -> 0
A17: Other expenditure | B17: ='A4-FinPerf RE'!C26+'A4-FinPerf RE'!C31+'A4-FinPerf RE'!C33+'A4-FinPerf RE'!C34 -> 376707075.7 | C17: ='A4-FinPerf RE'!D26+'A4-FinPerf RE'!D31+'A4-FinPerf RE'!D33+'A4-FinPerf RE'!D34 -> 376167056.2 | D17: ='A4-FinPerf RE'!E26+'A4-FinPerf RE'!E31+'A4-FinPerf RE'!E33+'A4-FinPerf RE'!E34 -> 372463520.9 | E17: ='A4-FinPerf RE'!F26+'A4-FinPerf RE'!F31+'A4-FinPerf RE'!F33+'A4-FinPerf RE'!F34 -> 370407267 | F17: ='A4-FinPerf RE'!G26+'A4-FinPerf RE'!G31+'A4-FinPerf RE'!G33+'A4-FinPerf RE'!G34 -> 440780888 | G17: ='A4-FinPerf RE'!H26+'A4-FinPerf RE'!H31+'A4-FinPerf RE'!H33+'A4-FinPerf RE'!H34 -> 440780888 | H17: ='A4-FinPerf RE'!I26+'A4-FinPerf RE'!I31+'A4-FinPerf RE'!I33+'A4-FinPerf RE'!I34 -> 275415150 | I17: ='A4-FinPerf RE'!J26+'A4-FinPerf RE'!J31+'A4-FinPerf RE'!J33+'A4-FinPerf RE'!J34 -> 434265231 | J17: ='A4-FinPerf RE'!K26+'A4-FinPerf RE'!K31+'A4-FinPerf RE'!K33+'A4-FinPerf RE'!K34 -> 511139304 | K17: ='A4-FinPerf RE'!L26+'A4-FinPerf RE'!L31+'A4-FinPerf RE'!L33+'A4-FinPerf RE'!L34 -> 562189349
A18: ='A4-FinPerf RE'!A35 -> Total Expenditure | B18: =SUM(B11:B17) -> 887727516 | C18: =SUM(C11:C17) -> 938234335.8 | D18: 921880888.3 | E18: 1103532298 | F18: 1150928009 | G18: 1150928009 | H18: 679408617.3 | I18: 1210585736 | J18: 1288926308 | K18: 1401284070
A19: ='A4-FinPerf RE'!A37 -> Surplus/(Deficit) | B19: =B10-B18 -> 431998667.8 | C19: 44339998.71 | D19: 349083528.6 | E19: 9514579 | F19: 10433868 | G19: 10433868 | H19: 331153010.2 | I19: 20363413 | J19: 10435594 | K19: 9652327
A20: ='A4-FinPerf RE'!A38 -> Transfers and subsidies - capital (monetary allocations) (National / Provincial and District) | B20: ='A4-FinPerf RE'!C38 -> 125779291.9 | C20: ='A4-FinPerf RE'!D38 -> 443917155.9 | D20: ='A4-FinPerf RE'!E38 -> 448726686.9 | E20: ='A4-FinPerf RE'!F38 -> 415901000 | F20: ='A4-FinPerf RE'!G38 -> 379101000 | G20: ='A4-FinPerf RE'!H38 -> 379101000 | H20: ='A4-FinPerf RE'!I38 -> 270293604.4 | I20: ='A4-FinPerf RE'!J38 -> 469076440 | J20: ='A4-FinPerf RE'!K38 -> 501682010 | K20: ='A4-FinPerf RE'!L38 -> 512086000
A21: ='A4-FinPerf RE'!A39&" & "&'A4-FinPerf RE'!A40 -> Transfers and subsidies - capital (monetary allocations) (National / Provincial Departmental Agencies, Households, Non-profit Institutions, Private Enterprises, Public Corporatons, Higher Educational Institutions) & Transfers and subsidies - capital (in-kind - all) | B21: ='A4-FinPerf RE'!C39+'A4-FinPerf RE'!C40 -> 696797.27 | C21: ='A4-FinPerf RE'!D39+'A4-FinPerf RE'!D40 -> 708098.46 | D21: ='A4-FinPerf RE'!E39+'A4-FinPerf RE'!E40 -> 1208023.31 | E21: ='A4-FinPerf RE'!F39+'A4-FinPerf RE'!F40 -> 0 | F21: ='A4-FinPerf RE'!G39+'A4-FinPerf RE'!G40 -> 0 | G21: ='A4-FinPerf RE'!H39+'A4-FinPerf RE'!H40 -> 0 | H21: ='A4-FinPerf RE'!I39+'A4-FinPerf RE'!I40 -> 1298415.56 | I21: ='A4-FinPerf RE'!J39+'A4-FinPerf RE'!J40 -> 0 | J21: ='A4-FinPerf RE'!K39+'A4-FinPerf RE'!K40 -> 0 | K21: ='A4-FinPerf RE'!L39+'A4-FinPerf RE'!L40 -> 0
A22: ='A4-FinPerf RE'!A41 -> Surplus/(Deficit) after capital transfers & contributions | B22: =B19+SUM(B20:B21) -> 558474757 | C22: =C19+SUM(C20:C21) -> 488965253.1 | E22: 425415579 | F22: 389534868 | G22: 389534868 | H22: 602745030.2 | I22: 489439853 | J22: 512117604 | K22: 521738327
A23: ='A4-FinPerf RE'!A46 -> Share of surplus/ (deficit) of associate | B23: ='A4-FinPerf RE'!C46 -> 0 | C23: ='A4-FinPerf RE'!D46 -> 0 | D23: ='A4-FinPerf RE'!E46 -> 0 | E23: ='A4-FinPerf RE'!F46 -> 0 | F23: ='A4-FinPerf RE'!G46 -> 0 | G23: ='A4-FinPerf RE'!H46 -> 0 | H23: ='A4-FinPerf RE'!I46 -> 0 | I23: ='A4-FinPerf RE'!J46 -> 0 | J23: ='A4-FinPerf RE'!K46 -> 0 | K23: ='A4-FinPerf RE'!L46 -> 0
A24: ='A4-FinPerf RE'!A47 -> Surplus/(Deficit) for the year | B24: =B22+B23 -> 558474757 | C24: =C22+C23 -> 488965253.1 | D24: 0 | E24: 425415579 | F24: 389534868 | G24: 389534868 | H24: 602745030.2 | I24: 489439853 | J24: 512117604 | K24: 521738327
A26: Capital expenditure & funds sources
A27: Capital expenditure | B27: ='A5-Capex'!C63 -> 457492910.4 | C27: ='A5-Capex'!D63 -> 390198098 | D27: ='A5-Capex'!E63 -> 429537047.6 | E27: ='A5-Capex'!F63 -> 424001000 | F27: ='A5-Capex'!G63 -> 397397708 | G27: ='A5-Capex'!H63 -> 397397708 | H27: ='A5-Capex'!I63 -> 253043211.2 | I27: ='A5-Capex'!J63 -> 489206441 | J27: ='A5-Capex'!K63 -> 511713530 | K27: ='A5-Capex'!L63 -> 520355239
A28: Transfers recognised - capital | B28: ='A5-Capex'!C70 -> 449103607.4 | C28: ='A5-Capex'!D70 -> 386878394.9 | D28: ='A5-Capex'!E70 -> 400327020.8 | E28: ='A5-Capex'!F70 -> 415901000 | F28: ='A5-Capex'!G70 -> 379617708 | G28: ='A5-Capex'!H70 -> 379617708 | H28: ='A5-Capex'!I70 -> 244894146.5 | I28: ='A5-Capex'!J70 -> 469076441 | J28: ='A5-Capex'!K70 -> 501682010 | K28: ='A5-Capex'!L70 -> 512086000
A30: ='A5-Capex'!A72 -> Borrowing | B30: ='A5-Capex'!C72 -> 0 | C30: ='A5-Capex'!D72 -> 0 | D30: ='A5-Capex'!E72 -> 0 | E30: ='A5-Capex'!F72 -> 0 | F30: ='A5-Capex'!G72 -> 0 | G30: ='A5-Capex'!H72 -> 0 | H30: ='A5-Capex'!I72 -> 0 | I30: ='A5-Capex'!J72 -> 0 | J30: ='A5-Capex'!K72 -> 0 | K30: ='A5-Capex'!L72 -> 0
A31: ='A5-Capex'!A73 -> Internally generated funds | B31: ='A5-Capex'!C73 -> 8740883.9 | C31: ='A5-Capex'!D73 -> 3319703.09 | D31: ='A5-Capex'!E73 -> 29210026.83 | E31: ='A5-Capex'!F73 -> 8100000 | F31: ='A5-Capex'!G73 -> 17780000 | G31: ='A5-Capex'!H73 -> 17780000 | H31: ='A5-Capex'!I73 -> 8149064.68 | I31: ='A5-Capex'!J73 -> 20130000 | J31: ='A5-Capex'!K73 -> 10031520 | K31: ='A5-Capex'!L73 -> 8269239
A32: Total sources of capital funds | B32: =+B28+B30+B31 -> 457844491.3 | C32: =+C28+C30+C31 -> 390198098 | D32: 429537047.6 | E32: 424001000 | F32: 397397708 | G32: 397397708 | H32: 253043211.2 | I32: 489206441 | J32: 511713530 | K32: 520355239
A34: Financial position
A35: ='A6-FinPos'!A12 -> Total current assets | B35: ='A6-FinPos'!C12 -> 242685877 | C35: ='A6-FinPos'!D12 -> 446919951.1 | D35: ='A6-FinPos'!E12 -> 310897376.1 | E35: ='A6-FinPos'!F12 -> 481347215.5 | F35: ='A6-FinPos'!G12 -> 709095175.5 | G35: ='A6-FinPos'!H12 -> 709095175.5 | H35: ='A6-FinPos'!I12 -> 499307715.2 | I35: ='A6-FinPos'!J12 -> 723908311.5 | J35: ='A6-FinPos'!K12 -> 945429581.5 | K35: ='A6-FinPos'!L12 -> 1166111806
A36: ='A6-FinPos'!A24 -> Total non current assets | B36: ='A6-FinPos'!C24 -> 3417918351 | C36: ='A6-FinPos'!D24 -> 3552763769 | D36: ='A6-FinPos'!E24 -> 3882179948 | E36: ='A6-FinPos'!F24 -> 3713221145 | F36: ='A6-FinPos'!G24 -> 3677517853 | G36: ='A6-FinPos'!H24 -> 3677517853 | H36: ='A6-FinPos'!I24 -> 4754814835 | I36: ='A6-FinPos'!J24 -> 3772526586 | J36: ='A6-FinPos'!K24 -> 3795033675 | K36: ='A6-FinPos'!L24 -> 3819015492
A37: ='A6-FinPos'!A34 -> Total current liabilities | B37: ='A6-FinPos'!C34 -> 489443088.6 | C37: ='A6-FinPos'!D34 -> 518007939.7 | D37: ='A6-FinPos'!E34 -> 722210000.3 | E37: ='A6-FinPos'!F34 -> 224314762 | F37: ='A6-FinPos'!G34 -> 281317807 | G37: ='A6-FinPos'!H34 -> 281317807 | H37: ='A6-FinPos'!I34 -> 709016438.3 | I37: ='A6-FinPos'!J34 -> 278604277 | J37: ='A6-FinPos'!K34 -> 299062127 | K37: ='A6-FinPos'!L34 -> 441371157
A38: ='A6-FinPos'!A39 -> Total non current liabilities | B38: ='A6-FinPos'!C39 -> 53030087.08 | C38: ='A6-FinPos'!D39 -> 53508243.5 | D38: ='A6-FinPos'!E39 -> 62793987.86 | E38: ='A6-FinPos'!F39 -> 51802526 | F38: ='A6-FinPos'!G39 -> 51802526 | G38: ='A6-FinPos'!H39 -> 51802526 | H38: ='A6-FinPos'!I39 -> 62793987.86 | I38: ='A6-FinPos'!J39 -> 51802526 | J38: ='A6-FinPos'!K39 -> 51802526 | K38: ='A6-FinPos'!L39 -> 51802526
A39: Community wealth/Equity | B39: ='A6-FinPos'!C48 -> 3344127598 | C39: ='A6-FinPos'!D48 -> 3565196821 | D39: ='A6-FinPos'!E48 -> 4147224908 | E39: ='A6-FinPos'!F48 -> 4010275759 | F39: ='A6-FinPos'!G48 -> 4020961505 | G39: ='A6-FinPos'!H48 -> 4020961505 | H39: ='A6-FinPos'!I48 -> 4551981402 | I39: ='A6-FinPos'!J48 -> 4085220273 | J39: ='A6-FinPos'!K48 -> 4247770374 | K39: ='A6-FinPos'!L48 -> 4198404444
A41: Cash flows
A42: Net cash from (used) operating | B42: ='A7-CFlow'!C17 -> 0 | C42: ='A7-CFlow'!D17 -> 0 | D42: ='A7-CFlow'!E17 -> -686790700.6 | E42: ='A7-CFlow'!F17 -> 1073781701 | F42: ='A7-CFlow'!G17 -> 1647050386 | G42: ='A7-CFlow'!H17 -> 1647050386 | H42: ='A7-CFlow'!I17 -> -1547554918 | I42: ='A7-CFlow'!J17 -> 550275334 | J42: ='A7-CFlow'!K17 -> 583703114 | K42: ='A7-CFlow'!L17 -> 616896300
A43: Net cash from (used) investing | B43: ='A7-CFlow'!C27 -> 58868291.99 | C43: ='A7-CFlow'!D27 -> -177160774.8 | D43: ='A7-CFlow'!E27 -> -366227989.9 | E43: ='A7-CFlow'!F27 -> -294947865 | F43: ='A7-CFlow'!G27 -> -396988164 | G43: ='A7-CFlow'!H27 -> -396988164 | H43: ='A7-CFlow'!I27 -> 391744786.9 | I43: ='A7-CFlow'!J27 -> -488776420 | J43: ='A7-CFlow'!K27 -> -511262008 | K43: ='A7-CFlow'!L27 -> -519881141
A44: Net cash from (used) financing | B44: ='A7-CFlow'!C36 -> -4209179.54 | C44: ='A7-CFlow'!D36 -> -162235.88 | D44: ='A7-CFlow'!E36 -> -252963.53 | E44: ='A7-CFlow'!F36 -> 309616.95 | F44: ='A7-CFlow'!G36 -> 0 | G44: ='A7-CFlow'!H36 -> 0 | H44: ='A7-CFlow'!I36 -> -234385.09 | I44: ='A7-CFlow'!J36 -> 0 | J44: ='A7-CFlow'!K36 -> 0 | K44: ='A7-CFlow'!L36 -> 0
A45: =LEFT('A7-CFlow'!A40,37) -> Cash/cash equivalents at the year end | B45: ='A7-CFlow'!C40 -> 72908217.38 | C45: ='A7-CFlow'!D40 -> -165162217 | D45: ='A7-CFlow'!E40 -> -872573909.2 | E45: ='A7-CFlow'!F40 -> 960321251.9 | F45: ='A7-CFlow'!G40 -> 1487464310 | G45: ='A7-CFlow'!H40 -> 1487464310 | H45: ='A7-CFlow'!I40 -> -1156044517 | I45: ='A7-CFlow'!J40 -> 280203917 | J45: ='A7-CFlow'!K40 -> 352645023 | K45: ='A7-CFlow'!L40 -> 449660182
A47: Cash backing/surplus reconciliation
A48: ='A8-ResRecon'!A4 -> Cash and investments available | B48: ='A8-ResRecon'!C8 -> 71029085.67 | C48: ='A8-ResRecon'!D8 -> 62405262 | D48: ='A8-ResRecon'!E8 -> -174297036.1 | E48: ='A8-ResRecon'!F8 -> 236447215 | F48: ='A8-ResRecon'!G8 -> 310563840 | G48: ='A8-ResRecon'!H8 -> 310563840 | H48: ='A8-ResRecon'!I8 -> 541523466.5 | I48: ='A8-ResRecon'!J8 -> 271871583 | J48: ='A8-ResRecon'!K8 -> 344312689 | K48: ='A8-ResRecon'!L8 -> 432994514
A49: ='A8-ResRecon'!A10 -> Application of cash and investments | B49: ='A8-ResRecon'!C18 -> 446860706.5 | C49: ='A8-ResRecon'!D18 -> 460781707.9 | D49: ='A8-ResRecon'!E18 -> 338208166.2 | E49: ='A8-ResRecon'!F18 -> 118812000 | F49: ='A8-ResRecon'!G18 -> 143466045 | G49: ='A8-ResRecon'!H18 -> 143466045 | H49: ='A8-ResRecon'!I18 -> 1982026986 | I49: ='A8-ResRecon'!J18 -> 174952515 | J49: ='A8-ResRecon'!K18 -> 196816365 | K49: ='A8-ResRecon'!L18 -> 332882395
A50: Balance - surplus (shortfall) | B50: =B48-B49 -> -375831620.8 | C50: =C48-C49 -> -398376445.9 | D50: -512505202.3 | E50: 117635215 | F50: 167097795 | G50: 167097795 | H50: -1440503519 | I50: 96919068 | J50: 147496324 | K50: 100112119
A52: Asset management
A53: Asset register summary (WDV) | B53: ='A9-Asset'!C165 -> 2233021658 | C53: ='A9-Asset'!D165 -> 2388135371 | D53: ='A9-Asset'!E165 -> 2672393451 | E53: ='A9-Asset'!F165 -> 2587192745 | F53: ='A9-Asset'!G165 -> 2551489453 | G53: ='A9-Asset'!H165 -> 2551489453 | H53: ='A9-Asset'!H165 -> 2551489453 | I53: ='A9-Asset'!I165 -> 2646498186 | J53: ='A9-Asset'!J165 -> 2669005275 | K53: ='A9-Asset'!K165 -> 2692987092
A54: ='A9-Asset'!A168 -> Depreciation | B54: ='A9-Asset'!C168 -> 101039968 | C54: ='A9-Asset'!D168 -> 122229924.3 | D54: ='A9-Asset'!E168 -> 94331435.57 | E54: ='A9-Asset'!F168 -> 102514292 | F54: ='A9-Asset'!G168 -> 102554292 | G54: ='A9-Asset'!H168 -> 102554292 | H54: ='A9-Asset'!H168 -> 102554292 | I54: ='A9-Asset'!I168 -> 106884864 | J54: ='A9-Asset'!J168 -> 111671318 | K54: ='A9-Asset'!K168 -> 127396528
A55: Renewal and Upgrading of Existing Assets | B55: ='A9-Asset'!C37+'A9-Asset'!C69 -> 5086255.03 | C55: ='A9-Asset'!D37+'A9-Asset'!D69 -> 105683550.4 | D55: ='A9-Asset'!E37+'A9-Asset'!E69 -> 141676551.9 | E55: ='A9-Asset'!F37+'A9-Asset'!F69 -> 34927829 | F55: ='A9-Asset'!G37+'A9-Asset'!G69 -> 26662865 | G55: ='A9-Asset'!H37+'A9-Asset'!H69 -> 26662865 | H55: ='A9-Asset'!H37+'A9-Asset'!H69 -> 26662865 | I55: ='A9-Asset'!I37+'A9-Asset'!I69 -> 6493603 | J55: ='A9-Asset'!J37+'A9-Asset'!J69 -> 9320000 | K55: ='A9-Asset'!K37+'A9-Asset'!K69 -> 8549000
A56: Repairs and Maintenance | B56: ='A9-Asset'!C169 -> 119285459 | C56: ='A9-Asset'!D169 -> 99305933.84 | D56: ='A9-Asset'!E169 -> 96569483.1 | E56: ='A9-Asset'!F169 -> 130173794 | F56: ='A9-Asset'!G169 -> 173120535 | G56: ='A9-Asset'!H169 -> 173120535 | H56: ='A9-Asset'!H169 -> 173120535 | I56: ='A9-Asset'!I169 -> 123052346 | J56: ='A9-Asset'!J169 -> 119571247 | K56: ='A9-Asset'!K169 -> 123573276
A58: Free services
A59: Cost of Free Basic Services provided | B59: ='A10-SerDel'!C60 -> 0 | C59: ='A10-SerDel'!D60 -> 0 | D59: ='A10-SerDel'!E60 -> 0 | E59: ='A10-SerDel'!F60 -> 0 | F59: ='A10-SerDel'!G60 -> 0 | G59: ='A10-SerDel'!H60 -> 0 | H59: ='A10-SerDel'!I60 -> 0 | I59: ='A10-SerDel'!I60 -> 0 | J59: ='A10-SerDel'!J60 -> 0 | K59: ='A10-SerDel'!K60 -> 0
A60: Revenue cost of free services provided | B60: ='A10-SerDel'!C79 -> 0 | C60: ='A10-SerDel'!D79 -> 0 | D60: ='A10-SerDel'!E79 -> 0 | E60: ='A10-SerDel'!F79 -> 0 | F60: ='A10-SerDel'!G79 -> 0 | G60: ='A10-SerDel'!H79 -> 0 | H60: ='A10-SerDel'!I79 -> 0 | I60: ='A10-SerDel'!I79 -> 0 | J60: ='A10-SerDel'!J79 -> 0 | K60: ='A10-SerDel'!K79 -> 0
A61: Households below minimum service level
A62: ='A10-SerDel'!A5 -> Water: | B62: ='A10-SerDel'!C14 -> 0 | C62: ='A10-SerDel'!D14 -> 0 | D62: ='A10-SerDel'!E14 -> 0 | E62: ='A10-SerDel'!F14 -> 0 | F62: ='A10-SerDel'!G14 -> 0 | G62: ='A10-SerDel'!H14 -> 0 | H62: ='A10-SerDel'!I14 -> 50000 | I62: ='A10-SerDel'!I14 -> 50000 | J62: ='A10-SerDel'!J14 -> 15000 | K62: ='A10-SerDel'!K14 -> 0
A63: ='A10-SerDel'!A16 -> Sanitation/sewerage: | B63: ='A10-SerDel'!C26 -> 0 | C63: ='A10-SerDel'!D26 -> 0 | D63: ='A10-SerDel'!E26 -> 0 | E63: ='A10-SerDel'!F26 -> 0 | F63: ='A10-SerDel'!G26 -> 0 | G63: ='A10-SerDel'!H26 -> 0 | H63: ='A10-SerDel'!I26 -> 5000 | I63: ='A10-SerDel'!I26 -> 5000 | J63: ='A10-SerDel'!J26 -> 10000 | K63: ='A10-SerDel'!K26 -> 15000
A64: ='A10-SerDel'!A28 -> Energy: | B64: ='A10-SerDel'!C35 -> 0 | C64: ='A10-SerDel'!D35 -> 0 | D64: ='A10-SerDel'!E35 -> 0 | E64: ='A10-SerDel'!F35 -> 0 | F64: ='A10-SerDel'!G35 -> 0 | G64: ='A10-SerDel'!H35 -> 0 | H64: ='A10-SerDel'!I35 -> 0 | I64: ='A10-SerDel'!I35 -> 0 | J64: ='A10-SerDel'!J35 -> 0 | K64: ='A10-SerDel'!K35 -> 0
A65: ='A10-SerDel'!A37 -> Refuse: | B65: ='A10-SerDel'!C45 -> 0 | C65: ='A10-SerDel'!D45 -> 0 | D65: ='A10-SerDel'!E45 -> 0 | E65: ='A10-SerDel'!F45 -> 0 | F65: ='A10-SerDel'!G45 -> 0 | G65: ='A10-SerDel'!H45 -> 0 | H65: ='A10-SerDel'!I45 -> 0 | I65: ='A10-SerDel'!I45 -> 0 | J65: ='A10-SerDel'!J45 -> 0 | K65: ='A10-SerDel'!K45 -> 0

Sheet A2-FinPerf SC
A1: =muni&" - "&Approve3 -> DC47 Sekhukhune - Table A2 Budgeted Financial Performance (revenue and expenditure by functional classification)
A2: ="Functional Classification "&desc -> Functional Classification Description | B2: =head27 -> Ref | C2: =head1b -> 2018/19 | D2: =head1A -> 2019/20 | E2: =Head1 -> 2020/21 | F2: =Head2 -> Current Year 2021/22 | I2: =Head3 -> 2022/23 Medium Term Revenue & Expenditure Framework
A3: R thousand | B3: 1 | C3: =Head5 -> Audited Outcome | D3: =Head5 -> Audited Outcome | E3: =Head5 -> Audited Outcome | F3: =Head6 -> Original Budget | G3: =Head7 -> Adjusted Budget | H3: =Head8 -> Full Year Forecast | I3: =Head9 -> Budget Year 2022/23 | J3: =Head10 -> Budget Year +1 2023/24 | K3: =Head11 -> Budget Year +2 2024/25
A4: Revenue - Functional
A5: Governance and administration | C5: =SUM(C6:C8) -> 1446205266 | D5: =SUM(D6:D8) -> 1427199589 | E5: 1720899127 | F5: 1528947877 | G5: 1540462877 | H5: 1540462877 | I5: 1700025589 | J5: 1801043912 | K5: 1923022397
A6: Executive and council | C6: =A2A!C6 -> -1810 | D6: =A2A!D6 -> 0 | E6: =A2A!E6 -> 0 | F6: =A2A!F6 -> 0 | G6: =A2A!G6 -> 0 | H6: =A2A!H6 -> 0 | I6: =A2A!I6 -> 0 | J6: =A2A!J6 -> 0 | K6: =A2A!K6 -> 0
A7: Finance and administration | C7: =A2A!C9 -> 1446207076 | D7: =A2A!D9 -> 1427199589 | E7: =A2A!E9 -> 1720899127 | F7: =A2A!F9 -> 1528947877 | G7: =A2A!G9 -> 1540462877 | H7: =A2A!H9 -> 1540462877 | I7: =A2A!I9 -> 1700025589 | J7: =A2A!J9 -> 1801043912 | K7: =A2A!K9 -> 1923022397
A8: Internal audit | C8: =A2A!C23 -> 0 | D8: =A2A!D23 -> 0 | E8: =A2A!E23 -> 0 | F8: =A2A!F23 -> 0 | G8: =A2A!G23 -> 0 | H8: =A2A!H23 -> 0 | I8: =A2A!I23 -> 0 | J8: =A2A!J23 -> 0 | K8: =A2A!K23 -> 0
A9: Community and public safety | C9: =SUM(C10:C14) -> 0 | D9: =SUM(D10:D14) -> 0 | E9: 0 | F9: 0 | G9: 0 | H9: 0 | I9: 0 | J9: 0 | K9: 0
A10: Community and social services | C10: =A2A!C26 -> 0 | D10: =A2A!D26 -> 0 | E10: =A2A!E26 -> 0 | F10: =A2A!F26 -> 0 | G10: =A2A!G26 -> 0 | H10: =A2A!H26 -> 0 | I10: =A2A!I26 -> 0 | J10: =A2A!J26 -> 0 | K10: =A2A!K26 -> 0
A11: Sport and recreation | C11: =A2A!C48 -> 0 | D11: =A2A!D48 -> 0 | E11: =A2A!E48 -> 0 | F11: =A2A!F48 -> 0 | G11: =A2A!G48 -> 0 | H11: =A2A!H48 -> 0 | I11: =A2A!I48 -> 0 | J11: =A2A!J48 -> 0 | K11: =A2A!K48 -> 0
A12: Public safety | C12: =A2A!C54 -> 0 | D12: =A2A!D54 -> 0 | E12: =A2A!E54 -> 0 | F12: =A2A!F54 -> 0 | G12: =A2A!G54 -> 0 | H12: =A2A!H54 -> 0 | I12: =A2A!I54 -> 0 | J12: =A2A!J54 -> 0 | K12: =A2A!K54 -> 0
A13: Housing | C13: =A2A!C63 -> 0 | D13: =A2A!D63 -> 0 | E13: =A2A!E63 -> 0 | F13: =A2A!F63 -> 0 | G13: =A2A!G63 -> 0 | H13: =A2A!H63 -> 0 | I13: =A2A!I63 -> 0 | J13: =A2A!J63 -> 0 | K13: =A2A!K63 -> 0
A14: Health | C14: =A2A!C66 -> 0 | D14: =A2A!D66 -> 0 | E14: =A2A!E66 -> 0 | F14: =A2A!F66 -> 0 | G14: =A2A!G66 -> 0 | H14: =A2A!H66 -> 0 | I14: =A2A!I66 -> 0 | J14: =A2A!J66 -> 0 | K14: =A2A!K66 -> 0
A15: Economic and environmental services | C15: =SUM(C16:C18) -> 0 | D15: =SUM(D16:D18) -> 0 | E15: 0 | F15: 0 | G15: 0 | H15: 0 | I15: 0 | J15: 0 | K15: 0
A16: Planning and development | C16: =A2A!C75 -> 0 | D16: =A2A!D75 -> 0 | E16: =A2A!E75 -> 0 | F16: =A2A!F75 -> 0 | G16: =A2A!G75 -> 0 | H16: =A2A!H75 -> 0 | I16: =A2A!I75 -> 0 | J16: =A2A!J75 -> 0 | K16: =A2A!K75 -> 0
A17: Road transport | C17: =A2A!C86 -> 0 | D17: =A2A!D86 -> 0 | E17: =A2A!E86 -> 0 | F17: =A2A!F86 -> 0 | G17: =A2A!G86 -> 0 | H17: =A2A!H86 -> 0 | I17: =A2A!I86 -> 0 | J17: =A2A!J86 -> 0 | K17: =A2A!K86 -> 0
A18: Environmental protection | C18: =A2A!C91 -> 0 | D18: =A2A!D91 -> 0 | E18: =A2A!E91 -> 0 | F18: =A2A!F91 -> 0 | G18: =A2A!G91 -> 0 | H18: =A2A!H91 -> 0 | I18: =A2A!I91 -> 0 | J18: =A2A!J91 -> 0 | K18: =A2A!K91 -> 0
A19: Trading services | C19: =SUM(C20:C23) -> -2992.75 | D19: =SUM(D20:D23) -> 0 | E19: 0 | F19: 0 | G19: 0 | H19: 0 | I19: 0 | J19: =SUM(J20:J23) -> 0 | K19: 0
A20: Energy sources | C20: =A2A!C99 -> 0 | D20: =A2A!D99 -> 0 | E20: =A2A!E99 -> 0 | F20: =A2A!F99 -> 0 | G20: =A2A!G99 -> 0 | H20: =A2A!H99 -> 0 | I20: =A2A!I99 -> 0 | J20: =A2A!J99 -> 0 | K20: =A2A!K99 -> 0
A21: Water management | C21: =A2A!C103 -> -2992.75 | D21: =A2A!D103 -> 0 | E21: =A2A!E103 -> 0 | F21: =A2A!F103 -> 0 | G21: =A2A!G103 -> 0 | H21: =A2A!H103 -> 0 | I21: =A2A!I103 -> 0 | J21: =A2A!J103 -> 0 | K21: =A2A!K103 -> 0
A22: Waste water management | C22: =A2A!C107 -> 0 | D22: =A2A!D107 -> 0 | E22: =A2A!E107 -> 0 | F22: =A2A!F107 -> 0 | G22: =A2A!G107 -> 0 | H22: =A2A!H107 -> 0 | I22: =A2A!I107 -> 0 | J22: =A2A!J107 -> 0 | K22: =A2A!K107 -> 0
A23: Waste management | C23: =A2A!C112 -> 0 | D23: =A2A!D112 -> 0 | E23: =A2A!E112 -> 0 | F23: =A2A!F112 -> 0 | G23: =A2A!G112 -> 0 | H23: =A2A!H112 -> 0 | I23: =A2A!I112 -> 0 | J23: =A2A!J112 -> 0 | K23: =A2A!K112 -> 0
A24: Other | B24: 4 | C24: =A2A!C117 -> 0 | D24: =A2A!D117 -> 0 | E24: =A2A!E117 -> 0 | F24: =A2A!F117 -> 0 | G24: =A2A!G117 -> 0 | H24: =A2A!H117 -> 0 | I24: =A2A!I117 -> 0 | J24: =A2A!J117 -> 0 | K24: =A2A!K117 -> 0
A25: ="Total "&A4 -> Total Revenue - Functional | B25: 2 | C25: =C5+C9+C15+C19+C24 -> 1446202273 | D25: =D5+D9+D15+D19+D24 -> 1427199589 | E25: =E5+E9+E15+E19+E24 -> 1720899127 | F25: 1528947877 | G25: 1540462877 | H25: 1540462877 | I25: =I5+I9+I15+I19+I24 -> 1700025589 | J25: 1801043912 | K25: 1923022397
A27: Expenditure - Functional
A28: Governance and administration | C28: =SUM(C29:C31) -> 510187364 | D28: =SUM(D29:D31) -> 466709161.5 | E28: 427095829.9 | F28: 551834846 | G28: 568986140 | H28: 568986140 | I28: 612157778 | J28: 677780528 | K28: 751082547
A29: Executive and council | C29: =A2A!C128 -> 151008963.9 | D29: =A2A!D128 -> 159844921.7 | E29: =A2A!E128 -> 149418498.2 | F29: =A2A!F128 -> 154805971 | G29: =A2A!G128 -> 163349608 | H29: =A2A!H128 -> 163349608 | I29: =A2A!I128 -> 179833377 | J29: =A2A!J128 -> 201748347 | K29: =A2A!K128 -> 223570974
A30: Finance and administration | C30: =A2A!C131 -> 359178400 | D30: =A2A!D131 -> 306864239.7 | E30: =A2A!E131 -> 277677331.6 | F30: =A2A!F131 -> 397028875 | G30: =A2A!G131 -> 405636532 | H30: =A2A!H131 -> 405636532 | I30: =A2A!I131 -> 432324401 | J30: =A2A!J131 -> 476032181 | K30: =A2A!K131 -> 527511573
A31: Internal audit | C31: =A2A!C145 -> 0 | D31: =A2A!D145 -> 0 | E31: =A2A!E145 -> 0 | F31: =A2A!F145 -> 0 | G31: =A2A!G145 -> 0 | H31: =A2A!H145 -> 0 | I31: =A2A!I145 -> 0 | J31: =A2A!J145 -> 0 | K31: =A2A!K145 -> 0
A32: Community and public safety | C32: =SUM(C33:C37) -> 0 | D32: =SUM(D33:D37) -> 0 | E32: 0 | F32: 0 | G32: 0 | H32: 0 | I32: 0 | J32: 0 | K32: 0
A33: Community and social services | C33: =A2A!C148 -> 0 | D33: =A2A!D148 -> 0 | E33: =A2A!E148 -> 0 | F33: =A2A!F148 -> 0 | G33: =A2A!G148 -> 0 | H33: =A2A!H148 -> 0 | I33: =A2A!I148 -> 0 | J33: =A2A!J148 -> 0 | K33: =A2A!K148 -> 0
A34: Sport and recreation | C34: =A2A!C170 -> 0 | D34: =A2A!D170 -> 0 | E34: =A2A!E170 -> 0 | F34: =A2A!F170 -> 0 | G34: =A2A!G170 -> 0 | H34: =A2A!H170 -> 0 | I34: =A2A!I170 -> 0 | J34: =A2A!J170 -> 0 | K34: =A2A!K170 -> 0
A35: Public safety | C35: =A2A!C176 -> 0 | D35: =A2A!D176 -> 0 | E35: =A2A!E176 -> 0 | F35: =A2A!F176 -> 0 | G35: =A2A!G176 -> 0 | H35: =A2A!H176 -> 0 | I35: =A2A!I176 -> 0 | J35: =A2A!J176 -> 0 | K35: =A2A!K176 -> 0
A36: Housing | C36: =A2A!C185 -> 0 | D36: =A2A!D185 -> 0 | E36: =A2A!E185 -> 0 | F36: =A2A!F185 -> 0 | G36: =A2A!G185 -> 0 | H36: =A2A!H185 -> 0 | I36: =A2A!I185 -> 0 | J36: =A2A!J185 -> 0 | K36: =A2A!K185 -> 0
A37: Health | C37: =A2A!C188 -> 0 | D37: =A2A!D188 -> 0 | E37: =A2A!E188 -> 0 | F37: =A2A!F188 -> 0 | G37: =A2A!G188 -> 0 | H37: =A2A!H188 -> 0 | I37: =A2A!I188 -> 0 | J37: =A2A!J188 -> 0 | K37: =A2A!K188 -> 0
A38: Economic and environmental services | C38: =SUM(C39:C41) -> 14281721.09 | D38: =SUM(D39:D41) -> 11037768 | E38: 12664245.74 | F38: 21172858 | G38: 21499194 | H38: 21499194 | I38: 26917179 | J38: 34066257 | K38: 38973305
A39: Planning and development | C39: =A2A!C197 -> 14281721.09 | D39: =A2A!D197 -> 11037768 | E39: =A2A!E197 -> 12664245.74 | F39: =A2A!F197 -> 21172858 | G39: =A2A!G197 -> 21499194 | H39: =A2A!H197 -> 21499194 | I39: =A2A!I197 -> 26917179 | J39: =A2A!J197 -> 34066257 | K39: =A2A!K197 -> 38973305
A40: Road transport | C40: =A2A!C208 -> 0 | D40: =A2A!D208 -> 0 | E40: =A2A!E208 -> 0 | F40: =A2A!F208 -> 0 | G40: =A2A!G208 -> 0 | H40: =A2A!H208 -> 0 | I40: =A2A!I208 -> 0 | J40: =A2A!J208 -> 0 | K40: =A2A!K208 -> 0
A41: Environmental protection | C41: =A2A!C213 -> 0 | D41: =A2A!D213 -> 0 | E41: =A2A!E213 -> 0 | F41: =A2A!F213 -> 0 | G41: =A2A!G213 -> 0 | H41: =A2A!H213 -> 0 | I41: =A2A!I213 -> 0 | J41: =A2A!J213 -> 0 | K41: =A2A!K213 -> 0
A42: Trading services | C42: =SUM(C43:C46) -> 589296380.2 | D42: =SUM(D43:D46) -> 580368119.9 | E42: 676813234 | F42: =SUM(F43:F46) -> 530524594 | G42: 565929576 | H42: 565929576 | I42: 571510778 | J42: 577079534 | K42: =SUM(K43:K46) -> 611228228
A43: Energy sources | C43: =A2A!C221 -> 0 | D43: =A2A!D221 -> 0 | E43: =A2A!E221 -> 0 | F43: =A2A!F221 -> 0 | G43: =A2A!G221 -> 0 | H43: =A2A!H221 -> 0 | I43: =A2A!I221 -> 0 | J43: =A2A!J221 -> 0 | K43: =A2A!K221 -> 0
A44: Water management | C44: =A2A!C225 -> 577510375.8 | D44: =A2A!D225 -> 562013677.8 | E44: =A2A!E225 -> 658060684.8 | F44: =A2A!F225 -> 530524594 | G44: =A2A!G225 -> 564455776 | H44: =A2A!H225 -> 564455776 | I44: =A2A!I225 -> 569958867 | J44: =A2A!J225 -> 575445370 | K44: =A2A!K225 -> 609507455
A45: Waste water management | C45: =A2A!C229 -> 11786004.41 | D45: =A2A!D229 -> 18354442.03 | E45: =A2A!E229 -> 18752549.23 | F45: =A2A!F229 -> 0 | G45: =A2A!G229 -> 1473800 | H45: =A2A!H229 -> 1473800 | I45: =A2A!I229 -> 1551911 | J45: =A2A!J229 -> 1634164 | K45: =A2A!K229 -> 1720773
A46: Waste management | C46: =A2A!C234 -> 0 | D46: =A2A!D234 -> 0 | E46: =A2A!E234 -> 0 | F46: =A2A!F234 -> 0 | G46: =A2A!G234 -> 0 | H46: =A2A!H234 -> 0 | I46: =A2A!I234 -> 0 | J46: =A2A!J234 -> 0 | K46: =A2A!K234 -> 0
A47: Other | B47: 4 | C47: =A2A!C239 -> 0 | D47: =A2A!D239 -> 0 | E47: =A2A!E239 -> 0 | F47: =A2A!F239 -> 0 | G47: =A2A!G239 -> 0 | H47: =A2A!H239 -> 0 | I47: =A2A!I239 -> 0 | J47: =A2A!J239 -> 0 | K47: =A2A!K239 -> 0
A48: ="Total "&A27 -> Total Expenditure - Functional | B48: 3 | C48: =C28+C32+C38+C42+C47 -> 1113765465 | D48: =D28+D32+D38+D42+D47 -> 1058115049 | E48: =E28+E32+E38+E42+E47 -> 1116573310 | F48: =F28+F32+F38+F42+F47 -> 1103532298 | G48: 1156414910 | H48: 1156414910 | I48: 1210585735 | J48: 1288926319 | K48: 1401284080
A49: =result -> Surplus/(Deficit) for the year | C49: =C25-C48 -> 332436807.8 | D49: =D25-D48 -> 369084539.5 | E49: 604325817.5 | F49: 425415579 | G49: 384047967 | H49: 384047967 | I49: 489439854 | J49: 512117593 | K49: 521738317
A50: =head27a -> References
A51: 1. Government Finance Statistics Functions and Sub-functions are standardised to assist the compilation of national and international accounts for comparison purposes
A52: 2. Total Revenue by functional classification must reconcile to Total Operating Revenue shown in Budgeted Financial Performance (revenue and expenditure)
A53: 3. Total Expenditure by Functional Classification must reconcile to Total Operating Expenditure shown in Budgeted Financial Performance (revenue and expenditure)
A54: 4. All amounts must be classified under a functional classification . The GFS function 'Other' is only for Abbatoirs, Air Transport, Forestry, Licensing and Regulation, Markets and Tourism - and if used must be supported by footnotes. Nothing else may be placed under 'Other'. Assign associate share to relevant classification.
A57: check oprev balance | C57: =C25-'A4-FinPerf RE'!C59 -> 0 | D57: =D25-'A4-FinPerf RE'!D59 -> 0 | E57: =E25-'A4-FinPerf RE'!E59 -> 0 | F57: =F25-'A4-FinPerf RE'!F59 -> 0 | G57: =G25-'A4-FinPerf RE'!G59 -> 0 | H57: =H25-'A4-FinPerf RE'!H59 -> 0 | I57: =I25-'A4-FinPerf RE'!J59 -> 0 | J57: =J25-'A4-FinPerf RE'!K59 -> 0 | K57: =K25-'A4-FinPerf RE'!L59 -> 0
A58: check opexp balance | C58: =C48-'A4-FinPerf RE'!C35 -> 226037949.3 | D58: =D48-'A4-FinPerf RE'!D35 -> 119880713.6 | E58: =E48-'A4-FinPerf RE'!E35 -> 194692421.3 | F58: =F48-'A4-FinPerf RE'!F35 -> 0 | G58: =G48-'A4-FinPerf RE'!G35 -> 5486901 | H58: =H48-'A4-FinPerf RE'!H35 -> 5486901 | I58: =I48-'A4-FinPerf RE'!J35 -> -1 | J58: =J48-'A4-FinPerf RE'!K35 -> 11 | K58: =K48-'A4-FinPerf RE'!L35 -> 10

Sheet A2A
A1: =muni&" - "&Approve3 -> DC47 Sekhukhune - Table A2 Budgeted Financial Performance (revenue and expenditure by functional classification)
A2: ="Functional Classification "&desc -> Functional Classification Description | B2: =head27 -> Ref | C2: =head1b -> 2018/19 | D2: =head1A -> 2019/20 | E2: =Head1 -> 2020/21 | F2: =Head2 -> Current Year 2021/22 | I2: =Head3 -> 2022/23 Medium Term Revenue & Expenditure Framework
A3: R thousand | B3: 1 | C3: =Head5 -> Audited Outcome | D3: =Head5 -> Audited Outcome | E3: =Head5 -> Audited Outcome | F3: =Head6 -> Original Budget | G3: =Head7 -> Adjusted Budget | H3: =Head8 -> Full Year Forecast | I3: =Head9 -> Budget Year 2022/23 | J3: =Head10 -> Budget Year +1 2023/24 | K3: =Head11 -> Budget Year +2 2024/25
A4: Revenue - Functional
A5: Municipal governance and administration | C5: =C6+C9+C23 -> 1446205266 | D5: 1427199589 | E5: 1720899127 | F5: 1528947877 | G5: 1540462877 | H5: 1540462877 | I5: 1700025589 | J5: 1801043912 | K5: 1923022397
A6: Executive and council | C6: =SUM(C7:C8) -> -1810 | D6: =SUM(D7:D8) -> 0 | E6: 0 | F6: 0 | G6: 0 | H6: 0 | I6: 0 | J6: 0 | K6: 0
A7: Mayor and Council | C7: 0 | D7: 0 | E7: 0 | F7: 0 | G7: 0 | H7: 0 | I7: 0 | J7: 0 | K7: 0
A8: Municipal Manager, Town Secretary and Chief Executive | C8: -1810 | D8: 0 | E8: 0 | F8: 0 | G8: 0 | H8: 0 | I8: 0 | J8: 0 | K8: 0
A9: Finance and administration | C9: =SUM(C10:C22) -> 1446207076 | D9: 1427199589 | E9: 1720899127 | F9: 1528947877 | G9: 1540462877 | H9: 1540462877 | I9: 1700025589 | J9: 1801043912 | K9: 1923022397
A10: Administrative and Corporate Support | C10: -16272 | D10: 0 | E10: 0 | F10: 0 | G10: 0 | H10: 0 | I10: 0 | J10: 0 | K10: 0
A11: Asset Management
A12: Finance | C12: 1446223348 | D12: 1427199589 | E12: 1720899127 | F12: 1528947877 | G12: 1540462877 | H12: 1540462877 | I12: 1700025589 | J12: 1801043912 | K12: 1923022397
A13: Fleet Management
A14: Human Resources
A15: Information Technology
A16: Legal Services
A17: Marketing, Customer Relations, Publicity and Media Co-ordination
A18: Property Services
A19: Risk Management
A20: Security Services
A21: Supply Chain Management
A22: Valuation Service
A23: Internal audit | C23: =SUM(C24:C24) -> 0 | D23: 0 | E23: 0 | F23: 0 | G23: 0 | H23: 0 | I23: 0 | J23: 0 | K23: 0
A24: Governance Function
A25: Community and public safety | C25: =C26+C48+C54+C63+C66 -> 0 | D25: 0 | E25: 0 | F25: 0 | G25: 0 | H25: 0 | I25: 0 | J25: 0 | K25: 0
A26: Community and social services | C26: =SUM(C27:C47) -> 0 | D26: =SUM(D27:D47) -> 0 | E26: 0 | F26: 0 | G26: 0 | H26: 0 | I26: 0 | J26: 0 | K26: 0
A27: Aged Care
A28: Agricultural
A29: Animal Care and Diseases
A30: Cemeteries, Funeral Parlours and Crematoriums
A31: Child Care Facilities
A32: Community Halls and Facilities
A33: Consumer Protection
A34: Cultural Matters
A35: Disaster Management
A36: Education
A37: Indigenous and Customary Law
A38: Industrial Promotion
A39: Language Policy
A40: Libraries and Archives
A41: Literacy Programmes
A42: Media Services
A43: Museums and Art Galleries
A44: Population Development
A45: Provincial Cultural Matters
A46: Theatres
A47: Zoo's
A48: Sport and recreation | C48: =SUM(C49:C53) -> 0 | D48: =SUM(D49:D53) -> 0 | E48: 0 | F48: 0 | G48: 0 | H48: 0 | I48: 0 | J48: 0 | K48: 0
A49: Beaches and Jetties
A50: Casinos, Racing, Gambling, Wagering
A51: Community Parks (including Nurseries)
A52: Recreational Facilities
A53: Sports Grounds and Stadiums
A54: Public safety | C54: =SUM(C55:C62) -> 0 | D54: 0 | E54: 0 | F54: 0 | G54: 0 | H54: 0 | I54: 0 | J54: 0 | K54: 0
A55: Civil Defence
A56: Cleansing
A57: Control of Public Nuisances
A58: Fencing and Fences
A59: Fire Fighting and Protection
A60: Licensing and Control of Animals
A61: Police Forces, Traffic and Street Parking Control
A62: Pounds
A63: Housing | C63: =SUM(C64:C65) -> 0 | D63: =SUM(D64:D65) -> 0 | E63: 0 | F63: 0 | G63: 0 | H63: 0 | I63: 0 | J63: 0 | K63: 0
A64: Housing
A65: Informal Settlements
A66: Health | C66: =SUM(C67:C73) -> 0 | D66: =SUM(D67:D73) -> 0 | E66: 0 | F66: 0 | G66: 0 | H66: 0 | I66: 0 | J66: 0 | K66: 0
A67: Ambulance
A68: Health Services
A69: Laboratory Services
A70: Food Control
A71: Health Surveillance and Prevention of Communicable Diseases including immunizations
A72: Vector Control
A73: Chemical Safety
A74: Economic and environmental services | C74: =C75+C86+C91 -> 0 | D74: 0 | E74: 0 | F74: 0 | G74: 0 | H74: 0 | I74: 0 | J74: 0 | K74: 0
A75: Planning and development | C75: =SUM(C76:C85) -> 0 | D75: =SUM(D76:D85) -> 0 | E75: 0 | F75: 0 | G75: 0 | H75: 0 | I75: 0 | J75: 0 | K75: 0
A76: Billboards
A77: Corporate Wide Strategic Planning (IDPs, LEDs)
A78: Central City Improvement District
A79: Development Facilitation
A80: Economic Development/Planning | C80: 0 | D80: 0 | E80: 0 | F80: 0 | G80: 0 | H80: 0 | I80: 0 | J80: 0 | K80: 0
A81: Regional Planning and Development
A82: Town Planning, Building Regulations and Enforcement, and City Engineer
A83: Project Management Unit
A84: Provincial Planning
A85: Support to Local Municipalities | C85: 0 | D85: 0 | E85: 0 | F85: 0 | G85: 0 | H85: 0 | I85: 0 | J85: 0 | K85: 0
A86: Road transport | C86: =SUM(C87:C90) -> 0 | D86: 0 | E86: 0 | F86: 0 | G86: 0 | H86: 0 | I86: 0 | J86: 0 | K86: 0
A87: Public Transport
A88: Road and Traffic Regulation
A89: Roads
A90: Taxi Ranks
A91: Environmental protection | C91: =SUM(C92:C97) -> 0 | D91: =SUM(D92:D97) -> 0 | E91: 0 | F91: 0 | G91: 0 | H91: 0 | I91: 0 | J91: 0 | K91: 0
A92: Biodiversity and Landscape
A93: Coastal Protection
A94: Indigenous Forests
A95: Nature Conservation
A96: Pollution Control
A97: Soil Conservation
A98: Trading services | C98: =C99+C103+C107+C112 -> -2992.75 | D98: =D99+D103+D107+D112 -> 0 | E98: 0 | F98: 0 | G98: 0 | H98: 0 | I98: 0 | J98: 0 | K98: =K99+K103+K107+K112 -> 0
A99: Energy sources | C99: =SUM(C100:C102) -> 0 | D99: =SUM(D100:D102) -> 0 | E99: 0 | F99: 0 | G99: 0 | H99: 0 | I99: 0 | J99: 0 | K99: 0
A100: Electricity
A101: Street Lighting and Signal Systems
A102: Nonelectric Energy
A103: Water management | C103: =SUM(C104:C106) -> -2992.75 | D103: =SUM(D104:D106) -> 0 | E103: 0 | F103: 0 | G103: 0 | H103: 0 | I103: 0 | J103: 0 | K103: 0
A104: Water Treatment
A105: Water Distribution | C105: -2992.75 | D105: 0 | E105: 0 | F105: 0 | G105: 0 | H105: 0 | I105: 0 | J105: 0 | K105: 0
A106: Water Storage
A107: Waste water management | C107: =SUM(C108:C111) -> 0 | D107: =SUM(D108:D111) -> 0 | E107: 0 | F107: 0 | G107: 0 | H107: 0 | I107: 0 | J107: 0 | K107: 0
A108: Public Toilets
A109: Sewerage
A110: Storm Water Management
A111: Waste Water Treatment | C111: 0 | D111: 0 | E111: 0 | F111: 0 | G111: 0 | H111: 0 | I111: 0 | J111: 0 | K111: 0
A112: Waste management | C112: =SUM(C113:C116) -> 0 | D112: =SUM(D113:D116) -> 0 | E112: 0 | F112: 0 | G112: 0 | H112: 0 | I112: 0 | J112: 0 | K112: 0
A113: Recycling
A114: Solid Waste Disposal (Landfill Sites)
A115: Solid Waste Removal
A116: Street Cleaning
A117: Other | C117: =SUM(C118:C123) -> 0 | D117: =SUM(D118:D123) -> 0 | E117: 0 | F117: 0 | G117: 0 | H117: 0 | I117: 0 | J117: 0 | K117: 0
A118: Abattoirs
A119: Air Transport
A120: Forestry
A121: Licensing and Regulation
A122: Markets
A123: Tourism
A124: ="Total "&A4 -> Total Revenue - Functional | B124: 2 | C124: =C5+C25+C74+C98+C117 -> 1446202273 | D124: 1427199589 | E124: 1720899127 | F124: 1528947877 | G124: 1540462877 | H124: 1540462877 | I124: 1700025589 | J124: 1801043912 | K124: 1923022397
A126: Expenditure - Functional
A127: =A5 -> Municipal governance and administration | C127: =C128+C131+C145 -> 510187364 | D127: 466709161.5 | E127: 427095829.9 | F127: 551834846 | G127: 568986140 | H127: 568986140 | I127: 612157778 | J127: 677780528 | K127: 751082547
A128: Executive and council | C128: =SUM(C129:C130) -> 151008963.9 | D128: 159844921.7 | E128: 149418498.2 | F128: 154805971 | G128: 163349608 | H128: 163349608 | I128: 179833377 | J128: 201748347 | K128: 223570974
A129: Mayor and Council | C129: 68485195.69 | D129: 66393754.36 | E129: 68269937.93 | F129: 81026062 | G129: 83301497 | H129: 83301497 | I129: 91170679 | J129: 92851922 | K129: 97384293
A130: Municipal Manager, Town Secretary and Chief Executive | C130: 82523768.26 | D130: 93451167.38 | E130: 81148560.32 | F130: 73779909 | G130: 80048111 | H130: 80048111 | I130: 88662698 | J130: 108896425 | K130: 126186681
A131: Finance and administration | C131: =SUM(C132:C144) -> 359178400 | D131: 306864239.7 | E131: 277677331.6 | F131: 397028875 | G131: 405636532 | H131: 405636532 | I131: 432324401 | J131: 476032181 | K131: 527511573
A132: Administrative and Corporate Support | C132: 179674761.6 | D132: 193735053.6 | E132: 203533947.2 | F132: 196373730 | G132: 210768825 | H132: 210768825 | I132: 225453097 | J132: 243948744 | K132: 274062000
A133: Asset Management
A134: Finance | C134: 179503638.4 | D134: 113129186.1 | E134: 74143384.4 | F134: 200655145 | G134: 194867707 | H134: 194867707 | I134: 206871304 | J134: 232083437 | K134: 253449573
A135: Fleet Management
A136: Human Resources
A137: Information Technology
A138: Legal Services
A139: Marketing, Customer Relations, Publicity and Media Co-ordination
A140: Property Services
A141: Risk Management
A142: Security Services
A143: Supply Chain Management
A144: Valuation Service
A145: Internal audit | C145: =SUM(C146:C146) -> 0 | D145: 0 | E145: 0 | F145: 0 | G145: 0 | H145: 0 | I145: 0 | J145: 0 | K145: 0
A146: Governance Function
A147: Community and public safety | C147: =C148+C170+C176+C185+C188 -> 0 | D147: 0 | E147: 0 | F147: 0 | G147: 0 | H147: 0 | I147: 0 | J147: 0 | K147: 0
A148: Community and social services | C148: =SUM(C149:C169) -> 0 | D148: =SUM(D149:D169) -> 0 | E148: 0 | F148: 0 | G148: 0 | H148: 0 | I148: 0 | J148: 0 | K148: 0
A149: Aged Care
A150: Agricultural
A151: Animal Care and Diseases
A152: Cemeteries, Funeral Parlours and Crematoriums
A153: Child Care Facilities
A154: Community Halls and Facilities
A155: Consumer Protection
A156: Cultural Matters
A157: Disaster Management
A158: Education
A159: =A37 -> Indigenous and Customary Law
A160: Industrial Promotion
A161: Language Policy
A162: Libraries and Archives
A163: Literacy Programmes
A164: Media Services
A165: Museums and Art Galleries
A166: Population Development
A167: Provincial Cultural Matters
A168: Theatres
A169: Zoo's
A170: Sport and recreation | C170: =SUM(C171:C175) -> 0 | D170: 0 | E170: 0 | F170: 0 | G170: 0 | H170: 0 | I170: 0 | J170: 0 | K170: 0
A171: Beaches and Jetties
A172: Casinos, Racing, Gambling, Wagering
A173: Community Parks (including Nurseries)
A174: Recreational Facilities
A175: Sports Grounds and Stadiums
A176: Public safety | C176: =SUM(C177:C184) -> 0 | D176: 0 | E176: 0 | F176: 0 | G176: 0 | H176: 0 | I176: 0 | J176: 0 | K176: 0
A177: Civil Defence
A178: Cleansing
A179: =A57 -> Control of Public Nuisances
A180: Fencing and Fences
A181: Fire Fighting and Protection
A182: Licensing and Control of Animals
A183: Police Forces, Traffic and Street Parking Control
A184: Pounds
A185: =A63 -> Housing | C185: =SUM(C186:C187) -> 0 | D185: 0 | E185: 0 | F185: 0 | G185: 0 | H185: 0 | I185: 0 | J185: 0 | K185: 0
A186: Housing
A187: Informal Settlements
A188: Health | C188: =SUM(C189:C195) -> 0 | D188: =SUM(D189:D195) -> 0 | E188: 0 | F188: 0 | G188: 0 | H188: 0 | I188: 0 | J188: 0 | K188: 0
A189: Ambulance
A190: Health Services
A191: Laboratory Services
A192: Food Control
A193: Health Surveillance and Prevention of Communicable Diseases including immunizations
A194: Vector Control
A195: Chemical Safety
A196: Economic and environmental services | C196: =C197+C208+C213 -> 14281721.09 | D196: 11037768 | E196: 12664245.74 | F196: 21172858 | G196: 21499194 | H196: 21499194 | I196: 26917179 | J196: 34066257 | K196: 38973305
A197: Planning and development | C197: =SUM(C198:C207) -> 14281721.09 | D197: =SUM(D198:D207) -> 11037768 | E197: 12664245.74 | F197: 21172858 | G197: 21499194 | H197: 21499194 | I197: 26917179 | J197: 34066257 | K197: 38973305
A198: Billboards
A199: Corporate Wide Strategic Planning (IDPs, LEDs)
A200: Central City Improvement District
A201: Development Facilitation
... 53 more rows

Sheet A3-FinPerf V
A1: =muni&" - "&Approve2 -> DC47 Sekhukhune - Table A3 Budgeted Financial Performance (revenue and expenditure by municipal vote)
A2: =Vdesc -> Vote Description | B2: =head27 -> Ref | C2: =head1b -> 2018/19 | D2: =head1A -> 2019/20 | E2: =Head1 -> 2020/21 | F2: =Head2 -> Current Year 2021/22 | I2: =Head3 -> 2022/23 Medium Term Revenue & Expenditure Framework | L2: =Head4 -> LTFS
A3: R thousand | C3: =Head5 -> Audited Outcome | D3: =Head5 -> Audited Outcome | E3: =Head5 -> Audited Outcome | F3: =Head6 -> Original Budget | G3: =Head7 -> Adjusted Budget | H3: =Head8 -> Full Year Forecast | I3: =Head9 -> Budget Year 2022/23 | J3: =Head10 -> Budget Year +1 2023/24 | K3: =Head11 -> Budget Year +2 2024/25 | L3: =Head12 -> Forecast 2025/26 | M3: =Head13 -> Forecast 2026/27 | N3: =Head14 -> Forecast 2027/28 | O3: =Head15 -> Forecast 2028/29 | P3: =Head16 -> Forecast 2029/30 | Q3: =Head17 -> Forecast 2030/31 | R3: =Head18 -> Forecast 2031/32 | S3: =Head19 -> Forecast 2032/33 | T3: =Head20 -> Forecast 2033/34 | U3: =Head21 -> Forecast 2034/35 | V3: =Head22 -> Forecast 2035/36 | W3: =Head23 -> Forecast 2036/37
A4: Revenue by Vote | B4: 1
A5: =A3A!A5 -> Vote 01 - Speakers Office | C5: =A3A!C5 -> 0 | D5: =A3A!D5 -> 0 | E5: =A3A!E5 -> 0 | F5: =A3A!F5 -> 0 | G5: =A3A!G5 -> 0 | H5: =A3A!H5 -> 0 | I5: =A3A!I5 -> 0 | J5: =A3A!J5 -> 0 | K5: =A3A!K5 -> 0
A6: =A3A!A8 -> Vote 02 - Executive Mayor's Office | C6: =A3A!C8 -> 0 | D6: =A3A!D8 -> 0 | E6: =A3A!E8 -> 0 | F6: =A3A!F8 -> 0 | G6: =A3A!G8 -> 0 | H6: =A3A!H8 -> 0 | I6: =A3A!I8 -> 0 | J6: =A3A!J8 -> 0 | K6: =A3A!K8 -> 0
A7: =A3A!A10 -> Vote 03 - Municipal Manager Office | C7: =A3A!C10 -> -1810 | D7: =A3A!D10 -> 0 | E7: =A3A!E10 -> 0 | F7: =A3A!F10 -> 0 | G7: =A3A!G10 -> 0 | H7: =A3A!H10 -> 0 | I7: =A3A!I10 -> 0 | J7: =A3A!J10 -> 0 | K7: =A3A!K10 -> 0
A8: =A3A!A12 -> Vote 04 - Budget And Treasury | C8: =A3A!C12 -> 1446223348 | D8: =A3A!D12 -> 1427199589 | E8: =A3A!E12 -> 1720899127 | F8: =A3A!F12 -> 1528947877 | G8: =A3A!G12 -> 1540462877 | H8: =A3A!H12 -> 1540462877 | I8: =A3A!I12 -> 1700025589 | J8: =A3A!J12 -> 1801043912 | K8: =A3A!K12 -> 1923022397
A9: =A3A!A15 -> Vote 05 - Infrustracture And Water Services | C9: =A3A!C15 -> -2992.75 | D9: =A3A!D15 -> 0 | E9: =A3A!E15 -> 0 | F9: =A3A!F15 -> 0 | G9: =A3A!G15 -> 0 | H9: =A3A!H15 -> 0 | I9: =A3A!I15 -> 0 | J9: =A3A!J15 -> 0 | K9: =A3A!K15 -> 0
A10: =A3A!A19 -> Vote 06 - Planning And Economic Development | C10: =A3A!C19 -> 0 | D10: =A3A!D19 -> 0 | E10: =A3A!E19 -> 0 | F10: =A3A!F19 -> 0 | G10: =A3A!G19 -> 0 | H10: =A3A!H19 -> 0 | I10: =A3A!I19 -> 0 | J10: =A3A!J19 -> 0 | K10: =A3A!K19 -> 0
A11: =A3A!A21 -> Vote 07 - Community Services | C11: =A3A!C21 -> -16272 | D11: =A3A!D21 -> 0 | E11: =A3A!E21 -> 0 | F11: =A3A!F21 -> 0 | G11: =A3A!G21 -> 0 | H11: =A3A!H21 -> 0 | I11: =A3A!I21 -> 0 | J11: =A3A!J21 -> 0 | K11: =A3A!K21 -> 0
A12: =A3A!A23 -> Vote 08 - Sekhukhune Development Angancy | C12: =A3A!C23 -> 0 | D12: =A3A!D23 -> 0 | E12: =A3A!E23 -> 0 | F12: =A3A!F23 -> 0 | G12: =A3A!G23 -> 0 | H12: =A3A!H23 -> 0 | I12: =A3A!I23 -> 0 | J12: =A3A!J23 -> 0 | K12: =A3A!K23 -> 0
A13: =A3A!A25 -> Vote 09 - Corporate Services | C13: =A3A!C25 -> 0 | D13: =A3A!D25 -> 0 | E13: =A3A!E25 -> 0 | F13: =A3A!F25 -> 0 | G13: =A3A!G25 -> 0 | H13: =A3A!H25 -> 0 | I13: =A3A!I25 -> 0 | J13: =A3A!J25 -> 0 | K13: =A3A!K25 -> 0
A14: ='Org structure'!A11 -> Vote 10 - | C14: =A3A!C27 -> 0 | D14: =A3A!D27 -> 0 | E14: =A3A!E27 -> 0 | F14: =A3A!F27 -> 0 | G14: =A3A!G27 -> 0 | H14: =A3A!H27 -> 0 | I14: =A3A!I27 -> 0 | J14: =A3A!J27 -> 0 | K14: =A3A!K27 -> 0
A15: ='Org structure'!A12 -> Vote 11 - | C15: =A3A!C28 -> 0 | D15: =A3A!D28 -> 0 | E15: =A3A!E28 -> 0 | F15: =A3A!F28 -> 0 | G15: =A3A!G28 -> 0 | H15: =A3A!H28 -> 0 | I15: =A3A!I28 -> 0 | J15: =A3A!J28 -> 0 | K15: =A3A!K28 -> 0 | L15: =A5A!#REF! -> 
A16: ='Org structure'!A13 -> Vote 12 - | C16: =A3A!C29 -> 0 | D16: =A3A!D29 -> 0 | E16: =A3A!E29 -> 0 | F16: =A3A!F29 -> 0 | G16: =A3A!G29 -> 0 | H16: =A3A!H29 -> 0 | I16: =A3A!I29 -> 0 | J16: =A3A!J29 -> 0 | K16: =A3A!K29 -> 0 | L16: =A5A!#REF! -> 
A17: ='Org structure'!A14 -> Vote 13 - | C17: =A3A!C30 -> 0 | D17: =A3A!D30 -> 0 | E17: =A3A!E30 -> 0 | F17: =A3A!F30 -> 0 | G17: =A3A!G30 -> 0 | H17: =A3A!H30 -> 0 | I17: =A3A!I30 -> 0 | J17: =A3A!J30 -> 0 | K17: =A3A!K30 -> 0 | L17: =A5A!#REF! -> 
A18: ='Org structure'!A15 -> Vote 14 - | C18: =A3A!C31 -> 0 | D18: =A3A!D31 -> 0 | E18: =A3A!E31 -> 0 | F18: =A3A!F31 -> 0 | G18: =A3A!G31 -> 0 | H18: =A3A!H31 -> 0 | I18: =A3A!I31 -> 0 | J18: =A3A!J31 -> 0 | K18: =A3A!K31 -> 0 | L18: =A5A!#REF! -> 
A19: =A3A!A32 -> Vote 15 - Other | C19: =A3A!C32 -> 0 | D19: =A3A!D32 -> 0 | E19: =A3A!E32 -> 0 | F19: =A3A!F32 -> 0 | G19: =A3A!G32 -> 0 | H19: =A3A!H32 -> 0 | I19: =A3A!I32 -> 0 | J19: =A3A!J32 -> 0 | K19: =A3A!K32 -> 0 | L19: =A5A!#REF! -> 
A20: Total Revenue by Vote | B20: 2 | C20: =SUM(C5:C19) -> 1446202273 | D20: =SUM(D5:D19) -> 1427199589 | E20: 1720899127 | F20: 1528947877 | G20: 1540462877 | H20: 1540462877 | I20: 1700025589 | J20: 1801043912 | K20: 1923022397
A22: Expenditure by Vote to be appropriated | B22: 1
A23: =A3A!A37 -> Vote 01 - Speakers Office | C23: =A3A!C37 -> 35925429.92 | D23: =A3A!D37 -> 35235856.23 | E23: =A3A!E37 -> 36276364.55 | F23: =A3A!F37 -> 42272942 | G23: =A3A!G37 -> 45342410 | H23: =A3A!H37 -> 45342410 | I23: =A3A!I37 -> 48349161 | J23: =A3A!J37 -> 48421963 | K23: =A3A!K37 -> 50724050
A24: =A3A!A40 -> Vote 02 - Executive Mayor's Office | C24: =A3A!C40 -> 32559765.77 | D24: =A3A!D40 -> 31157898.13 | E24: =A3A!E40 -> 31993573.38 | F24: =A3A!F40 -> 38753120 | G24: =A3A!G40 -> 37959087 | H24: =A3A!H40 -> 37959087 | I24: =A3A!I40 -> 42821518 | J24: =A3A!J40 -> 44429959 | K24: =A3A!K40 -> 46660243
A25: =A3A!A42 -> Vote 03 - Municipal Manager Office | C25: =A3A!C42 -> 82523768.26 | D25: =A3A!D42 -> 93451167.38 | E25: =A3A!E42 -> 81148560.32 | F25: =A3A!F42 -> 73779909 | G25: =A3A!G42 -> 80048111 | H25: =A3A!H42 -> 80048111 | I25: =A3A!I42 -> 88662698 | J25: =A3A!J42 -> 108896425 | K25: =A3A!K42 -> 126186681
A26: =A3A!A44 -> Vote 04 - Budget And Treasury | C26: =A3A!C44 -> 179503638.4 | D26: =A3A!D44 -> 113129186.1 | E26: =A3A!E44 -> 74143384.4 | F26: =A3A!F44 -> 200655145 | G26: =A3A!G44 -> 194867707 | H26: =A3A!H44 -> 194867707 | I26: =A3A!I44 -> 206871304 | J26: =A3A!J44 -> 232083437 | K26: =A3A!K44 -> 253449573
A27: =A3A!A47 -> Vote 05 - Infrustracture And Water Services | C27: =A3A!C47 -> 589296380.2 | D27: =A3A!D47 -> 580368119.9 | E27: =A3A!E47 -> 676813234 | F27: =A3A!F47 -> 530524594 | G27: =A3A!G47 -> 565929576 | H27: =A3A!H47 -> 565929576 | I27: =A3A!I47 -> 571510778 | J27: =A3A!J47 -> 577079534 | K27: =A3A!K47 -> 611228228
A28: =A3A!A51 -> Vote 06 - Planning And Economic Development | C28: =A3A!C51 -> 10582670.74 | D28: =A3A!D51 -> 7540558.8 | E28: =A3A!E51 -> 10107947.71 | F28: =A3A!F51 -> 16635058 | G28: =A3A!G51 -> 16011395 | H28: =A3A!H51 -> 16011395 | I28: =A3A!I51 -> 19209120 | J28: =A3A!J51 -> 22557537 | K28: =A3A!K51 -> 23662589
A29: =A3A!A53 -> Vote 07 - Community Services | C29: =A3A!C53 -> 59031897.25 | D29: =A3A!D53 -> 63649658 | E29: =A3A!E53 -> 67605289.1 | F29: =A3A!F53 -> 70987803 | G29: =A3A!G53 -> 73440924 | H29: =A3A!H53 -> 73440924 | I29: =A3A!I53 -> 76902221 | J29: =A3A!J53 -> 81085303 | K29: =A3A!K53 -> 85276547
A30: =A3A!A55 -> Vote 08 - Sekhukhune Development Angancy | C30: =A3A!C55 -> 3699050.35 | D30: =A3A!D55 -> 3497209.2 | E30: =A3A!E55 -> 2556298.03 | F30: =A3A!F55 -> 4537800 | G30: =A3A!G55 -> 5487799 | H30: =A3A!H55 -> 5487799 | I30: =A3A!I55 -> 7708059 | J30: =A3A!J55 -> 11508720 | K30: =A3A!K55 -> 15310716
A31: =A3A!A57 -> Vote 09 - Corporate Services | C31: =A3A!C57 -> 120642864.3 | D31: =A3A!D57 -> 130085395.6 | E31: =A3A!E57 -> 135928658.1 | F31: =A3A!F57 -> 125385927 | G31: =A3A!G57 -> 137327901 | H31: =A3A!H57 -> 137327901 | I31: =A3A!I57 -> 148550876 | J31: =A3A!J57 -> 162863441 | K31: =A3A!K57 -> 188785453
A32: ='Org structure'!A11 -> Vote 10 - | C32: =A3A!C59 -> 0 | D32: =A3A!D59 -> 0 | E32: =A3A!E59 -> 0 | F32: =A3A!F59 -> 0 | G32: =A3A!G59 -> 0 | H32: =A3A!H59 -> 0 | I32: =A3A!I59 -> 0 | J32: =A3A!J59 -> 0 | K32: =A3A!K59 -> 0
A33: ='Org structure'!A12 -> Vote 11 - | C33: =A3A!C60 -> 0 | D33: =A3A!D60 -> 0 | E33: =A3A!E60 -> 0 | F33: =A3A!F60 -> 0 | G33: =A3A!G60 -> 0 | H33: =A3A!H60 -> 0 | I33: =A3A!I60 -> 0 | J33: =A3A!J60 -> 0 | K33: =A3A!K60 -> 0 | L33: =A3A!#REF! -> 
A34: ='Org structure'!A13 -> Vote 12 - | C34: =A3A!C61 -> 0 | D34: =A3A!D61 -> 0 | E34: =A3A!E61 -> 0 | F34: =A3A!F61 -> 0 | G34: =A3A!G61 -> 0 | H34: =A3A!H61 -> 0 | I34: =A3A!I61 -> 0 | J34: =A3A!J61 -> 0 | K34: =A3A!K61 -> 0 | L34: =A3A!#REF! -> 
A35: ='Org structure'!A14 -> Vote 13 - | C35: =A3A!C62 -> 0 | D35: =A3A!D62 -> 0 | E35: =A3A!E62 -> 0 | F35: =A3A!F62 -> 0 | G35: =A3A!G62 -> 0 | H35: =A3A!H62 -> 0 | I35: =A3A!I62 -> 0 | J35: =A3A!J62 -> 0 | K35: =A3A!K62 -> 0 | L35: =A3A!#REF! -> 
A36: ='Org structure'!A15 -> Vote 14 - | C36: =A3A!C63 -> 0 | D36: =A3A!D63 -> 0 | E36: =A3A!E63 -> 0 | F36: =A3A!F63 -> 0 | G36: =A3A!G63 -> 0 | H36: =A3A!H63 -> 0 | I36: =A3A!I63 -> 0 | J36: =A3A!J63 -> 0 | K36: =A3A!K63 -> 0 | L36: =A3A!#REF! -> 
A37: =A3A!A64 -> Vote 15 - Other | C37: =A3A!C64 -> 0 | D37: =A3A!D64 -> 0 | E37: =A3A!E64 -> 0 | F37: =A3A!F64 -> 0 | G37: =A3A!G64 -> 0 | H37: =A3A!H64 -> 0 | I37: =A3A!I64 -> 0 | J37: =A3A!J64 -> 0 | K37: =A3A!K64 -> 0 | L37: =A3A!L65 -> 0
A38: Total Expenditure by Vote | B38: 2 | C38: =SUM(C23:C37) -> 1113765465 | D38: =SUM(D23:D37) -> 1058115049 | E38: 1116573310 | F38: 1103532298 | G38: 1156414910 | H38: 1156414910 | I38: 1210585735 | J38: 1288926319 | K38: 1401284080 | L38: =SUM(L23:L29) -> 0 | M38: 0 | N38: 0 | O38: 0 | P38: 0 | Q38: 0 | R38: 0 | S38: 0 | T38: 0 | U38: 0 | V38: 0 | W38: 0
A39: =result -> Surplus/(Deficit) for the year | B39: 2 | C39: =C20-C38 -> 332436807.8 | D39: 369084539.5 | E39: 604325817.5 | F39: 425415579 | G39: 384047967 | H39: 384047967 | I39: 489439854 | J39: 512117593 | K39: 521738317 | L39: 0 | M39: 0 | N39: 0 | O39: 0 | P39: 0 | Q39: 0 | R39: 0 | S39: 0 | T39: 0 | U39: 0 | V39: 0 | W39: 0
A40: =head27a -> References
A41: 1. Insert 'Vote'; e.g. department, if different to functional classification structure
A42: 2. Must reconcile to Budgeted Financial Performance (revenue and expenditure)
A43: 3. Assign share in 'associate' to relevant Vote
A45: ="check "&A39 -> check Surplus/(Deficit) for the year | C45: =C39-A3A!C68 -> 0 | D45: =D39-A3A!D68 -> 0 | E45: =E39-A3A!E68 -> 0 | F45: =F39-A3A!F68 -> 0 | G45: =G39-A3A!G68 -> 0 | H45: =H39-A3A!H68 -> 0 | I45: =I39-A3A!I68 -> 0 | J45: =J39-A3A!J68 -> 0 | K45: =K39-A3A!K68 -> 0

Sheet A3A
A1: =muni&" - "&Approve2&"A" -> DC47 Sekhukhune - Table A3 Budgeted Financial Performance (revenue and expenditure by municipal vote)A
A2: =Vdesc -> Vote Description | B2: =head27 -> Ref | C2: =head1b -> 2018/19 | D2: =head1A -> 2019/20 | E2: =Head1 -> 2020/21 | F2: =Head2 -> Current Year 2021/22 | I2: =Head3 -> 2022/23 Medium Term Revenue & Expenditure Framework | L2: =Head4 -> LTFS
A3: R thousand | C3: =Head5 -> Audited Outcome | D3: =Head5 -> Audited Outcome | E3: =Head5 -> Audited Outcome | F3: =Head6 -> Original Budget | G3: =Head7 -> Adjusted Budget | H3: =Head8 -> Full Year Forecast | I3: =Head9 -> Budget Year 2022/23 | J3: =Head10 -> Budget Year +1 2023/24 | K3: =Head11 -> Budget Year +2 2024/25 | L3: =Head12 -> Forecast 2025/26 | M3: =Head13 -> Forecast 2026/27 | N3: =Head14 -> Forecast 2027/28 | O3: =Head15 -> Forecast 2028/29 | P3: =Head16 -> Forecast 2029/30 | Q3: =Head17 -> Forecast 2030/31 | R3: =Head18 -> Forecast 2031/32 | S3: =Head19 -> Forecast 2032/33 | T3: =Head20 -> Forecast 2033/34 | U3: =Head21 -> Forecast 2034/35 | V3: =Head22 -> Forecast 2035/36 | W3: =Head23 -> Forecast 2036/37
A4: Revenue by Vote | B4: 1
A5: ='Org structure'!A2 -> Vote 01 - Speakers Office | C5: =SUM(C6:C7) -> 0 | D5: 0 | E5: 0 | F5: 0 | G5: 0 | H5: 0 | I5: 0 | J5: 0 | K5: 0
A6: ='Org structure'!E3 -> 01.1 - Office Of The Speaker | C6: 0 | D6: 0 | E6: 0 | F6: 0 | G6: 0 | H6: 0 | I6: 0 | J6: 0 | K6: 0
A7: ='Org structure'!E4 -> 01.2 - Office Of The Chief Whip | C7: 0 | D7: 0 | E7: 0 | F7: 0 | G7: 0 | H7: 0 | I7: 0 | J7: 0 | K7: 0
A8: ='Org structure'!A3 -> Vote 02 - Executive Mayor's Office | C8: =SUM(C9:C9) -> 0 | D8: 0 | E8: 0 | F8: 0 | G8: 0 | H8: 0 | I8: 0 | J8: 0 | K8: 0
A9: ='Org structure'!E6 -> 02.1 - Executive Mayor's Office | C9: 0 | D9: 0 | E9: 0 | F9: 0 | G9: 0 | H9: 0 | I9: 0 | J9: 0 | K9: 0
A10: ='Org structure'!A4 -> Vote 03 - Municipal Manager Office | C10: =SUM(C11:C11) -> -1810 | D10: 0 | E10: 0 | F10: 0 | G10: 0 | H10: 0 | I10: 0 | J10: 0 | K10: 0
A11: ='Org structure'!E8 -> 03.1 - Municipal Manager Admin | C11: -1810 | D11: 0 | E11: 0 | F11: 0 | G11: 0 | H11: 0 | I11: 0 | J11: 0 | K11: 0
A12: ='Org structure'!A5 -> Vote 04 - Budget And Treasury | C12: =SUM(C13:C14) -> 1446223348 | D12: 1427199589 | E12: 1720899127 | F12: 1528947877 | G12: 1540462877 | H12: 1540462877 | I12: 1700025589 | J12: 1801043912 | K12: 1923022397
A13: ='Org structure'!E10 -> 04.1 - Budget & Treasury Admin | C13: 1433245532 | D13: 0 | E13: 0 | F13: 0 | G13: 0 | H13: 0 | I13: 0 | J13: 0 | K13: 0
A14: ='Org structure'!E11 -> 04.2 - Budget & Treasury Admin | C14: 12977815.91 | D14: 1427199589 | E14: 1720899127 | F14: 1528947877 | G14: 1540462877 | H14: 1540462877 | I14: 1700025589 | J14: 1801043912 | K14: 1923022397
A15: ='Org structure'!A6 -> Vote 05 - Infrustracture And Water Services | C15: =SUM(C16:C18) -> -2992.75 | D15: 0 | E15: 0 | F15: 0 | G15: 0 | H15: 0 | I15: 0 | J15: 0 | K15: 0
A16: ='Org structure'!E13 -> 05.1 - Technical Services Admin | C16: 0 | D16: 0 | E16: 0 | F16: 0 | G16: 0 | H16: 0 | I16: 0 | J16: 0 | K16: 0
A17: ='Org structure'!E14 -> 05.2 - Water Services | C17: -2992.75 | D17: 0 | E17: 0 | F17: 0 | G17: 0 | H17: 0 | I17: 0 | J17: 0 | K17: 0
A18: ='Org structure'!E15 -> 05.3 - Sanitation Services | C18: 0 | D18: 0 | E18: 0 | F18: 0 | G18: 0 | H18: 0 | I18: 0 | J18: 0 | K18: 0
A19: ='Org structure'!A7 -> Vote 06 - Planning And Economic Development | C19: =SUM(C20:C20) -> 0 | D19: 0 | E19: 0 | F19: 0 | G19: 0 | H19: 0 | I19: 0 | J19: 0 | K19: 0
A20: ='Org structure'!E17 -> 06.1 - Planning & Economic Dev Admin | C20: 0 | D20: 0 | E20: 0 | F20: 0 | G20: 0 | H20: 0 | I20: 0 | J20: 0 | K20: 0
A21: ='Org structure'!A8 -> Vote 07 - Community Services | C21: =SUM(C22:C22) -> -16272 | D21: 0 | E21: 0 | F21: 0 | G21: 0 | H21: 0 | I21: 0 | J21: 0 | K21: 0
A22: ='Org structure'!E19 -> 07.1 - Community Services Admin | C22: -16272 | D22: 0 | E22: 0 | F22: 0 | G22: 0 | H22: 0 | I22: 0 | J22: 0 | K22: 0
A23: ='Org structure'!A9 -> Vote 08 - Sekhukhune Development Angancy | C23: =SUM(C24:C24) -> 0 | D23: 0 | E23: 0 | F23: 0 | G23: 0 | H23: 0 | I23: 0 | J23: 0 | K23: 0
A24: ='Org structure'!E21 -> 08.1 - Sekhukhune Development Agency | C24: 0 | D24: 0 | E24: 0 | F24: 0 | G24: 0 | H24: 0 | I24: 0 | J24: 0 | K24: 0
A25: ='Org structure'!A10 -> Vote 09 - Corporate Services | C25: =SUM(C26:C26) -> 0 | D25: 0 | E25: 0 | F25: 0 | G25: 0 | H25: 0 | I25: 0 | J25: 0 | K25: 0
A26: ='Org structure'!E23 -> 09.1 - Corporate Services Admin | C26: 0 | D26: 0 | E26: 0 | F26: 0 | G26: 0 | H26: 0 | I26: 0 | J26: 0 | K26: 0
A27: ='Org structure'!A11 -> Vote 10 - | C27: 0 | D27: 0 | E27: 0 | F27: 0 | G27: 0 | H27: 0 | I27: 0 | J27: 0 | K27: 0
A28: ='Org structure'!A12 -> Vote 11 - | C28: 0 | D28: 0 | E28: 0 | F28: 0 | G28: 0 | H28: 0 | I28: 0 | J28: 0 | K28: 0
A29: ='Org structure'!A13 -> Vote 12 - | C29: 0 | D29: 0 | E29: 0 | F29: 0 | G29: 0 | H29: 0 | I29: 0 | J29: 0 | K29: 0
A30: ='Org structure'!A14 -> Vote 13 - | C30: 0 | D30: 0 | E30: 0 | F30: 0 | G30: 0 | H30: 0 | I30: 0 | J30: 0 | K30: 0
A31: ='Org structure'!A15 -> Vote 14 - | C31: 0 | D31: 0 | E31: 0 | F31: 0 | G31: 0 | H31: 0 | I31: 0 | J31: 0 | K31: 0
A32: ='Org structure'!A16 -> Vote 15 - Other | C32: =SUM(C33:C33) -> 0 | D32: 0 | E32: 0 | F32: 0 | G32: 0 | H32: 0 | I32: 0 | J32: 0 | K32: 0
A33: ='Org structure'!E30 -> 15.1 - Electricity Reporting Function | C33: 0 | D33: 0 | E33: 0 | F33: 0 | G33: 0 | H33: 0 | I33: 0 | J33: 0 | K33: 0
A34: Total Revenue by Vote | B34: 2 | C34: =C5+C8+C10+C12+C15+C19+C21+C23+C25+C27+C28+C29+C30+C31+C32 -> 1446202273 | D34: 1427199589 | E34: 1720899127 | F34: 1528947877 | G34: 1540462877 | H34: 1540462877 | I34: 1700025589 | J34: 1801043912 | K34: 1923022397 | L34: =SUM(#REF!) ->  | M34: =SUM(#REF!) ->  | N34: =SUM(#REF!) ->  | O34: =SUM(#REF!) ->  | P34: =SUM(#REF!) ->  | Q34: =SUM(#REF!) ->  | R34: =SUM(#REF!) ->  | S34: =SUM(#REF!) ->  | T34: =SUM(#REF!) ->  | U34: =SUM(#REF!) ->  | V34: =SUM(#REF!) ->  | W34: =SUM(#REF!) -> 
A36: Expenditure by Vote | B36: 1
A37: ='Org structure'!A2 -> Vote 01 - Speakers Office | C37: =SUM(C38:C39) -> 35925429.92 | D37: 35235856.23 | E37: 36276364.55 | F37: 42272942 | G37: 45342410 | H37: 45342410 | I37: 48349161 | J37: 48421963 | K37: 50724050
A38: ='Org structure'!E3 -> 01.1 - Office Of The Speaker | C38: 36354199.1 | D38: 35394952.8 | E38: 36276364.55 | F38: 42272942 | G38: 45342410 | H38: 45342410 | I38: 48349161 | J38: 48421963 | K38: 50724050
A39: ='Org structure'!E4 -> 01.2 - Office Of The Chief Whip | C39: -428769.18 | D39: -159096.57 | E39: 0 | F39: 0 | G39: 0 | H39: 0 | I39: 0 | J39: 0 | K39: 0
A40: ='Org structure'!A3 -> Vote 02 - Executive Mayor's Office | C40: =SUM(C41:C41) -> 32559765.77 | D40: 31157898.13 | E40: 31993573.38 | F40: 38753120 | G40: 37959087 | H40: 37959087 | I40: 42821518 | J40: 44429959 | K40: 46660243
A41: ='Org structure'!E6 -> 02.1 - Executive Mayor's Office | C41: 32559765.77 | D41: 31157898.13 | E41: 31993573.38 | F41: 38753120 | G41: 37959087 | H41: 37959087 | I41: 42821518 | J41: 44429959 | K41: 46660243
A42: ='Org structure'!A4 -> Vote 03 - Municipal Manager Office | C42: =SUM(C43:C43) -> 82523768.26 | D42: 93451167.38 | E42: 81148560.32 | F42: 73779909 | G42: 80048111 | H42: 80048111 | I42: 88662698 | J42: 108896425 | K42: 126186681
A43: ='Org structure'!E8 -> 03.1 - Municipal Manager Admin | C43: 82523768.26 | D43: 93451167.38 | E43: 81148560.32 | F43: 73779909 | G43: 80048111 | H43: 80048111 | I43: 88662698 | J43: 108896425 | K43: 126186681
A44: ='Org structure'!A5 -> Vote 04 - Budget And Treasury | C44: =SUM(C45:C46) -> 179503638.4 | D44: 113129186.1 | E44: 74143384.4 | F44: 200655145 | G44: 194867707 | H44: 194867707 | I44: 206871304 | J44: 232083437 | K44: 253449573
A45: ='Org structure'!E10 -> 04.1 - Budget & Treasury Admin | C45: 0 | D45: 0 | E45: 0 | F45: 0 | G45: 0 | H45: 0 | I45: 0 | J45: 0 | K45: 0
A46: ='Org structure'!E11 -> 04.2 - Budget & Treasury Admin | C46: 179503638.4 | D46: 113129186.1 | E46: 74143384.4 | F46: 200655145 | G46: 194867707 | H46: 194867707 | I46: 206871304 | J46: 232083437 | K46: 253449573
A47: ='Org structure'!A6 -> Vote 05 - Infrustracture And Water Services | C47: =SUM(C48:C50) -> 589296380.2 | D47: 580368119.9 | E47: 676813234 | F47: 530524594 | G47: 565929576 | H47: 565929576 | I47: 571510778 | J47: 577079534 | K47: 611228228
A48: ='Org structure'!E13 -> 05.1 - Technical Services Admin | C48: 68844869.32 | D48: 59159588.93 | E48: 78914769.08 | F48: 73066226 | G48: 114467557 | H48: 114467557 | I48: 82535706 | J48: 91506910 | K48: 91675027
A49: ='Org structure'!E14 -> 05.2 - Water Services | C49: 508665506.5 | D49: 502854088.9 | E49: 579145915.7 | F49: 457458368 | G49: 449988219 | H49: 449988219 | I49: 487423161 | J49: 483938460 | K49: 517832428
A50: ='Org structure'!E15 -> 05.3 - Sanitation Services | C50: 11786004.41 | D50: 18354442.03 | E50: 18752549.23 | F50: 0 | G50: 1473800 | H50: 1473800 | I50: 1551911 | J50: 1634164 | K50: 1720773
A51: ='Org structure'!A7 -> Vote 06 - Planning And Economic Development | C51: =SUM(C52:C52) -> 10582670.74 | D51: 7540558.8 | E51: 10107947.71 | F51: 16635058 | G51: 16011395 | H51: 16011395 | I51: 19209120 | J51: 22557537 | K51: 23662589
A52: ='Org structure'!E17 -> 06.1 - Planning & Economic Dev Admin | C52: 10582670.74 | D52: 7540558.8 | E52: 10107947.71 | F52: 16635058 | G52: 16011395 | H52: 16011395 | I52: 19209120 | J52: 22557537 | K52: 23662589
A53: ='Org structure'!A8 -> Vote 07 - Community Services | C53: =SUM(C54:C54) -> 59031897.25 | D53: 63649658 | E53: 67605289.1 | F53: 70987803 | G53: 73440924 | H53: 73440924 | I53: 76902221 | J53: 81085303 | K53: 85276547
A54: ='Org structure'!E19 -> 07.1 - Community Services Admin | C54: 59031897.25 | D54: 63649658 | E54: 67605289.1 | F54: 70987803 | G54: 73440924 | H54: 73440924 | I54: 76902221 | J54: 81085303 | K54: 85276547
A55: ='Org structure'!A9 -> Vote 08 - Sekhukhune Development Angancy | C55: =SUM(C56:C56) -> 3699050.35 | D55: 3497209.2 | E55: 2556298.03 | F55: 4537800 | G55: 5487799 | H55: 5487799 | I55: 7708059 | J55: 11508720 | K55: 15310716
A56: ='Org structure'!E21 -> 08.1 - Sekhukhune Development Agency | C56: 3699050.35 | D56: 3497209.2 | E56: 2556298.03 | F56: 4537800 | G56: 5487799 | H56: 5487799 | I56: 7708059 | J56: 11508720 | K56: 15310716
A57: ='Org structure'!A10 -> Vote 09 - Corporate Services | C57: =SUM(C58:C58) -> 120642864.3 | D57: 130085395.6 | E57: 135928658.1 | F57: 125385927 | G57: 137327901 | H57: 137327901 | I57: 148550876 | J57: 162863441 | K57: 188785453
A58: ='Org structure'!E23 -> 09.1 - Corporate Services Admin | C58: 120642864.3 | D58: 130085395.6 | E58: 135928658.1 | F58: 125385927 | G58: 137327901 | H58: 137327901 | I58: 148550876 | J58: 162863441 | K58: 188785453
A59: ='Org structure'!A11 -> Vote 10 - | C59: 0 | D59: 0 | E59: 0 | F59: 0 | G59: 0 | H59: 0 | I59: 0 | J59: 0 | K59: 0
A60: ='Org structure'!A12 -> Vote 11 - | C60: 0 | D60: 0 | E60: 0 | F60: 0 | G60: 0 | H60: 0 | I60: 0 | J60: 0 | K60: 0
A61: ='Org structure'!A13 -> Vote 12 - | C61: 0 | D61: 0 | E61: 0 | F61: 0 | G61: 0 | H61: 0 | I61: 0 | J61: 0 | K61: 0
A62: ='Org structure'!A14 -> Vote 13 - | C62: 0 | D62: 0 | E62: 0 | F62: 0 | G62: 0 | H62: 0 | I62: 0 | J62: 0 | K62: 0
A63: ='Org structure'!A15 -> Vote 14 - | C63: 0 | D63: 0 | E63: 0 | F63: 0 | G63: 0 | H63: 0 | I63: 0 | J63: 0 | K63: 0
A64: ='Org structure'!A16 -> Vote 15 - Other | C64: =SUM(C65:C65) -> 0 | D64: 0 | E64: 0 | F64: 0 | G64: 0 | H64: 0 | I64: 0 | J64: 0 | K64: 0
A65: ='Org structure'!E30 -> 15.1 - Electricity Reporting Function | C65: 0 | D65: 0 | E65: 0 | F65: 0 | G65: 0 | H65: 0 | I65: 0 | J65: 0 | K65: 0
A66: Total Expenditure by Vote | B66: 2 | C66: =C37+C40+C42+C44+C47+C51+C53+C55+C57+C59+C60+C61+C62+C63+C64 -> 1113765465 | D66: 1058115049 | E66: 1116573310 | F66: 1103532298 | G66: 1156414910 | H66: 1156414910 | I66: 1210585735 | J66: 1288926319 | K66: 1401284080 | L66: =SUM(L37:L54) -> 0 | M66: 0 | N66: 0 | O66: 0 | P66: 0 | Q66: 0 | R66: 0 | S66: 0 | T66: 0 | U66: 0 | V66: 0 | W66: 0
A68: =result -> Surplus/(Deficit) for the year | B68: 2 | C68: =C34-C66 -> 332436807.8 | D68: 369084539.5 | E68: 604325817.5 | F68: 425415579 | G68: 384047967 | H68: 384047967 | I68: 489439854 | J68: 512117593 | K68: 521738317
A69: =head27a -> References
A70: 1. Insert 'Vote'; e.g. Department, if different to Functional structure
A71: 2. Must reconcile to Financial Performance ('Revenue and Expenditure by Functional Classification' and 'Revenue and Expenditure')
A72: 3. Assign share in 'associate' to relevant Vote
A74: check revenue | C74: =C34-'A4-FinPerf RE'!C59 -> 0 | D74: =D34-'A4-FinPerf RE'!D59 -> 0 | E74: =E34-'A4-FinPerf RE'!E59 -> 0 | F74: =F34-'A4-FinPerf RE'!F59 -> 0 | G74: =G34-'A4-FinPerf RE'!G59 -> 0 | H74: =H34-'A4-FinPerf RE'!H59 -> 0 | I74: =I34-'A4-FinPerf RE'!J59 -> 0 | J74: =J34-'A4-FinPerf RE'!K59 -> 0 | K74: =K34-'A4-FinPerf RE'!L59 -> 0
A75: check expenditure | C75: =C66-'A4-FinPerf RE'!C35 -> 226037949.3 | D75: =D66-'A4-FinPerf RE'!D35 -> 119880713.6 | E75: =E66-'A4-FinPerf RE'!E35 -> 194692421.3 | F75: =F66-'A4-FinPerf RE'!F35 -> 0 | G75: =G66-'A4-FinPerf RE'!G35 -> 5486901 | H75: =H66-'A4-FinPerf RE'!H35 -> 5486901 | I75: =I66-'A4-FinPerf RE'!J35 -> -1 | J75: =J66-'A4-FinPerf RE'!K35 -> 11 | K75: =K66-'A4-FinPerf RE'!L35 -> 10

Sheet A4-FinPerf RE
A1: =muni&" - "&Approve4 -> DC47 Sekhukhune - Table A4 Budgeted Financial Performance (revenue and expenditure)
A2: =desc -> Description | B2: =head27 -> Ref | C2: =head1b -> 2018/19 | D2: =head1A -> 2019/20 | E2: =Head1 -> 2020/21 | F2: =Head2 -> Current Year 2021/22 | J2: =Head3 -> 2022/23 Medium Term Revenue & Expenditure Framework | M2: =Head4 -> LTFS
A3: R thousand | B3: 1 | C3: =Head5 -> Audited Outcome | D3: =Head5 -> Audited Outcome | E3: =Head5 -> Audited Outcome | F3: =Head6 -> Original Budget | G3: =Head7 -> Adjusted Budget | H3: =Head8 -> Full Year Forecast | I3: =Head5b -> Pre-audit outcome | J3: =Head9 -> Budget Year 2022/23 | K3: =Head10 -> Budget Year +1 2023/24 | L3: =Head11 -> Budget Year +2 2024/25 | M3: =Head12 -> Forecast 2025/26 | N3: =Head13 -> Forecast 2026/27 | O3: =Head14 -> Forecast 2027/28 | P3: =Head15 -> Forecast 2028/29 | Q3: =Head16 -> Forecast 2029/30 | R3: =Head17 -> Forecast 2030/31 | S3: =Head18 -> Forecast 2031/32 | T3: =Head19 -> Forecast 2032/33 | U3: =Head20 -> Forecast 2033/34 | V3: =Head21 -> Forecast 2034/35 | W3: =Head22 -> Forecast 2035/36 | X3: =Head23 -> Forecast 2036/37
A4: Revenue By Source
A5: Property rates | B5: 2 | C5: ='SA1'!C9 -> 0 | D5: ='SA1'!D9 -> 0 | E5: ='SA1'!E9 -> 0 | F5: ='SA1'!F9 -> 0 | G5: ='SA1'!G9 -> 0 | H5: ='SA1'!H9 -> 0 | I5: ='SA1'!I9 -> 0 | J5: ='SA1'!J9 -> 0 | K5: ='SA1'!K9 -> 0 | L5: ='SA1'!L9 -> 0
A6: Service charges - electricity revenue | B6: 2 | C6: ='SA1'!C15 -> 0 | D6: ='SA1'!D15 -> 0 | E6: ='SA1'!E15 -> 0 | F6: ='SA1'!F15 -> 0 | G6: ='SA1'!G15 -> 0 | H6: ='SA1'!H15 -> 0 | I6: ='SA1'!I15 -> 0 | J6: ='SA1'!J15 -> 0 | K6: ='SA1'!K15 -> 0 | L6: ='SA1'!L15 -> 0
A7: Service charges - water revenue | B7: 2 | C7: ='SA1'!C21 -> 73837262.32 | D7: ='SA1'!D21 -> 81947083.02 | E7: ='SA1'!E21 -> 72887805.49 | F7: ='SA1'!F21 -> 82323447 | G7: ='SA1'!G21 -> 84603447 | H7: ='SA1'!H21 -> 84603447 | I7: ='SA1'!I21 -> 71564570.72 | J7: ='SA1'!J21 -> 88833619 | K7: ='SA1'!K21 -> 93275300 | L7: ='SA1'!L21 -> 97939066
A8: Service charges - sanitation revenue | B8: 2 | C8: ='SA1'!C27 -> 12257476.57 | D8: ='SA1'!D27 -> 12893848.73 | E8: ='SA1'!E27 -> 12452564.61 | F8: ='SA1'!F27 -> 13534662 | G8: ='SA1'!G27 -> 14034662 | H8: ='SA1'!H27 -> 14034662 | I8: ='SA1'!I27 -> 12757346.45 | J8: ='SA1'!J27 -> 14736395 | K8: ='SA1'!K27 -> 15473215 | L8: ='SA1'!L27 -> 16246876
A9: Service charges - refuse revenue | B9: 2 | C9: ='SA1'!C34 -> 0 | D9: ='SA1'!D34 -> 0 | E9: ='SA1'!E34 -> 0 | F9: ='SA1'!F34 -> 0 | G9: ='SA1'!G34 -> 0 | H9: ='SA1'!H34 -> 0 | I9: ='SA1'!I34 -> 0 | J9: ='SA1'!J34 -> 0 | K9: ='SA1'!K34 -> 0 | L9: ='SA1'!L34 -> 0
A11: Rental of facilities and equipment
A12: Interest earned - external investments | C12: 2264470.08 | D12: 9889632.36 | E12: 15003055.27 | F12: 17485844 | G12: 21485844 | H12: 21485844 | I12: 19684813.4 | J12: 21659404 | K12: 22612419 | L12: 23629977
A13: Interest earned - outstanding debtors | C13: 21580133.2 | D13: 16995779.92 | E13: 12936558.85 | F13: 13996387 | G13: 14496387 | H13: 14496387 | I13: 14499919.14 | J13: 15221206 | K13: 15982267 | L13: 16781380
A14: Dividends received | C14: 0 | D14: 0 | E14: 0 | F14: 0 | G14: 0 | H14: 0 | I14: 0 | J14: 0 | K14: 0 | L14: 0
A15: Fines, penalties and forfeits | C15: -55688.5 | D15: 63336.31 | E15: 3833.85 | F15: 107745 | G15: 47745 | H15: 47745 | I15: 4217.24 | J15: 50132 | K15: 52639 | L15: 55271
A16: Licences and permits
A17: Agency services
A18: Transfers and subsidies | C18: 1194612913 | D18: 859188517 | E18: 1074694103 | F18: 982113000 | G18: 1024213000 | H18: 1024213000 | I18: 893473483.8 | J18: 1087843560 | K18: 1149230990 | L18: 1253412000
A19: Other revenue | B19: 2 | C19: ='SA1'!C49 -> 14713556.37 | D19: ='SA1'!D49 -> 1596137.13 | E19: ='SA1'!E49 -> 82986496.2 | F19: ='SA1'!F49 -> 3076248 | G19: ='SA1'!G49 -> 2071248 | H19: ='SA1'!H49 -> 2071248 | I19: ='SA1'!I49 -> -1425271.86 | J19: ='SA1'!J49 -> 2174812 | K19: ='SA1'!K49 -> 2283550 | L19: ='SA1'!L49 -> 2397729
A20: Gains | C20: 516060.73 | D20: 0 | E20: 0 | F20: 409544 | G20: 409544 | H20: 409544 | I20: 2548.55 | J20: 430021 | K20: 451522 | L20: 474098
A21: Total Revenue (excluding capital transfers and contributions) | C21: =SUM(C5:C9)+SUM(C11:C20) -> 1319726184 | D21: =SUM(D5:D9)+SUM(D11:D20) -> 982574334.5 | E21: 1270964417 | F21: 1113046877 | G21: 1161361877 | H21: 1161361877 | I21: 1010561627 | J21: 1230949149 | K21: 1299361902 | L21: 1410936397 | M21: =SUM(M5:M20) -> 0 | N21: 0 | O21: 0 | P21: 0 | Q21: 0 | R21: 0 | S21: 0 | T21: 0 | U21: 0 | V21: 0 | W21: 0 | X21: 0
A23: Expenditure By Type
A24: Employee related costs | B24: 2 | C24: ='SA1'!C67 -> 373154682.8 | D24: ='SA1'!D67 -> 395222658.9 | E24: ='SA1'!E67 -> 413179304.5 | F24: ='SA1'!F67 -> 433126807 | G24: ='SA1'!G67 -> 419505838 | H24: ='SA1'!H67 -> 419505838 | I24: ='SA1'!I67 -> 369587724.4 | J24: ='SA1'!J67 -> 459428896 | K24: ='SA1'!K67 -> 458356373 | L24: ='SA1'!L67 -> 483772787
A25: Remuneration of councillors | C25: 16597723.23 | D25: 15466714.2 | E25: 15042795.47 | F25: 18330456 | G25: 18330456 | H25: 18330456 | I25: 14029089.23 | J25: 18422108 | K25: 19232682 | L25: 20098150
A26: Debt impairment | B26: 3 | C26: 0 | D26: 2630289.44 | E26: 66912.69 | F26: 10615000 | G26: 10615000 | H26: 10615000 | I26: 0 | J26: 11039600 | K26: 11525342 | L26: 12043983
A27: Depreciation & asset impairment | B27: 2 | C27: ='SA1'!C83 -> 101039968 | D27: ='SA1'!D83 -> 122229924.3 | E27: ='SA1'!E83 -> 94331435.57 | F27: ='SA1'!F83 -> 102514292 | G27: ='SA1'!G83 -> 102554292 | H27: ='SA1'!H83 -> 102554292 | I27: ='SA1'!I83 -> 0 | J27: ='SA1'!J83 -> 106884864 | K27: ='SA1'!K83 -> 111671318 | L27: ='SA1'!L83 -> 127396528
A28: Finance charges | C28: 346933.09 | D28: 0 | E28: 0 | F28: 489818 | G28: 489818 | H28: 489818 | I28: 0 | J28: 509411 | K28: 531825 | L28: 555757
A29: Bulk purchases - electricity | B29: 2 | C29: ='SA1'!C88 -> 0 | D29: ='SA1'!D88 -> 0 | E29: ='SA1'!E88 -> 0 | F29: ='SA1'!F88 -> 0 | G29: ='SA1'!G88 -> 0 | H29: ='SA1'!H88 -> 0 | I29: ='SA1'!I88 -> 0 | J29: ='SA1'!J88 -> 0 | K29: ='SA1'!K88 -> 0 | L29: ='SA1'!L88 -> 0
A30: Inventory consumed | B30: 8 | C30: ='SA1'!C169 -> 12465554.89 | D30: ='SA1'!D169 -> 25650772.94 | E30: ='SA1'!E169 -> 24307533.88 | F30: ='SA1'!F169 -> 177905447 | G30: ='SA1'!G169 -> 168470546 | H30: ='SA1'!H169 -> 168470546 | I30: ='SA1'!I169 -> 19642284.58 | J30: ='SA1'!J169 -> 191075226 | K30: ='SA1'!K169 -> 187994806 | L30: ='SA1'!L169 -> 207271499
A31: Contracted services | C31: ='SA1'!C127 -> 225862566.5 | D31: ='SA1'!D127 -> 180216947.1 | E31: ='SA1'!E127 -> 167200868.9 | F31: ='SA1'!F127 -> 203430360 | G31: ='SA1'!G127 -> 258270079 | H31: ='SA1'!H127 -> 258270079 | I31: ='SA1'!I127 -> 134134634.5 | J31: ='SA1'!J127 -> 239331123 | K31: ='SA1'!K127 -> 297911933 | L31: ='SA1'!L127 -> 334392874
A32: Transfers and subsidies | C32: ='SA1'!C93 -> 7415578.35 | D32: ='SA1'!D93 -> 3497209.2 | E32: ='SA1'!E93 -> 2556298.03 | F32: ='SA1'!F93 -> 758211 | G32: ='SA1'!G93 -> 796171 | H32: ='SA1'!H93 -> 796171 | I32: ='SA1'!I93 -> 734369.14 | J32: ='SA1'!J93 -> 0 | K32: ='SA1'!K93 -> 0 | L32: ='SA1'!L93 -> 0
A33: Other expenditure | B33: 4, 5 | C33: ='SA1'!C157 -> 146800560.9 | D33: ='SA1'!D157 -> 148236541.8 | E33: ='SA1'!E157 -> 164542939.3 | F33: ='SA1'!F157 -> 156361907 | G33: ='SA1'!G157 -> 166408906 | H33: ='SA1'!H157 -> 166408906 | I33: ='SA1'!I157 -> 141280515.5 | J33: ='SA1'!J157 -> 183894508 | K33: ='SA1'!K157 -> 201702029 | L33: ='SA1'!L157 -> 215752492
A34: Losses | C34: 4043948.3 | D34: 45083277.95 | E34: 40652800.02 | F34: 0 | G34: 5486903 | H34: 5486903 | I34: 0 | J34: 0 | K34: 0 | L34: 0
A35: Total Expenditure | C35: =SUM(C24:C34) -> 887727516 | D35: =SUM(D24:D34) -> 938234335.8 | E35: 921880888.3 | F35: 1103532298 | G35: 1150928009 | H35: 1150928009 | I35: 679408617.3 | J35: 1210585736 | K35: 1288926308 | L35: 1401284070 | M35: =SUM(M24:M34) -> 0 | N35: 0 | O35: 0 | P35: 0 | Q35: 0 | R35: 0 | S35: 0 | T35: 0 | U35: 0 | V35: 0 | W35: 0 | X35: 0
A37: Surplus/(Deficit) | C37: =C21-C35 -> 431998667.8 | D37: 44339998.71 | E37: 349083528.6 | F37: 9514579 | G37: 10433868 | H37: 10433868 | I37: 331153010.2 | J37: 20363413 | K37: 10435594 | L37: 9652327 | M37: =M21+M35 -> 0 | N37: 0 | O37: 0 | P37: 0 | Q37: 0 | R37: 0 | S37: 0 | T37: 0 | U37: 0 | V37: 0 | W37: 0 | X37: 0
A38: Transfers and subsidies - capital (monetary allocations) (National / Provincial and District) | C38: 125779291.9 | D38: 443917155.9 | E38: 448726686.9 | F38: 415901000 | G38: 379101000 | H38: 379101000 | I38: 270293604.4 | J38: 469076440 | K38: 501682010 | L38: 512086000
A39: Transfers and subsidies - capital (monetary allocations) (National / Provincial Departmental Agencies, Households, Non-profit Institutions, Private Enterprises, Public Corporatons, Higher Educational Institutions) | B39: 6 | C39: 0 | D39: 0 | E39: 6500 | F39: 0 | G39: 0 | H39: 0 | I39: 0 | J39: 0 | K39: 0 | L39: 0
A40: Transfers and subsidies - capital (in-kind - all) | C40: 696797.27 | D40: 708098.46 | E40: 1201523.31 | F40: 0 | G40: 0 | H40: 0 | I40: 1298415.56 | J40: 0 | K40: 0 | L40: 0
A41: Surplus/(Deficit) after capital transfers & contributions | C41: =SUM(C37:C40) -> 558474757 | D41: 488965253.1 | E41: 799018238.8 | F41: 425415579 | G41: 389534868 | H41: 389534868 | I41: 602745030.2 | J41: 489439853 | K41: 512117604 | L41: 521738327
A42: Taxation
A43: Surplus/(Deficit) after taxation | C43: =C41-C42 -> 558474757 | D43: 488965253.1 | E43: 799018238.8 | F43: 425415579 | G43: 389534868 | H43: 389534868 | I43: 602745030.2 | J43: 489439853 | K43: 512117604 | L43: 521738327
A44: Attributable to minorities
A45: Surplus/(Deficit) attributable to municipality | C45: =SUM(C43:C44) -> 558474757 | D45: 488965253.1 | E45: 799018238.8 | F45: 425415579 | G45: 389534868 | H45: 389534868 | I45: 602745030.2 | J45: 489439853 | K45: 512117604 | L45: 521738327
A46: Share of surplus/ (deficit) of associate | B46: 7
A47: =result -> Surplus/(Deficit) for the year | C47: =SUM(C45:C46) -> 558474757 | D47: 488965253.1 | E47: 799018238.8 | F47: 425415579 | G47: 389534868 | H47: 389534868 | I47: 602745030.2 | J47: 489439853 | K47: 512117604 | L47: 521738327 | M47: =M25+M46 -> 0 | N47: 0 | O47: 0 | P47: 0 | Q47: 0 | R47: 0 | S47: 0 | T47: 0 | U47: 0 | V47: 0 | W47: 0 | X47: 0
A48: =head27a -> References
A49: 1. Classifications are revenue sources and expenditure type
A50: 2. Detail to be provided in Table SA1
A51: 3. Previously described as 'bad or doubtful debts' - amounts shown should reflect the change in the provision for debt impairment
A52: 4. Expenditure type components previously shown under repairs and maintenance should be allocated back to the originating expenditure group/item; e.g. employee costs
A53: 5. Repairs & maintenance detailed in Table A9 and Table SA34c
A54: 6. Contributions are funds provided by external organisations to assist with infrastructure development; e.g. developer contributions (detail to be provided in Table SA1)
A55: 7. Equity method ( Includes Joint Ventures)
A56: 8. All materials not part of 'bulk' e.g road making materials, pipe, cable etc.
A57: check balance | C57: =C45-'A3-FinPerf V'!C39 -> 226037949.3 | D57: =D45-'A3-FinPerf V'!D39 -> 119880713.6 | E57: =E45-'A3-FinPerf V'!E39 -> 194692421.3 | F57: =F45-'A3-FinPerf V'!F39 -> 0 | G57: =G45-'A3-FinPerf V'!G39 -> 5486901 | H57: =H45-'A3-FinPerf V'!H39 -> 5486901 | J57: =J45-'A3-FinPerf V'!I39 -> -1 | K57: =K45-'A3-FinPerf V'!J39 -> 11 | L57: =L45-'A3-FinPerf V'!K39 -> 10
A59: Total revenue | C59: =C21+SUM(C38:C40) -> 1446202273 | D59: 1427199589 | E59: 1720899127 | F59: 1528947877 | G59: 1540462877 | H59: 1540462877 | I59: 1282153647 | J59: 1700025589 | K59: 1801043912 | L59: 1923022397

Sheet A5-Capex
A2: =Vdesc -> Vote Description | B2: =head27 -> Ref | C2: =head1b -> 2018/19 | D2: =head1A -> 2019/20 | E2: =Head1 -> 2020/21 | F2: =Head2 -> Current Year 2021/22 | J2: =Head3 -> 2022/23 Medium Term Revenue & Expenditure Framework
A3: R thousand | B3: 1 | C3: =Head5 -> Audited Outcome | D3: =Head5 -> Audited Outcome | E3: =Head5 -> Audited Outcome | F3: =Head6 -> Original Budget | G3: =Head7 -> Adjusted Budget | H3: =Head8 -> Full Year Forecast | I3: =Head5b -> Pre-audit outcome | J3: =Head9 -> Budget Year 2022/23 | K3: =Head10 -> Budget Year +1 2023/24 | L3: =Head11 -> Budget Year +2 2024/25
A4: Capital expenditure - Vote
A5: Multi-year expenditure to be appropriated | B5: 2
A6: =A5A!A6 -> Vote 01 - Speakers Office | C6: =A5A!C6 -> 0 | D6: =A5A!D6 -> 0 | E6: =A5A!E6 -> 0 | F6: =A5A!F6 -> 0 | G6: =A5A!G6 -> 0 | H6: =A5A!H6 -> 0 | I6: =A5A!I6 -> 0 | J6: =A5A!J6 -> 0 | K6: =A5A!K6 -> 0 | L6: =A5A!L6 -> 0
A7: =A5A!A9 -> Vote 02 - Executive Mayor's Office | C7: =A5A!C9 -> 0 | D7: =A5A!D9 -> 0 | E7: =A5A!E9 -> 0 | F7: =A5A!F9 -> 0 | G7: =A5A!G9 -> 0 | H7: =A5A!H9 -> 0 | I7: =A5A!I9 -> 0 | J7: =A5A!J9 -> 0 | K7: =A5A!K9 -> 0 | L7: =A5A!L9 -> 0
A8: =A5A!A11 -> Vote 03 - Municipal Manager Office | C8: =A5A!C11 -> 0 | D8: =A5A!D11 -> 0 | E8: =A5A!E11 -> 0 | F8: =A5A!F11 -> 0 | G8: =A5A!G11 -> 0 | H8: =A5A!H11 -> 0 | I8: =A5A!I11 -> 0 | J8: =A5A!J11 -> 0 | K8: =A5A!K11 -> 0 | L8: =A5A!L11 -> 0
A9: =A5A!A13 -> Vote 04 - Budget And Treasury | C9: =A5A!C13 -> 0 | D9: =A5A!D13 -> 0 | E9: =A5A!E13 -> 0 | F9: =A5A!F13 -> 0 | G9: =A5A!G13 -> 0 | H9: =A5A!H13 -> 0 | I9: =A5A!I13 -> 0 | J9: =A5A!J13 -> 0 | K9: =A5A!K13 -> 0 | L9: =A5A!L13 -> 0
A10: =A5A!A16 -> Vote 05 - Infrustracture And Water Services | C10: =A5A!C16 -> 0 | D10: =A5A!D16 -> 0 | E10: =A5A!E16 -> 0 | F10: =A5A!F16 -> 0 | G10: =A5A!G16 -> 0 | H10: =A5A!H16 -> 0 | I10: =A5A!I16 -> 0 | J10: =A5A!J16 -> 0 | K10: =A5A!K16 -> 0 | L10: =A5A!L16 -> 0
A11: =A5A!A20 -> Vote 06 - Planning And Economic Development | C11: =A5A!C20 -> 0 | D11: =A5A!D20 -> 0 | E11: =A5A!E20 -> 0 | F11: =A5A!F20 -> 0 | G11: =A5A!G20 -> 0 | H11: =A5A!H20 -> 0 | I11: =A5A!I20 -> 0 | J11: =A5A!J20 -> 0 | K11: =A5A!K20 -> 0 | L11: =A5A!L20 -> 0
A12: =A5A!A22 -> Vote 07 - Community Services | C12: =A5A!C22 -> 0 | D12: =A5A!D22 -> 0 | E12: =A5A!E22 -> 0 | F12: =A5A!F22 -> 0 | G12: =A5A!G22 -> 0 | H12: =A5A!H22 -> 0 | I12: =A5A!I22 -> 0 | J12: =A5A!J22 -> 0 | K12: =A5A!K22 -> 0 | L12: =A5A!L22 -> 0
A13: =A5A!A24 -> Vote 08 - Sekhukhune Development Angancy | C13: =A5A!C24 -> 0 | D13: =A5A!D24 -> 0 | E13: =A5A!E24 -> 0 | F13: =A5A!F24 -> 0 | G13: =A5A!G24 -> 0 | H13: =A5A!H24 -> 0 | I13: =A5A!I24 -> 0 | J13: =A5A!J24 -> 0 | K13: =A5A!K24 -> 0 | L13: =A5A!L24 -> 0
A14: =A5A!A26 -> Vote 09 - Corporate Services | C14: =A5A!C26 -> 0 | D14: =A5A!D26 -> 0 | E14: =A5A!E26 -> 0 | F14: =A5A!F26 -> 0 | G14: =A5A!G26 -> 0 | H14: =A5A!H26 -> 0 | I14: =A5A!I26 -> 0 | J14: =A5A!J26 -> 0 | K14: =A5A!K26 -> 0 | L14: =A5A!L26 -> 0
A15: ='Org structure'!A11 -> Vote 10 - | C15: =A5A!C28 -> 0 | D15: =A5A!D28 -> 0 | E15: =A5A!E28 -> 0 | F15: =A5A!F28 -> 0 | G15: =A5A!G28 -> 0 | H15: =A5A!H28 -> 0 | I15: =A5A!I28 -> 0 | J15: =A5A!J28 -> 0 | K15: =A5A!K28 -> 0 | L15: =A5A!L28 -> 0
A16: ='Org structure'!A12 -> Vote 11 - | C16: =A5A!C29 -> 0 | D16: =A5A!D29 -> 0 | E16: =A5A!E29 -> 0 | F16: =A5A!F29 -> 0 | G16: =A5A!G29 -> 0 | H16: =A5A!H29 -> 0 | I16: =A5A!I29 -> 0 | J16: =A5A!J29 -> 0 | K16: =A5A!K29 -> 0 | L16: =A5A!L29 -> 0
A17: ='Org structure'!A13 -> Vote 12 - | C17: =A5A!C30 -> 0 | D17: =A5A!D30 -> 0 | E17: =A5A!E30 -> 0 | F17: =A5A!F30 -> 0 | G17: =A5A!G30 -> 0 | H17: =A5A!H30 -> 0 | I17: =A5A!I30 -> 0 | J17: =A5A!J30 -> 0 | K17: =A5A!K30 -> 0 | L17: =A5A!L30 -> 0
A18: ='Org structure'!A14 -> Vote 13 - | C18: =A5A!C31 -> 0 | D18: =A5A!D31 -> 0 | E18: =A5A!E31 -> 0 | F18: =A5A!F31 -> 0 | G18: =A5A!G31 -> 0 | H18: =A5A!H31 -> 0 | I18: =A5A!I31 -> 0 | J18: =A5A!J31 -> 0 | K18: =A5A!K31 -> 0 | L18: =A5A!L31 -> 0
A19: ='Org structure'!A15 -> Vote 14 - | C19: =A5A!C32 -> 0 | D19: =A5A!D32 -> 0 | E19: =A5A!E32 -> 0 | F19: =A5A!F32 -> 0 | G19: =A5A!G32 -> 0 | H19: =A5A!H32 -> 0 | I19: =A5A!I32 -> 0 | J19: =A5A!J32 -> 0 | K19: =A5A!K32 -> 0 | L19: =A5A!L32 -> 0
A20: =A5A!A33 -> Vote 15 - Other | C20: =A5A!C33 -> 0 | D20: =A5A!D33 -> 0 | E20: =A5A!E33 -> 0 | F20: =A5A!F33 -> 0 | G20: =A5A!G33 -> 0 | H20: =A5A!H33 -> 0 | I20: =A5A!I33 -> 0 | J20: =A5A!J33 -> 0 | K20: =A5A!K33 -> 0 | L20: =A5A!L33 -> 0
A21: Capital multi-year expenditure sub-total | B21: 7 | C21: =SUM(C6:C20) -> 0 | D21: =SUM(D6:D20) -> 0 | E21: 0 | F21: 0 | G21: 0 | H21: =SUM(H6:H20) -> 0 | I21: 0 | J21: 0 | K21: 0 | L21: 0
A23: Single-year expenditure to be appropriated | B23: 2
A24: =A5A!A39 -> Vote 01 - Speakers Office | C24: =A5A!C39 -> 0 | D24: =A5A!D39 -> 0 | E24: =A5A!E39 -> 0 | F24: =A5A!F39 -> 0 | G24: =A5A!G39 -> 530000 | H24: =A5A!H39 -> 530000 | I24: =A5A!I39 -> 0 | J24: =A5A!J39 -> 0 | K24: =A5A!K39 -> 0 | L24: =A5A!L39 -> 0
A25: =A5A!A42 -> Vote 02 - Executive Mayor's Office | C25: =A5A!C42 -> 0 | D25: =A5A!D42 -> 0 | E25: =A5A!E42 -> 0 | F25: =A5A!F42 -> 0 | G25: =A5A!G42 -> 0 | H25: =A5A!H42 -> 0 | I25: =A5A!I42 -> 0 | J25: =A5A!J42 -> 0 | K25: =A5A!K42 -> 0 | L25: =A5A!L42 -> 0
A26: =A5A!A44 -> Vote 03 - Municipal Manager Office | C26: =A5A!C44 -> 0 | D26: =A5A!D44 -> 0 | E26: =A5A!E44 -> 0 | F26: =A5A!F44 -> 0 | G26: =A5A!G44 -> 0 | H26: =A5A!H44 -> 0 | I26: =A5A!I44 -> 0 | J26: =A5A!J44 -> 0 | K26: =A5A!K44 -> 0 | L26: =A5A!L44 -> 0
A27: =A5A!A46 -> Vote 04 - Budget And Treasury | C27: =A5A!C46 -> 0 | D27: =A5A!D46 -> 0 | E27: =A5A!E46 -> 0 | F27: =A5A!F46 -> 0 | G27: =A5A!G46 -> 1000000 | H27: =A5A!H46 -> 1000000 | I27: =A5A!I46 -> 0 | J27: =A5A!J46 -> 0 | K27: =A5A!K46 -> 0 | L27: =A5A!L46 -> 0
A28: =A5A!A49 -> Vote 05 - Infrustracture And Water Services | C28: =A5A!C49 -> 457492910.4 | D28: =A5A!D49 -> 390198098 | E28: =A5A!E49 -> 429537047.6 | F28: =A5A!F49 -> 424001000 | G28: =A5A!G49 -> 395667708 | H28: =A5A!H49 -> 395667708 | I28: =A5A!I49 -> 253043211.2 | J28: =A5A!J49 -> 488656441 | K28: =A5A!K49 -> 511713530 | L28: =A5A!L49 -> 520355239
A29: =A5A!A53 -> Vote 06 - Planning And Economic Development | C29: =A5A!C53 -> 0 | D29: =A5A!D53 -> 0 | E29: =A5A!E53 -> 0 | F29: =A5A!F53 -> 0 | G29: =A5A!G53 -> 0 | H29: =A5A!H53 -> 0 | I29: =A5A!I53 -> 0 | J29: =A5A!J53 -> 0 | K29: =A5A!K53 -> 0 | L29: =A5A!L53 -> 0
A30: =A5A!A55 -> Vote 07 - Community Services | C30: =A5A!C55 -> 0 | D30: =A5A!D55 -> 0 | E30: =A5A!E55 -> 0 | F30: =A5A!F55 -> 0 | G30: =A5A!G55 -> 0 | H30: =A5A!H55 -> 0 | I30: =A5A!I55 -> 0 | J30: =A5A!J55 -> 0 | K30: =A5A!K55 -> 0 | L30: =A5A!L55 -> 0
A31: =A5A!A57 -> Vote 08 - Sekhukhune Development Angancy | C31: =A5A!C57 -> 0 | D31: =A5A!D57 -> 0 | E31: =A5A!E57 -> 0 | F31: =A5A!F57 -> 0 | G31: =A5A!G57 -> 0 | H31: =A5A!H57 -> 0 | I31: =A5A!I57 -> 0 | J31: =A5A!J57 -> 550000 | K31: =A5A!K57 -> 0 | L31: =A5A!L57 -> 0
A32: =A5A!A59 -> Vote 09 - Corporate Services | C32: =A5A!C59 -> 0 | D32: =A5A!D59 -> 0 | E32: =A5A!E59 -> 0 | F32: =A5A!F59 -> 0 | G32: =A5A!G59 -> 200000 | H32: =A5A!H59 -> 200000 | I32: =A5A!I59 -> 0 | J32: =A5A!J59 -> 0 | K32: =A5A!K59 -> 0 | L32: =A5A!L59 -> 0
A33: ='Org structure'!A11 -> Vote 10 - | C33: =A5A!C61 -> 0 | D33: =A5A!D61 -> 0 | E33: =A5A!E61 -> 0 | F33: =A5A!F61 -> 0 | G33: =A5A!G61 -> 0 | H33: =A5A!H61 -> 0 | I33: =A5A!I61 -> 0 | J33: =A5A!J61 -> 0 | K33: =A5A!K61 -> 0 | L33: =A5A!L61 -> 0
A34: ='Org structure'!A12 -> Vote 11 - | C34: =A5A!C62 -> 0 | D34: =A5A!D62 -> 0 | E34: =A5A!E62 -> 0 | F34: =A5A!F62 -> 0 | G34: =A5A!G62 -> 0 | H34: =A5A!H62 -> 0 | I34: =A5A!I62 -> 0 | J34: =A5A!J62 -> 0 | K34: =A5A!K62 -> 0 | L34: =A5A!L62 -> 0
A35: ='Org structure'!A13 -> Vote 12 - | C35: =A5A!C63 -> 0 | D35: =A5A!D63 -> 0 | E35: =A5A!E63 -> 0 | F35: =A5A!F63 -> 0 | G35: =A5A!G63 -> 0 | H35: =A5A!H63 -> 0 | I35: =A5A!I63 -> 0 | J35: =A5A!J63 -> 0 | K35: =A5A!K63 -> 0 | L35: =A5A!L63 -> 0
A36: ='Org structure'!A14 -> Vote 13 - | C36: =A5A!C64 -> 0 | D36: =A5A!D64 -> 0 | E36: =A5A!E64 -> 0 | F36: =A5A!F64 -> 0 | G36: =A5A!G64 -> 0 | H36: =A5A!H64 -> 0 | I36: =A5A!I64 -> 0 | J36: =A5A!J64 -> 0 | K36: =A5A!K64 -> 0 | L36: =A5A!L64 -> 0
A37: ='Org structure'!A15 -> Vote 14 - | C37: =A5A!C65 -> 0 | D37: =A5A!D65 -> 0 | E37: =A5A!E65 -> 0 | F37: =A5A!F65 -> 0 | G37: =A5A!G65 -> 0 | H37: =A5A!H65 -> 0 | I37: =A5A!I65 -> 0 | J37: =A5A!J65 -> 0 | K37: =A5A!K65 -> 0 | L37: =A5A!L65 -> 0
A38: =A5A!A66 -> Vote 15 - Other | C38: =A5A!C66 -> 0 | D38: =A5A!D66 -> 0 | E38: =A5A!E66 -> 0 | F38: =A5A!F66 -> 0 | G38: =A5A!G66 -> 0 | H38: =A5A!H66 -> 0 | I38: =A5A!I66 -> 0 | J38: =A5A!J66 -> 0 | K38: =A5A!K66 -> 0 | L38: =A5A!L66 -> 0
A39: Capital single-year expenditure sub-total | C39: =SUM(C24:C38) -> 457492910.4 | D39: =SUM(D24:D38) -> 390198098 | E39: 429537047.6 | F39: 424001000 | G39: 397397708 | H39: 397397708 | I39: 253043211.2 | J39: 489206441 | K39: 511713530 | L39: 520355239
A40: Total Capital Expenditure - Vote | C40: =C39+C21 -> 457492910.4 | D40: =D39+D21 -> 390198098 | E40: 429537047.6 | F40: 424001000 | G40: 397397708 | H40: 397397708 | I40: 253043211.2 | J40: 489206441 | K40: 511713530 | L40: 520355239
A42: Capital Expenditure - Functional
A43: Governance and administration | C43: =SUM(C44:C46) -> 0 | D43: =SUM(D44:D46) -> 0 | E43: 0 | F43: 0 | G43: 1730000 | H43: 1730000 | I43: 0 | J43: 0 | K43: 0 | L43: 0
A44: Executive and council | C44: 0 | D44: 0 | E44: 0 | F44: 0 | G44: 530000 | H44: 530000 | I44: 0 | J44: 0 | K44: 0 | L44: 0
A45: Finance and administration | C45: 0 | D45: 0 | E45: 0 | F45: 0 | G45: 1200000 | H45: 1200000 | I45: 0 | J45: 0 | K45: 0 | L45: 0
A46: Internal audit
A47: Community and public safety | C47: =SUM(C48:C52) -> 0 | D47: =SUM(D48:D52) -> 0 | E47: 0 | F47: 0 | G47: 0 | H47: 0 | I47: 0 | J47: 0 | K47: 0 | L47: 0
A48: Community and social services
A49: Sport and recreation
A50: Public safety
A51: Housing
A52: Health
A53: Economic and environmental services | C53: =SUM(C54:C56) -> 0 | D53: =SUM(D54:D56) -> 0 | E53: 0 | F53: 0 | G53: 0 | H53: 0 | I53: 0 | J53: 550000 | K53: 0 | L53: 0
A54: Planning and development | C54: 0 | D54: 0 | E54: 0 | F54: 0 | G54: 0 | H54: 0 | I54: 0 | J54: 550000 | K54: 0 | L54: 0
A55: Road transport
A56: Environmental protection
A57: Trading services | C57: =SUM(C58:C61) -> 457492910.4 | D57: =SUM(D58:D61) -> 390198098 | E57: 429537047.6 | F57: 424001000 | G57: 395667708 | H57: 395667708 | I57: 253043211.2 | J57: 488656441 | K57: 511713530 | L57: 520355239
A58: Energy sources
A59: Water management | C59: 446548116.3 | D59: 390198098 | E59: 429537047.6 | F59: 424001000 | G59: 395667708 | H59: 395667708 | I59: 253043211.2 | J59: 488656441 | K59: 511713530 | L59: 520355239
A60: Waste water management | C60: 10944794.03 | D60: 0 | E60: 0 | F60: 0 | G60: 0 | H60: 0 | I60: 0 | J60: 0 | K60: 0 | L60: 0
A61: Waste management
A62: Other
A63: Total Capital Expenditure - Functional | B63: 3 | C63: =C43+C47+C53+C57+C62 -> 457492910.4 | D63: =D43+D47+D53+D57+D62 -> 390198098 | E63: 429537047.6 | F63: 424001000 | G63: 397397708 | H63: 397397708 | I63: 253043211.2 | J63: 489206441 | K63: 511713530 | L63: =L43+L47+L53+L57+L62 -> 520355239
A65: Funded by:
A66: National Government | C66: 449103607.4 | D66: 386878394.9 | E66: 400327020.8 | F66: 415901000 | G66: 379617708 | H66: 379617708 | I66: 244894146.5 | J66: 469076441 | K66: 501682010 | L66: 512086000
A67: Provincial Government
A68: District Municipality
A69: ='A4-FinPerf RE'!A39 -> Transfers and subsidies - capital (monetary allocations) (National / Provincial Departmental Agencies, Households, Non-profit Institutions, Private Enterprises, Public Corporatons, Higher Educational Institutions)
A70: Transfers recognised - capital | B70: 4 | C70: =SUM(C66:C69) -> 449103607.4 | D70: 386878394.9 | E70: 400327020.8 | F70: 415901000 | G70: 379617708 | H70: 379617708 | I70: 244894146.5 | J70: 469076441 | K70: 501682010 | L70: 512086000
A72: Borrowing | B72: 6
A73: Internally generated funds | C73: 8740883.9 | D73: 3319703.09 | E73: 29210026.83 | F73: 8100000 | G73: 17780000 | H73: 17780000 | I73: 8149064.68 | J73: 20130000 | K73: 10031520 | L73: 8269239
A74: Total Capital Funding | B74: 7 | C74: =+C70+C72+C73 -> 457844491.3 | D74: =+D70+D72+D73 -> 390198098 | E74: 429537047.6 | F74: 424001000 | G74: 397397708 | H74: 397397708 | I74: 253043211.2 | J74: 489206441 | K74: 511713530 | L74: 520355239
A75: =head27a -> References
A76: 1. Municipalities may choose to appropriate for capital expenditure for three years or for one year (if one year appropriation projected expenditure required for yr2 and yr3).
A77: 2. Include capital component of PPP unitary payment. Note that capital transfers are only appropriated to municipalities for the budget year
A78: 3. Capital expenditure by functional classification must reconcile to the appropriations by vote
A79: 4. Must reconcile to supporting table SA20 and to Budgeted Financial Performance (revenue and expenditure)
A81: 6. Include finance leases and PPP capital funding component of unitary payment - total borrowing/repayments to reconcile to changes in Table SA17
A82: 7. Total Capital Funding must balance with Total Capital Expenditure
A83: 8. Include any capitalised interest (MFMA section 46) as part of relevant capital budget
A85: check balance | C85: =IF((C63-C74)=0,0,"Unbalanced") -> Unbalanced | D85: =IF((D63-D74)=0,0,"Unbalanced") -> Unbalanced | E85: 0 | F85: 0 | G85: 0 | H85: 0 | I85: 0 | J85: 0 | K85: 0 | L85: 0

Sheet A5A
A1: =muni&" - "&Approve5 -> DC47 Sekhukhune - Table A5 Budgeted Capital Expenditure by vote, functional classification and funding
A2: =Vdesc -> Vote Description | B2: =head27 -> Ref | C2: =head1b -> 2018/19 | D2: =head1A -> 2019/20 | E2: =Head1 -> 2020/21 | F2: =Head2 -> Current Year 2021/22 | J2: =Head3 -> 2022/23 Medium Term Revenue & Expenditure Framework | N2: ="Multi-year appropriation for "&Head9& " in the "&Head2A&" Annual Budget" -> Multi-year appropriation for Budget Year 2022/23 in the 2021/22 Annual Budget | R2: ="Multi-year appropriation for "&RIGHT(Head10,7)& " in the "&Head2A&" Annual Budget" -> Multi-year appropriation for 2023/24 in the 2021/22 Annual Budget | V2: New multi-year appropriations (funds for new and existing projects)
A3: R thousand | B3: 1 | C3: =Head5 -> Audited Outcome | D3: =Head5 -> Audited Outcome | E3: =Head5 -> Audited Outcome | F3: =Head6 -> Original Budget | G3: =Head7 -> Adjusted Budget | H3: =Head8 -> Full Year Forecast | I3: =Head5b -> Pre-audit outcome | J3: =Head9 -> Budget Year 2022/23 | K3: =Head10 -> Budget Year +1 2023/24 | L3: =Head11 -> Budget Year +2 2024/25 | N3: ="Appropriation for "&RIGHT(Head9,7) -> Appropriation for 2022/23 | O3: ="Adjustments in "&Head2A -> Adjustments in 2021/22 | P3: ="Downward adjustments for "&RIGHT(Head9,7) -> Downward adjustments for 2022/23 | Q3: Appropriation carried forward | R3: ="Appropriation for "&RIGHT(Head9,7) -> Appropriation for 2022/23 | S3: ="Adjustments in "&Head2A -> Adjustments in 2021/22 | T3: ="Downward adjustments for "&RIGHT(Head9,7) -> Downward adjustments for 2022/23 | U3: Appropriation carried forward | V3: =Head9 -> Budget Year 2022/23 | W3: =Head10 -> Budget Year +1 2023/24 | X3: =Head11 -> Budget Year +2 2024/25
A4: Capital expenditure - Municipal Vote
A5: Multi-year expenditure appropriation | B5: 2
A6: ='Org structure'!A2 -> Vote 01 - Speakers Office | C6: =SUM(C7:C8) -> 0 | D6: 0 | E6: 0 | F6: 0 | G6: 0 | H6: 0 | I6: 0 | J6: 0 | K6: 0 | L6: 0 | N6: =SUM(N7:N8) -> 0 | O6: 0 | P6: 0 | Q6: 0 | R6: 0 | S6: 0 | T6: 0 | U6: 0 | V6: 0 | W6: 0 | X6: 0
A7: ='Org structure'!E3 -> 01.1 - Office Of The Speaker | C7: 0 | D7: 0 | E7: 0 | F7: 0 | G7: 0 | H7: 0 | I7: 0 | J7: =Q7+V7 -> 0 | K7: =U7+W7 -> 0 | L7: =X7 -> 0 | N7: 0 | O7: 0 | P7: 0 | Q7: =SUM(N7:P7) -> 0 | R7: 0 | S7: 0 | T7: 0 | U7: =SUM(R7:T7) -> 0 | V7: 0 | W7: 0 | X7: 0
A8: ='Org structure'!E4 -> 01.2 - Office Of The Chief Whip | C8: 0 | D8: 0 | E8: 0 | F8: 0 | G8: 0 | H8: 0 | I8: 0 | J8: =Q8+V8 -> 0 | K8: =U8+W8 -> 0 | L8: =X8 -> 0 | N8: 0 | O8: 0 | P8: 0 | Q8: =SUM(N8:P8) -> 0 | R8: 0 | S8: 0 | T8: 0 | U8: =SUM(R8:T8) -> 0 | V8: 0 | W8: 0 | X8: 0
A9: ='Org structure'!A3 -> Vote 02 - Executive Mayor's Office | C9: =SUM(C10:C10) -> 0 | D9: 0 | E9: 0 | F9: 0 | G9: 0 | H9: 0 | I9: 0 | J9: 0 | K9: 0 | L9: 0 | N9: =SUM(N10:N10) -> 0 | O9: 0 | P9: 0 | Q9: 0 | R9: 0 | S9: 0 | T9: 0 | U9: 0 | V9: 0 | W9: 0 | X9: 0
A10: ='Org structure'!E6 -> 02.1 - Executive Mayor's Office | C10: 0 | D10: 0 | E10: 0 | F10: 0 | G10: 0 | H10: 0 | I10: 0 | J10: =Q10+V10 -> 0 | K10: =U10+W10 -> 0 | L10: =X10 -> 0 | N10: 0 | O10: 0 | P10: 0 | Q10: =SUM(N10:P10) -> 0 | R10: 0 | S10: 0 | T10: 0 | U10: =SUM(R10:T10) -> 0 | V10: 0 | W10: 0 | X10: 0
A11: ='Org structure'!A4 -> Vote 03 - Municipal Manager Office | C11: =SUM(C12:C12) -> 0 | D11: 0 | E11: 0 | F11: 0 | G11: 0 | H11: 0 | I11: 0 | J11: 0 | K11: 0 | L11: 0 | N11: =SUM(N12:N12) -> 0 | O11: 0 | P11: 0 | Q11: 0 | R11: 0 | S11: 0 | T11: 0 | U11: 0 | V11: 0 | W11: 0 | X11: 0
A12: ='Org structure'!E8 -> 03.1 - Municipal Manager Admin | C12: 0 | D12: 0 | E12: 0 | F12: 0 | G12: 0 | H12: 0 | I12: 0 | J12: =Q12+V12 -> 0 | K12: =U12+W12 -> 0 | L12: =X12 -> 0 | N12: 0 | O12: 0 | P12: 0 | Q12: =SUM(N12:P12) -> 0 | R12: 0 | S12: 0 | T12: 0 | U12: =SUM(R12:T12) -> 0 | V12: 0 | W12: 0 | X12: 0
A13: ='Org structure'!A5 -> Vote 04 - Budget And Treasury | C13: =SUM(C14:C15) -> 0 | D13: 0 | E13: 0 | F13: 0 | G13: 0 | H13: 0 | I13: 0 | J13: 0 | K13: 0 | L13: 0 | N13: =SUM(N14:N15) -> 0 | O13: 0 | P13: 0 | Q13: 0 | R13: 0 | S13: 0 | T13: 0 | U13: 0 | V13: 0 | W13: 0 | X13: 0
A14: ='Org structure'!E10 -> 04.1 - Budget & Treasury Admin | C14: 0 | D14: 0 | E14: 0 | F14: 0 | G14: 0 | H14: 0 | I14: 0 | J14: =Q14+V14 -> 0 | K14: =U14+W14 -> 0 | L14: =X14 -> 0 | N14: 0 | O14: 0 | P14: 0 | Q14: =SUM(N14:P14) -> 0 | R14: 0 | S14: 0 | T14: 0 | U14: =SUM(R14:T14) -> 0 | V14: 0 | W14: 0 | X14: 0
A15: ='Org structure'!E11 -> 04.2 - Budget & Treasury Admin | C15: 0 | D15: 0 | E15: 0 | F15: 0 | G15: 0 | H15: 0 | I15: 0 | J15: =Q15+V15 -> 0 | K15: =U15+W15 -> 0 | L15: =X15 -> 0 | N15: 0 | O15: 0 | P15: 0 | Q15: =SUM(N15:P15) -> 0 | R15: 0 | S15: 0 | T15: 0 | U15: =SUM(R15:T15) -> 0 | V15: 0 | W15: 0 | X15: 0
A16: ='Org structure'!A6 -> Vote 05 - Infrustracture And Water Services | C16: =SUM(C17:C19) -> 0 | D16: 0 | E16: 0 | F16: 0 | G16: 0 | H16: 0 | I16: 0 | J16: 0 | K16: 0 | L16: 0 | N16: =SUM(N17:N19) -> 0 | O16: 0 | P16: 0 | Q16: 0 | R16: 0 | S16: 0 | T16: 0 | U16: 0 | V16: 0 | W16: 0 | X16: 0
A17: ='Org structure'!E13 -> 05.1 - Technical Services Admin | C17: 0 | D17: 0 | E17: 0 | F17: 0 | G17: 0 | H17: 0 | I17: 0 | J17: =Q17+V17 -> 0 | K17: =U17+W17 -> 0 | L17: =X17 -> 0 | N17: 0 | O17: 0 | P17: 0 | Q17: =SUM(N17:P17) -> 0 | R17: 0 | S17: 0 | T17: 0 | U17: =SUM(R17:T17) -> 0 | V17: 0 | W17: 0 | X17: 0
A18: ='Org structure'!E14 -> 05.2 - Water Services | C18: 0 | D18: 0 | E18: 0 | F18: 0 | G18: 0 | H18: 0 | I18: 0 | J18: =Q18+V18 -> 0 | K18: =U18+W18 -> 0 | L18: =X18 -> 0 | N18: 0 | O18: 0 | P18: 0 | Q18: =SUM(N18:P18) -> 0 | R18: 0 | S18: 0 | T18: 0 | U18: =SUM(R18:T18) -> 0 | V18: 0 | W18: 0 | X18: 0
A19: ='Org structure'!E15 -> 05.3 - Sanitation Services | C19: 0 | D19: 0 | E19: 0 | F19: 0 | G19: 0 | H19: 0 | I19: 0 | J19: =Q19+V19 -> 0 | K19: =U19+W19 -> 0 | L19: =X19 -> 0 | N19: 0 | O19: 0 | P19: 0 | Q19: =SUM(N19:P19) -> 0 | R19: 0 | S19: 0 | T19: 0 | U19: =SUM(R19:T19) -> 0 | V19: 0 | W19: 0 | X19: 0
A20: ='Org structure'!A7 -> Vote 06 - Planning And Economic Development | C20: =SUM(C21:C21) -> 0 | D20: 0 | E20: 0 | F20: 0 | G20: 0 | H20: 0 | I20: 0 | J20: 0 | K20: 0 | L20: 0 | N20: =SUM(N21:N21) -> 0 | O20: 0 | P20: 0 | Q20: 0 | R20: 0 | S20: 0 | T20: 0 | U20: 0 | V20: 0 | W20: 0 | X20: 0
A21: ='Org structure'!E17 -> 06.1 - Planning & Economic Dev Admin | C21: 0 | D21: 0 | E21: 0 | F21: 0 | G21: 0 | H21: 0 | I21: 0 | J21: =Q21+V21 -> 0 | K21: =U21+W21 -> 0 | L21: =X21 -> 0 | N21: 0 | O21: 0 | P21: 0 | Q21: =SUM(N21:P21) -> 0 | R21: 0 | S21: 0 | T21: 0 | U21: =SUM(R21:T21) -> 0 | V21: 0 | W21: 0 | X21: 0
A22: ='Org structure'!A8 -> Vote 07 - Community Services | C22: =SUM(C23:C23) -> 0 | D22: 0 | E22: 0 | F22: 0 | G22: 0 | H22: 0 | I22: 0 | J22: 0 | K22: 0 | L22: 0 | N22: =SUM(N23:N23) -> 0 | O22: 0 | P22: 0 | Q22: 0 | R22: 0 | S22: 0 | T22: 0 | U22: 0 | V22: 0 | W22: 0 | X22: 0
A23: ='Org structure'!E19 -> 07.1 - Community Services Admin | C23: 0 | D23: 0 | E23: 0 | F23: 0 | G23: 0 | H23: 0 | I23: 0 | J23: =Q23+V23 -> 0 | K23: =U23+W23 -> 0 | L23: =X23 -> 0 | N23: 0 | O23: 0 | P23: 0 | Q23: =SUM(N23:P23) -> 0 | R23: 0 | S23: 0 | T23: 0 | U23: =SUM(R23:T23) -> 0 | V23: 0 | W23: 0 | X23: 0
A24: ='Org structure'!A9 -> Vote 08 - Sekhukhune Development Angancy | C24: =SUM(C25:C25) -> 0 | D24: 0 | E24: 0 | F24: 0 | G24: 0 | H24: 0 | I24: 0 | J24: 0 | K24: 0 | L24: 0 | N24: =SUM(N25:N25) -> 0 | O24: 0 | P24: 0 | Q24: 0 | R24: 0 | S24: 0 | T24: 0 | U24: 0 | V24: 0 | W24: 0 | X24: 0
A25: ='Org structure'!E21 -> 08.1 - Sekhukhune Development Agency | C25: 0 | D25: 0 | E25: 0 | F25: 0 | G25: 0 | H25: 0 | I25: 0 | J25: =Q25+V25 -> 0 | K25: =U25+W25 -> 0 | L25: =X25 -> 0 | N25: 0 | O25: 0 | P25: 0 | Q25: =SUM(N25:P25) -> 0 | R25: 0 | S25: 0 | T25: 0 | U25: =SUM(R25:T25) -> 0 | V25: 0 | W25: 0 | X25: 0
A26: ='Org structure'!A10 -> Vote 09 - Corporate Services | C26: =SUM(C27:C27) -> 0 | D26: 0 | E26: 0 | F26: 0 | G26: 0 | H26: 0 | I26: 0 | J26: 0 | K26: 0 | L26: 0 | N26: =SUM(N27:N27) -> 0 | O26: 0 | P26: 0 | Q26: 0 | R26: 0 | S26: 0 | T26: 0 | U26: 0 | V26: 0 | W26: 0 | X26: 0
A27: ='Org structure'!E23 -> 09.1 - Corporate Services Admin | C27: 0 | D27: 0 | E27: 0 | F27: 0 | G27: 0 | H27: 0 | I27: 0 | J27: =Q27+V27 -> 0 | K27: =U27+W27 -> 0 | L27: =X27 -> 0 | N27: 0 | O27: 0 | P27: 0 | Q27: =SUM(N27:P27) -> 0 | R27: 0 | S27: 0 | T27: 0 | U27: =SUM(R27:T27) -> 0 | V27: 0 | W27: 0 | X27: 0
A28: ='Org structure'!A11 -> Vote 10 - | C28: 0 | D28: 0 | E28: 0 | F28: 0 | G28: 0 | H28: 0 | I28: 0 | J28: 0 | K28: 0 | L28: 0 | N28: 0 | O28: 0 | P28: 0 | Q28: 0 | R28: 0 | S28: 0 | T28: 0 | U28: 0 | V28: 0 | W28: 0
A29: ='Org structure'!A12 -> Vote 11 - | C29: 0 | D29: 0 | E29: 0 | F29: 0 | G29: 0 | H29: 0 | I29: 0 | J29: 0 | K29: 0 | L29: 0 | N29: 0 | O29: 0 | P29: 0 | Q29: 0 | R29: 0 | S29: 0 | T29: 0 | U29: 0 | V29: 0 | W29: 0
A30: ='Org structure'!A13 -> Vote 12 - | C30: 0 | D30: 0 | E30: 0 | F30: 0 | G30: 0 | H30: 0 | I30: 0 | J30: 0 | K30: 0 | L30: 0 | N30: 0 | O30: 0 | P30: 0 | Q30: 0 | R30: 0 | S30: 0 | T30: 0 | U30: 0 | V30: 0 | W30: 0
A31: ='Org structure'!A14 -> Vote 13 - | C31: 0 | D31: 0 | E31: 0 | F31: 0 | G31: 0 | H31: 0 | I31: 0 | J31: 0 | K31: 0 | L31: 0 | N31: 0 | O31: 0 | P31: 0 | Q31: 0 | R31: 0 | S31: 0 | T31: 0 | U31: 0 | V31: 0 | W31: 0
A32: ='Org structure'!A15 -> Vote 14 - | C32: 0 | D32: 0 | E32: 0 | F32: 0 | G32: 0 | H32: 0 | I32: 0 | J32: 0 | K32: 0 | L32: 0 | N32: 0 | O32: 0 | P32: 0 | Q32: 0 | R32: 0 | S32: 0 | T32: 0 | U32: 0 | V32: 0 | W32: 0
A33: ='Org structure'!A16 -> Vote 15 - Other | C33: =SUM(C34:C34) -> 0 | D33: 0 | E33: 0 | F33: 0 | G33: 0 | H33: 0 | I33: 0 | J33: 0 | K33: 0 | L33: 0 | N33: =SUM(N34:N34) -> 0 | O33: 0 | P33: 0 | Q33: 0 | R33: 0 | S33: 0 | T33: 0 | U33: 0 | V33: 0 | W33: 0 | X33: 0
A34: ='Org structure'!E30 -> 15.1 - Electricity Reporting Function | C34: 0 | D34: 0 | E34: 0 | F34: 0 | G34: 0 | H34: 0 | I34: 0 | J34: =Q34+V34 -> 0 | K34: =U34+W34 -> 0 | L34: =X34 -> 0 | N34: 0 | O34: 0 | P34: 0 | Q34: =SUM(N34:P34) -> 0 | R34: 0 | S34: 0 | T34: 0 | U34: =SUM(R34:T34) -> 0 | V34: 0 | W34: 0 | X34: 0
A35: Capital multi-year expenditure sub-total | C35: =C6+C9+C11+C13+C16+C20+C22+C24+C26+C28+C29+C30+C31+C32+C33 -> 0 | D35: 0 | E35: 0 | F35: 0 | G35: 0 | H35: 0 | I35: 0 | J35: 0 | K35: 0 | L35: 0 | N35: =N6+N9+N11+N13+N16+N20+N22+N24+N26+N28+N29+N30+N31+N32+N33 -> 0 | O35: 0 | P35: 0 | Q35: 0 | R35: 0 | S35: 0 | T35: 0 | U35: 0 | V35: 0 | W35: 0
A37: Capital expenditure - Municipal Vote
A38: Single-year expenditure appropriation | B38: 2
A39: ='Org structure'!A2 -> Vote 01 - Speakers Office | C39: =SUM(C40:C41) -> 0 | D39: 0 | E39: 0 | F39: 0 | G39: 530000 | H39: 530000 | I39: 0 | J39: 0 | K39: 0 | L39: 0
A40: ='Org structure'!E3 -> 01.1 - Office Of The Speaker | C40: 0 | D40: 0 | E40: 0 | F40: 0 | G40: 530000 | H40: 530000 | I40: 0 | J40: 0 | K40: 0 | L40: 0
A41: ='Org structure'!E4 -> 01.2 - Office Of The Chief Whip | C41: 0 | D41: 0 | E41: 0 | F41: 0 | G41: 0 | H41: 0 | I41: 0 | J41: 0 | K41: 0 | L41: 0
A42: ='Org structure'!A3 -> Vote 02 - Executive Mayor's Office | C42: =SUM(C43:C43) -> 0 | D42: 0 | E42: 0 | F42: 0 | G42: 0 | H42: 0 | I42: 0 | J42: 0 | K42: 0 | L42: 0
A43: ='Org structure'!E6 -> 02.1 - Executive Mayor's Office | C43: 0 | D43: 0 | E43: 0 | F43: 0 | G43: 0 | H43: 0 | I43: 0 | J43: 0 | K43: 0 | L43: 0
A44: ='Org structure'!A4 -> Vote 03 - Municipal Manager Office | C44: =SUM(C45:C45) -> 0 | D44: 0 | E44: 0 | F44: 0 | G44: 0 | H44: 0 | I44: 0 | J44: 0 | K44: 0 | L44: 0
A45: ='Org structure'!E8 -> 03.1 - Municipal Manager Admin | C45: 0 | D45: 0 | E45: 0 | F45: 0 | G45: 0 | H45: 0 | I45: 0 | J45: 0 | K45: 0 | L45: 0
A46: ='Org structure'!A5 -> Vote 04 - Budget And Treasury | C46: =SUM(C47:C48) -> 0 | D46: 0 | E46: 0 | F46: 0 | G46: 1000000 | H46: 1000000 | I46: 0 | J46: 0 | K46: 0 | L46: 0
A47: ='Org structure'!E10 -> 04.1 - Budget & Treasury Admin | C47: 0 | D47: 0 | E47: 0 | F47: 0 | G47: 0 | H47: 0 | I47: 0 | J47: 0 | K47: 0 | L47: 0
A48: ='Org structure'!E11 -> 04.2 - Budget & Treasury Admin | C48: 0 | D48: 0 | E48: 0 | F48: 0 | G48: 1000000 | H48: 1000000 | I48: 0 | J48: 0 | K48: 0 | L48: 0
A49: ='Org structure'!A6 -> Vote 05 - Infrustracture And Water Services | C49: =SUM(C50:C52) -> 457492910.4 | D49: 390198098 | E49: 429537047.6 | F49: 424001000 | G49: 395667708 | H49: 395667708 | I49: 253043211.2 | J49: 488656441 | K49: 511713530 | L49: 520355239
A50: ='Org structure'!E13 -> 05.1 - Technical Services Admin | C50: 0 | D50: 0 | E50: 0 | F50: 0 | G50: 0 | H50: 0 | I50: 0 | J50: 0 | K50: 0 | L50: 0
A51: ='Org structure'!E14 -> 05.2 - Water Services | C51: 446548116.3 | D51: 390198098 | E51: 429537047.6 | F51: 424001000 | G51: 395667708 | H51: 395667708 | I51: 253043211.2 | J51: 488656441 | K51: 511713530 | L51: 520355239
A52: ='Org structure'!E15 -> 05.3 - Sanitation Services | C52: 10944794.03 | D52: 0 | E52: 0 | F52: 0 | G52: 0 | H52: 0 | I52: 0 | J52: 0 | K52: 0 | L52: 0
A53: ='Org structure'!A7 -> Vote 06 - Planning And Economic Development | C53: =SUM(C54:C54) -> 0 | D53: 0 | E53: 0 | F53: 0 | G53: 0 | H53: 0 | I53: 0 | J53: 0 | K53: 0 | L53: 0
A54: ='Org structure'!E17 -> 06.1 - Planning & Economic Dev Admin | C54: 0 | D54: 0 | E54: 0 | F54: 0 | G54: 0 | H54: 0 | I54: 0 | J54: 0 | K54: 0 | L54: 0
A55: ='Org structure'!A8 -> Vote 07 - Community Services | C55: =SUM(C56:C56) -> 0 | D55: 0 | E55: 0 | F55: 0 | G55: 0 | H55: 0 | I55: 0 | J55: 0 | K55: 0 | L55: 0
A56: ='Org structure'!E19 -> 07.1 - Community Services Admin | C56: 0 | D56: 0 | E56: 0 | F56: 0 | G56: 0 | H56: 0 | I56: 0 | J56: 0 | K56: 0 | L56: 0
A57: ='Org structure'!A9 -> Vote 08 - Sekhukhune Development Angancy | C57: =SUM(C58:C58) -> 0 | D57: 0 | E57: 0 | F57: 0 | G57: 0 | H57: 0 | I57: 0 | J57: 550000 | K57: 0 | L57: 0
A58: ='Org structure'!E21 -> 08.1 - Sekhukhune Development Agency | C58: 0 | D58: 0 | E58: 0 | F58: 0 | G58: 0 | H58: 0 | I58: 0 | J58: 550000 | K58: 0 | L58: 0
A59: ='Org structure'!A10 -> Vote 09 - Corporate Services | C59: =SUM(C60:C60) -> 0 | D59: 0 | E59: 0 | F59: 0 | G59: 200000 | H59: 200000 | I59: 0 | J59: 0 | K59: 0 | L59: 0
A60: ='Org structure'!E23 -> 09.1 - Corporate Services Admin | C60: 0 | D60: 0 | E60: 0 | F60: 0 | G60: 200000 | H60: 200000 | I60: 0 | J60: 0 | K60: 0 | L60: 0
A61: ='Org structure'!A11 -> Vote 10 - | C61: 0 | D61: 0 | E61: 0 | F61: 0 | G61: 0 | H61: 0 | I61: 0 | J61: 0 | K61: 0 | L61: 0
A62: ='Org structure'!A12 -> Vote 11 - | C62: 0 | D62: 0 | E62: 0 | F62: 0 | G62: 0 | H62: 0 | I62: 0 | J62: 0 | K62: 0 | L62: 0
A63: ='Org structure'!A13 -> Vote 12 - | C63: 0 | D63: 0 | E63: 0 | F63: 0 | G63: 0 | H63: 0 | I63: 0 | J63: 0 | K63: 0 | L63: 0
A64: ='Org structure'!A14 -> Vote 13 - | C64: 0 | D64: 0 | E64: 0 | F64: 0 | G64: 0 | H64: 0 | I64: 0 | J64: 0 | K64: 0 | L64: 0
A65: ='Org structure'!A15 -> Vote 14 - | C65: 0 | D65: 0 | E65: 0 | F65: 0 | G65: 0 | H65: 0 | I65: 0 | J65: 0 | K65: 0 | L65: 0
A66: ='Org structure'!A16 -> Vote 15 - Other | C66: =SUM(C67:C67) -> 0 | D66: 0 | E66: 0 | F66: 0 | G66: 0 | H66: 0 | I66: 0 | J66: 0 | K66: 0 | L66: 0
A67: ='Org structure'!E30 -> 15.1 - Electricity Reporting Function | C67: 0 | D67: 0 | E67: 0 | F67: 0 | G67: 0 | H67: 0 | I67: 0 | J67: 0 | K67: 0 | L67: 0
A68: Capital single-year expenditure sub-total | C68: =C39+C42+C44+C46+C49+C53+C55+C57+C59+C61+C62+C63+C64+C65+C66 -> 457492910.4 | D68: 390198098 | E68: 429537047.6 | F68: 424001000 | G68: 397397708 | H68: 397397708 | I68: 253043211.2 | J68: 489206441 | K68: 511713530 | L68: 520355239
A69: Total Capital Expenditure | C69: =C35+C68 -> 457492910.4 | D69: 390198098 | E69: 429537047.6 | F69: 424001000 | G69: 397397708 | H69: 397397708 | I69: 253043211.2 | J69: 489206441 | K69: 511713530 | L69: 520355239

Sheet A6-FinPos
A1: =muni&" - "&Approve6 -> DC47 Sekhukhune - Table A6 Budgeted Financial Position
A2: =desc -> Description | B2: =head27 -> Ref | C2: =head1b -> 2018/19 | D2: =head1A -> 2019/20 | E2: =Head1 -> 2020/21 | F2: =Head2 -> Current Year 2021/22 | J2: =Head3 -> 2022/23 Medium Term Revenue & Expenditure Framework
A3: R thousand | C3: =Head5 -> Audited Outcome | D3: =Head5 -> Audited Outcome | E3: =Head5 -> Audited Outcome | F3: =Head6 -> Original Budget | G3: =Head7 -> Adjusted Budget | H3: =Head8 -> Full Year Forecast | I3: =Head5b -> Pre-audit outcome | J3: =Head9 -> Budget Year 2022/23 | K3: =Head10 -> Budget Year +1 2023/24 | L3: =Head11 -> Budget Year +2 2024/25
A4: ASSETS
A5: Current assets
A6: Cash | C6: 12159793.68 | D6: 30716411.77 | E6: -195634778.2 | F6: 236446215 | G6: 310562840 | H6: 310562840 | I6: -99405950.8 | J6: 171870583 | K6: 234311689 | L6: 312993514
A7: Call investment deposits | B7: 1 | C7: 1000 | D7: 149981333 | E7: 149981333 | F7: 1000 | G7: 1000 | H7: 1000 | I7: 149981333 | J7: 100001000 | K7: 110001000 | L7: 120001000
A8: Consumer debtors | B8: 1 | C8: ='SA3'!C14 -> 119368458.7 | D8: ='SA3'!D14 -> 124776034.1 | E8: ='SA3'!E14 -> 171682891.3 | F8: ='SA3'!F14 -> 120558740 | G8: ='SA3'!G14 -> 101738067 | H8: ='SA3'!H14 -> 101738067 | I8: ='SA3'!I14 -> 228644461.4 | J8: ='SA3'!J14 -> 94223040 | K8: ='SA3'!K14 -> 91582263 | L8: ='SA3'!L14 -> 78527028
A9: Other debtors | C9: 88872615.69 | D9: 109534831.2 | E9: 153275481.5 | F9: 92568313 | G9: 92568313 | H9: 92568313 | I9: 181766748.5 | J9: 92568313 | K9: 92568313 | L9: 92568313
A10: Current portion of long-term receivables
A11: Inventory | B11: 2 | C11: ='SA3'!C115 -> 22284008.97 | D11: ='SA3'!D115 -> 31911341 | E11: ='SA3'!E115 -> 31592448.48 | F11: ='SA3'!F115 -> 31772947.48 | G11: ='SA3'!G115 -> 204224955.5 | H11: ='SA3'!H115 -> 204224955.5 | I11: ='SA3'!I115 -> 38321123.06 | J11: ='SA3'!J115 -> 265245375.5 | K11: ='SA3'!K115 -> 416966316.5 | L11: ='SA3'!L115 -> 562021951.5
A12: Total current assets | C12: =SUM(C6:C11) -> 242685877 | D12: 446919951.1 | E12: 310897376.1 | F12: 481347215.5 | G12: 709095175.5 | H12: 709095175.5 | I12: 499307715.2 | J12: 723908311.5 | K12: 945429581.5 | L12: 1166111806
A14: Non current assets
A15: Long-term receivables
A16: Investments | C16: 58868291.99 | D16: -118292482.8 | E16: -128643591 | F16: 0 | G16: 0 | H16: 0 | I16: 490948084.3 | J16: 0 | K16: 0 | L16: 0
A17: Investment property
A18: Investment in Associate
A19: Property, plant and equipment | B19: 3 | C19: ='SA3'!C121 -> 3359050059 | D19: ='SA3'!D121 -> 3671056252 | E19: ='SA3'!E121 -> 4010823539 | F19: ='SA3'!F121 -> 3713221145 | G19: ='SA3'!G121 -> 3677517853 | H19: ='SA3'!H121 -> 3677517853 | I19: ='SA3'!I121 -> 4263866750 | J19: ='SA3'!J121 -> 3772526586 | K19: ='SA3'!K121 -> 3795033675 | L19: ='SA3'!L121 -> 3819015492
A21: Biological
A22: Intangible | C22: 0 | D22: 0 | E22: 0 | F22: 0 | G22: 0 | H22: 0 | I22: 0 | J22: 0 | K22: 0 | L22: 0
A23: Other non-current assets | C23: 0 | D23: 0 | E23: 0 | F23: 0 | G23: 0 | H23: 0 | I23: 0 | J23: 0 | K23: 0 | L23: 0
A24: Total non current assets | C24: =SUM(C15:C19)+SUM(C21:C23) -> 3417918351 | D24: =SUM(D15:D19)+SUM(D21:D23) -> 3552763769 | E24: 3882179948 | F24: 3713221145 | G24: 3677517853 | H24: 3677517853 | I24: 4754814835 | J24: 3772526586 | K24: 3795033675 | L24: 3819015492
A25: TOTAL ASSETS | C25: =C12+C24 -> 3660604228 | D25: =D12+D24 -> 3999683720 | E25: =E12+E24 -> 4193077324 | F25: =F12+F24 -> 4194568360 | G25: 4386613028 | H25: 4386613028 | I25: 5254122550 | J25: 4496434897 | K25: 4740463256 | L25: 4985127298
A27: LIABILITIES
A28: Current liabilities
A29: Bank overdraft | B29: 1
A30: Borrowing | B30: 4 | C30: ='SA3'!C127 -> 0 | D30: ='SA3'!D127 -> 0 | E30: ='SA3'!E127 -> 0 | F30: ='SA3'!F127 -> 0 | G30: ='SA3'!G127 -> 0 | H30: ='SA3'!H127 -> 0 | I30: ='SA3'!I127 -> 0 | J30: ='SA3'!J127 -> 0 | K30: ='SA3'!K127 -> 0 | L30: ='SA3'!L127 -> 0
A31: Consumer deposits | C31: 4209179.54 | D31: 4371415.42 | E31: 4624378.95 | F31: 4314762 | G31: 4314762 | H31: 4314762 | I31: 4858764.04 | J31: 4314762 | K31: 4314762 | L31: 4314762
A32: Trade and other payables | B32: 4 | C32: ='SA3'!C134 -> 485233909 | D32: ='SA3'!D134 -> 513636524.3 | E32: ='SA3'!E134 -> 717585621.3 | F32: ='SA3'!F134 -> 220000000 | G32: ='SA3'!G134 -> 277003045 | H32: ='SA3'!H134 -> 277003045 | I32: ='SA3'!I134 -> 704157674.3 | J32: ='SA3'!J134 -> 274289515 | K32: ='SA3'!K134 -> 294747365 | L32: ='SA3'!L134 -> 437056395
A33: Provisions | C33: 0 | D33: 0 | E33: 0 | F33: 0 | G33: 0 | H33: 0 | I33: 0 | J33: 0 | K33: 0 | L33: 0
A34: Total current liabilities | C34: =SUM(C29:C33) -> 489443088.6 | D34: 518007939.7 | E34: 722210000.3 | F34: 224314762 | G34: 281317807 | H34: 281317807 | I34: 709016438.3 | J34: 278604277 | K34: 299062127 | L34: 441371157
A36: Non current liabilities
A37: Borrowing | C37: ='SA3'!C139 -> 1227561.16 | D37: ='SA3'!D139 -> 3322476.83 | E37: ='SA3'!E139 -> 3822340.19 | F37: ='SA3'!F139 -> 0 | G37: ='SA3'!G139 -> 0 | H37: ='SA3'!H139 -> 0 | I37: ='SA3'!I139 -> 3822340.19 | J37: ='SA3'!J139 -> 0 | K37: ='SA3'!K139 -> 0 | L37: ='SA3'!L139 -> 0
A38: Provisions | C38: ='SA3'!C146 -> 51802525.92 | D38: ='SA3'!D146 -> 50185766.67 | E38: ='SA3'!E146 -> 58971647.67 | F38: ='SA3'!F146 -> 51802526 | G38: ='SA3'!G146 -> 51802526 | H38: ='SA3'!H146 -> 51802526 | I38: ='SA3'!I146 -> 58971647.67 | J38: ='SA3'!J146 -> 51802526 | K38: ='SA3'!K146 -> 51802526 | L38: ='SA3'!L146 -> 51802526
A39: Total non current liabilities | C39: =SUM(C37:C38) -> 53030087.08 | D39: =SUM(D37:D38) -> 53508243.5 | E39: =SUM(E37:E38) -> 62793987.86 | F39: =SUM(F37:F38) -> 51802526 | G39: 51802526 | H39: 51802526 | I39: 62793987.86 | J39: 51802526 | K39: =SUM(K37:K38) -> 51802526 | L39: 51802526
A40: TOTAL LIABILITIES | C40: =C34+C39 -> 542473175.6 | D40: =D34+D39 -> 571516183.2 | E40: =E34+E39 -> 785003988.2 | F40: =F34+F39 -> 276117288 | G40: 333120333 | H40: 333120333 | I40: 771810426.2 | J40: 330406803 | K40: =K34+K39 -> 350864653 | L40: 493173683
A42: NET ASSETS | B42: 5 | C42: =C25-C40 -> 3118131052 | D42: 3428167537 | E42: 3408073336 | F42: 3918451072 | G42: 4053492695 | H42: 4053492695 | I42: 4482312124 | J42: 4166028094 | K42: 4389598603 | L42: 4491953615
A44: COMMUNITY WEALTH/EQUITY
A45: Accumulated Surplus/(Deficit) | C45: ='SA3'!C158 -> 3344127598 | D45: ='SA3'!D158 -> 3565196821 | E45: ='SA3'!E158 -> 4147224908 | F45: ='SA3'!F158 -> 4010275759 | G45: ='SA3'!G158 -> 4020961505 | H45: ='SA3'!H158 -> 4020961505 | I45: ='SA3'!I158 -> 4551981402 | J45: ='SA3'!J158 -> 4085220273 | K45: ='SA3'!K158 -> 4247770374 | L45: ='SA3'!L158 -> 4198404444
A46: Reserves | B46: 4 | C46: ='SA3'!C165 -> 0 | D46: ='SA3'!D165 -> 0 | E46: ='SA3'!E165 -> 0 | F46: ='SA3'!F165 -> 0 | G46: ='SA3'!G165 -> 0 | H46: ='SA3'!H165 -> 0 | I46: ='SA3'!I165 -> 0 | J46: ='SA3'!J165 -> 0 | K46: ='SA3'!K165 -> 0 | L46: ='SA3'!L165 -> 0
A48: TOTAL COMMUNITY WEALTH/EQUITY | B48: 5 | C48: =SUM(C45:C46) -> 3344127598 | D48: =SUM(D45:D46) -> 3565196821 | E48: 4147224908 | F48: 4010275759 | G48: 4020961505 | H48: 4020961505 | I48: 4551981402 | J48: 4085220273 | K48: 4247770374 | L48: 4198404444
A49: =head27a -> References
A50: 1. Detail to be provided in Table SA3
A51: 2. Include completed low cost housing to be transferred to beneficiaries within 12 months
A52: 3. Include 'Construction-work-in-progress' (disclosed separately in annual financial statements)
A53: 4. Detail to be provided in Table SA3. Includes reserves to be funded by statute.
A54: 5. Net assets must balance with Total Community Wealth/Equity
A55: check balance | C55: =IF((C42-C48)=0,0,"Unbalanced") -> Unbalanced | D55: =IF((D42-D48)=0,0,"Unbalanced") -> Unbalanced | E55: Unbalanced | F55: Unbalanced | G55: Unbalanced | H55: Unbalanced | I55: Unbalanced | J55: Unbalanced | K55: Unbalanced | L55: Unbalanced

Sheet A7-CFlow
A1: =muni&" - "&Approve7 -> DC47 Sekhukhune - Table A7 Budgeted Cash Flows
A2: =desc -> Description | B2: =head27 -> Ref | C2: =head1b -> 2018/19 | D2: =head1A -> 2019/20 | E2: =Head1 -> 2020/21 | F2: =Head2 -> Current Year 2021/22 | J2: =Head3 -> 2022/23 Medium Term Revenue & Expenditure Framework
A3: R thousand | C3: =Head5 -> Audited Outcome | D3: =Head5 -> Audited Outcome | E3: =Head5 -> Audited Outcome | F3: =Head6 -> Original Budget | G3: =Head7 -> Adjusted Budget | H3: =Head8 -> Full Year Forecast | I3: =Head5b -> Pre-audit outcome | J3: =Head9 -> Budget Year 2022/23 | K3: =Head10 -> Budget Year +1 2023/24 | L3: =Head11 -> Budget Year +2 2024/25
A4: CASH FLOW FROM OPERATING ACTIVITIES
A5: Receipts
A6: Property rates | C6: 0 | D6: 0 | E6: 0 | F6: 0 | G6: 0 | H6: 0 | I6: 0 | J6: ='SA30'!N5 -> 0 | K6: ='SA30'!O5 -> 0 | L6: ='SA30'!P5 -> 0
A7: Service charges | C7: 0 | D7: 0 | E7: 63553577.23 | F7: 36182192 | G7: 54182865 | H7: 54182865 | I7: 49950764.82 | J7: ='SA30'!N6+'SA30'!N7+'SA30'!N8+'SA30'!N9 -> 62142009 | K7: ='SA30'!O6+'SA30'!O7+'SA30'!O8+'SA30'!O9 -> 65249109 | L7: ='SA30'!P6+'SA30'!P7+'SA30'!P8+'SA30'!P9 -> 78793983
A8: Other revenue | C8: 0 | D8: 0 | E8: 111253484.1 | F8: 17485843 | G8: 25024924 | H8: 25024924 | I8: -374564359 | J8: ='SA30'!N11+'SA30'!N15+'SA30'!N16+'SA30'!N17+'SA30'!N19 -> 2215193 | K8: ='SA30'!O11+'SA30'!O15+'SA30'!O16+'SA30'!O17+'SA30'!O19 -> 2324901 | L8: ='SA30'!P11+'SA30'!P15+'SA30'!P16+'SA30'!P17+'SA30'!P19 -> 2441147
A9: Transfers and Subsidies - Operational | B9: 1 | C9: 0 | D9: 0 | E9: 4720000 | F9: 982113000 | G9: 1024213000 | H9: 1024213000 | I9: 10450520 | J9: ='SA30'!N18 -> 1087843560 | K9: ='SA30'!O18 -> 1149230990 | L9: ='SA30'!P18 -> 1253455418
A10: Transfers and Subsidies - Capital | B10: 1 | C10: 0 | D10: 0 | E10: 365494000 | F10: 415997002 | G10: 379101000 | H10: 379101000 | I10: 262623000 | J10: ='SA30'!N23+'SA30'!N24 -> 469076440 | K10: ='SA30'!O23+'SA30'!O24 -> 501682010 | L10: ='SA30'!P23+'SA30'!P24 -> 512086000
A11: Interest | C11: 0 | D11: 0 | E11: 0 | F11: 19056438 | G11: 21485844 | H11: 21485844 | I11: 191594.66 | J11: ='SA30'!N12+'SA30'!N13 -> 21659404 | K11: ='SA30'!O12+'SA30'!O13 -> 22612418 | L11: ='SA30'!P12+'SA30'!P13 -> 23629977
A12: Dividends | J12: ='SA30'!N14 -> 0 | K12: ='SA30'!O14 -> 0 | L12: ='SA30'!P14 -> 0
A13: Payments
A14: Suppliers and employees | C14: 0 | D14: 0 | E14: -1231811762 | F14: -397052774 | G14: 143042753 | H14: 143042753 | I14: -1496206439 | J14: =-('SA30'!N35+'SA30'!N36+'SA30'!N38+'SA30'!N39+'SA30'!N40+'SA30'!N41+'SA30'!N44+'SA30'!N50) -> -1092661272 | K14: =-('SA30'!O35+'SA30'!O36+'SA30'!O38+'SA30'!O39+'SA30'!O40+'SA30'!O41+'SA30'!O44+'SA30'!O50) -> -1157396314 | L14: =-('SA30'!P35+'SA30'!P36+'SA30'!P38+'SA30'!P39+'SA30'!P40+'SA30'!P41+'SA30'!P44+'SA30'!P50) -> -1253510225
A15: Finance charges | J15: =-('SA30'!N37) -> 0 | K15: =-('SA30'!O37) -> 0 | L15: =-('SA30'!P37) -> 0
A16: Transfers and Grants | B16: 1 | J16: =-('SA30'!N42+'SA30'!N43) -> 0 | K16: =-('SA30'!O42+'SA30'!O43) -> 0 | L16: =-('SA30'!P42+'SA30'!P43) -> 0
A17: NET CASH FROM/(USED) OPERATING ACTIVITIES | C17: =SUM(C6:C12)+SUM(C14:C16) -> 0 | D17: 0 | E17: -686790700.6 | F17: 1073781701 | G17: 1647050386 | H17: 1647050386 | I17: -1547554918 | J17: 550275334 | K17: 583703114 | L17: 616896300
A19: CASH FLOWS FROM INVESTING ACTIVITIES
A20: Receipts
A21: Proceeds on disposal of PPE | C21: 0 | D21: 0 | E21: 0 | F21: 409544 | G21: 409544 | H21: 409544 | I21: 0 | J21: ='SA30'!N25 -> 430021 | K21: ='SA30'!O25 -> 451522 | L21: ='SA30'!P25 -> 474098
A23: Decrease (increase) in non-current receivables | J23: ='SA30'!N30 -> 0 | K23: ='SA30'!O30 -> 0 | L23: ='SA30'!P30 -> 0
A24: Decrease (increase) in non-current investments | C24: 58868291.99 | D24: -177160774.8 | E24: -10351108.19 | F24: 128643591 | G24: 0 | H24: 0 | I24: 619591675.2 | J24: ='SA30'!N31 -> 0 | K24: ='SA30'!O31 -> 0 | L24: ='SA30'!P31 -> 0
A25: Payments
A26: Capital assets | C26: 0 | D26: 0 | E26: -355876881.7 | F26: -424001000 | G26: -397397708 | H26: -397397708 | I26: -227846888.4 | J26: =-('SA30'!N48) -> -489206441 | K26: =-('SA30'!O48) -> -511713530 | L26: =-('SA30'!P48) -> -520355239
A27: NET CASH FROM/(USED) INVESTING ACTIVITIES | C27: =+C21+C23+C24+C26 -> 58868291.99 | D27: =+D21+D23+D24+D26 -> -177160774.8 | E27: -366227989.9 | F27: -294947865 | G27: -396988164 | H27: -396988164 | I27: 391744786.9 | J27: -488776420 | K27: -511262008 | L27: -519881141
A29: CASH FLOWS FROM FINANCING ACTIVITIES
A30: Receipts
A31: Short term loans | J31: ='SA30'!N26 -> 0 | K31: ='SA30'!O26 -> 0 | L31: ='SA30'!P26 -> 0
A32: Borrowing long term/refinancing | J32: ='SA30'!N27 -> 0 | K32: ='SA30'!O27 -> 0 | L32: ='SA30'!P27 -> 0
A33: Increase (decrease) in consumer deposits | C33: -4209179.54 | D33: -162235.88 | E33: -252963.53 | F33: 309616.95 | G33: 0 | H33: 0 | I33: -234385.09 | J33: ='SA30'!N28 -> 0 | K33: ='SA30'!O28 -> 0 | L33: ='SA30'!P28 -> 0
A34: Payments
A35: Repayment of borrowing | J35: =-('SA30'!N49) -> 0 | K35: =-('SA30'!O49) -> 0 | L35: =-('SA30'!P49) -> 0
A36: NET CASH FROM/(USED) FINANCING ACTIVITIES | C36: =SUM(C31:C33)+C35 -> -4209179.54 | D36: =SUM(D31:D33)+D35 -> -162235.88 | E36: -252963.53 | F36: 309616.95 | G36: 0 | H36: 0 | I36: -234385.09 | J36: 0 | K36: 0 | L36: 0
A38: NET INCREASE/ (DECREASE) IN CASH HELD | C38: =C17+C27+C36 -> 54659112.45 | D38: =D17+D27+D36 -> -177323010.6 | E38: -1053271654 | F38: 779143452.9 | G38: 1250062222 | H38: 1250062222 | I38: -1156044517 | J38: 61498914 | K38: 72441106 | L38: 97015159
A39: Cash/cash equivalents at the year begin: | B39: 2 | C39: 18249104.93 | D39: 12160793.68 | E39: 180697744.8 | F39: 181177799 | G39: 237402088 | H39: 237402088 | I39: 0 | J39: ='SA30'!N54 -> 218705003 | K39: =J40 -> 280203917 | L39: =K40 -> 352645023
A40: Cash/cash equivalents at the year end: | B40: 2 | C40: =C38+C39 -> 72908217.38 | D40: =D38+D39 -> -165162217 | E40: =E38+E39 -> -872573909.2 | F40: =F38+F39 -> 960321251.9 | G40: 1487464310 | H40: 1487464310 | I40: -1156044517 | J40: 280203917 | K40: 352645023 | L40: 449660182
A41: =head27a -> References
A42: 1. Local/District municipalities to include transfers from/to District/Local Municipalities
A43: 2. Cash equivalents includes investments with maturities of 3 months or less
A44: 3. The MTREF is populated directly from SA30.
A45: Total receipts | C45: =SUM(C6:C12)+SUM(C21:C23) -> 0 | D45: 0 | E45: 545021061.3 | F45: 1471244019 | G45: 1504417177 | H45: 1504417177 | I45: -51348479.49 | J45: 1643366627 | K45: 1741550950 | L45: 1870880623
A46: Total payments | C46: =SUM(C14:C16)+C26 -> 0 | D46: =SUM(D14:D16)+D26 -> 0 | E46: -1587688644 | F46: -821053774 | G46: -254354955 | H46: -254354955 | I46: -1724053327 | J46: -1581867713 | K46: -1669109844 | L46: -1773865464
C47: =C45+C46 -> 0 | D47: =D45+D46 -> 0 | E47: -1042667582 | F47: 650190245 | G47: 1250062222 | H47: 1250062222 | I47: -1775401807 | J47: 61498914 | K47: 72441106 | L47: 97015159
A48: Borrowings & investments & c.deposits | C48: =C24+C32+C33 -> 54659112.45 | D48: =D24+D32+D33 -> -177323010.6 | E48: -10604071.72 | F48: 128953207.9 | G48: 0 | H48: 0 | I48: 619357290.1 | J48: 0 | K48: 0 | L48: 0
A49: =A35 -> Repayment of borrowing | C49: =C35 -> 0 | D49: =D35 -> 0 | E49: 0 | F49: 0 | G49: 0 | H49: 0 | I49: =I35 -> 0 | J49: 0 | K49: 0 | L49: 0
C50: =C47+C48+C49 -> 54659112.45 | D50: =D47+D48+D49 -> -177323010.6 | E50: -1053271654 | F50: 779143452.9 | G50: 1250062222 | H50: 1250062222 | I50: -1156044517 | J50: 61498914 | K50: 72441106 | L50: 97015159
C51: =C38-C50 -> 0 | D51: 0 | E51: 0 | F51: 0 | G51: 0 | H51: 0 | I51: 0 | J51: 0 | K51: 0 | L51: 0

Sheet A8-ResRecon
A1: =muni&" - "&Approve8 -> DC47 Sekhukhune - Table A8 Cash backed reserves/accumulated surplus reconciliation
A2: =desc -> Description | B2: =head27 -> Ref | C2: =head1b -> 2018/19 | D2: =head1A -> 2019/20 | E2: =Head1 -> 2020/21 | F2: =Head2 -> Current Year 2021/22 | J2: =Head3 -> 2022/23 Medium Term Revenue & Expenditure Framework
A3: R thousand | C3: =Head5 -> Audited Outcome | D3: =Head5 -> Audited Outcome | E3: =Head5 -> Audited Outcome | F3: =Head6 -> Original Budget | G3: =Head7 -> Adjusted Budget | H3: =Head8 -> Full Year Forecast | I3: =Head5b -> Pre-audit outcome | J3: =Head9 -> Budget Year 2022/23 | K3: =Head10 -> Budget Year +1 2023/24 | L3: =Head11 -> Budget Year +2 2024/25
A4: Cash and investments available
A5: =LEFT('A7-CFlow'!A40,37) -> Cash/cash equivalents at the year end | B5: 1 | C5: ='A7-CFlow'!C40 -> 72908217.38 | D5: ='A7-CFlow'!D40 -> -165162217 | E5: ='A7-CFlow'!E40 -> -872573909.2 | F5: ='A7-CFlow'!F40 -> 960321251.9 | G5: ='A7-CFlow'!G40 -> 1487464310 | H5: ='A7-CFlow'!H40 -> 1487464310 | I5: ='A7-CFlow'!I40 -> -1156044517 | J5: ='A7-CFlow'!J40 -> 280203917 | K5: ='A7-CFlow'!K40 -> 352645023 | L5: ='A7-CFlow'!L40 -> 449660182
A6: Other current investments > 90 days | C6: ='A6-FinPos'!C6+'A6-FinPos'!C7-'A6-FinPos'!C29-'A8-ResRecon'!C5 -> -60747423.7 | D6: ='A6-FinPos'!D6+'A6-FinPos'!D7-'A6-FinPos'!D29-'A8-ResRecon'!D5 -> 345859961.7 | E6: ='A6-FinPos'!E6+'A6-FinPos'!E7-'A6-FinPos'!E29-'A8-ResRecon'!E5 -> 826920464.1 | F6: ='A6-FinPos'!F6+'A6-FinPos'!F7-'A6-FinPos'!F29-'A8-ResRecon'!F5 -> -723874036.9 | G6: ='A6-FinPos'!G6+'A6-FinPos'!G7-'A6-FinPos'!G29-'A8-ResRecon'!G5 -> -1176900470 | H6: ='A6-FinPos'!H6+'A6-FinPos'!H7-'A6-FinPos'!H29-'A8-ResRecon'!H5 -> -1176900470 | I6: ='A6-FinPos'!I6+'A6-FinPos'!I7-'A6-FinPos'!I29-'A8-ResRecon'!I5 -> 1206619899 | J6: ='A6-FinPos'!J6+'A6-FinPos'!J7-'A6-FinPos'!J29-'A8-ResRecon'!J5 -> -8332334 | K6: ='A6-FinPos'!K6+'A6-FinPos'!K7-'A6-FinPos'!K29-'A8-ResRecon'!K5 -> -8332334 | L6: ='A6-FinPos'!L6+'A6-FinPos'!L7-'A6-FinPos'!L29-'A8-ResRecon'!L5 -> -16665668
A7: ='A6-FinPos'!A14&" - "&'A6-FinPos'!A16 -> Non current assets - Investments | B7: 1 | C7: ='A6-FinPos'!C16 -> 58868291.99 | D7: ='A6-FinPos'!D16 -> -118292482.8 | E7: ='A6-FinPos'!E16 -> -128643591 | F7: ='A6-FinPos'!F16 -> 0 | G7: ='A6-FinPos'!G16 -> 0 | H7: ='A6-FinPos'!H16 -> 0 | I7: ='A6-FinPos'!I16 -> 490948084.3 | J7: ='A6-FinPos'!J16 -> 0 | K7: ='A6-FinPos'!K16 -> 0 | L7: ='A6-FinPos'!L16 -> 0
A8: Cash and investments available: | C8: =SUM(C5:C7) -> 71029085.67 | D8: =SUM(D5:D7) -> 62405262 | E8: -174297036.1 | F8: 236447215 | G8: 310563840 | H8: 310563840 | I8: 541523466.5 | J8: 271871583 | K8: 344312689 | L8: 432994514
A10: Application of cash and investments
A11: ='SA3'!A132 -> Unspent conditional transfers | C11: ='SA3'!C132 -> 61052577.72 | D11: ='SA3'!D132 -> 68934375.2 | E11: ='SA3'!E132 -> 30315359.2 | F11: ='SA3'!F132 -> 20000000 | G11: ='SA3'!G132 -> 20000000 | H11: ='SA3'!H132 -> 20000000 | I11: ='SA3'!I132 -> 230324112.9 | J11: ='SA3'!J132 -> 20000000 | K11: ='SA3'!K132 -> 32309000 | L11: ='SA3'!L132 -> 42352418
A12: Unspent borrowing | C12: ='SA17'!C67 -> 0 | D12: ='SA17'!D67 -> 0 | E12: ='SA17'!E67 -> 0 | F12: ='SA17'!F67 -> 0 | G12: ='SA17'!G67 -> 0 | H12: ='SA17'!H67 -> 0 | J12: ='SA17'!I67 -> 0 | K12: ='SA17'!J67 -> 0 | L12: ='SA17'!K67 -> 0
A13: Statutory requirements | B13: 2
A14: Other working capital requirements | B14: 3 | C14: =-C32 -> 385808128.7 | D14: =-D32 -> 391847332.7 | E14: 307892807 | F14: =-F32 -> 98812000 | G14: 123466045 | H14: 123466045 | I14: 1751702873 | J14: 154952515 | K14: 164507365 | L14: 290529977
A15: Other provisions
A16: Long term investments committed | B16: 4 | C16: =C42 -> 0 | D16: =D42 -> 0 | E16: 0 | F16: 0 | G16: 0 | H16: 0 | I16: 0 | J16: 0 | K16: 0 | L16: 0
A17: Reserves to be backed by cash/investments | B17: 5 | C17: =SUM(C44:C48) -> 0 | D17: 0 | E17: 0 | F17: 0 | G17: 0 | H17: 0 | I17: 0 | J17: 0 | K17: 0 | L17: 0
A18: ="Total "&A10&":" -> Total Application of cash and investments: | C18: =SUM(C11:C17) -> 446860706.5 | D18: =SUM(D11:D17) -> 460781707.9 | E18: 338208166.2 | F18: 118812000 | G18: 143466045 | H18: 143466045 | I18: 1982026986 | J18: 174952515 | K18: 196816365 | L18: 332882395
A19: Surplus(shortfall) | C19: =C8-C18 -> -375831620.8 | D19: =D8-D18 -> -398376445.9 | E19: -512505202.3 | F19: 117635215 | G19: 167097795 | H19: 167097795 | I19: -1440503519 | J19: 96919068 | K19: 147496324 | L19: 100112119
A20: =head27a -> References
A21: 1. Must reconcile with Budgeted Cash Flows
A22: 2. For example: VAT, taxation
A23: 3. Council approval for policy required - include sufficient working capital (e.g. allowing for a % of current debtors > 90 days as uncollectable)
A24: 4. For example: sinking fund requirements for borrowing
A25: 5. Council approval required for each reserve created and basis of cash backing of reserves
A28: Other working capital requirements
A29: Debtors | C29: =IF(ISERROR(ROUND(C35*C36,-3)),0,(ROUND(C35*C36,-3))) -> 0 | D29: =IF(ISERROR(ROUND(D35*D36,-3)),0,(ROUND(D35*D36,-3))) -> 0 | E29: 313377000 | F29: 101188000 | G29: 133537000 | H29: 133537000 | I29: -1367803000 | J29: 99337000 | K29: 97931000 | L29: 104174000
A31: Creditors due | C31: ='SA3'!C130+'SA3'!C131 -> 385808128.7 | D31: ='SA3'!D130+'SA3'!D131 -> 391847332.7 | E31: ='SA3'!E130+'SA3'!E131 -> 621269807 | F31: ='SA3'!F130+'SA3'!F131 -> 200000000 | G31: ='SA3'!G130+'SA3'!G131 -> 257003045 | H31: ='SA3'!H130+'SA3'!H131 -> 257003045 | I31: ='SA3'!I130+'SA3'!I131 -> 383899872.9 | J31: ='SA3'!J130+'SA3'!J131 -> 254289515 | K31: ='SA3'!K130+'SA3'!K131 -> 262438365 | L31: ='SA3'!L130+'SA3'!L131 -> 394703977
A32: Total | C32: =C29-C31 -> -385808128.7 | D32: =D29-D31 -> -391847332.7 | E32: -307892807 | F32: -98812000 | G32: -123466045 | H32: -123466045 | I32: -1751702873 | J32: -154952515 | K32: -164507365 | L32: -290529977
A34: Debtors collection assumptions
A35: Balance outstanding - debtors | C35: ='A6-FinPos'!C8+'A6-FinPos'!C9+'A6-FinPos'!C15 -> 208241074.4 | D35: ='A6-FinPos'!D8+'A6-FinPos'!D9+'A6-FinPos'!D15 -> 234310865.3 | E35: ='A6-FinPos'!E8+'A6-FinPos'!E9+'A6-FinPos'!E15 -> 324958372.8 | F35: ='A6-FinPos'!F8+'A6-FinPos'!F9+'A6-FinPos'!F15 -> 213127053 | G35: ='A6-FinPos'!G8+'A6-FinPos'!G9+'A6-FinPos'!G15 -> 194306380 | H35: ='A6-FinPos'!H8+'A6-FinPos'!H9+'A6-FinPos'!H15 -> 194306380 | I35: ='A6-FinPos'!I8+'A6-FinPos'!I9+'A6-FinPos'!I15 -> 410411210 | J35: ='A6-FinPos'!J8+'A6-FinPos'!J9+'A6-FinPos'!J15 -> 186791353 | K35: ='A6-FinPos'!K8+'A6-FinPos'!K9+'A6-FinPos'!K15 -> 184150576 | L35: ='A6-FinPos'!L8+'A6-FinPos'!L9+'A6-FinPos'!L15 -> 171095341
A36: Estimate of debtors collection rate | C36: =IF(ISERROR('SA10'!D10),0,('SA10'!D10)) -> 0 | D36: =IF(ISERROR('SA10'!E10),0,('SA10'!E10)) -> 0 | E36: =IF(ISERROR('SA10'!F10),0,('SA10'!F10)) -> 0.9643609238 | F36: =IF(ISERROR('SA10'!G10),0,('SA10'!G10)) -> 0.4747766489 | G36: =IF(ISERROR('SA10'!H10),0,('SA10'!H10)) -> 0.6872485136 | H36: =IF(ISERROR('SA10'!I10),0,('SA10'!I10)) -> 0.6872485136 | I36: =IF(ISERROR('SA10'!J10),0,('SA10'!J10)) -> -3.332761694 | J36: =IF(ISERROR('SA10'!K10),0,('SA10'!K10)) -> 0.5318066601 | K36: =IF(ISERROR('SA10'!L10),0,('SA10'!L10)) -> 0.5317983853 | L36: =IF(ISERROR('SA10'!M10),0,('SA10'!M10)) -> 0.6088662415
K39: `
A40: =A16 -> Long term investments committed
A41: Balance (Insert description; eg sinking fund)
C42: =SUM(C41:C41) -> 0 | D42: 0 | E42: 0 | F42: 0 | G42: 0 | H42: 0 | I42: 0 | J42: 0 | K42: 0 | L42: 0
A43: =A17 -> Reserves to be backed by cash/investments
A44: ='SA3'!A160 -> Housing Development Fund | C44: ='SA3'!C160 -> 0 | D44: ='SA3'!D160 -> 0 | E44: ='SA3'!E160 -> 0 | F44: ='SA3'!F160 -> 0 | G44: ='SA3'!G160 -> 0 | H44: ='SA3'!H160 -> 0 | I44: ='SA3'!I160 -> 0 | J44: ='SA3'!J160 -> 0 | K44: ='SA3'!K160 -> 0 | L44: ='SA3'!L160 -> 0
A45: ='SA3'!A161 -> Capital replacement | C45: ='SA3'!C161 -> 0 | D45: ='SA3'!D161 -> 0 | E45: ='SA3'!E161 -> 0 | F45: ='SA3'!F161 -> 0 | G45: ='SA3'!G161 -> 0 | H45: ='SA3'!H161 -> 0 | I45: ='SA3'!I161 -> 0 | J45: ='SA3'!J161 -> 0 | K45: ='SA3'!K161 -> 0 | L45: ='SA3'!L161 -> 0
A46: ='SA3'!A162 -> Self-insurance | C46: ='SA3'!C162 -> 0 | D46: ='SA3'!D162 -> 0 | E46: ='SA3'!E162 -> 0 | F46: ='SA3'!F162 -> 0 | G46: ='SA3'!G162 -> 0 | H46: ='SA3'!H162 -> 0 | I46: ='SA3'!I162 -> 0 | J46: ='SA3'!J162 -> 0 | K46: ='SA3'!K162 -> 0 | L46: ='SA3'!L162 -> 0
A47: ='SA3'!A163 -> Other reserves | C47: ='SA3'!C163 -> 0 | D47: ='SA3'!D163 -> 0 | E47: ='SA3'!E163 -> 0 | F47: ='SA3'!F163 -> 0 | G47: ='SA3'!G163 -> 0 | H47: ='SA3'!H163 -> 0 | I47: ='SA3'!I163 -> 0 | J47: ='SA3'!J163 -> 0 | K47: ='SA3'!K163 -> 0 | L47: ='SA3'!L163 -> 0
A48: ='SA3'!A164 -> Revaluation | C48: ='SA3'!C164 -> 0 | D48: ='SA3'!D164 -> 0 | E48: ='SA3'!E164 -> 0 | F48: ='SA3'!F164 -> 0 | G48: ='SA3'!G164 -> 0 | H48: ='SA3'!H164 -> 0 | I48: ='SA3'!I164 -> 0 | J48: ='SA3'!J164 -> 0 | K48: ='SA3'!K164 -> 0 | L48: ='SA3'!L164 -> 0
C49: =SUM(C44:C48) -> 0 | D49: 0 | E49: 0 | F49: 0 | G49: 0 | H49: 0 | I49: 0 | J49: 0 | K49: 0 | L49: 0

Sheet A9-Asset
A1: =muni&" - "&Approve9 -> DC47 Sekhukhune - Table A9 Asset Management
A2: =desc -> Description | B2: =head27 -> Ref | C2: =head1b -> 2018/19 | D2: =head1A -> 2019/20 | E2: =Head1 -> 2020/21 | F2: =Head2 -> Current Year 2021/22 | I2: =Head3 -> 2022/23 Medium Term Revenue & Expenditure Framework
A3: R thousand | C3: =Head5 -> Audited Outcome | D3: =Head5 -> Audited Outcome | E3: =Head5 -> Audited Outcome | F3: =Head6 -> Original Budget | G3: =Head7 -> Adjusted Budget | H3: =Head8 -> Full Year Forecast | I3: =Head9 -> Budget Year 2022/23 | J3: =Head10 -> Budget Year +1 2023/24 | K3: =Head11 -> Budget Year +2 2024/25
A4: CAPITAL EXPENDITURE
A5: Total New Assets | B5: 1 | C5: =C15+C18+C19+C22+C25+C26+SUM(C29:C35) -> 452406655.3 | D5: =D15+D18+D19+D22+D25+D26+SUM(D29:D35) -> 284514547.6 | E5: 287860495.7 | F5: 389073171 | G5: 370734843 | H5: 370734843 | I5: 482712838 | J5: 502393530 | K5: 511806239
A6: Roads Infrastructure | C6: =SA34a!C7 -> 0 | D6: =SA34a!D7 -> 0 | E6: =SA34a!E7 -> 0 | F6: =SA34a!F7 -> 0 | G6: =SA34a!G7 -> 0 | H6: =SA34a!H7 -> 0 | I6: =SA34a!I7 -> 0 | J6: =SA34a!J7 -> 0 | K6: =SA34a!K7 -> 0
A7: Storm water Infrastructure | C7: =SA34a!C12 -> 0 | D7: =SA34a!D12 -> 0 | E7: =SA34a!E12 -> 0 | F7: =SA34a!F12 -> 0 | G7: =SA34a!G12 -> 0 | H7: =SA34a!H12 -> 0 | I7: =SA34a!I12 -> 0 | J7: =SA34a!J12 -> 0 | K7: =SA34a!K12 -> 0
A8: Electrical Infrastructure | C8: =SA34a!C16 -> 0 | D8: =SA34a!D16 -> 0 | E8: =SA34a!E16 -> 0 | F8: =SA34a!F16 -> 0 | G8: =SA34a!G16 -> 0 | H8: =SA34a!H16 -> 0 | I8: =SA34a!I16 -> 0 | J8: =SA34a!J16 -> 0 | K8: =SA34a!K16 -> 0
A9: Water Supply Infrastructure | C9: =SA34a!C26 -> 57389831.02 | D9: =SA34a!D26 -> 283703000.1 | E9: =SA34a!E26 -> 287789628.3 | F9: =SA34a!F26 -> 387073171 | G9: =SA34a!G26 -> 366268135 | H9: =SA34a!H26 -> 366268135 | I9: =SA34a!I26 -> 479082838 | J9: =SA34a!J26 -> 500222010 | K9: =SA34a!K26 -> 509537000
A10: Sanitation Infrastructure | C10: =SA34a!C37 -> 394877797 | D10: =SA34a!D37 -> 648182.5 | E10: =SA34a!E37 -> 62267.06 | F10: =SA34a!F37 -> 0 | G10: =SA34a!G37 -> 500000 | H10: =SA34a!H37 -> 500000 | I10: =SA34a!I37 -> 0 | J10: =SA34a!J37 -> 0 | K10: =SA34a!K37 -> 0
A11: Solid Waste Infrastructure | C11: =SA34a!C44 -> 0 | D11: =SA34a!D44 -> 0 | E11: =SA34a!E44 -> 0 | F11: =SA34a!F44 -> 0 | G11: =SA34a!G44 -> 0 | H11: =SA34a!H44 -> 0 | I11: =SA34a!I44 -> 0 | J11: =SA34a!J44 -> 0 | K11: =SA34a!K44 -> 0
A12: Rail Infrastructure | C12: =SA34a!C52 -> 0 | D12: =SA34a!D52 -> 0 | E12: =SA34a!E52 -> 0 | F12: =SA34a!F52 -> 0 | G12: =SA34a!G52 -> 0 | H12: =SA34a!H52 -> 0 | I12: =SA34a!I52 -> 0 | J12: =SA34a!J52 -> 0 | K12: =SA34a!K52 -> 0
A13: Coastal Infrastructure | C13: =SA34a!C62 -> 0 | D13: =SA34a!D62 -> 0 | E13: =SA34a!E62 -> 0 | F13: =SA34a!F62 -> 0 | G13: =SA34a!G62 -> 0 | H13: =SA34a!H62 -> 0 | I13: =SA34a!I62 -> 0 | J13: =SA34a!J62 -> 0 | K13: =SA34a!K62 -> 0
A14: Information and Communication Infrastructure | C14: =SA34a!C68 -> 0 | D14: =SA34a!D68 -> 0 | E14: =SA34a!E68 -> 0 | F14: =SA34a!F68 -> 0 | G14: =SA34a!G68 -> 0 | H14: =SA34a!H68 -> 0 | I14: =SA34a!I68 -> 0 | J14: =SA34a!J68 -> 0 | K14: =SA34a!K68 -> 0
A15: Infrastructure | C15: =SUM(C6:C14) -> 452267628 | D15: =SUM(D6:D14) -> 284351182.6 | E15: 287851895.4 | F15: 387073171 | G15: 366768135 | H15: 366768135 | I15: 479082838 | J15: 500222010 | K15: 509537000
A16: Community Facilities | C16: =SA34a!C75 -> 0 | D16: =SA34a!D75 -> 0 | E16: =SA34a!E75 -> 0 | F16: =SA34a!F75 -> 0 | G16: =SA34a!G75 -> 0 | H16: =SA34a!H75 -> 0 | I16: =SA34a!I75 -> 0 | J16: =SA34a!J75 -> 0 | K16: =SA34a!K75 -> 0
A17: Sport and Recreation Facilities | C17: =SA34a!C98 -> 0 | D17: =SA34a!D98 -> 0 | E17: =SA34a!E98 -> 0 | F17: =SA34a!F98 -> 0 | G17: =SA34a!G98 -> 0 | H17: =SA34a!H98 -> 0 | I17: =SA34a!I98 -> 0 | J17: =SA34a!J98 -> 0 | K17: =SA34a!K98 -> 0
A18: Community Assets | C18: =SUM(C16:C17) -> 0 | D18: =SUM(D16:D17) -> 0 | E18: 0 | F18: 0 | G18: 0 | H18: 0 | I18: 0 | J18: 0 | K18: 0
A19: Heritage Assets | C19: =SA34a!C103 -> 0 | D19: =SA34a!D103 -> 0 | E19: =SA34a!E103 -> 0 | F19: =SA34a!F103 -> 0 | G19: =SA34a!G103 -> 0 | H19: =SA34a!H103 -> 0 | I19: =SA34a!I103 -> 0 | J19: =SA34a!J103 -> 0 | K19: =SA34a!K103 -> 0
A20: Revenue Generating | C20: =SA34a!C111 -> 0 | D20: =SA34a!D111 -> 0 | E20: =SA34a!E111 -> 0 | F20: =SA34a!F111 -> 0 | G20: =SA34a!G111 -> 0 | H20: =SA34a!H111 -> 0 | I20: =SA34a!I111 -> 0 | J20: =SA34a!J111 -> 0 | K20: =SA34a!K111 -> 0
A21: Non-revenue Generating | C21: =SA34a!C114 -> 0 | D21: =SA34a!D114 -> 0 | E21: =SA34a!E114 -> 0 | F21: =SA34a!F114 -> 0 | G21: =SA34a!G114 -> 0 | H21: =SA34a!H114 -> 0 | I21: =SA34a!I114 -> 0 | J21: =SA34a!J114 -> 0 | K21: =SA34a!K114 -> 0
A22: Investment properties | C22: =SUM(C20:C21) -> 0 | D22: =SUM(D20:D21) -> 0 | E22: 0 | F22: 0 | G22: 0 | H22: 0 | I22: 0 | J22: 0 | K22: 0
A23: Operational Buildings | C23: =SA34a!C119 -> 0 | D23: =SA34a!D119 -> 0 | E23: =SA34a!E119 -> 0 | F23: =SA34a!F119 -> 0 | G23: =SA34a!G119 -> 0 | H23: =SA34a!H119 -> 0 | I23: =SA34a!I119 -> 0 | J23: =SA34a!J119 -> 0 | K23: =SA34a!K119 -> 0
A24: Housing | C24: =SA34a!C131 -> 0 | D24: =SA34a!D131 -> 0 | E24: =SA34a!E131 -> 0 | F24: =SA34a!F131 -> 0 | G24: =SA34a!G131 -> 0 | H24: =SA34a!H131 -> 0 | I24: =SA34a!I131 -> 0 | J24: =SA34a!J131 -> 0 | K24: =SA34a!K131 -> 0
A25: Other Assets | C25: =SUM(C23:C24) -> 0 | D25: =SUM(D23:D24) -> 0 | E25: 0 | F25: 0 | G25: 0 | H25: 0 | I25: 0 | J25: 0 | K25: 0
A26: Biological or Cultivated Assets | C26: =SA34a!C136 -> 0 | D26: =SA34a!D136 -> 0 | E26: =SA34a!E136 -> 0 | F26: =SA34a!F136 -> 0 | G26: =SA34a!G136 -> 0 | H26: =SA34a!H136 -> 0 | I26: =SA34a!I136 -> 0 | J26: =SA34a!J136 -> 0 | K26: =SA34a!K136 -> 0
A27: Servitudes | C27: =SA34a!C140 -> 0 | D27: =SA34a!D140 -> 0 | E27: =SA34a!E140 -> 0 | F27: =SA34a!F140 -> 0 | G27: =SA34a!G140 -> 0 | H27: =SA34a!H140 -> 0 | I27: =SA34a!I140 -> 0 | J27: =SA34a!J140 -> 0 | K27: =SA34a!K140 -> 0
A28: Licences and Rights | C28: =SA34a!C141 -> 0 | D28: =SA34a!D141 -> 0 | E28: =SA34a!E141 -> 0 | F28: =SA34a!F141 -> 0 | G28: =SA34a!G141 -> 0 | H28: =SA34a!H141 -> 0 | I28: =SA34a!I141 -> 0 | J28: =SA34a!J141 -> 0 | K28: =SA34a!K141 -> 0
A29: Intangible Assets | C29: =SUM(C27:C28) -> 0 | D29: =SUM(D27:D28) -> 0 | E29: 0 | F29: 0 | G29: 0 | H29: 0 | I29: 0 | J29: 0 | K29: 0
A30: Computer Equipment | C30: =SA34a!C149 -> 0 | D30: =SA34a!D149 -> 163365.01 | E30: =SA34a!E149 -> 8600.34 | F30: =SA34a!F149 -> 2000000 | G30: =SA34a!G149 -> 3046708 | H30: =SA34a!H149 -> 3046708 | I30: =SA34a!I149 -> 2880000 | J30: =SA34a!J149 -> 2171520 | K30: =SA34a!K149 -> 2269239
A31: Furniture and Office Equipment | C31: =SA34a!C152 -> 139027.33 | D31: =SA34a!D152 -> 0 | E31: =SA34a!E152 -> 0 | F31: =SA34a!F152 -> 0 | G31: =SA34a!G152 -> 920000 | H31: =SA34a!H152 -> 920000 | I31: =SA34a!I152 -> 750000 | J31: =SA34a!J152 -> 0 | K31: =SA34a!K152 -> 0
A32: Machinery and Equipment | C32: =SA34a!C155 -> 0 | D32: =SA34a!D155 -> 0 | E32: =SA34a!E155 -> 0 | F32: =SA34a!F155 -> 0 | G32: =SA34a!G155 -> 0 | H32: =SA34a!H155 -> 0 | I32: =SA34a!I155 -> 0 | J32: =SA34a!J155 -> 0 | K32: =SA34a!K155 -> 0
A33: Transport Assets | C33: =SA34a!C158 -> 0 | D33: =SA34a!D158 -> 0 | E33: =SA34a!E158 -> 0 | F33: =SA34a!F158 -> 0 | G33: =SA34a!G158 -> 0 | H33: =SA34a!H158 -> 0 | I33: =SA34a!I158 -> 0 | J33: =SA34a!J158 -> 0 | K33: =SA34a!K158 -> 0
A34: Land | C34: =SA34a!C161 -> 0 | D34: =SA34a!D161 -> 0 | E34: =SA34a!E161 -> 0 | F34: =SA34a!F161 -> 0 | G34: =SA34a!G161 -> 0 | H34: =SA34a!H161 -> 0 | I34: =SA34a!I161 -> 0 | J34: =SA34a!J161 -> 0 | K34: =SA34a!K161 -> 0
A35: Zoo's, Marine and Non-biological Animals | C35: =SA34a!C164 -> 0 | D35: =SA34a!D164 -> 0 | E35: =SA34a!E164 -> 0 | F35: =SA34a!F164 -> 0 | G35: =SA34a!G164 -> 0 | H35: =SA34a!H164 -> 0 | I35: =SA34a!I164 -> 0 | J35: =SA34a!J164 -> 0 | K35: =SA34a!K164 -> 0
A37: Total Renewal of Existing Assets | B37: 2 | C37: =C47+C50+C51+C54+C57+C58+SUM(C61:C67) -> 5086255.03 | D37: =D47+D50+D51+D54+D57+D58+SUM(D61:D67) -> 93985584.47 | E37: 136758176.7 | F37: 32586829 | G37: 24121865 | H37: 24121865 | I37: 4042603 | J37: 6860000 | K37: 6000000
A38: Roads Infrastructure | C38: =SA34b!C7 -> 0 | D38: =SA34b!D7 -> 0 | E38: =SA34b!E7 -> 0 | F38: =SA34b!F7 -> 0 | G38: =SA34b!G7 -> 0 | H38: =SA34b!H7 -> 0 | I38: =SA34b!I7 -> 0 | J38: =SA34b!J7 -> 0 | K38: =SA34b!K7 -> 0
A39: Storm water Infrastructure | C39: =SA34b!C12 -> 0 | D39: =SA34b!D12 -> 0 | E39: =SA34b!E12 -> 0 | F39: =SA34b!F12 -> 0 | G39: =SA34b!G12 -> 0 | H39: =SA34b!H12 -> 0 | I39: =SA34b!I12 -> 0 | J39: =SA34b!J12 -> 0 | K39: =SA34b!K12 -> 0
A40: Electrical Infrastructure | C40: =SA34b!C16 -> 0 | D40: =SA34b!D16 -> 0 | E40: =SA34b!E16 -> 0 | F40: =SA34b!F16 -> 0 | G40: =SA34b!G16 -> 0 | H40: =SA34b!H16 -> 0 | I40: =SA34b!I16 -> 0 | J40: =SA34b!J16 -> 0 | K40: =SA34b!K16 -> 0
A41: Water Supply Infrastructure | C41: =SA34b!C26 -> 432405.72 | D41: =SA34b!D26 -> 93985584.47 | E41: =SA34b!E26 -> 115457573.3 | F41: =SA34b!F26 -> 28686829 | G41: =SA34b!G26 -> 20221865 | H41: =SA34b!H26 -> 20221865 | I41: =SA34b!I26 -> 4042603 | J41: =SA34b!J26 -> 0 | K41: =SA34b!K26 -> 0
A42: Sanitation Infrastructure | C42: =SA34b!C37 -> 4653849.31 | D42: =SA34b!D37 -> 0 | E42: =SA34b!E37 -> 0 | F42: =SA34b!F37 -> 0 | G42: =SA34b!G37 -> 0 | H42: =SA34b!H37 -> 0 | I42: =SA34b!I37 -> 0 | J42: =SA34b!J37 -> 0 | K42: =SA34b!K37 -> 0
A43: Solid Waste Infrastructure | C43: =SA34b!C44 -> 0 | D43: =SA34b!D44 -> 0 | E43: =SA34b!E44 -> 0 | F43: =SA34b!F44 -> 0 | G43: =SA34b!G44 -> 0 | H43: =SA34b!H44 -> 0 | I43: =SA34b!I44 -> 0 | J43: =SA34b!J44 -> 0 | K43: =SA34b!K44 -> 0
A44: Rail Infrastructure | C44: =SA34b!C52 -> 0 | D44: =SA34b!D52 -> 0 | E44: =SA34b!E52 -> 0 | F44: =SA34b!F52 -> 0 | G44: =SA34b!G52 -> 0 | H44: =SA34b!H52 -> 0 | I44: =SA34b!I52 -> 0 | J44: =SA34b!J52 -> 0 | K44: =SA34b!K52 -> 0
A45: Coastal Infrastructure | C45: =SA34b!C62 -> 0 | D45: =SA34b!D62 -> 0 | E45: =SA34b!E62 -> 0 | F45: =SA34b!F62 -> 0 | G45: =SA34b!G62 -> 0 | H45: =SA34b!H62 -> 0 | I45: =SA34b!I62 -> 0 | J45: =SA34b!J62 -> 0 | K45: =SA34b!K62 -> 0
A46: Information and Communication Infrastructure | C46: =SA34b!C68 -> 0 | D46: =SA34b!D68 -> 0 | E46: =SA34b!E68 -> 0 | F46: =SA34b!F68 -> 0 | G46: =SA34b!G68 -> 0 | H46: =SA34b!H68 -> 0 | I46: =SA34b!I68 -> 0 | J46: =SA34b!J68 -> 0 | K46: =SA34b!K68 -> 0
A47: Infrastructure | C47: =SUM(C38:C46) -> 5086255.03 | D47: =SUM(D38:D46) -> 93985584.47 | E47: 115457573.3 | F47: 28686829 | G47: 20221865 | H47: 20221865 | I47: 4042603 | J47: 0 | K47: 0
A48: Community Facilities | C48: =SA34b!C75 -> 0 | D48: =SA34b!D75 -> 0 | E48: =SA34b!E75 -> 0 | F48: =SA34b!F75 -> 0 | G48: =SA34b!G75 -> 0 | H48: =SA34b!H75 -> 0 | I48: =SA34b!I75 -> 0 | J48: =SA34b!J75 -> 0 | K48: =SA34b!K75 -> 0
A49: Sport and Recreation Facilities | C49: =SA34b!C98 -> 0 | D49: =SA34b!D98 -> 0 | E49: =SA34b!E98 -> 0 | F49: =SA34b!F98 -> 0 | G49: =SA34b!G98 -> 0 | H49: =SA34b!H98 -> 0 | I49: =SA34b!I98 -> 0 | J49: =SA34b!J98 -> 0 | K49: =SA34b!K98 -> 0
A50: Community Assets | C50: =SUM(C48:C49) -> 0 | D50: =SUM(D48:D49) -> 0 | E50: 0 | F50: 0 | G50: 0 | H50: 0 | I50: 0 | J50: 0 | K50: 0
A51: Heritage Assets | C51: =SA34b!C103 -> 0 | D51: =SA34b!D103 -> 0 | E51: =SA34b!E103 -> 0 | F51: =SA34b!F103 -> 0 | G51: =SA34b!G103 -> 0 | H51: =SA34b!H103 -> 0 | I51: =SA34b!I103 -> 0 | J51: =SA34b!J103 -> 0 | K51: =SA34b!K103 -> 0
A52: Revenue Generating | C52: =SA34b!C111 -> 0 | D52: =SA34b!D111 -> 0 | E52: =SA34b!E111 -> 0 | F52: =SA34b!F111 -> 0 | G52: =SA34b!G111 -> 0 | H52: =SA34b!H111 -> 0 | I52: =SA34b!I111 -> 0 | J52: =SA34b!J111 -> 0 | K52: =SA34b!K111 -> 0
A53: Non-revenue Generating | C53: =SA34b!C114 -> 0 | D53: =SA34b!D114 -> 0 | E53: =SA34b!E114 -> 0 | F53: =SA34b!F114 -> 0 | G53: =SA34b!G114 -> 0 | H53: =SA34b!H114 -> 0 | I53: =SA34b!I114 -> 0 | J53: =SA34b!J114 -> 0 | K53: =SA34b!K114 -> 0
A54: Investment properties | C54: =SUM(C52:C53) -> 0 | D54: =SUM(D52:D53) -> 0 | E54: 0 | F54: 0 | G54: 0 | H54: 0 | I54: 0 | J54: 0 | K54: 0
A55: Operational Buildings | C55: =SA34b!C119 -> 0 | D55: =SA34b!D119 -> 0 | E55: =SA34b!E119 -> 0 | F55: =SA34b!F119 -> 0 | G55: =SA34b!G119 -> 0 | H55: =SA34b!H119 -> 0 | I55: =SA34b!I119 -> 0 | J55: =SA34b!J119 -> 0 | K55: =SA34b!K119 -> 0
A56: Housing | C56: =SA34b!C131 -> 0 | D56: =SA34b!D131 -> 0 | E56: =SA34b!E131 -> 0 | F56: =SA34b!F131 -> 0 | G56: =SA34b!G131 -> 0 | H56: =SA34b!H131 -> 0 | I56: =SA34b!I131 -> 0 | J56: =SA34b!J131 -> 0 | K56: =SA34b!K131 -> 0
A57: Other Assets | C57: =SUM(C55:C56) -> 0 | D57: =SUM(D55:D56) -> 0 | E57: 0 | F57: 0 | G57: 0 | H57: 0 | I57: 0 | J57: 0 | K57: 0
A58: Biological or Cultivated Assets | C58: =SA34b!C136 -> 0 | D58: =SA34b!D136 -> 0 | E58: =SA34b!E136 -> 0 | F58: =SA34b!F136 -> 0 | G58: =SA34b!G136 -> 0 | H58: =SA34b!H136 -> 0 | I58: =SA34b!I136 -> 0 | J58: =SA34b!J136 -> 0 | K58: =SA34b!K136 -> 0
A59: Servitudes | C59: =SA34b!C140 -> 0 | D59: =SA34b!D140 -> 0 | E59: =SA34b!E140 -> 0 | F59: =SA34b!F140 -> 0 | G59: =SA34b!G140 -> 0 | H59: =SA34b!H140 -> 0 | I59: =SA34b!I140 -> 0 | J59: =SA34b!J140 -> 0 | K59: =SA34b!K140 -> 0
A60: Licences and Rights | C60: =SA34b!C141 -> 0 | D60: =SA34b!D141 -> 0 | E60: =SA34b!E141 -> 0 | F60: =SA34b!F141 -> 0 | G60: =SA34b!G141 -> 0 | H60: =SA34b!H141 -> 0 | I60: =SA34b!I141 -> 0 | J60: =SA34b!J141 -> 0 | K60: =SA34b!K141 -> 0
A61: Intangible Assets | C61: =SUM(C59:C60) -> 0 | D61: =SUM(D59:D60) -> 0 | E61: 0 | F61: 0 | G61: 0 | H61: 0 | I61: 0 | J61: 0 | K61: 0
A62: Computer Equipment | C62: =SA34b!C149 -> 0 | D62: =SA34b!D149 -> 0 | E62: =SA34b!E149 -> 0 | F62: =SA34b!F149 -> 0 | G62: =SA34b!G149 -> 0 | H62: =SA34b!H149 -> 0 | I62: =SA34b!I149 -> 0 | J62: =SA34b!J149 -> 0 | K62: =SA34b!K149 -> 0
A63: Furniture and Office Equipment | C63: =SA34b!C152 -> 0 | D63: =SA34b!D152 -> 0 | E63: =SA34b!E152 -> -615840.55 | F63: =SA34b!F152 -> 0 | G63: =SA34b!G152 -> 0 | H63: =SA34b!H152 -> 0 | I63: =SA34b!I152 -> 0 | J63: =SA34b!J152 -> 0 | K63: =SA34b!K152 -> 0
A64: Machinery and Equipment | C64: =SA34b!C155 -> 0 | D64: =SA34b!D155 -> 0 | E64: =SA34b!E155 -> 0 | F64: =SA34b!F155 -> 0 | G64: =SA34b!G155 -> 0 | H64: =SA34b!H155 -> 0 | I64: =SA34b!I155 -> 0 | J64: =SA34b!J155 -> 0 | K64: =SA34b!K155 -> 0
A65: Transport Assets | C65: =SA34b!C158 -> 0 | D65: =SA34b!D158 -> 0 | E65: =SA34b!E158 -> 21916443.91 | F65: =SA34b!F158 -> 3900000 | G65: =SA34b!G158 -> 3900000 | H65: =SA34b!H158 -> 3900000 | I65: =SA34b!I158 -> 0 | J65: =SA34b!J158 -> 6860000 | K65: =SA34b!K158 -> 6000000
A66: Land | C66: =SA34b!C161 -> 0 | D66: =SA34b!D161 -> 0 | E66: =SA34b!E161 -> 0 | F66: =SA34b!F161 -> 0 | G66: =SA34b!G161 -> 0 | H66: =SA34b!H161 -> 0 | I66: =SA34b!I161 -> 0 | J66: =SA34b!J161 -> 0 | K66: =SA34b!K161 -> 0
A67: Zoo's, Marine and Non-biological Animals | C67: =SA34b!C164 -> 0 | D67: =SA34b!D164 -> 0 | E67: =SA34b!E164 -> 0 | F67: =SA34b!F164 -> 0 | G67: =SA34b!G164 -> 0 | H67: =SA34b!H164 -> 0 | I67: =SA34b!I164 -> 0 | J67: =SA34b!J164 -> 0 | K67: =SA34b!K164 -> 0
A69: Total Upgrading of Existing Assets | B69: 6 | C69: =C79+C82+C83+C86+C89+C90+SUM(C93:C99) -> 0 | D69: =D79+D82+D83+D86+D89+D90+SUM(D93:D99) -> 11697965.92 | E69: 4918375.19 | F69: 2341000 | G69: 2541000 | H69: 2541000 | I69: 2451000 | J69: 2460000 | K69: 2549000
A70: Roads Infrastructure | C70: =SA34e!C7 -> 0 | D70: =SA34e!D7 -> 2091486.09 | E70: =SA34e!E7 -> 2008114.78 | F70: =SA34e!F7 -> 2341000 | G70: =SA34e!G7 -> 2341000 | H70: =SA34e!H7 -> 2341000 | I70: =SA34e!I7 -> 2451000 | J70: =SA34e!J7 -> 2460000 | K70: =SA34e!K7 -> 2549000
A71: Storm water Infrastructure | C71: =SA34e!C12 -> 0 | D71: =SA34e!D12 -> 0 | E71: =SA34e!E12 -> 0 | F71: =SA34e!F12 -> 0 | G71: =SA34e!G12 -> 0 | H71: =SA34e!H12 -> 0 | I71: =SA34e!I12 -> 0 | J71: =SA34e!J12 -> 0 | K71: =SA34e!K12 -> 0
A72: Electrical Infrastructure | C72: =SA34e!C16 -> 0 | D72: =SA34e!D16 -> 0 | E72: =SA34e!E16 -> 0 | F72: =SA34e!F16 -> 0 | G72: =SA34e!G16 -> 0 | H72: =SA34e!H16 -> 0 | I72: =SA34e!I16 -> 0 | J72: =SA34e!J16 -> 0 | K72: =SA34e!K16 -> 0
A73: Water Supply Infrastructure | C73: =SA34e!C26 -> 0 | D73: =SA34e!D26 -> 9606479.83 | E73: =SA34e!E26 -> 2910260.41 | F73: =SA34e!F26 -> 0 | G73: =SA34e!G26 -> 0 | H73: =SA34e!H26 -> 0 | I73: =SA34e!I26 -> 0 | J73: =SA34e!J26 -> 0 | K73: =SA34e!K26 -> 0
A74: Sanitation Infrastructure | C74: =SA34e!C37 -> 0 | D74: =SA34e!D37 -> 0 | E74: =SA34e!E37 -> 0 | F74: =SA34e!F37 -> 0 | G74: =SA34e!G37 -> 0 | H74: =SA34e!H37 -> 0 | I74: =SA34e!I37 -> 0 | J74: =SA34e!J37 -> 0 | K74: =SA34e!K37 -> 0
A75: Solid Waste Infrastructure | C75: =SA34e!C44 -> 0 | D75: =SA34e!D44 -> 0 | E75: =SA34e!E44 -> 0 | F75: =SA34e!F44 -> 0 | G75: =SA34e!G44 -> 0 | H75: =SA34e!H44 -> 0 | I75: =SA34e!I44 -> 0 | J75: =SA34e!J44 -> 0 | K75: =SA34e!K44 -> 0
A76: Rail Infrastructure | C76: =SA34e!C52 -> 0 | D76: =SA34e!D52 -> 0 | E76: =SA34e!E52 -> 0 | F76: =SA34e!F52 -> 0 | G76: =SA34e!G52 -> 0 | H76: =SA34e!H52 -> 0 | I76: =SA34e!I52 -> 0 | J76: =SA34e!J52 -> 0 | K76: =SA34e!K52 -> 0
A77: Coastal Infrastructure | C77: =SA34e!C62 -> 0 | D77: =SA34e!D62 -> 0 | E77: =SA34e!E62 -> 0 | F77: =SA34e!F62 -> 0 | G77: =SA34e!G62 -> 0 | H77: =SA34e!H62 -> 0 | I77: =SA34e!I62 -> 0 | J77: =SA34e!J62 -> 0 | K77: =SA34e!K62 -> 0
A78: Information and Communication Infrastructure | C78: =SA34e!C68 -> 0 | D78: =SA34e!D68 -> 0 | E78: =SA34e!E68 -> 0 | F78: =SA34e!F68 -> 0 | G78: =SA34e!G68 -> 0 | H78: =SA34e!H68 -> 0 | I78: =SA34e!I68 -> 0 | J78: =SA34e!J68 -> 0 | K78: =SA34e!K68 -> 0
A79: Infrastructure | C79: =SUM(C70:C78) -> 0 | D79: 11697965.92 | E79: 4918375.19 | F79: 2341000 | G79: 2341000 | H79: 2341000 | I79: 2451000 | J79: 2460000 | K79: 2549000
A80: Community Facilities | C80: =SA34e!C75 -> 0 | D80: =SA34e!D75 -> 0 | E80: =SA34e!E75 -> 0 | F80: =SA34e!F75 -> 0 | G80: =SA34e!G75 -> 0 | H80: =SA34e!H75 -> 0 | I80: =SA34e!I75 -> 0 | J80: =SA34e!J75 -> 0 | K80: =SA34e!K75 -> 0
A81: Sport and Recreation Facilities | C81: =SA34e!C98 -> 0 | D81: =SA34e!D98 -> 0 | E81: =SA34e!E98 -> 0 | F81: =SA34e!F98 -> 0 | G81: =SA34e!G98 -> 0 | H81: =SA34e!H98 -> 0 | I81: =SA34e!I98 -> 0 | J81: =SA34e!J98 -> 0 | K81: =SA34e!K98 -> 0
A82: Community Assets | C82: =SUM(C80:C81) -> 0 | D82: 0 | E82: 0 | F82: 0 | G82: 0 | H82: 0 | I82: 0 | J82: 0 | K82: 0
A83: Heritage Assets | C83: =SA34e!C103 -> 0 | D83: =SA34e!D103 -> 0 | E83: =SA34e!E103 -> 0 | F83: =SA34e!F103 -> 0 | G83: =SA34e!G103 -> 0 | H83: =SA34e!H103 -> 0 | I83: =SA34e!I103 -> 0 | J83: =SA34e!J103 -> 0 | K83: =SA34e!K103 -> 0
A84: Revenue Generating | C84: =SA34e!C111 -> 0 | D84: =SA34e!D111 -> 0 | E84: =SA34e!E111 -> 0 | F84: =SA34e!F111 -> 0 | G84: =SA34e!G111 -> 0 | H84: =SA34e!H111 -> 0 | I84: =SA34e!I111 -> 0 | J84: =SA34e!J111 -> 0 | K84: =SA34e!K111 -> 0
A85: Non-revenue Generating | C85: =SA34e!C114 -> 0 | D85: =SA34e!D114 -> 0 | E85: =SA34e!E114 -> 0 | F85: =SA34e!F114 -> 0 | G85: =SA34e!G114 -> 0 | H85: =SA34e!H114 -> 0 | I85: =SA34e!I114 -> 0 | J85: =SA34e!J114 -> 0 | K85: =SA34e!K114 -> 0
A86: Investment properties | C86: =SUM(C84:C85) -> 0 | D86: 0 | E86: 0 | F86: 0 | G86: 0 | H86: 0 | I86: 0 | J86: 0 | K86: 0
A87: Operational Buildings | C87: =SA34e!C119 -> 0 | D87: =SA34e!D119 -> 0 | E87: =SA34e!E119 -> 0 | F87: =SA34e!F119 -> 0 | G87: =SA34e!G119 -> 200000 | H87: =SA34e!H119 -> 200000 | I87: =SA34e!I119 -> 0 | J87: =SA34e!J119 -> 0 | K87: =SA34e!K119 -> 0
A88: Housing | C88: =SA34e!C131 -> 0 | D88: =SA34e!D131 -> 0 | E88: =SA34e!E131 -> 0 | F88: =SA34e!F131 -> 0 | G88: =SA34e!G131 -> 0 | H88: =SA34e!H131 -> 0 | I88: =SA34e!I131 -> 0 | J88: =SA34e!J131 -> 0 | K88: =SA34e!K131 -> 0
A89: Other Assets | C89: =SUM(C87:C88) -> 0 | D89: 0 | E89: 0 | F89: 0 | G89: 200000 | H89: 200000 | I89: 0 | J89: 0 | K89: 0
A90: Biological or Cultivated Assets | C90: =SA34e!C136 -> 0 | D90: =SA34e!D136 -> 0 | E90: =SA34e!E136 -> 0 | F90: =SA34e!F136 -> 0 | G90: =SA34e!G136 -> 0 | H90: =SA34e!H136 -> 0 | I90: =SA34e!I136 -> 0 | J90: =SA34e!J136 -> 0 | K90: =SA34e!K136 -> 0
A91: Servitudes | C91: =SA34e!C140 -> 0 | D91: =SA34e!D140 -> 0 | E91: =SA34e!E140 -> 0 | F91: =SA34e!F140 -> 0 | G91: =SA34e!G140 -> 0 | H91: =SA34e!H140 -> 0 | I91: =SA34e!I140 -> 0 | J91: =SA34e!J140 -> 0 | K91: =SA34e!K140 -> 0
A92: Licences and Rights | C92: =SA34e!C141 -> 0 | D92: =SA34e!D141 -> 0 | E92: =SA34e!E141 -> 0 | F92: =SA34e!F141 -> 0 | G92: =SA34e!G141 -> 0 | H92: =SA34e!H141 -> 0 | I92: =SA34e!I141 -> 0 | J92: =SA34e!J141 -> 0 | K92: =SA34e!K141 -> 0
A93: Intangible Assets | C93: =SUM(C91:C92) -> 0 | D93: 0 | E93: 0 | F93: 0 | G93: 0 | H93: 0 | I93: 0 | J93: 0 | K93: 0
A94: Computer Equipment | C94: =SA34e!C149 -> 0 | D94: =SA34e!D149 -> 0 | E94: =SA34e!E149 -> 0 | F94: =SA34e!F149 -> 0 | G94: =SA34e!G149 -> 0 | H94: =SA34e!H149 -> 0 | I94: =SA34e!I149 -> 0 | J94: =SA34e!J149 -> 0 | K94: =SA34e!K149 -> 0
A95: Furniture and Office Equipment | C95: =SA34e!C152 -> 0 | D95: =SA34e!D152 -> 0 | E95: =SA34e!E152 -> 0 | F95: =SA34e!F152 -> 0 | G95: =SA34e!G152 -> 0 | H95: =SA34e!H152 -> 0 | I95: =SA34e!I152 -> 0 | J95: =SA34e!J152 -> 0 | K95: =SA34e!K152 -> 0
A96: Machinery and Equipment | C96: =SA34e!C155 -> 0 | D96: =SA34e!D155 -> 0 | E96: =SA34e!E155 -> 0 | F96: =SA34e!F155 -> 0 | G96: =SA34e!G155 -> 0 | H96: =SA34e!H155 -> 0 | I96: =SA34e!I155 -> 0 | J96: =SA34e!J155 -> 0 | K96: =SA34e!K155 -> 0
A97: Transport Assets | C97: =SA34e!C158 -> 0 | D97: =SA34e!D158 -> 0 | E97: =SA34e!E158 -> 0 | F97: =SA34e!F158 -> 0 | G97: =SA34e!G158 -> 0 | H97: =SA34e!H158 -> 0 | I97: =SA34e!I158 -> 0 | J97: =SA34e!J158 -> 0 | K97: =SA34e!K158 -> 0
A98: Land | C98: =SA34e!C161 -> 0 | D98: =SA34e!D161 -> 0 | E98: =SA34e!E161 -> 0 | F98: =SA34e!F161 -> 0 | G98: =SA34e!G161 -> 0 | H98: =SA34e!H161 -> 0 | I98: =SA34e!I161 -> 0 | J98: =SA34e!J161 -> 0 | K98: =SA34e!K161 -> 0
A99: Zoo's, Marine and Non-biological Animals | C99: =SA34e!C164 -> 0 | D99: =SA34e!D164 -> 0 | E99: =SA34e!E164 -> 0 | F99: =SA34e!F164 -> 0 | G99: =SA34e!G164 -> 0 | H99: =SA34e!H164 -> 0 | I99: =SA34e!I164 -> 0 | J99: =SA34e!J164 -> 0 | K99: =SA34e!K164 -> 0
A101: Total Capital Expenditure | B101: 4 | C101: =+C5+C37+C69 -> 457492910.4 | D101: =+D5+D37+D69 -> 390198098 | E101: 429537047.6 | F101: 424001000 | G101: 397397708 | H101: 397397708 | I101: 489206441 | J101: 511713530 | K101: 520355239
A102: Roads Infrastructure | C102: =+C6+C38+C70 -> 0 | D102: =+D6+D38+D70 -> 2091486.09 | E102: 2008114.78 | F102: 2341000 | G102: 2341000 | H102: 2341000 | I102: 2451000 | J102: 2460000 | K102: 2549000
A103: Storm water Infrastructure | C103: =+C7+C39+C71 -> 0 | D103: 0 | E103: 0 | F103: 0 | G103: 0 | H103: 0 | I103: 0 | J103: 0 | K103: 0
A104: Electrical Infrastructure | C104: 0 | D104: 0 | E104: 0 | F104: 0 | G104: 0 | H104: 0 | I104: 0 | J104: 0 | K104: 0
A105: Water Supply Infrastructure | C105: 57822236.74 | D105: 387295064.4 | E105: 406157462.1 | F105: 415760000 | G105: 386490000 | H105: 386490000 | I105: 483125441 | J105: 500222010 | K105: 509537000
A106: Sanitation Infrastructure | C106: 399531646.3 | D106: 648182.5 | E106: 62267.06 | F106: 0 | G106: 500000 | H106: 500000 | I106: 0 | J106: 0 | K106: 0
A107: Solid Waste Infrastructure | C107: 0 | D107: 0 | E107: 0 | F107: 0 | G107: 0 | H107: 0 | I107: 0 | J107: 0 | K107: 0
A108: Rail Infrastructure | C108: 0 | D108: 0 | E108: 0 | F108: 0 | G108: 0 | H108: 0 | I108: 0 | J108: 0 | K108: 0
A109: Coastal Infrastructure | C109: 0 | D109: 0 | E109: 0 | F109: 0 | G109: 0 | H109: 0 | I109: 0 | J109: 0 | K109: 0
A110: Information and Communication Infrastructure | C110: 0 | D110: 0 | E110: 0 | F110: 0 | G110: 0 | H110: 0 | I110: 0 | J110: 0 | K110: 0
A111: Infrastructure | C111: =SUM(C102:C110) -> 457353883 | D111: =SUM(D102:D110) -> 390034733 | E111: 408227843.9 | F111: 418101000 | G111: 389331000 | H111: 389331000 | I111: 485576441 | J111: 502682010 | K111: 512086000
A112: Community Facilities | C112: =+C16+C48+C80 -> 0 | D112: =+D16+D48+D80 -> 0 | E112: 0 | F112: 0 | G112: 0 | H112: 0 | I112: 0 | J112: 0 | K112: 0
A113: Sport and Recreation Facilities | C113: =+C17+C49+C81 -> 0 | D113: =+D17+D49+D81 -> 0 | E113: 0 | F113: 0 | G113: 0 | H113: 0 | I113: 0 | J113: 0 | K113: 0
A114: Community Assets | C114: =SUM(C112:C113) -> 0 | D114: =SUM(D112:D113) -> 0 | E114: 0 | F114: 0 | G114: 0 | H114: 0 | I114: 0 | J114: 0 | K114: 0
A115: Heritage Assets | C115: =+C19+C51+C83 -> 0 | D115: =+D19+D51+D83 -> 0 | E115: 0 | F115: 0 | G115: 0 | H115: 0 | I115: 0 | J115: 0 | K115: 0
A116: Revenue Generating | C116: =+C20+C52+C84 -> 0 | D116: =+D20+D52+D84 -> 0 | E116: 0 | F116: 0 | G116: 0 | H116: 0 | I116: 0 | J116: 0 | K116: 0
A117: Non-revenue Generating | C117: =+C21+C53+C85 -> 0 | D117: =+D21+D53+D85 -> 0 | E117: 0 | F117: 0 | G117: 0 | H117: 0 | I117: 0 | J117: 0 | K117: 0
A118: Investment properties | C118: =SUM(C116:C117) -> 0 | D118: =SUM(D116:D117) -> 0 | E118: 0 | F118: 0 | G118: 0 | H118: 0 | I118: 0 | J118: 0 | K118: 0
A119: Operational Buildings | C119: =+C23+C55+C87 -> 0 | D119: =+D23+D55+D87 -> 0 | E119: 0 | F119: 0 | G119: 200000 | H119: 200000 | I119: 0 | J119: 0 | K119: 0
A120: Housing | C120: =+C24+C56+C88 -> 0 | D120: =+D24+D56+D88 -> 0 | E120: 0 | F120: 0 | G120: 0 | H120: 0 | I120: 0 | J120: 0 | K120: 0
A121: Other Assets | C121: =SUM(C119:C120) -> 0 | D121: 0 | E121: 0 | F121: 0 | G121: 200000 | H121: 200000 | I121: 0 | J121: 0 | K121: 0
A122: Biological or Cultivated Assets | C122: =+C26+C58+C90 -> 0 | D122: =+D26+D58+D90 -> 0 | E122: 0 | F122: 0 | G122: 0 | H122: 0 | I122: 0 | J122: 0 | K122: 0
A123: Servitudes | C123: =+C27+C59+C91 -> 0 | D123: =+D27+D59+D91 -> 0 | E123: 0 | F123: 0 | G123: 0 | H123: 0 | I123: 0 | J123: 0 | K123: 0
A124: Licences and Rights | C124: =+C28+C60+C92 -> 0 | D124: =+D28+D60+D92 -> 0 | E124: 0 | F124: 0 | G124: 0 | H124: 0 | I124: 0 | J124: 0 | K124: 0
A125: Intangible Assets | C125: =SUM(C123:C124) -> 0 | D125: =SUM(D123:D124) -> 0 | E125: 0 | F125: 0 | G125: 0 | H125: 0 | I125: 0 | J125: 0 | K125: 0
A126: Computer Equipment | C126: =+C30+C62+C94 -> 0 | D126: =+D30+D62+D94 -> 163365.01 | E126: 8600.34 | F126: 2000000 | G126: 3046708 | H126: 3046708 | I126: 2880000 | J126: 2171520 | K126: 2269239
A127: Furniture and Office Equipment | C127: =+C31+C63+C95 -> 139027.33 | D127: 0 | E127: -615840.55 | F127: 0 | G127: 920000 | H127: 920000 | I127: 750000 | J127: 0 | K127: 0
A128: Machinery and Equipment | C128: 0 | D128: 0 | E128: 0 | F128: 0 | G128: 0 | H128: 0 | I128: 0 | J128: 0 | K128: 0
A129: Transport Assets | C129: 0 | D129: 0 | E129: 21916443.91 | F129: 3900000 | G129: 3900000 | H129: 3900000 | I129: 0 | J129: 6860000 | K129: 6000000
A130: Land | C130: 0 | D130: 0 | E130: 0 | F130: 0 | G130: 0 | H130: 0 | I130: 0 | J130: 0 | K130: 0
A131: Zoo's, Marine and Non-biological Animals | C131: 0 | D131: 0 | E131: 0 | F131: 0 | G131: 0 | H131: 0 | I131: 0 | J131: 0 | K131: 0
A132: TOTAL CAPITAL EXPENDITURE - Asset class | C132: =+C5+C37+C69 -> 457492910.4 | D132: =+D5+D37+D69 -> 390198098 | E132: 429537047.6 | F132: 424001000 | G132: 397397708 | H132: 397397708 | I132: 489206441 | J132: 511713530 | K132: 520355239
A134: ASSET REGISTER SUMMARY - PPE (WDV) | B134: 5 | C134: =C144+C147+C148+C151+C154+C155+C158+C159+C160+C161+C162+C163+C164 -> 2233021658 | D134: =D144+D147+D148+D151+D154+D155+D158+D159+D160+D161+D162+D163+D164 -> 2388135371 | E134: 2672393451 | F134: 2587192745 | G134: 2551489453 | H134: 2551489453 | I134: 2646498186 | J134: 2669005275 | K134: 2692987092
A135: Roads Infrastructure | C135: 30856445.49 | D135: 29039481.58 | E135: 29551218.58 | F135: 31247761 | G135: 28047761 | H135: 28047761 | I135: 31357761 | J135: 31366761 | K135: 31455761
A136: Storm water Infrastructure | C136: 0 | D136: 0 | E136: 0 | F136: 0 | G136: 0 | H136: 0 | I136: 0 | J136: 0 | K136: 0
A137: Electrical Infrastructure
A138: Water Supply Infrastructure | C138: 2111789505 | D138: 2276876336 | E138: 2531006305 | F138: 2489400739 | G138: 2460130739 | H138: 2460130739 | I138: 2556766180 | J138: 2573862749 | K138: 2583177739
A139: Sanitation Infrastructure | C139: 49748218.61 | D139: 37192785.05 | E139: 37192676.91 | F139: 48398333 | G139: 48898333 | H139: 48898333 | I139: 48398333 | J139: 48398333 | K139: 48398333
A140: Solid Waste Infrastructure | C140: 0 | D140: -22.19 | E140: -28.38 | F140: 0 | G140: 0 | H140: 0 | I140: 0 | J140: 0 | K140: 0
A141: Rail Infrastructure
A142: Coastal Infrastructure
A143: Information and Communication Infrastructure
A144: Infrastructure | C144: =SUM(C135:C143) -> 2192394169 | D144: =SUM(D135:D143) -> 2343108580 | E144: 2597750172 | F144: 2569046833 | G144: 2537076833 | H144: 2537076833 | I144: 2636522274 | J144: 2653627843 | K144: 2663031833
A147: Community Assets | C147: 35603535.7 | D147: 34891580.17 | E147: 33681182.46 | F147: 35182078 | G147: 35182078 | H147: 35182078 | I147: 35182078 | J147: 35182078 | K147: 35182078
A148: Heritage Assets | C148: 0 | D148: 0 | E148: 0 | F148: 0 | G148: 0 | H148: 0 | I148: 0 | J148: 0 | K148: 0
A151: Investment properties
A154: Other Assets | C154: -15408025.65 | D154: -15563882.52 | E154: -15715544.35 | F154: -15408026 | G154: -15208026 | H154: -15208026 | I154: -15408026 | J154: -15408026 | K154: -15408026
A155: Biological or Cultivated Assets
A158: Intangible Assets | C158: 0 | D158: 0 | E158: 0 | F158: 0 | G158: 0 | H158: 0 | I158: 0 | J158: 0 | K158: 0
A159: Computer Equipment | C159: 5483413.51 | D159: 7840273.55 | E159: 10667028.57 | F159: -20476705 | G159: -19429997 | H159: -19429997 | I159: -19596705 | J159: -20305185 | K159: -4867358
A160: Furniture and Office Equipment | C160: 4595334.06 | D160: 4349855.53 | E160: 3007386.17 | F160: 4595334 | G160: 5515334 | H160: 5515334 | I160: 5345334 | J160: 4595334 | K160: 4595334
A161: Machinery and Equipment | C161: 3790842.03 | D161: 3996692.79 | E161: 13682414.47 | F161: 3790842 | G161: 3790842 | H161: 3790842 | I161: 3790842 | J161: 3790842 | K161: 3790842
A162: Transport Assets | C162: 6562389.77 | D162: 9512271.06 | E162: 29320812.46 | F162: 10462389 | G162: 4562389 | H162: 4562389 | I162: 662389 | J162: 7522389 | K162: 6662389
A163: Land | C163: 0 | D163: 0 | E163: 0 | F163: 0 | G163: 0 | H163: 0 | I163: 0 | J163: 0 | K163: 0
A164: Zoo's, Marine and Non-biological Animals
A165: TOTAL ASSET REGISTER SUMMARY - PPE (WDV) | B165: 5 | C165: =C144+C147+C148+C151+C154+C155+C158+C159+C160+C161+C162+C163+C164 -> 2233021658 | D165: =D144+D147+D148+D151+D154+D155+D158+D159+D160+D161+D162+D163+D164 -> 2388135371 | E165: 2672393451 | F165: 2587192745 | G165: 2551489453 | H165: 2551489453 | I165: 2646498186 | J165: 2669005275 | K165: 2692987092
A167: EXPENDITURE OTHER ITEMS | C167: =SUM(C168:C169) -> 220325426.9 | D167: =SUM(D168:D169) -> 221535858.1 | E167: 190900918.7 | F167: 232688086 | G167: 275674827 | H167: 275674827 | I167: 229937210 | J167: 231242565 | K167: 250969804
A168: Depreciation | B168: 7 | C168: =SA34d!C167 -> 101039968 | D168: =SA34d!D167 -> 122229924.3 | E168: =SA34d!E167 -> 94331435.57 | F168: =SA34d!F167 -> 102514292 | G168: =SA34d!G167 -> 102554292 | H168: =SA34d!H167 -> 102554292 | I168: =SA34d!I167 -> 106884864 | J168: =SA34d!J167 -> 111671318 | K168: =SA34d!K167 -> 127396528
A169: Repairs and Maintenance by Asset Class | B169: 3 | C169: =C179+C182+C183+C186+C189+C190+SUM(C193:C199) -> 119285459 | D169: =D179+D182+D183+D186+D189+D190+SUM(D193:D199) -> 99305933.84 | E169: 96569483.1 | F169: 130173794 | G169: 173120535 | H169: 173120535 | I169: 123052346 | J169: 119571247 | K169: 123573276
A170: Roads Infrastructure | C170: =SA34c!C7 -> 0 | D170: =SA34c!D7 -> 0 | E170: =SA34c!E7 -> 0 | F170: =SA34c!F7 -> 0 | G170: =SA34c!G7 -> 0 | H170: =SA34c!H7 -> 0 | I170: =SA34c!I7 -> 0 | J170: =SA34c!J7 -> 0 | K170: =SA34c!K7 -> 0
A171: Storm water Infrastructure | C171: =SA34c!C12 -> 0 | D171: =SA34c!D12 -> 0 | E171: =SA34c!E12 -> 0 | F171: =SA34c!F12 -> 0 | G171: =SA34c!G12 -> 0 | H171: =SA34c!H12 -> 0 | I171: =SA34c!I12 -> 0 | J171: =SA34c!J12 -> 0 | K171: =SA34c!K12 -> 0
A172: Electrical Infrastructure | C172: =SA34c!C16 -> 0 | D172: =SA34c!D16 -> 0 | E172: =SA34c!E16 -> 0 | F172: =SA34c!F16 -> 0 | G172: =SA34c!G16 -> 0 | H172: =SA34c!H16 -> 0 | I172: =SA34c!I16 -> 0 | J172: =SA34c!J16 -> 0 | K172: =SA34c!K16 -> 0
A173: Water Supply Infrastructure | C173: =SA34c!C26 -> 36099243.73 | D173: =SA34c!D26 -> 19283635.64 | E173: =SA34c!E26 -> 18150853.42 | F173: =SA34c!F26 -> 45747429 | G173: =SA34c!G26 -> 42747429 | H173: =SA34c!H26 -> 42747429 | I173: =SA34c!I26 -> 43957326 | J173: =SA34c!J26 -> 46869447 | K173: =SA34c!K26 -> 48865706
A174: Sanitation Infrastructure | C174: =SA34c!C37 -> 81180068.35 | D174: =SA34c!D37 -> 76368908.3 | E174: =SA34c!E37 -> 77530341.22 | F174: =SA34c!F37 -> 81562924 | G174: =SA34c!G37 -> 126662924 | H174: =SA34c!H37 -> 126662924 | I174: =SA34c!I37 -> 64145441 | J174: =SA34c!J37 -> 65811840 | K174: =SA34c!K37 -> 66507562
A175: Solid Waste Infrastructure | C175: =SA34c!C44 -> 0 | D175: =SA34c!D44 -> 0 | E175: =SA34c!E44 -> 0 | F175: =SA34c!F44 -> 0 | G175: =SA34c!G44 -> 0 | H175: =SA34c!H44 -> 0 | I175: =SA34c!I44 -> 0 | J175: =SA34c!J44 -> 0 | K175: =SA34c!K44 -> 0
A176: Rail Infrastructure | C176: =SA34c!C52 -> 0 | D176: =SA34c!D52 -> 0 | E176: =SA34c!E52 -> 0 | F176: =SA34c!F52 -> 0 | G176: =SA34c!G52 -> 0 | H176: =SA34c!H52 -> 0 | I176: =SA34c!I52 -> 0 | J176: =SA34c!J52 -> 0 | K176: =SA34c!K52 -> 0
A177: Coastal Infrastructure | C177: =SA34c!C62 -> 0 | D177: =SA34c!D62 -> 0 | E177: =SA34c!E62 -> 0 | F177: =SA34c!F62 -> 0 | G177: =SA34c!G62 -> 0 | H177: =SA34c!H62 -> 0 | I177: =SA34c!I62 -> 0 | J177: =SA34c!J62 -> 0 | K177: =SA34c!K62 -> 0
A178: Information and Communication Infrastructure | C178: =SA34c!C68 -> 0 | D178: =SA34c!D68 -> 0 | E178: =SA34c!E68 -> 0 | F178: =SA34c!F68 -> 0 | G178: =SA34c!G68 -> 0 | H178: =SA34c!H68 -> 0 | I178: =SA34c!I68 -> 0 | J178: =SA34c!J68 -> 0 | K178: =SA34c!K68 -> 0
A179: Infrastructure | C179: =SUM(C170:C178) -> 117279312.1 | D179: =SUM(D170:D178) -> 95652543.94 | E179: 95681194.64 | F179: 127310353 | G179: 169410353 | H179: 169410353 | I179: 108102767 | J179: 112681287 | K179: 115373268
A180: Community Facilities | C180: =SA34c!C75 -> 0 | D180: =SA34c!D75 -> 0 | E180: =SA34c!E75 -> 0 | F180: =SA34c!F75 -> 0 | G180: =SA34c!G75 -> 0 | H180: =SA34c!H75 -> 0 | I180: =SA34c!I75 -> 0 | J180: =SA34c!J75 -> 0 | K180: =SA34c!K75 -> 0
A181: Sport and Recreation Facilities | C181: =SA34c!C98 -> 0 | D181: =SA34c!D98 -> 0 | E181: =SA34c!E98 -> 0 | F181: =SA34c!F98 -> 0 | G181: =SA34c!G98 -> 0 | H181: =SA34c!H98 -> 0 | I181: =SA34c!I98 -> 0 | J181: =SA34c!J98 -> 0 | K181: =SA34c!K98 -> 0
A182: Community Assets | C182: =SUM(C180:C181) -> 0 | D182: 0 | E182: 0 | F182: 0 | G182: 0 | H182: 0 | I182: 0 | J182: 0 | K182: 0
A183: Heritage Assets | C183: =SA34c!C103 -> 0 | D183: =SA34c!D103 -> 0 | E183: =SA34c!E103 -> 0 | F183: =SA34c!F103 -> 0 | G183: =SA34c!G103 -> 0 | H183: =SA34c!H103 -> 0 | I183: =SA34c!I103 -> 400000 | J183: =SA34c!J103 -> 522000 | K183: =SA34c!K103 -> 545490
A184: Revenue Generating | C184: =SA34c!C111 -> 0 | D184: =SA34c!D111 -> 0 | E184: =SA34c!E111 -> 0 | F184: =SA34c!F111 -> 0 | G184: =SA34c!G111 -> 0 | H184: =SA34c!H111 -> 0 | I184: =SA34c!I111 -> 0 | J184: =SA34c!J111 -> 0 | K184: =SA34c!K111 -> 0
A185: Non-revenue Generating | C185: =SA34c!C114 -> 0 | D185: =SA34c!D114 -> 0 | E185: =SA34c!E114 -> 0 | F185: =SA34c!F114 -> 0 | G185: =SA34c!G114 -> 0 | H185: =SA34c!H114 -> 0 | I185: =SA34c!I114 -> 0 | J185: =SA34c!J114 -> 0 | K185: =SA34c!K114 -> 0
A186: Investment properties | C186: =SUM(C184:C185) -> 0 | D186: 0 | E186: 0 | F186: 0 | G186: 0 | H186: 0 | I186: 0 | J186: 0 | K186: 0
A187: Operational Buildings | C187: =SA34c!C119 -> 1438091.43 | D187: =SA34c!D119 -> 280058.62 | E187: =SA34c!E119 -> 194835.04 | F187: =SA34c!F119 -> 800000 | G187: =SA34c!G119 -> 600000 | H187: =SA34c!H119 -> 600000 | I187: =SA34c!I119 -> 2080000 | J187: =SA34c!J119 -> 2484720 | K187: =SA34c!K119 -> 2596532
A188: Housing | C188: =SA34c!C131 -> 0 | D188: =SA34c!D131 -> 0 | E188: =SA34c!E131 -> 0 | F188: =SA34c!F131 -> 0 | G188: =SA34c!G131 -> 0 | H188: =SA34c!H131 -> 0 | I188: =SA34c!I131 -> 0 | J188: =SA34c!J131 -> 0 | K188: =SA34c!K131 -> 0
A189: Other Assets | C189: =SUM(C187:C188) -> 1438091.43 | D189: 280058.62 | E189: 194835.04 | F189: 800000 | G189: 600000 | H189: 600000 | I189: 2080000 | J189: 2484720 | K189: 2596532
A190: Biological or Cultivated Assets | C190: =SA34c!C136 -> 0 | D190: =SA34c!D136 -> 0 | E190: =SA34c!E136 -> 0 | F190: =SA34c!F136 -> 0 | G190: =SA34c!G136 -> 0 | H190: =SA34c!H136 -> 0 | I190: =SA34c!I136 -> 0 | J190: =SA34c!J136 -> 0 | K190: =SA34c!K136 -> 0
A191: Servitudes | C191: =SA34c!C140 -> 0 | D191: =SA34c!D140 -> 0 | E191: =SA34c!E140 -> 0 | F191: =SA34c!F140 -> 0 | G191: =SA34c!G140 -> 0 | H191: =SA34c!H140 -> 0 | I191: =SA34c!I140 -> 0 | J191: =SA34c!J140 -> 0 | K191: =SA34c!K140 -> 0
A192: Licences and Rights | C192: =SA34c!C141 -> 0 | D192: =SA34c!D141 -> 0 | E192: =SA34c!E141 -> 0 | F192: =SA34c!F141 -> 0 | G192: =SA34c!G141 -> 0 | H192: =SA34c!H141 -> 0 | I192: =SA34c!I141 -> 0 | J192: =SA34c!J141 -> 0 | K192: =SA34c!K141 -> 0
A193: Intangible Assets | C193: =SUM(C191:C192) -> 0 | D193: 0 | E193: 0 | F193: 0 | G193: 0 | H193: 0 | I193: 0 | J193: 0 | K193: 0
A194: Computer Equipment | C194: =SA34c!C149 -> 0 | D194: =SA34c!D149 -> 0 | E194: =SA34c!E149 -> 0 | F194: =SA34c!F149 -> 0 | G194: =SA34c!G149 -> 100000 | H194: =SA34c!H149 -> 100000 | I194: =SA34c!I149 -> 104000 | J194: =SA34c!J149 -> 108576 | K194: =SA34c!K149 -> 113462
A195: Furniture and Office Equipment | C195: =SA34c!C152 -> 0 | D195: =SA34c!D152 -> 0 | E195: =SA34c!E152 -> 0 | F195: =SA34c!F152 -> 0 | G195: =SA34c!G152 -> 0 | H195: =SA34c!H152 -> 0 | I195: =SA34c!I152 -> 0 | J195: =SA34c!J152 -> 0 | K195: =SA34c!K152 -> 0
A196: Machinery and Equipment | C196: =SA34c!C155 -> 72751.14 | D196: =SA34c!D155 -> 608.24 | E196: =SA34c!E155 -> -589284.44 | F196: =SA34c!F155 -> 63441 | G196: =SA34c!G155 -> 303441 | H196: =SA34c!H155 -> 303441 | I196: =SA34c!I155 -> 9065579 | J196: =SA34c!J155 -> 329464 | K196: =SA34c!K155 -> 344290
A197: Transport Assets | C197: =SA34c!C158 -> 495304.31 | D197: =SA34c!D158 -> 3372723.04 | E197: =SA34c!E158 -> 1282737.86 | F197: =SA34c!F158 -> 2000000 | G197: =SA34c!G158 -> 2706741 | H197: =SA34c!H158 -> 2706741 | I197: =SA34c!I158 -> 3300000 | J197: =SA34c!J158 -> 3445200 | K197: =SA34c!K158 -> 4600234
A198: Land | C198: =SA34c!C161 -> 0 | D198: =SA34c!D161 -> 0 | E198: =SA34c!E161 -> 0 | F198: =SA34c!F161 -> 0 | G198: =SA34c!G161 -> 0 | H198: =SA34c!H161 -> 0 | I198: =SA34c!I161 -> 0 | J198: =SA34c!J161 -> 0 | K198: =SA34c!K161 -> 0
A199: Zoo's, Marine and Non-biological Animals | C199: =SA34c!C164 -> 0 | D199: =SA34c!D164 -> 0 | E199: =SA34c!E164 -> 0 | F199: =SA34c!F164 -> 0 | G199: =SA34c!G164 -> 0 | H199: =SA34c!H164 -> 0 | I199: =SA34c!I164 -> 0 | J199: =SA34c!J164 -> 0 | K199: =SA34c!K164 -> 0
A201: TOTAL EXPENDITURE OTHER ITEMS | C201: =SUM(C168:C169) -> 220325426.9 | D201: 221535858.1 | E201: 190900918.7 | F201: 232688086 | G201: 275674827 | H201: 275674827 | I201: 229937210 | J201: 231242565 | K201: 250969804
A203: Renewal and upgrading of Existing Assets as % of total capex | C203: =IF(ISERROR((C37+C69)/C132),0,((C37+C69)/C132)) -> 0.01111766962 | D203: =IF(ISERROR((D37+D69)/D132),0,((D37+D69)/D132)) -> 0.2708458881 | E203: 0.3298354651 | F203: 0.0823767609 | G203: 0.06709365571 | H203: 0.06709365571 | I203: 0.01327374796 | J203: 0.01821331556 | K203: 0.016429161
A204: Renewal and upgrading of Existing Assets as % of deprecn | C204: =IF(ISERROR((C37+C69)/C168),0,((C37+C69)/C168)) -> 0.05033904041 | D204: =IF(ISERROR((D37+D69)/D168),0,((D37+D69)/D168)) -> 0.8646291078 | E204: 1.501901789 | F204: 0.3407118005 | G204: 0.2599878024 | H204: 0.2599878024 | I204: 0.06075325127 | J204: 0.08345921018 | K204: 0.06710543948
A205: R&M as a % of PPE | C205: =IF(ISERROR(ROUND(C169/'A6-FinPos'!C19,3)),0,(ROUND(C169/'A6-FinPos'!C19,3))) -> 0.036 | D205: =IF(ISERROR(ROUND(D169/'A6-FinPos'!D19,3)),0,(ROUND(D169/'A6-FinPos'!D19,3))) -> 0.027 | E205: =IF(ISERROR(ROUND(E169/'A6-FinPos'!E19,3)),0,(ROUND(E169/'A6-FinPos'!E19,3))) -> 0.024 | F205: =IF(ISERROR(ROUND(F169/'A6-FinPos'!F19,3)),0,(ROUND(F169/'A6-FinPos'!F19,3))) -> 0.035 | G205: =IF(ISERROR(ROUND(G169/'A6-FinPos'!G19,3)),0,(ROUND(G169/'A6-FinPos'!G19,3))) -> 0.047 | H205: =IF(ISERROR(ROUND(H169/'A6-FinPos'!H19,3)),0,(ROUND(H169/'A6-FinPos'!H19,3))) -> 0.047 | I205: =IF(ISERROR(ROUND(I169/'A6-FinPos'!J19,3)),0,(ROUND(I169/'A6-FinPos'!J19,3))) -> 0.033 | J205: =IF(ISERROR(ROUND(J169/'A6-FinPos'!K19,3)),0,(ROUND(J169/'A6-FinPos'!K19,3))) -> 0.032 | K205: =IF(ISERROR(ROUND(K169/'A6-FinPos'!L19,3)),0,(ROUND(K169/'A6-FinPos'!L19,3))) -> 0.032
A206: Renewal and upgrading and R&M as a % of PPE | C206: =IF(ISERROR(ROUND((C37+C69+C169)/C165,2)),0,(ROUND((C37+C69+C169)/C165,2))) -> 0.06 | D206: =IF(ISERROR(ROUND((D37+D69+D169)/D165,2)),0,(ROUND((D37+D69+D169)/D165,2))) -> 0.09 | E206: 0.09 | F206: 0.06 | G206: 0.08 | H206: 0.08 | I206: 0.05 | J206: 0.05 | K206: 0.05
A208: =head27a -> References
A209: 1. Detail of new assets provided in Table SA34a
A210: 2. Detail of renewal of existing assets provided in Table SA34b
A211: 3. Detail of Repairs and Maintenance by Asset Class provided in Table SA34c
A212: 4. Must reconcile to total capital expenditure on Budgeted Capital Expenditure
A213: 5. Must reconcile to 'Budgeted Financial Position' (written down value)
A214: 6. Detail of upgrading of existing assets provided in Table SA34e
A215: 7. Detail of depreciation provided in Table SA34d
A217: Check balance to A6 | C217: =C165-'A6-FinPos'!D17-'A6-FinPos'!D19-'A6-FinPos'!D20-'A6-FinPos'!D21-'A6-FinPos'!D22-C148 -> -1438034594 | D217: =D165-'A6-FinPos'!E17-'A6-FinPos'!E19-'A6-FinPos'!E20-'A6-FinPos'!E21-'A6-FinPos'!E22-D148 -> -1622688168 | E217: =E165-'A6-FinPos'!F17-'A6-FinPos'!F19-'A6-FinPos'!F20-'A6-FinPos'!F21-'A6-FinPos'!F22-E148 -> -1040827694 | F217: =F165-'A6-FinPos'!G17-'A6-FinPos'!G19-'A6-FinPos'!G20-'A6-FinPos'!G21-'A6-FinPos'!G22-F148 -> -1090325108 | G217: =G165-'A6-FinPos'!H17-'A6-FinPos'!H19-'A6-FinPos'!H20-'A6-FinPos'!H21-'A6-FinPos'!H22-G148 -> -1126028400 | H217: =H165-'A6-FinPos'!I17-'A6-FinPos'!I19-'A6-FinPos'!I20-'A6-FinPos'!I21-'A6-FinPos'!I22-H148 -> -1712377297 | I217: =I165-'A6-FinPos'!J17-'A6-FinPos'!J19-'A6-FinPos'!J20-'A6-FinPos'!J21-'A6-FinPos'!J22-I148 -> -1126028400 | J217: =J165-'A6-FinPos'!K17-'A6-FinPos'!K19-'A6-FinPos'!K20-'A6-FinPos'!K21-'A6-FinPos'!K22-J148 -> -1126028400 | K217: =K165-'A6-FinPos'!L17-'A6-FinPos'!L19-'A6-FinPos'!L20-'A6-FinPos'!L21-'A6-FinPos'!L22-K148 -> -1126028400

Sheet A10-SerDel
A1: =muni&" - "&Approve10 -> DC47 Sekhukhune - Table A10 Basic service delivery measurement
A2: =desc -> Description | B2: =head27 -> Ref | C2: =head1b -> 2018/19 | D2: =head1A -> 2019/20 | E2: =Head1 -> 2020/21 | F2: =Head2 -> Current Year 2021/22 | I2: =Head3 -> 2022/23 Medium Term Revenue & Expenditure Framework
C3: =Head5A -> Outcome | D3: =Head5A -> Outcome | E3: =Head5A -> Outcome | F3: =Head6 -> Original Budget | G3: =Head7 -> Adjusted Budget | H3: =Head8 -> Full Year Forecast | I3: =Head9 -> Budget Year 2022/23 | J3: =Head10 -> Budget Year +1 2023/24 | K3: =Head11 -> Budget Year +2 2024/25
A4: Household service targets | B4: 1
A5: Water:
A6: Piped water inside dwelling | C6: ='SA9'!E67 -> 0 | D6: ='SA9'!F67 -> 0 | E6: ='SA9'!G67 -> 0 | F6: ='SA9'!H67 -> 0 | G6: ='SA9'!I67 -> 0 | H6: ='SA9'!J67 -> 0 | I6: ='SA9'!K67 -> 15000 | J6: ='SA9'!L67 -> 20000 | K6: ='SA9'!M67 -> 0
A7: Piped water inside yard (but not in dwelling) | C7: ='SA9'!E68 -> 0 | D7: ='SA9'!F68 -> 0 | E7: ='SA9'!G68 -> 0 | F7: ='SA9'!H68 -> 0 | G7: ='SA9'!I68 -> 0 | H7: ='SA9'!J68 -> 0 | I7: ='SA9'!K68 -> 10000 | J7: ='SA9'!L68 -> 15000 | K7: ='SA9'!M68 -> 0
A8: Using public tap (at least min.service level) | B8: 2 | C8: ='SA9'!E69 -> 0 | D8: ='SA9'!F69 -> 0 | E8: ='SA9'!G69 -> 0 | F8: ='SA9'!H69 -> 0 | G8: ='SA9'!I69 -> 457276 | H8: ='SA9'!J69 -> 457276 | I8: ='SA9'!K69 -> 457276 | J8: ='SA9'!L69 -> 469235 | K8: ='SA9'!M69 -> 500880
A9: Other water supply (at least min.service level) | B9: 4 | C9: ='SA9'!E70 -> 0 | D9: ='SA9'!F70 -> 0 | E9: ='SA9'!G70 -> 0 | F9: ='SA9'!H70 -> 0 | G9: ='SA9'!I70 -> 98722 | H9: ='SA9'!J70 -> 98722 | I9: ='SA9'!K70 -> 98722 | J9: ='SA9'!L70 -> 119597 | K9: ='SA9'!M70 -> 146028
A10: Minimum Service Level and Above sub-total | C10: =SUM(C6:C9) -> 0 | D10: =SUM(D6:D9) -> 0 | E10: 0 | F10: 0 | G10: 555998 | H10: 555998 | I10: 580998 | J10: 623832 | K10: 646908
A11: Using public tap (< min.service level) | B11: 3 | C11: ='SA9'!E72 -> 0 | D11: ='SA9'!F72 -> 0 | E11: ='SA9'!G72 -> 0 | F11: ='SA9'!H72 -> 0 | G11: ='SA9'!I72 -> 0 | H11: ='SA9'!J72 -> 0 | I11: ='SA9'!K72 -> 0 | J11: ='SA9'!L72 -> 0 | K11: ='SA9'!M72 -> 0
A12: Other water supply (< min.service level) | B12: =B9 -> 4 | C12: ='SA9'!E73 -> 0 | D12: ='SA9'!F73 -> 0 | E12: ='SA9'!G73 -> 0 | F12: ='SA9'!H73 -> 0 | G12: ='SA9'!I73 -> 0 | H12: ='SA9'!J73 -> 0 | I12: ='SA9'!K73 -> 25000 | J12: ='SA9'!L73 -> 10000 | K12: ='SA9'!M73 -> 0
A13: No water supply | C13: ='SA9'!E74 -> 0 | D13: ='SA9'!F74 -> 0 | E13: ='SA9'!G74 -> 0 | F13: ='SA9'!H74 -> 0 | G13: ='SA9'!I74 -> 0 | H13: ='SA9'!J74 -> 0 | I13: ='SA9'!K74 -> 25000 | J13: ='SA9'!L74 -> 5000 | K13: ='SA9'!M74 -> 0
A14: Below Minimum Service Level sub-total | C14: =SUM(C11:C13) -> 0 | D14: =SUM(D11:D13) -> 0 | E14: 0 | F14: 0 | G14: 0 | H14: 0 | I14: 50000 | J14: 15000 | K14: 0
A15: Total number of households | B15: 5 | C15: =C10+C14 -> 0 | D15: =D10+D14 -> 0 | E15: 0 | F15: 0 | G15: 555998 | H15: 555998 | I15: 630998 | J15: 638832 | K15: 646908
A16: Sanitation/sewerage:
A17: Flush toilet (connected to sewerage) | C17: ='SA9'!E78 -> 0 | D17: ='SA9'!F78 -> 0 | E17: ='SA9'!G78 -> 0 | F17: ='SA9'!H78 -> 0 | G17: ='SA9'!I78 -> 0 | H17: ='SA9'!J78 -> 0 | I17: ='SA9'!K78 -> 0 | J17: ='SA9'!L78 -> 0 | K17: ='SA9'!M78 -> 0
A18: Flush toilet (with septic tank) | C18: ='SA9'!E79 -> 0 | D18: ='SA9'!F79 -> 0 | E18: ='SA9'!G79 -> 0 | F18: ='SA9'!H79 -> 0 | G18: ='SA9'!I79 -> 0 | H18: ='SA9'!J79 -> 0 | I18: ='SA9'!K79 -> 10000 | J18: ='SA9'!L79 -> 15000 | K18: ='SA9'!M79 -> 20000
A19: Chemical toilet | C19: ='SA9'!E80 -> 0 | D19: ='SA9'!F80 -> 0 | E19: ='SA9'!G80 -> 0 | F19: ='SA9'!H80 -> 0 | G19: ='SA9'!I80 -> 0 | H19: ='SA9'!J80 -> 0 | I19: ='SA9'!K80 -> 0 | J19: ='SA9'!L80 -> 0 | K19: ='SA9'!M80 -> 0
A20: Pit toilet (ventilated) | C20: ='SA9'!E81 -> 0 | D20: ='SA9'!F81 -> 0 | E20: ='SA9'!G81 -> 0 | F20: ='SA9'!H81 -> 0 | G20: ='SA9'!I81 -> 48000 | H20: ='SA9'!J81 -> 48000 | I20: ='SA9'!K81 -> 48000 | J20: ='SA9'!L81 -> 48000 | K20: ='SA9'!M81 -> 0
A21: Other toilet provisions (> min.service level) | C21: ='SA9'!E82 -> 0 | D21: ='SA9'!F82 -> 0 | E21: ='SA9'!G82 -> 0 | F21: ='SA9'!H82 -> 0 | G21: ='SA9'!I82 -> 0 | H21: ='SA9'!J82 -> 0 | I21: ='SA9'!K82 -> 0 | J21: ='SA9'!L82 -> 0 | K21: ='SA9'!M82 -> 0
A22: =$A$10 -> Minimum Service Level and Above sub-total | C22: =SUM(C17:C21) -> 0 | D22: =SUM(D17:D21) -> 0 | E22: 0 | F22: 0 | G22: 48000 | H22: 48000 | I22: 58000 | J22: 63000 | K22: 20000
A23: Bucket toilet | C23: ='SA9'!E84 -> 0 | D23: ='SA9'!F84 -> 0 | E23: ='SA9'!G84 -> 0 | F23: ='SA9'!H84 -> 0 | G23: ='SA9'!I84 -> 0 | H23: ='SA9'!J84 -> 0 | I23: ='SA9'!K84 -> 0 | J23: ='SA9'!L84 -> 0 | K23: ='SA9'!M84 -> 0
A24: Other toilet provisions (< min.service level) | C24: ='SA9'!E85 -> 0 | D24: ='SA9'!F85 -> 0 | E24: ='SA9'!G85 -> 0 | F24: ='SA9'!H85 -> 0 | G24: ='SA9'!I85 -> 0 | H24: ='SA9'!J85 -> 0 | I24: ='SA9'!K85 -> 5000 | J24: ='SA9'!L85 -> 10000 | K24: ='SA9'!M85 -> 15000
A25: No toilet provisions | C25: ='SA9'!E86 -> 0 | D25: ='SA9'!F86 -> 0 | E25: ='SA9'!G86 -> 0 | F25: ='SA9'!H86 -> 0 | G25: ='SA9'!I86 -> 0 | H25: ='SA9'!J86 -> 0 | I25: ='SA9'!K86 -> 0 | J25: ='SA9'!L86 -> 0 | K25: ='SA9'!M86 -> 0
A26: =$A$14 -> Below Minimum Service Level sub-total | C26: =SUM(C23:C25) -> 0 | D26: =SUM(D23:D25) -> 0 | E26: 0 | F26: 0 | G26: 0 | H26: 0 | I26: 5000 | J26: 10000 | K26: 15000
A27: =$A$15 -> Total number of households | B27: =$B$15 -> 5 | C27: =C22+C26 -> 0 | D27: =D22+D26 -> 0 | E27: 0 | F27: 0 | G27: 48000 | H27: 48000 | I27: 63000 | J27: 73000 | K27: 35000
A28: Energy:
A29: Electricity (at least min.service level) | C29: ='SA9'!E90 -> 0 | D29: ='SA9'!F90 -> 0 | E29: ='SA9'!G90 -> 0 | F29: ='SA9'!H90 -> 0 | G29: ='SA9'!I90 -> 0 | H29: ='SA9'!J90 -> 0 | I29: ='SA9'!K90 -> 0 | J29: ='SA9'!L90 -> 0 | K29: ='SA9'!M90 -> 0
A30: Electricity - prepaid (min.service level) | C30: ='SA9'!E91 -> 0 | D30: ='SA9'!F91 -> 0 | E30: ='SA9'!G91 -> 0 | F30: ='SA9'!H91 -> 0 | G30: ='SA9'!I91 -> 0 | H30: ='SA9'!J91 -> 0 | I30: ='SA9'!K91 -> 0 | J30: ='SA9'!L91 -> 0 | K30: ='SA9'!M91 -> 0
A31: =$A$10 -> Minimum Service Level and Above sub-total | C31: =SUM(C29:C30) -> 0 | D31: =SUM(D29:D30) -> 0 | E31: 0 | F31: 0 | G31: 0 | H31: 0 | I31: 0 | J31: 0 | K31: 0
A32: Electricity (< min.service level) | C32: ='SA9'!E93 -> 0 | D32: ='SA9'!F93 -> 0 | E32: ='SA9'!G93 -> 0 | F32: ='SA9'!H93 -> 0 | G32: ='SA9'!I93 -> 0 | H32: ='SA9'!J93 -> 0 | I32: ='SA9'!K93 -> 0 | J32: ='SA9'!L93 -> 0 | K32: ='SA9'!M93 -> 0
A33: Electricity - prepaid (< min. service level) | C33: ='SA9'!E94 -> 0 | D33: ='SA9'!F94 -> 0 | E33: ='SA9'!G94 -> 0 | F33: ='SA9'!H94 -> 0 | G33: ='SA9'!I94 -> 0 | H33: ='SA9'!J94 -> 0 | I33: ='SA9'!K94 -> 0 | J33: ='SA9'!L94 -> 0 | K33: ='SA9'!M94 -> 0
A34: Other energy sources | C34: ='SA9'!E95 -> 0 | D34: ='SA9'!F95 -> 0 | E34: ='SA9'!G95 -> 0 | F34: ='SA9'!H95 -> 0 | G34: ='SA9'!I95 -> 0 | H34: ='SA9'!J95 -> 0 | I34: ='SA9'!K95 -> 0 | J34: ='SA9'!L95 -> 0 | K34: ='SA9'!M95 -> 0
A35: =$A$14 -> Below Minimum Service Level sub-total | C35: =SUM(C32:C34) -> 0 | D35: =SUM(D32:D34) -> 0 | E35: 0 | F35: 0 | G35: 0 | H35: 0 | I35: 0 | J35: 0 | K35: 0
A36: =$A$15 -> Total number of households | B36: =$B$15 -> 5 | C36: =C31+C35 -> 0 | D36: =D31+D35 -> 0 | E36: 0 | F36: 0 | G36: 0 | H36: 0 | I36: 0 | J36: 0 | K36: 0
A37: Refuse:
A38: Removed at least once a week | C38: ='SA9'!E99 -> 0 | D38: ='SA9'!F99 -> 0 | E38: ='SA9'!G99 -> 0 | F38: ='SA9'!H99 -> 0 | G38: ='SA9'!I99 -> 0 | H38: ='SA9'!J99 -> 0 | I38: ='SA9'!K99 -> 0 | J38: ='SA9'!L99 -> 0 | K38: ='SA9'!M99 -> 0
A39: =$A$10 -> Minimum Service Level and Above sub-total | C39: =SUM(C38) -> 0 | D39: =SUM(D38) -> 0 | E39: 0 | F39: 0 | G39: 0 | H39: 0 | I39: 0 | J39: 0 | K39: 0
A40: Removed less frequently than once a week | C40: ='SA9'!E101 -> 0 | D40: ='SA9'!F101 -> 0 | E40: ='SA9'!G101 -> 0 | F40: ='SA9'!H101 -> 0 | G40: ='SA9'!I101 -> 0 | H40: ='SA9'!J101 -> 0 | I40: ='SA9'!K101 -> 0 | J40: ='SA9'!L101 -> 0 | K40: ='SA9'!M101 -> 0
A41: Using communal refuse dump | C41: ='SA9'!E102 -> 0 | D41: ='SA9'!F102 -> 0 | E41: ='SA9'!G102 -> 0 | F41: ='SA9'!H102 -> 0 | G41: ='SA9'!I102 -> 0 | H41: ='SA9'!J102 -> 0 | I41: ='SA9'!K102 -> 0 | J41: ='SA9'!L102 -> 0 | K41: ='SA9'!M102 -> 0
A42: Using own refuse dump | C42: ='SA9'!E103 -> 0 | D42: ='SA9'!F103 -> 0 | E42: ='SA9'!G103 -> 0 | F42: ='SA9'!H103 -> 0 | G42: ='SA9'!I103 -> 0 | H42: ='SA9'!J103 -> 0 | I42: ='SA9'!K103 -> 0 | J42: ='SA9'!L103 -> 0 | K42: ='SA9'!M103 -> 0
A43: Other rubbish disposal | C43: ='SA9'!E104 -> 0 | D43: ='SA9'!F104 -> 0 | E43: ='SA9'!G104 -> 0 | F43: ='SA9'!H104 -> 0 | G43: ='SA9'!I104 -> 0 | H43: ='SA9'!J104 -> 0 | I43: ='SA9'!K104 -> 0 | J43: ='SA9'!L104 -> 0 | K43: ='SA9'!M104 -> 0
A44: No rubbish disposal | C44: ='SA9'!E105 -> 0 | D44: ='SA9'!F105 -> 0 | E44: ='SA9'!G105 -> 0 | F44: ='SA9'!H105 -> 0 | G44: ='SA9'!I105 -> 0 | H44: ='SA9'!J105 -> 0 | I44: ='SA9'!K105 -> 0 | J44: ='SA9'!L105 -> 0 | K44: ='SA9'!M105 -> 0
A45: =$A$14 -> Below Minimum Service Level sub-total | C45: =SUM(C40:C44) -> 0 | D45: 0 | E45: 0 | F45: 0 | G45: 0 | H45: 0 | I45: 0 | J45: 0 | K45: 0
A46: =$A$15 -> Total number of households | B46: =$B$15 -> 5 | C46: =C39+C45 -> 0 | D46: =D39+D45 -> 0 | E46: 0 | F46: 0 | G46: 0 | H46: 0 | I46: 0 | J46: 0 | K46: 0
A48: Households receiving Free Basic Service | B48: 7
A49: Water (6 kilolitres per household per month) | C49: ='SA9'!E263 -> 0 | D49: ='SA9'!F263 -> 0 | E49: ='SA9'!G263 -> 43124 | F49: ='SA9'!H263 -> 0 | G49: ='SA9'!I263 -> 0 | H49: ='SA9'!J263 -> 0 | I49: ='SA9'!K263 -> 47436 | J49: ='SA9'!L263 -> 52180 | K49: ='SA9'!M263 -> 57398
A50: Sanitation (free minimum level service) | C50: ='SA9'!E275 -> 0 | D50: ='SA9'!F275 -> 0 | E50: ='SA9'!G275 -> 34601 | F50: ='SA9'!H275 -> 0 | G50: ='SA9'!I275 -> 0 | H50: ='SA9'!J275 -> 0 | I50: ='SA9'!K275 -> 41867 | J50: ='SA9'!L275 -> 46054 | K50: ='SA9'!M275 -> 50660
A51: Electricity/other energy (50kwh per household per month) | C51: ='SA9'!E251 -> 0 | D51: ='SA9'!F251 -> 0 | E51: ='SA9'!G251 -> 0 | F51: ='SA9'!H251 -> 0 | G51: ='SA9'!I251 -> 0 | H51: ='SA9'!J251 -> 0 | I51: ='SA9'!K251 -> 0 | J51: ='SA9'!L251 -> 0 | K51: ='SA9'!M251 -> 0
A52: Refuse (removed at least once a week) | C52: ='SA9'!E287 -> 0 | D52: ='SA9'!F287 -> 0 | E52: ='SA9'!G287 -> 0 | F52: ='SA9'!H287 -> 0 | G52: ='SA9'!I287 -> 0 | H52: ='SA9'!J287 -> 0 | I52: ='SA9'!K287 -> 0 | J52: ='SA9'!L287 -> 0 | K52: ='SA9'!M287 -> 0
A54: Cost of Free Basic Services provided - Formal Settlements (R'000) | B54: 8
A55: Water (6 kilolitres per indigent household per month) | C55: ='SA1'!C20 -> 0 | D55: ='SA1'!D20 -> 0 | E55: ='SA1'!E20 -> 0 | F55: ='SA1'!F20 -> 0 | G55: ='SA1'!G20 -> 0 | H55: ='SA1'!H20 -> 0 | I55: ='SA1'!J20 -> 0 | J55: ='SA1'!K20 -> 0 | K55: ='SA1'!L20 -> 0
A56: Sanitation (free sanitation service to indigent households) | C56: ='SA1'!C26 -> 0 | D56: ='SA1'!D26 -> 0 | E56: ='SA1'!E26 -> 0 | F56: ='SA1'!F26 -> 0 | G56: ='SA1'!G26 -> 0 | H56: ='SA1'!H26 -> 0 | I56: ='SA1'!J26 -> 0 | J56: ='SA1'!K26 -> 0 | K56: ='SA1'!L26 -> 0
A57: Electricity/other energy (50kwh per indigent household per month) | C57: ='SA1'!C14 -> 0 | D57: ='SA1'!D14 -> 0 | E57: ='SA1'!E14 -> 0 | F57: ='SA1'!F14 -> 0 | G57: ='SA1'!G14 -> 0 | H57: ='SA1'!H14 -> 0 | I57: ='SA1'!J14 -> 0 | J57: ='SA1'!K14 -> 0 | K57: ='SA1'!L14 -> 0
A58: Refuse (removed once a week for indigent households) | C58: ='SA1'!C33 -> 0 | D58: ='SA1'!D33 -> 0 | E58: ='SA1'!E33 -> 0 | F58: ='SA1'!F33 -> 0 | G58: ='SA1'!G33 -> 0 | H58: ='SA1'!H33 -> 0 | I58: ='SA1'!J33 -> 0 | J58: ='SA1'!K33 -> 0 | K58: ='SA1'!L33 -> 0
A59: Cost of Free Basic Services provided - Informal Formal Settlements (R'000) | C59: ='SA9'!E260+'SA9'!E272+'SA9'!E284+'SA9'!E296 -> 0 | D59: ='SA9'!F260+'SA9'!F272+'SA9'!F284+'SA9'!F296 -> 0 | E59: ='SA9'!G260+'SA9'!G272+'SA9'!G284+'SA9'!G296 -> 0 | F59: ='SA9'!H260+'SA9'!H272+'SA9'!H284+'SA9'!H296 -> 0 | G59: ='SA9'!I260+'SA9'!I272+'SA9'!I284+'SA9'!I296 -> 0 | H59: ='SA9'!J260+'SA9'!J272+'SA9'!J284+'SA9'!J296 -> 0 | I59: ='SA9'!K260+'SA9'!K272+'SA9'!K284+'SA9'!K296 -> 0 | J59: ='SA9'!L260+'SA9'!L272+'SA9'!L284+'SA9'!L296 -> 0 | K59: ='SA9'!M260+'SA9'!M272+'SA9'!M284+'SA9'!M296 -> 0
A60: Total cost of FBS provided | C60: =SUM(C55:C59) -> 0 | D60: 0 | E60: 0 | F60: 0 | G60: 0 | H60: 0 | I60: 0 | J60: 0 | K60: 0
A62: Highest level of free service provided per household
A63: Property rates (R value threshold)
A64: Water (kilolitres per household per month) | C64: 0 | D64: 0 | E64: 0 | F64: 0 | G64: 0 | H64: 0 | I64: 15000 | J64: 28000 | K64: 35000
A65: Sanitation (kilolitres per household per month) | C65: 0 | D65: 0 | E65: 0 | F65: 0 | G65: 0 | H65: 0 | I65: 10000 | J65: 15000 | K65: 20000
A66: Sanitation (Rand per household per month) | C66: 0 | D66: 0 | E66: 0 | F66: 0 | G66: 0 | H66: 0 | I66: 5000 | J66: 10000 | K66: 15000
A67: Electricity (kwh per household per month)
A68: Refuse (average litres per week)
A69: Revenue cost of subsidised services provided (R'000) | B69: 9
A70: Property rates (tariff adjustment) ( impermissable values per section 17 of MPRA)
A71: Property rates exemptions, reductions and rebates and impermissable values in excess of section 17 of MPRA) | C71: ='SA1'!C8 -> 0 | D71: ='SA1'!D8 -> 0 | E71: ='SA1'!E8 -> 0 | F71: ='SA1'!F8 -> 0 | G71: ='SA1'!G8 -> 0 | H71: ='SA1'!H8 -> 0 | I71: ='SA1'!J8 -> 0 | J71: ='SA1'!K8 -> 0 | K71: ='SA1'!L8 -> 0
A72: Water (in excess of 6 kilolitres per indigent household per month) | C72: ='SA1'!C19 -> 0 | D72: ='SA1'!D19 -> 0 | E72: ='SA1'!E19 -> 0 | F72: ='SA1'!F19 -> 0 | G72: ='SA1'!G19 -> 0 | H72: ='SA1'!H19 -> 0 | I72: ='SA1'!J19 -> 0 | J72: ='SA1'!K19 -> 0 | K72: ='SA1'!L19 -> 0
A73: Sanitation (in excess of free sanitation service to indigent households) | C73: ='SA1'!C25 -> 0 | D73: ='SA1'!D25 -> 0 | E73: ='SA1'!E25 -> 0 | F73: ='SA1'!F25 -> 0 | G73: ='SA1'!G25 -> 0 | H73: ='SA1'!H25 -> 0 | I73: ='SA1'!J25 -> 0 | J73: ='SA1'!K25 -> 0 | K73: ='SA1'!L25 -> 0
A74: Electricity/other energy (in excess of 50 kwh per indigent household per month) | C74: ='SA1'!C13 -> 0 | D74: ='SA1'!D13 -> 0 | E74: ='SA1'!E13 -> 0 | F74: ='SA1'!F13 -> 0 | G74: ='SA1'!G13 -> 0 | H74: ='SA1'!H13 -> 0 | I74: ='SA1'!J13 -> 0 | J74: ='SA1'!K13 -> 0 | K74: ='SA1'!L13 -> 0
A75: Refuse (in excess of one removal a week for indigent households) | C75: ='SA1'!C32 -> 0 | D75: ='SA1'!D32 -> 0 | E75: ='SA1'!E32 -> 0 | F75: ='SA1'!F32 -> 0 | G75: ='SA1'!G32 -> 0 | H75: ='SA1'!H32 -> 0 | I75: ='SA1'!J32 -> 0 | J75: ='SA1'!K32 -> 0 | K75: ='SA1'!L32 -> 0
A76: Municipal Housing - rental rebates
A77: Housing - top structure subsidies | B77: 6
A78: Other
A79: Total revenue cost of subsidised services provided | C79: =SUM(C70:C78) -> 0 | D79: =SUM(D70:D78) -> 0 | E79: 0 | F79: 0 | G79: 0 | H79: 0 | I79: 0 | J79: =SUM(J70:J78) -> 0 | K79: =SUM(K70:K78) -> 0
A80: =head27a -> References
A81: 1. Include services provided by another entity; e.g. Eskom
A82: 2. Stand distance <= 200m from dwelling
A83: 3. Stand distance > 200m from dwelling
A84: 4. Borehole, spring, rain-water tank etc.
A85: 5. Must agree to total number of households in municipal area (informal settlements receiving services must be included)
A86: 6. Include value of subsidy provided by municipality above provincial subsidy level
A87: 7. Show number of households receiving at least these levels of services completely free (informal settlements must be included)
A88: 8. Must reflect the cost to the municipality of providing the Free Basic Service
A89: 9. Reflect the cost to the municipality in terms of 'revenue foregone' of providing free services (note this will not equal 'Revenue Foregone' on SA1)

Sheet SA1
A1: =muni&" - "&TableA1 -> DC47 Sekhukhune - Supporting Table SA1 Supportinging detail to 'Budgeted Financial Performance'
A2: =desc -> Description | B2: =head27 -> Ref | C2: =head1b -> 2018/19 | D2: =head1A -> 2019/20 | E2: =Head1 -> 2020/21 | F2: =Head2 -> Current Year 2021/22 | J2: =Head3 -> 2022/23 Medium Term Revenue & Expenditure Framework
C3: =Head5 -> Audited Outcome | D3: =Head5 -> Audited Outcome | E3: =Head5 -> Audited Outcome | F3: =Head6 -> Original Budget | G3: =Head7 -> Adjusted Budget | H3: =Head8 -> Full Year Forecast | I3: =Head5b -> Pre-audit outcome | J3: =Head9 -> Budget Year 2022/23 | K3: =Head10 -> Budget Year +1 2023/24 | L3: =Head11 -> Budget Year +2 2024/25
A4: R thousand
A5: REVENUE ITEMS:
A6: ='A4-FinPerf RE'!A5 -> Property rates | B6: 6
A7: Total Property Rates
A8: Less Revenue Foregone (exemptions, reductions and rebates and impermissable values in excess of section 17 of MPRA)
A9: Net Property Rates | C9: =C7-C8 -> 0 | D9: =D7-D8 -> 0 | E9: 0 | F9: 0 | G9: 0 | H9: 0 | I9: 0 | J9: 0 | K9: 0 | L9: 0
A11: ='A4-FinPerf RE'!A6 -> Service charges - electricity revenue | B11: 6
A12: ="Total "&A11 -> Total Service charges - electricity revenue | C12: 0 | D12: 0 | E12: 0 | F12: 0 | G12: 0 | H12: 0 | I12: 0 | J12: 0 | K12: 0 | L12: 0
A13: Less Revenue Foregone (in excess of 50 kwh per indigent household per month)
A14: Less Cost of Free Basis Services (50 kwh per indigent household per month) | C14: ='SA9'!E250 -> 0 | D14: ='SA9'!F250 -> 0 | E14: ='SA9'!G250 -> 0 | F14: ='SA9'!H250 -> 0 | G14: ='SA9'!I250 -> 0 | H14: ='SA9'!J250 -> 0 | J14: ='SA9'!K250 -> 0 | K14: ='SA9'!L250 -> 0 | L14: ='SA9'!M250 -> 0
A15: ="Net "& A11 -> Net Service charges - electricity revenue | C15: =C12-C13-C14 -> 0 | D15: =D12-D13-D14 -> 0 | E15: 0 | F15: 0 | G15: 0 | H15: 0 | I15: 0 | J15: 0 | K15: 0 | L15: 0
A17: ='A4-FinPerf RE'!A7 -> Service charges - water revenue | B17: 6
A18: ="Total "&A17 -> Total Service charges - water revenue | C18: 73837262.32 | D18: 81947083.02 | E18: 72887805.49 | F18: 82323447 | G18: 84603447 | H18: 84603447 | I18: 71564570.72 | J18: 88833619 | K18: 93275300 | L18: 97939066
A19: Less Revenue Foregone (in excess of 6 kilolitres per indigent household per month)
A20: Less Cost of Free Basis Services (6 kilolitres per indigent household per month) | C20: ='SA9'!E262 -> 0 | D20: ='SA9'!F262 -> 0 | E20: ='SA9'!G262 -> 0 | F20: ='SA9'!H262 -> 0 | G20: ='SA9'!I262 -> 0 | H20: ='SA9'!J262 -> 0 | J20: ='SA9'!K262 -> 0 | K20: ='SA9'!L262 -> 0 | L20: ='SA9'!M262 -> 0
A21: ="Net "& A17 -> Net Service charges - water revenue | C21: =C18-C19-C20 -> 73837262.32 | D21: =D18-D19-D20 -> 81947083.02 | E21: 72887805.49 | F21: 82323447 | G21: 84603447 | H21: 84603447 | I21: 71564570.72 | J21: 88833619 | K21: 93275300 | L21: 97939066
A23: ='A4-FinPerf RE'!A8 -> Service charges - sanitation revenue
A24: ="Total "&A23 -> Total Service charges - sanitation revenue | C24: 12257476.57 | D24: 12893848.73 | E24: 12452564.61 | F24: 13534662 | G24: 14034662 | H24: 14034662 | I24: 12757346.45 | J24: 14736395 | K24: 15473215 | L24: 16246876
A25: Less Revenue Foregone (in excess of free sanitation service to indigent households)
A26: Less Cost of Free Basis Services (free sanitation service to indigent households) | C26: ='SA9'!E274 -> 0 | D26: ='SA9'!F274 -> 0 | E26: ='SA9'!G274 -> 0 | F26: ='SA9'!H274 -> 0 | G26: ='SA9'!I274 -> 0 | H26: ='SA9'!J274 -> 0 | J26: ='SA9'!K274 -> 0 | K26: ='SA9'!L274 -> 0 | L26: ='SA9'!M274 -> 0
A27: ="Net "& A23 -> Net Service charges - sanitation revenue | C27: =C24-C25-C26 -> 12257476.57 | D27: =D24-D25-D26 -> 12893848.73 | E27: 12452564.61 | F27: 13534662 | G27: 14034662 | H27: 14034662 | I27: 12757346.45 | J27: 14736395 | K27: 15473215 | L27: 16246876
A29: ='A4-FinPerf RE'!A9 -> Service charges - refuse revenue | B29: 6
A30: Total refuse removal revenue
A31: Total landfill revenue
A32: Less Revenue Foregone (in excess of one removal a week to indigent households)
A33: Less Cost of Free Basis Services (removed once a week to indigent households) | C33: ='SA9'!E286 -> 0 | D33: ='SA9'!F286 -> 0 | E33: ='SA9'!G286 -> 0 | F33: ='SA9'!H286 -> 0 | G33: ='SA9'!I286 -> 0 | H33: ='SA9'!J286 -> 0 | J33: ='SA9'!K286 -> 0 | K33: ='SA9'!L286 -> 0 | L33: ='SA9'!M286 -> 0
A34: ="Net "& A29 -> Net Service charges - refuse revenue | C34: =SUM(C30:C31)-C32-C33 -> 0 | D34: =SUM(D30:D31)-D32-D33 -> 0 | E34: 0 | F34: 0 | G34: 0 | H34: 0 | I34: 0 | J34: 0 | K34: 0 | L34: 0
A36: Other Revenue by source
A37: Fuel Levy
A38: Other Revenue | C38: 14713556.37 | D38: 1596137.13 | E38: 82986496.2 | F38: 3076248 | G38: 2071248 | H38: 2071248 | I38: -1425271.86 | J38: 2174812 | K38: 2283550 | L38: 2397729
A49: Total 'Other' Revenue | B49: 1 | C49: =SUM(C37:C38) -> 14713556.37 | D49: =SUM(D37:D38) -> 1596137.13 | E49: =SUM(E37:E38) -> 82986496.2 | F49: 3076248 | G49: 2071248 | H49: 2071248 | I49: -1425271.86 | J49: 2174812 | K49: 2283550 | L49: 2397729
A51: EXPENDITURE ITEMS:
A52: ='A4-FinPerf RE'!A24 -> Employee related costs
A53: Basic Salaries and Wages | B53: 2 | C53: 238184904.1 | D53: 249469295.6 | E53: 259985534 | F53: 294290689 | G53: 293551000 | H53: 293551000 | I53: 253638365.9 | J53: 334443136 | K53: 321204336 | L53: 339484873
A54: Pension and UIF Contributions | C54: 37637716.11 | D54: 39624472.37 | E54: 41093358.97 | F54: 44462206 | G54: 43821595 | H54: 43821595 | I54: 37423314.59 | J54: 43835995 | K54: 46132203 | L54: 48532157
A55: Medical Aid Contributions | C55: 12129874.28 | D55: 13334088.16 | E55: 14030392.72 | F55: 14373917 | G55: 14705917 | H55: 14705917 | I55: 12772838.52 | J55: 14427956 | K55: 15222170 | L55: 16014148
A56: Overtime | C56: 0 | D56: 0 | E56: 0 | F56: 0 | G56: 0 | H56: 0 | I56: 0 | J56: 0 | K56: 0 | L56: 0
A57: Performance Bonus | C57: 0 | D57: 0 | E57: 0 | F57: 0 | G57: 500000 | H57: 500000 | I57: 607582.72 | J57: 0 | K57: 0 | L57: 0
A58: Motor Vehicle Allowance | C58: 28854029.82 | D58: 27626484.87 | E58: 23944222.21 | F58: 31836527 | G58: 22842527 | H58: 22842527 | I58: 22272430.38 | J58: 26364980 | K58: 27563677 | L58: 28997965
A59: Cellphone Allowance | C59: 1710344.2 | D59: 1688462 | E59: 1632364 | F59: 2707103 | G59: 1930119 | H59: 1930119 | I59: 1483543 | J59: 2017961 | K59: 2122428 | L59: 2232979
A60: Housing Allowances | C60: 2308554.75 | D60: 2369844.31 | E60: 2273271.38 | F60: 3557045 | G60: 3269315 | H60: 3269315 | I60: 2266444.44 | J60: 3437086 | K60: 3612190 | L60: 3799136
A61: Other benefits and allowances | C61: 42045001.19 | D61: 50945148.65 | E61: 48580765.29 | F61: 29591592 | G61: 32479789 | H61: 32479789 | I61: 34984416.28 | J61: 28299862 | K61: 35554593 | L61: 37403699
A62: Payments in lieu of leave | C62: 3929728.35 | D62: 3851637.03 | E62: 3097653.07 | F62: 4813652 | G62: 4888140 | H62: 4888140 | I62: 2328284.02 | J62: 5131809 | K62: 5397842 | L62: 5679707
A63: Long service awards | C63: 1700200.73 | D63: 4159787.28 | E63: 2840400.56 | F63: 537381 | G63: 1323351 | H63: 1323351 | I63: 1810504.49 | J63: 1267848 | K63: 1334355 | L63: 1404490
A64: Post-retirement benefit obligations | B64: 4 | C64: 2919139.47 | D64: -394293.66 | E64: 9023755.56 | F64: 285055 | G64: 194085 | H64: 194085 | I64: 0 | J64: 202263 | K64: 212579 | L64: 223633
A65: sub-total | B65: 5 | C65: =SUM(C53:C64) -> 371419493 | D65: =SUM(D53:D64) -> 392674926.6 | E65: 406501717.8 | F65: 426455167 | G65: 419505838 | H65: 419505838 | I65: 369587724.4 | J65: 459428896 | K65: 458356373 | L65: 483772787
A66: Less: Employees costs capitalised to PPE | C66: -1735189.82 | D66: -2547732.24 | E66: -6677586.7 | F66: -6671640 | G66: 0 | H66: 0 | I66: 0 | J66: 0 | K66: 0 | L66: 0
A67: ="Total "&A52 -> Total Employee related costs | B67: 1 | C67: =C65-C66 -> 373154682.8 | D67: =D65-D66 -> 395222658.9 | E67: 413179304.5 | F67: 433126807 | G67: 419505838 | H67: 419505838 | I67: 369587724.4 | J67: 459428896 | K67: 458356373 | L67: 483772787
A78: ='A4-FinPerf RE'!A27 -> Depreciation & asset impairment
A79: Depreciation of Property, Plant & Equipment | C79: 85938850.84 | D79: 100599183.1 | E79: 94331435.81 | F79: 102514292 | G79: 102554292 | H79: 102554292 | I79: 0 | J79: 106884864 | K79: 111671318 | L79: 127396528
A80: Lease amortisation | C80: 0 | D80: 0 | E80: 0 | F80: 0 | G80: 0 | H80: 0 | I80: 0 | J80: 0 | K80: 0 | L80: 0
A81: Capital asset impairment | C81: 15101117.12 | D81: 21630741.24 | E81: -0.24 | F81: 0 | G81: 0 | H81: 0 | I81: 0 | J81: 0 | K81: 0 | L81: 0
A83: ="Total "&LEFT(A78,35) -> Total Depreciation & asset impairment | B83: 1 | C83: =SUM(C79:C81) -> 101039968 | D83: =SUM(D79:D81) -> 122229924.3 | E83: 94331435.57 | F83: 102514292 | G83: 102554292 | H83: 102554292 | I83: 0 | J83: 106884864 | K83: 111671318 | L83: 127396528
A85: Bulk purchases - electricity
A86: Electricity bulk purchases | C86: 0 | D86: 0 | E86: 0 | F86: 0 | G86: 0 | H86: 0 | I86: 0 | J86: 0 | K86: 0 | L86: 0
A88: Total bulk purchases | B88: 1 | C88: =SUM(C86:C87) -> 0 | D88: =SUM(D86:D87) -> 0 | E88: 0 | F88: 0 | G88: 0 | H88: 0 | I88: 0 | J88: 0 | K88: 0 | L88: 0
A90: Transfers and grants
A91: Cash transfers and grants | C91: ='SA21'!C32 -> 0 | D91: ='SA21'!D32 -> 0 | E91: ='SA21'!E32 -> 0 | F91: ='SA21'!F32 -> 0 | G91: ='SA21'!G32 -> 0 | H91: ='SA21'!H32 -> 0 | I91: ='SA21'!I32 -> 0 | J91: ='SA21'!J32 -> 0 | K91: ='SA21'!K32 -> 0 | L91: ='SA21'!L32 -> 0
A92: Non-cash transfers and grants | C92: ='SA21'!C64 -> 7415578.35 | D92: ='SA21'!D64 -> 3497209.2 | E92: ='SA21'!E64 -> 2556298.03 | F92: ='SA21'!F64 -> 758211 | G92: ='SA21'!G64 -> 796171 | H92: ='SA21'!H64 -> 796171 | I92: ='SA21'!I64 -> 734369.14 | J92: ='SA21'!J64 -> 0 | K92: ='SA21'!K64 -> 0 | L92: ='SA21'!L64 -> 0
A93: Total transfers and grants | B93: 1 | C93: =SUM(C91:C92) -> 7415578.35 | D93: =SUM(D91:D92) -> 3497209.2 | E93: 2556298.03 | F93: 758211 | G93: 796171 | H93: 796171 | I93: 734369.14 | J93: 0 | K93: 0 | L93: 0
A95: ='A4-FinPerf RE'!A31 -> Contracted services
A96: Outsourced Services | C96: 109897352.4 | D96: 76270928.64 | E96: 81948382.41 | F96: 94674179 | G96: 136399157 | H96: 136399157 | I96: 52609742.58 | J96: 94765995 | K96: 102019082 | L96: 105245286
A97: Consultants and Professional Services | C97: 61252029.33 | D97: 37226934.24 | E97: 37474601.33 | F97: 49942942 | G97: 51552942 | H97: 51552942 | I97: 27248045.72 | J97: 51293542 | K97: 74525889 | L97: 89857223
A98: Contractors | C98: 54713184.85 | D98: 66719084.18 | E98: 47777885.19 | F98: 58813239 | G98: 70317980 | H98: 70317980 | I98: 54276846.18 | J98: 93271586 | K98: 121366962 | L98: 139290365
A127: Total contracted services | C127: =SUM(C96:C98) -> 225862566.5 | D127: =SUM(D96:D98) -> 180216947.1 | E127: 167200868.9 | F127: 203430360 | G127: 258270079 | H127: 258270079 | I127: 134134634.5 | J127: 239331123 | K127: 297911933 | L127: 334392874
A129: Other Expenditure By Type
A130: Collection costs | C130: 0 | D130: 0 | E130: 0 | F130: 0 | G130: 0 | H130: 0 | I130: 0 | J130: 600000 | K130: 700000 | L130: 800000
A131: Contributions to 'other' provisions
A133: Audit fees | C133: 6286326.04 | D133: 5215783.6 | E133: 5461472.6 | F133: 7173687 | G133: 7853687 | H133: 7853687 | I133: 6741913.35 | J133: 7854634 | K133: 8200238 | L133: 8569249
A136: Other Expenditure | C136: 140514234.8 | D136: 143020758.2 | E136: 159081466.7 | F136: 149188220 | G136: 158555219 | H136: 158555219 | I136: 134538602.1 | J136: 175439874 | K136: 192801791 | L136: 206383243
A157: Total 'Other' Expenditure | B157: 1 | C157: =+C130+C131+C133+C136 -> 146800560.9 | D157: =+D130+D131+D133+D136 -> 148236541.8 | E157: 164542939.3 | F157: 156361907 | G157: 166408906 | H157: 166408906 | I157: 141280515.5 | J157: 183894508 | K157: 201702029 | L157: 215752492
A159: Repairs and Maintenance by Expenditure Item | B159: 8
A160: Employee related costs
A161: Inventory Consumed (Project Maintenance) | C161: 39287106.03 | D161: 22856396.23 | E161: 17332253.26 | F161: 36286596 | G161: 33286596 | H161: 33286596 | I161: 29776175.6 | J161: 34618060 | K161: 36141253 | L161: 37731471
A162: Contracted Services | C162: 79998352.93 | D162: 76449537.61 | E162: 79237229.84 | F162: 93887198 | G162: 139833939 | H162: 139833939 | I162: 59565222.52 | J162: 86934286 | K162: 81929994 | L162: 84341805
A163: Other Expenditure | C163: 0 | D163: 0 | E163: 0 | F163: 0 | G163: 0 | H163: 0 | I163: 0 | J163: 1500000 | K163: 1500000 | L163: 1500000
A164: Total Repairs and Maintenance Expenditure | B164: 9 | C164: =SUM(C160:C163) -> 119285459 | D164: =SUM(D160:D163) -> 99305933.84 | E164: 96569483.1 | F164: 130173794 | G164: 173120535 | H164: 173120535 | I164: 89341398.12 | J164: 123052346 | K164: 119571247 | L164: 123573276
A166: Inventory Consumed
A167: Inventory Consumed - Water | C167: =-'SA3'!C29 -> 0 | D167: =-'SA3'!D29 -> 0 | E167: =-'SA3'!E29 -> 0 | F167: =-'SA3'!F29 -> 0 | G167: =-'SA3'!G29 -> -68872747 | H167: =-'SA3'!H29 -> -68872747 | I167: =-'SA3'!I29 -> 0 | J167: =-'SA3'!J29 -> -140743200 | K167: =-'SA3'!K29 -> -146935900 | L167: =-'SA3'!L29 -> -158401080
A168: Inventory Consumed - Other | C168: =-'SA3'!C58-'SA3'!C67-'SA3'!C74-'SA3'!C82-'SA3'!C90 -> 12465554.89 | D168: =-'SA3'!D58-'SA3'!D67-'SA3'!D74-'SA3'!D82-'SA3'!D90 -> 25650772.94 | E168: =-'SA3'!E58-'SA3'!E67-'SA3'!E74-'SA3'!E82-'SA3'!E90 -> 24307533.88 | F168: =-'SA3'!F58-'SA3'!F67-'SA3'!F74-'SA3'!F82-'SA3'!F90 -> 177905447 | G168: =-'SA3'!G58-'SA3'!G67-'SA3'!G74-'SA3'!G82-'SA3'!G90 -> 237343293 | H168: =-'SA3'!H58-'SA3'!H67-'SA3'!H74-'SA3'!H82-'SA3'!H90 -> 237343293 | I168: =-'SA3'!I58-'SA3'!I67-'SA3'!I74-'SA3'!I82-'SA3'!I90 -> 19642284.58 | J168: =-'SA3'!J58-'SA3'!J67-'SA3'!J74-'SA3'!J82-'SA3'!J90 -> 331818426 | K168: =-'SA3'!K58-'SA3'!K67-'SA3'!K74-'SA3'!K82-'SA3'!K90 -> 334930706 | L168: =-'SA3'!L58-'SA3'!L67-'SA3'!L74-'SA3'!L82-'SA3'!L90 -> 365672579
A169: Total Inventory Consumed & Other Material | C169: =SUM(C167:C168) -> 12465554.89 | D169: 25650772.94 | E169: 24307533.88 | F169: 177905447 | G169: 168470546 | H169: 168470546 | I169: 19642284.58 | J169: 191075226 | K169: 187994806 | L169: 207271499
A171: check | C171: =C164-SA34c!C167 -> 0 | D171: =D164-SA34c!D167 -> 0 | E171: =E164-SA34c!E167 -> 0 | F171: =F164-SA34c!F167 -> 0 | G171: =G164-SA34c!G167 -> 0 | H171: =H164-SA34c!H167 -> 0 | J171: =J164-SA34c!I167 -> 0 | K171: =K164-SA34c!J167 -> 0 | L171: =L164-SA34c!K167 -> 0
A172: =head27a -> References
A173: 1. Must reconcile with 'Budgeted Financial Performance (Revenue and Expenditure)
A174: 2. Must reconcile to supporting documentation on staff salaries
A176: 4. Expenditure to meet any 'unfunded obligations'
A177: 5 This sub-total must agree with the total on SA22, but excluding councillor and board member items
A178: 6. Include a note for each revenue item that is affected by 'revenue foregone'
A179: 7. Special consideration may have to be given to including 'goodwill arising' or 'joint venture' budgets where circumstances require this (include separately under relevant notes)
A180: 8. Repairs and Maintenance is not a GRAP item. However to facilitate transparency, municipalities must provide a breakdown of the amounts included in the relevant GRAP items that will be spent on Repairs and Maintenance.
A181: 9. Must reconcile with Repairs and Maintenance by Asset Class (Total Repairs and Maintenance) on Table SA34c.
A182: 10. Only applicable to municipalities that have adopted the 'revaluation method' in GRAP 17. The aim is to prevent overstating 'depreciation and asset impairment'

Sheet SA2
A1: =muni&" - "&TableA2 -> DC47 Sekhukhune - Supporting Table SA2 Matrix Financial Performance Budget (revenue source/expenditure type and dept.)
A2: =desc -> Description | B2: =head27 -> Ref | C2: ='A3-FinPerf V'!A5 -> Vote 01 - Speakers Office | D2: ='A3-FinPerf V'!A6 -> Vote 02 - Executive Mayor's Office | E2: ='A3-FinPerf V'!A7 -> Vote 03 - Municipal Manager Office | F2: ='A3-FinPerf V'!A8 -> Vote 04 - Budget And Treasury | G2: ='A3-FinPerf V'!A9 -> Vote 05 - Infrustracture And Water Services | H2: ='A3-FinPerf V'!A10 -> Vote 06 - Planning And Economic Development | I2: ='A3-FinPerf V'!A11 -> Vote 07 - Community Services | J2: ='A3-FinPerf V'!A12 -> Vote 08 - Sekhukhune Development Angancy | K2: ='A3-FinPerf V'!A13 -> Vote 09 - Corporate Services | L2: ='A3-FinPerf V'!A14 -> Vote 10 - | M2: ='A3-FinPerf V'!A15 -> Vote 11 - | N2: ='A3-FinPerf V'!A16 -> Vote 12 - | O2: ='A3-FinPerf V'!A17 -> Vote 13 - | P2: ='A3-FinPerf V'!A18 -> Vote 14 - | Q2: ='A3-FinPerf V'!A19 -> Vote 15 - Other | R2: Total
A3: R thousand | B3: 1 | R3: R'000
A4: ='A4-FinPerf RE'!A4 -> Revenue By Source
A5: ='A4-FinPerf RE'!A5 -> Property rates | C5: 0 | D5: 0 | E5: 0 | F5: 0 | G5: 0 | H5: 0 | I5: 0 | J5: 0 | K5: 0 | L5: 0 | M5: 0 | N5: 0 | O5: 0 | P5: 0 | Q5: 0 | R5: =SUM(C5:Q5) -> 0
A6: ='A4-FinPerf RE'!A6 -> Service charges - electricity revenue | C6: 0 | D6: 0 | E6: 0 | F6: 0 | G6: 0 | H6: 0 | I6: 0 | J6: 0 | K6: 0 | L6: 0 | M6: 0 | N6: 0 | O6: 0 | P6: 0 | Q6: 0 | R6: =SUM(C6:Q6) -> 0
A7: ='A4-FinPerf RE'!A7 -> Service charges - water revenue | C7: 0 | D7: 0 | E7: 0 | F7: 88833619 | G7: 0 | H7: 0 | I7: 0 | J7: 0 | K7: 0 | L7: 0 | M7: 0 | N7: 0 | O7: 0 | P7: 0 | Q7: 0 | R7: 88833619
A8: ='A4-FinPerf RE'!A8 -> Service charges - sanitation revenue | C8: 0 | D8: 0 | E8: 0 | F8: 14736395 | G8: 0 | H8: 0 | I8: 0 | J8: 0 | K8: 0 | L8: 0 | M8: 0 | N8: 0 | O8: 0 | P8: 0 | Q8: 0 | R8: 14736395
A9: ='A4-FinPerf RE'!A9 -> Service charges - refuse revenue | C9: 0 | D9: 0 | E9: 0 | F9: 0 | G9: 0 | H9: 0 | I9: 0 | J9: 0 | K9: 0 | L9: 0 | M9: 0 | N9: 0 | O9: 0 | P9: 0 | Q9: 0 | R9: 0
C10: 0 | D10: 0 | E10: 0 | F10: 0 | G10: 0 | H10: 0 | I10: 0 | J10: 0 | K10: 0 | L10: 0 | M10: 0 | N10: 0 | O10: 0 | P10: 0 | Q10: 0
A11: ='A4-FinPerf RE'!A11 -> Rental of facilities and equipment | C11: 0 | D11: 0 | E11: 0 | F11: 0 | G11: 0 | H11: 0 | I11: 0 | J11: 0 | K11: 0 | L11: 0 | M11: 0 | N11: 0 | O11: 0 | P11: 0 | Q11: 0 | R11: 0
A12: ='A4-FinPerf RE'!A12 -> Interest earned - external investments | C12: 0 | D12: 0 | E12: 0 | F12: 21659404 | G12: 0 | H12: 0 | I12: 0 | J12: 0 | K12: 0 | L12: 0 | M12: 0 | N12: 0 | O12: 0 | P12: 0 | Q12: 0 | R12: 21659404
A13: ='A4-FinPerf RE'!A13 -> Interest earned - outstanding debtors | C13: 0 | D13: 0 | E13: 0 | F13: 15221206 | G13: 0 | H13: 0 | I13: 0 | J13: 0 | K13: 0 | L13: 0 | M13: 0 | N13: 0 | O13: 0 | P13: 0 | Q13: 0 | R13: 15221206
A14: ='A4-FinPerf RE'!A14 -> Dividends received | C14: 0 | D14: 0 | E14: 0 | F14: 0 | G14: 0 | H14: 0 | I14: 0 | J14: 0 | K14: 0 | L14: 0 | M14: 0 | N14: 0 | O14: 0 | P14: 0 | Q14: 0 | R14: 0
A15: ='A4-FinPerf RE'!A15 -> Fines, penalties and forfeits | C15: 0 | D15: 0 | E15: 0 | F15: 50132 | G15: 0 | H15: 0 | I15: 0 | J15: 0 | K15: 0 | L15: 0 | M15: 0 | N15: 0 | O15: 0 | P15: 0 | Q15: 0 | R15: 50132
A16: ='A4-FinPerf RE'!A16 -> Licences and permits | C16: 0 | D16: 0 | E16: 0 | F16: 0 | G16: 0 | H16: 0 | I16: 0 | J16: 0 | K16: 0 | L16: 0 | M16: 0 | N16: 0 | O16: 0 | P16: 0 | Q16: 0 | R16: 0
A17: ='A4-FinPerf RE'!A17 -> Agency services | C17: 0 | D17: 0 | E17: 0 | F17: 0 | G17: 0 | H17: 0 | I17: 0 | J17: 0 | K17: 0 | L17: 0 | M17: 0 | N17: 0 | O17: 0 | P17: 0 | Q17: 0 | R17: 0
A18: ='A4-FinPerf RE'!A19 -> Other revenue | C18: 0 | D18: 0 | E18: 0 | F18: 2174812 | G18: 0 | H18: 0 | I18: 0 | J18: 0 | K18: 0 | L18: 0 | M18: 0 | N18: 0 | O18: 0 | P18: 0 | Q18: 0 | R18: 2174812
A19: ='A4-FinPerf RE'!A18 -> Transfers and subsidies | C19: 0 | D19: 0 | E19: 0 | F19: 1087843560 | G19: 0 | H19: 0 | I19: 0 | J19: 0 | K19: 0 | L19: 0 | M19: 0 | N19: 0 | O19: 0 | P19: 0 | Q19: 0 | R19: 1087843560
A20: ='A4-FinPerf RE'!A20 -> Gains | C20: 0 | D20: 0 | E20: 0 | F20: 430021 | G20: 0 | H20: 0 | I20: 0 | J20: 0 | K20: 0 | L20: 0 | M20: 0 | N20: 0 | O20: 0 | P20: 0 | Q20: 0 | R20: 430021
A21: ='A4-FinPerf RE'!A21 -> Total Revenue (excluding capital transfers and contributions) | C21: =SUM(C5:C9)+SUM(C11:C20) -> 0 | D21: =SUM(D5:D9)+SUM(D11:D20) -> 0 | E21: 0 | F21: 1230949149 | G21: 0 | H21: 0 | I21: 0 | J21: 0 | K21: 0 | L21: 0 | M21: 0 | N21: 0 | O21: 0 | P21: 0 | Q21: 0 | R21: =SUM(R5:R9)+SUM(R11:R20) -> 1230949149
A23: ='A4-FinPerf RE'!A23 -> Expenditure By Type
A24: ='A4-FinPerf RE'!A24 -> Employee related costs | C24: 18813102 | D24: 31863518 | E24: 17312990 | F24: 48670086 | G24: 209532776 | H24: 12072321 | I24: 73455143 | J24: 5018059 | K24: 42690901 | R24: =SUM(C24:Q24) -> 459428896
A25: ='A4-FinPerf RE'!A25 -> Remuneration of councillors | C25: 18422108 | D25: 0 | E25: 0 | F25: 0 | G25: 0 | H25: 0 | I25: 0 | J25: 0 | K25: 0 | L25: 0 | M25: 0 | N25: 0 | O25: 0 | P25: 0 | Q25: 0 | R25: =SUM(C25:Q25) -> 18422108
A26: ='A4-FinPerf RE'!A26 -> Debt impairment | C26: 0 | D26: 0 | E26: 0 | F26: 11039600 | G26: 0 | H26: 0 | I26: 0 | J26: 0 | K26: 0 | L26: 0 | M26: 0 | N26: 0 | O26: 0 | P26: 0 | Q26: 0 | R26: 11039600
A27: ='A4-FinPerf RE'!A27 -> Depreciation & asset impairment | C27: 0 | D27: 0 | E27: 0 | F27: 106614864 | G27: 0 | H27: 0 | I27: 0 | J27: 270000 | K27: 0 | L27: 0 | M27: 0 | N27: 0 | O27: 0 | P27: 0 | Q27: 0 | R27: 106884864
A28: ='A4-FinPerf RE'!A28 -> Finance charges | C28: 0 | D28: 0 | E28: 0 | F28: 509411 | G28: 0 | H28: 0 | I28: 0 | J28: 0 | K28: 0 | L28: 0 | M28: 0 | N28: 0 | O28: 0 | P28: 0 | Q28: 0 | R28: 509411
A29: ='A4-FinPerf RE'!A29 -> Bulk purchases - electricity | C29: 0 | D29: 0 | E29: 0 | F29: 0 | G29: 0 | H29: 0 | I29: 0 | J29: 0 | K29: 0 | L29: 0 | M29: 0 | N29: 0 | O29: 0 | P29: 0 | Q29: 0 | R29: 0
A30: ='A4-FinPerf RE'!A30 -> Inventory consumed | C30: 0 | D30: 0 | E30: 0 | F30: 331818426 | G30: -140743200 | H30: 0 | I30: 0 | J30: 0 | K30: 0 | L30: 0 | M30: 0 | N30: 0 | O30: 0 | P30: 0 | Q30: 0 | R30: 191075226
A31: ='A4-FinPerf RE'!A31 -> Contracted services | C31: 2991817 | D31: 4142000 | E31: 48533160 | F31: 34306532 | G31: 121595533 | H31: 6496000 | I31: 2168661 | J31: 1550000 | K31: 17547420 | L31: 0 | M31: 0 | N31: 0 | O31: 0 | P31: 0 | Q31: 0 | R31: 239331123
A32: ='A4-FinPerf RE'!A32 -> Transfers and subsidies | C32: 0 | D32: 0 | E32: 0 | F32: 0 | G32: 0 | H32: 0 | I32: 0 | J32: 0 | K32: 0 | L32: 0 | M32: 0 | N32: 0 | O32: 0 | P32: 0 | Q32: 0 | R32: 0
A33: ='A4-FinPerf RE'!A33 -> Other expenditure | C33: 8122134 | D33: 6816000 | E33: 22816548 | F33: 3693171 | G33: 53528329 | H33: 588799 | I33: 660079 | J33: 860000 | K33: 86809448 | L33: 0 | M33: 0 | N33: 0 | O33: 0 | P33: 0 | Q33: 0 | R33: 183894508
A34: ='A4-FinPerf RE'!A34 -> Losses | C34: 0 | D34: 0 | E34: 0 | F34: 0 | G34: 0 | H34: 0 | I34: 0 | J34: 0 | K34: 0 | L34: 0 | M34: 0 | N34: 0 | O34: 0 | P34: 0 | Q34: 0 | R34: 0
A35: Total Expenditure | C35: =SUM(C24:C34) -> 48349161 | D35: 42821518 | E35: 88662698 | F35: 536652090 | G35: 243913438 | H35: 19157120 | I35: 76283883 | J35: 7698059 | K35: 147047769 | L35: 0 | M35: 0 | N35: 0 | O35: 0 | P35: 0 | Q35: 0 | R35: 1210585736
A37: ='A4-FinPerf RE'!A37 -> Surplus/(Deficit) | C37: =C21-C35 -> -48349161 | D37: -42821518 | E37: -88662698 | F37: 694297059 | G37: -243913438 | H37: -19157120 | I37: =I21-I35 -> -76283883 | J37: -7698059 | K37: -147047769 | L37: 0 | M37: 0 | N37: 0 | O37: 0 | P37: 0 | Q37: 0 | R37: =R21-R35 -> 20363413
A38: ='A4-FinPerf RE'!A38 -> Transfers and subsidies - capital (monetary allocations) (National / Provincial and District) | F38: 469076440 | G38: 0 | R38: =SUM(C38:Q38) -> 469076440
A39: ='A4-FinPerf RE'!A39 -> Transfers and subsidies - capital (monetary allocations) (National / Provincial Departmental Agencies, Households, Non-profit Institutions, Private Enterprises, Public Corporatons, Higher Educational Institutions) | F39: 0 | R39: =SUM(C39:Q39) -> 0
A40: ='A4-FinPerf RE'!A40 -> Transfers and subsidies - capital (in-kind - all) | F40: 0 | R40: =SUM(C40:Q40) -> 0
A41: ='A4-FinPerf RE'!A41 -> Surplus/(Deficit) after capital transfers & contributions | C41: =SUM(C37:C40) -> -48349161 | D41: -42821518 | E41: -88662698 | F41: 1163373499 | G41: -243913438 | H41: -19157120 | I41: -76283883 | J41: -7698059 | K41: -147047769 | L41: 0 | M41: 0 | N41: 0 | O41: 0 | P41: 0 | Q41: =SUM(Q37:Q40) -> 0 | R41: =SUM(R37:R40) -> 489439853
A42: =head27a -> References
A43: 1. Departmental columns to be based on municipal organisation structure
A44: check balance | R44: ='A4-FinPerf RE'!J41-'SA2'!R41 -> 0

Sheet SA3
A1: =muni&" - "&TableA3 -> DC47 Sekhukhune - Supporting Table SA3 Supportinging detail to 'Budgeted Financial Position'
A2: =desc -> Description | B2: =head27 -> Ref | C2: =head1b -> 2018/19 | D2: =head1A -> 2019/20 | E2: =Head1 -> 2020/21 | F2: =Head2 -> Current Year 2021/22 | J2: =Head3 -> 2022/23 Medium Term Revenue & Expenditure Framework
C3: =Head5 -> Audited Outcome | D3: =Head5 -> Audited Outcome | E3: =Head5 -> Audited Outcome | F3: =Head6 -> Original Budget | G3: =Head7 -> Adjusted Budget | H3: =Head8 -> Full Year Forecast | I3: =Head5b -> Pre-audit outcome | J3: =Head9 -> Budget Year 2022/23 | K3: =Head10 -> Budget Year +1 2023/24 | L3: =Head11 -> Budget Year +2 2024/25
A4: R thousand
A5: ASSETS
A11: ='A6-FinPos'!A8 -> Consumer debtors
A12: =A11 -> Consumer debtors | C12: 220384645.7 | D12: 247422962.4 | E12: 292791564.7 | F12: 246655549 | G12: 227834876 | H12: 227834876 | I12: 349753134.9 | J12: 220319849 | K12: 217679072 | L12: 204623837
A13: Less: Provision for debt impairment | C13: =C20 -> -101016187 | D13: -122646928.3 | E13: -121108673.5 | F13: -126096809 | G13: -126096809 | H13: -126096809 | I13: -121108673.5 | J13: -126096809 | K13: -126096809 | L13: -126096809
A14: ="Total "&A11 -> Total Consumer debtors | B14: 2 | C14: =SUM(C12:C13) -> 119368458.7 | D14: =SUM(D12:D13) -> 124776034.1 | E14: 171682891.3 | F14: =SUM(F12:F13) -> 120558740 | G14: 101738067 | H14: 101738067 | I14: 228644461.4 | J14: 94223040 | K14: 91582263 | L14: 78527028
A16: Debt impairment provision
A17: Balance at the beginning of the year | C17: -101016187 | D17: -122646928.3 | E17: -121108673.5 | F17: -126096809 | G17: -126096809 | H17: -126096809 | I17: -121108673.5 | J17: -126096809 | K17: -126096809 | L17: -126096809
A18: Contributions to the provision | C18: 0 | D18: 0 | E18: 0 | F18: 0 | G18: 0 | H18: 0 | I18: 0 | J18: 0 | K18: 0 | L18: 0
A19: Bad debts written off | C19: 0 | D19: 0 | E19: 0 | F19: 0 | G19: 0 | H19: 0 | I19: 0 | J19: 0 | K19: 0 | L19: 0
A20: Balance at end of year | C20: =SUM(C17:C19) -> -101016187 | D20: =SUM(D17:D19) -> -122646928.3 | E20: -121108673.5 | F20: -126096809 | G20: -126096809 | H20: -126096809 | I20: -121108673.5 | J20: -126096809 | K20: -126096809 | L20: -126096809
A22: Inventory
A23: Water
A24: Opening Balance | C24: 23850294.5 | D24: =C53 -> 23850294.5 | E24: =D53 -> 23850294.5 | F24: =E53 -> 23850294.5 | G24: =E53 -> 23850294.5 | H24: =E53 -> 23850294.5 | I24: =E53 -> 23850294.5 | J24: =G53 -> 255790146.5 | K24: =J53 -> 551350866.5 | L24: =K53 -> 859916567.5
A25: System Input Volume | C25: =(SUM(C26:C28)) -> 0 | D25: =(SUM(D26:D28)) -> 0 | E25: 0 | F25: 0 | G25: 126930997 | H25: 126930997 | I25: 4012527.21 | J25: 140743200 | K25: 146935900 | L25: 158401080
A26: Water Treatment Works | C26: 0 | D26: 0 | E26: 0 | F26: 0 | G26: 31019795 | H26: 31019795 | I26: 0 | J26: 40743200 | K26: 36935900 | L26: 38401080
A27: Bulk Purchases | C27: 0 | D27: 0 | E27: 0 | F27: 0 | G27: 95911202 | H27: 95911202 | I27: 4012527.21 | J27: 100000000 | K27: 110000000 | L27: 120000000
A28: Natural Sources | C28: 0 | D28: 0 | E28: 0 | F28: 0 | G28: 0 | H28: 0 | I28: 0 | J28: 0 | K28: 0 | L28: 0
A29: Authorised Consumption | B29: 6 | C29: =C30+C39 -> 0 | D29: =D30+D39 -> 0 | E29: 0 | F29: 0 | G29: 68872747 | H29: 68872747 | I29: 0 | J29: 140743200 | K29: 146935900 | L29: 158401080
A30: Billed Authorised Consumption | C30: =C35+C31 -> 0 | D30: =D35+D31 -> 0 | E30: 0 | F30: 0 | G30: 58345762 | H30: 58345762 | I30: 0 | J30: 110743200 | K30: 116935900 | L30: 128401080
A31: Billed Metered Consumption | C31: =SUM(C32:C34) -> 0 | D31: =SUM(D32:D34) -> 0 | E31: 0 | F31: 0 | G31: 58345762 | H31: 58345762 | I31: 0 | J31: 110743200 | K31: 116935900 | L31: 128401080
A32: Free Basic Water | C32: 0 | D32: 0 | E32: 0 | F32: 0 | G32: 27818777 | H32: 27818777 | I32: 0 | J32: 40000000 | K32: 40000000 | L32: 40000000
A33: Subsidised Water | C33: 0 | D33: 0 | E33: 0 | F33: 0 | G33: 0 | H33: 0 | I33: 0 | J33: 0 | K33: 0 | L33: 0
A34: Revenue Water | C34: 0 | D34: 0 | E34: 0 | F34: 0 | G34: 30526985 | H34: 30526985 | I34: 0 | J34: 70743200 | K34: 76935900 | L34: 88401080
A35: Billed Unmetered Consumption | C35: =SUM(C36:C38) -> 0 | D35: =SUM(D36:D38) -> 0 | E35: 0 | F35: 0 | G35: 0 | H35: 0 | I35: 0 | J35: 0 | K35: 0 | L35: 0
A36: Free Basic Water | C36: 0 | D36: 0 | E36: 0 | F36: 0 | G36: 0 | H36: 0 | I36: 0 | J36: 0 | K36: 0 | L36: 0
A37: Subsidised Water | C37: 0 | D37: 0 | E37: 0 | F37: 0 | G37: 0 | H37: 0 | I37: 0 | J37: 0 | K37: 0 | L37: 0
A38: Revenue Water | C38: 0 | D38: 0 | E38: 0 | F38: 0 | G38: 0 | H38: 0 | I38: 0 | J38: 0 | K38: 0 | L38: 0
A39: UnBilled Authorised Consumption | C39: =SUM(C40:C41) -> 0 | D39: =SUM(D40:D41) -> 0 | E39: 0 | F39: 0 | G39: 10526985 | H39: 10526985 | I39: 0 | J39: 30000000 | K39: 30000000 | L39: 30000000
A40: Unbilled Metered Consumption | C40: 0 | D40: 0 | E40: 0 | F40: 0 | G40: 10526985 | H40: 10526985 | I40: 0 | J40: 30000000 | K40: 30000000 | L40: 30000000
A41: Unbilled Unmetered Consumption | C41: 0 | D41: 0 | E41: 0 | F41: 0 | G41: 0 | H41: 0 | I41: 0 | J41: 0 | K41: 0 | L41: 0
A42: Water Losses | C42: =C43+C46 -> 0 | D42: =D43+D46 -> 0 | E42: 0 | F42: 0 | G42: 36136108 | H42: 36136108 | I42: 0 | J42: 14074320 | K42: 14693901 | L42: 15840108
A43: Apparent losses | C43: =SUM(C44:C45) -> 0 | D43: =SUM(D44:D45) -> 0 | E43: 0 | F43: 0 | G43: 0 | H43: 0 | I43: 0 | J43: 0 | K43: 0 | L43: 0
A44: Unauthorised Consumption | C44: 0 | D44: 0 | E44: 0 | F44: 0 | G44: 0 | H44: 0 | I44: 0 | J44: 0 | K44: 0 | L44: 0
A45: Customer Meter Inaccuracies | C45: 0 | D45: 0 | E45: 0 | F45: 0 | G45: 0 | H45: 0 | I45: 0 | J45: 0 | K45: 0 | L45: 0
A46: Real losses | C46: =SUM(C47:C51) -> 0 | D46: =SUM(D47:D51) -> 0 | E46: 0 | F46: 0 | G46: 36136108 | H46: 36136108 | I46: 0 | J46: 14074320 | K46: 14693901 | L46: 15840108
A47: Leakage on Transmission and Distribution Mains | C47: 0 | D47: 0 | E47: 0 | F47: 0 | G47: 36136108 | H47: 36136108 | I47: 0 | J47: 14074320 | K47: 14693901 | L47: 15840108
A48: Leakage and Overflows at Storage Tanks/Reservoirs | C48: 0 | D48: 0 | E48: 0 | F48: 0 | G48: 0 | H48: 0 | I48: 0 | J48: 0 | K48: 0 | L48: 0
A49: Leakage on Service Connections up to the point of Customer Meter | C49: 0 | D49: 0 | E49: 0 | F49: 0 | G49: 0 | H49: 0 | I49: 0 | J49: 0 | K49: 0 | L49: 0
A50: Data Transfer and Management Errors | C50: 0 | D50: 0 | E50: 0 | F50: 0 | G50: 0 | H50: 0 | I50: 0 | J50: 0 | K50: 0 | L50: 0
A51: Unavoidable Annual Real Losses | C51: 0 | D51: 0 | E51: 0 | F51: 0 | G51: 0 | H51: 0 | I51: 0 | J51: 0 | K51: 0 | L51: 0
A52: Non-revenue Water | C52: =C39+C42 -> 0 | D52: =D39+D42 -> 0 | E52: 0 | F52: 0 | G52: 46663093 | H52: 46663093 | I52: 0 | J52: 44074320 | K52: 44693901 | L52: 45840108
A53: Closing Balance Water | C53: =C24+C25+C29+C42 -> 23850294.5 | D53: =D24+D25+D29+D42 -> 23850294.5 | E53: 23850294.5 | F53: 23850294.5 | G53: 255790146.5 | H53: 255790146.5 | I53: 27862821.71 | J53: 551350866.5 | K53: 859916567.5 | L53: 1192558836
A55: Agricultural
A56: Opening Balance | D56: =C61 -> 0 | E56: =D61 -> 0 | F56: =E61 -> 0 | G56: =E61 -> 0 | H56: =E61 -> 0 | I56: =E61 -> 0 | J56: =G61 -> 0 | K56: =J61 -> 0 | L56: =K61 -> 0
A57: Acquisitions
A58: Issues | B58: 7
A59: Adjustments | B59: 8
A60: Write-offs | B60: 9
A61: Closing balance - Agricultural | C61: =SUM(C56:C60) -> 0 | D61: 0 | E61: 0 | F61: 0 | G61: 0 | H61: 0 | I61: 0 | J61: 0 | K61: 0 | L61: 0
A63: Consumables
A64: Standard Rated
A65: Opening Balance | C65: 2475518.38 | D65: =C70 -> -1566285.53 | E65: =D70 -> 8061046.5 | F65: =E70 -> 7742153.98 | G65: =E70 -> 7742153.98 | H65: =E70 -> 7742153.98 | I65: =E70 -> 7742153.98 | J65: =G70 -> -51565191.02 | K65: =J70 -> -286105491 | L65: =K70 -> -442950251
A66: Acquisitions | C66: 8423750.98 | D66: 35278104.9 | E66: 23988641.38 | F66: 178085946 | G66: 178035948 | H66: 178035948 | I66: 22358431.9 | J66: 97278126 | K66: 178085946 | L66: 178085946
A67: Issues | B67: 7 | C67: -12465554.89 | D67: -25650772.94 | E67: -24307533.88 | F67: -177905447 | G67: -237343293 | H67: -237343293 | I67: -19642284.58 | J67: -331818426 | K67: -334930706 | L67: -365672579
A68: Adjustments | B68: 8 | C68: 0 | D68: 0.07 | E68: -0.02 | F68: 0 | G68: 0 | H68: 0 | I68: 0.05 | J68: 0 | K68: 0 | L68: 0
A69: Write-offs | B69: 9 | C69: 0 | D69: 0 | E69: 0 | F69: 0 | G69: 0 | H69: 0 | I69: 0 | J69: 0 | K69: 0 | L69: 0
A70: Closing balance - Consumables Standard Rated | C70: =SUM(C65:C69) -> -1566285.53 | D70: =SUM(D65:D69) -> 8061046.5 | E70: 7742153.98 | F70: 7922652.98 | G70: -51565191.02 | H70: -51565191.02 | I70: 10458301.35 | J70: -286105491 | K70: -442950251 | L70: -630536884
A71: Zero Rated
A72: Opening Balance | C72: 0 | D72: =C77 -> 0 | E72: =D77 -> 0 | F72: =E77 -> 0 | G72: =E77 -> 0 | H72: =E77 -> 0 | I72: =E77 -> 0 | J72: =G77 -> 0 | K72: =J77 -> 0 | L72: =K77 -> 0
A73: Acquisitions | C73: 0 | D73: 0 | E73: 0 | F73: 0 | G73: 0 | H73: 0 | I73: 0 | J73: 0 | K73: 0 | L73: 0
A74: Issues | B74: 7 | C74: 0 | D74: 0 | E74: 0 | F74: 0 | G74: 0 | H74: 0 | I74: 0 | J74: 0 | K74: 0 | L74: 0
A75: Adjustments | B75: 8 | C75: 0 | D75: 0 | E75: 0 | F75: 0 | G75: 0 | H75: 0 | I75: 0 | J75: 0 | K75: 0 | L75: 0
A76: Write-offs | B76: 9 | C76: 0 | D76: 0 | E76: 0 | F76: 0 | G76: 0 | H76: 0 | I76: 0 | J76: 0 | K76: 0 | L76: 0
A77: Closing balance - Consumables Zero Rated | C77: =SUM(C72:C76) -> 0 | D77: =SUM(D72:D76) -> 0 | E77: 0 | F77: 0 | G77: 0 | H77: 0 | I77: 0 | J77: 0 | K77: 0 | L77: 0
A79: Finished Goods
A80: Opening Balance | D80: =C85 -> 0 | E80: =D85 -> 0 | F80: =E85 -> 0 | G80: =E85 -> 0 | H80: =E85 -> 0 | I80: =E85 -> 0 | J80: =G85 -> 0 | K80: =J85 -> 0 | L80: =K85 -> 0
A81: Acquisitions
A82: Issues | B82: 7
A83: Adjustments | B83: 8
A84: Write-offs | B84: 9
A85: Closing balance - Finished Goods | C85: =SUM(C80:C84) -> 0 | D85: =SUM(D80:D84) -> 0 | E85: 0 | F85: 0 | G85: 0 | H85: 0 | I85: 0 | J85: 0 | K85: 0 | L85: 0
A87: Materials and Supplies
A88: Opening Balance | D88: =C93 -> 0 | E88: =D93 -> 0 | F88: =E93 -> 0 | G88: =E93 -> 0 | H88: =E93 -> 0 | I88: =E93 -> 0 | J88: =G93 -> 0 | K88: =J93 -> 0 | L88: =K93 -> 0
A89: Acquisitions
A90: Issues | B90: 7
A91: Adjustments | B91: 8
A92: Write-offs | B92: 9
A93: Closing balance - Materials and Supplies | C93: =SUM(C88:C92) -> 0 | D93: =SUM(D88:D92) -> 0 | E93: 0 | F93: 0 | G93: 0 | H93: 0 | I93: 0 | J93: 0 | K93: 0 | L93: 0
A95: Work-in-progress
A96: Opening Balance | D96: =C99 -> 0 | E96: =D99 -> 0 | F96: =E99 -> 0 | G96: =E99 -> 0 | H96: =E99 -> 0 | I96: =E99 -> 0 | J96: =G99 -> 0 | K96: =J99 -> 0 | L96: =K99 -> 0
A97: Materials
A98: Transfers
A99: Closing balance - Work-in-progress | C99: =SUM(C96:C98) -> 0 | D99: =SUM(D96:D98) -> 0 | E99: 0 | F99: 0 | G99: 0 | H99: 0 | I99: 0 | J99: 0 | K99: 0 | L99: 0
A101: Housing Stock
A102: Opening Balance | D102: =C106 -> 0 | E102: =D106 -> 0 | F102: =E106 -> 0 | G102: =E106 -> 0 | H102: =E106 -> 0 | I102: =E106 -> 0 | J102: =G106 -> 0 | K102: =J106 -> 0 | L102: =K106 -> 0
A103: Acquisitions
A104: Transfers
A105: Sales
A106: Closing Balance - Housing Stock | C106: =+SUM(C102:C105) -> 0 | D106: =+SUM(D102:D105) -> 0 | E106: 0 | F106: 0 | G106: 0 | H106: 0 | I106: 0 | J106: 0 | K106: 0 | L106: 0
A108: Land
A109: Opening Balance | D109: =C114 -> 0 | E109: =D114 -> 0 | F109: =E114 -> 0 | G109: =E114 -> 0 | H109: =E114 -> 0 | I109: =E114 -> 0 | J109: =G114 -> 0 | K109: =J114 -> 0 | L109: =K114 -> 0
A110: Acquisitions
A111: Sales
A112: Adjustments
A113: Correction of Prior period errors
A114: Closing Balance - Land | C114: =SUM(C109:C113) -> 0 | D114: =SUM(D109:D113) -> 0 | E114: 0 | F114: 0 | G114: 0 | H114: 0 | I114: 0 | J114: 0 | K114: 0 | L114: 0
A115: Closing Balance - Inventory & Consumables | C115: =C53+C61+C70+C77+C85+C93+C99+C106+C114 -> 22284008.97 | D115: =D53+D61+D70+D77+D85+D93+D99+D106+D114 -> 31911341 | E115: 31592448.48 | F115: 31772947.48 | G115: 204224955.5 | H115: 204224955.5 | I115: 38321123.06 | J115: 265245375.5 | K115: 416966316.5 | L115: 562021951.5
A117: ='A6-FinPos'!A19&" (PPE)" -> Property, plant and equipment (PPE)
A118: PPE at cost/valuation (excl. finance leases) | C118: 4033560965 | D118: 4456493118 | E118: 4902350430 | F118: 4430205538 | G118: 4403602246 | H118: 4403602246 | I118: 5155393642 | J118: 4495410979 | K118: 4517918068 | L118: 4541899885
A119: Leases recognised as PPE | B119: 3 | C119: 0 | D119: 0 | E119: 0 | F119: 0 | G119: 0 | H119: 0 | I119: 0 | J119: 0 | K119: 0 | L119: 0
A120: Less: Accumulated depreciation | C120: 674510906.5 | D120: 785436866.3 | E120: 891526891.1 | F120: 716984393 | G120: 726084393 | H120: 726084393 | I120: 891526891.1 | J120: 722884393 | K120: 722884393 | L120: 722884393
A121: ="Total "&A117 -> Total Property, plant and equipment (PPE) | B121: 2 | C121: =SUM(C118:C119)-C120 -> 3359050059 | D121: =SUM(D118:D119)-D120 -> 3671056252 | E121: 4010823539 | F121: 3713221145 | G121: 3677517853 | H121: 3677517853 | I121: 4263866750 | J121: 3772526586 | K121: 3795033675 | L121: 3819015492
A123: LIABILITIES
A124: ='A6-FinPos'!A28&" - "&'A6-FinPos'!A30 -> Current liabilities - Borrowing
A125: Short term loans (other than bank overdraft)
A126: Current portion of long-term liabilities | C126: 0 | D126: 0 | E126: 0 | F126: 0 | G126: 0 | H126: 0 | I126: 0 | J126: 0 | K126: 0 | L126: 0
A127: ="Total "&A124 -> Total Current liabilities - Borrowing | C127: =SUM(C125:C126) -> 0 | D127: =SUM(D125:D126) -> 0 | E127: 0 | F127: 0 | G127: 0 | H127: 0 | I127: 0 | J127: 0 | K127: 0 | L127: 0
A129: ='A6-FinPos'!A32 -> Trade and other payables
A130: Trade Payables | B130: 5 | C130: 385808128.7 | D130: 391847332.7 | E130: 621269807 | F130: 200000000 | G130: 257003045 | H130: 257003045 | I130: 383899872.9 | J130: 254289515 | K130: 262438365 | L130: 394703977
A131: Other creditors | C131: 0 | D131: 0 | E131: 0 | F131: 0 | G131: 0 | H131: 0 | I131: 0 | J131: 0 | K131: 0 | L131: 0
A132: Unspent conditional transfers | C132: 61052577.72 | D132: 68934375.2 | E132: 30315359.2 | F132: 20000000 | G132: 20000000 | H132: 20000000 | I132: 230324112.9 | J132: 20000000 | K132: 32309000 | L132: 42352418
A133: VAT | C133: 38373202.56 | D133: 52854816.34 | E133: 66000455.12 | F133: 0 | G133: 0 | H133: 0 | I133: 89933688.45 | J133: 0 | K133: 0 | L133: 0
A134: ="Total "&A129 -> Total Trade and other payables | B134: 2 | C134: =SUM(C130:C133) -> 485233909 | D134: 513636524.3 | E134: 717585621.3 | F134: 220000000 | G134: 277003045 | H134: 277003045 | I134: 704157674.3 | J134: 274289515 | K134: 294747365 | L134: =SUM(L130:L133) -> 437056395
A136: ='A6-FinPos'!A36&" - "&'A6-FinPos'!A37 -> Non current liabilities - Borrowing
A137: Borrowing | B137: 4 | C137: 0 | D137: 0 | E137: 0 | F137: 0 | G137: 0 | H137: 0 | I137: 0 | J137: 0 | K137: 0 | L137: 0
A138: Finance leases (including PPP asset element) | C138: 1227561.16 | D138: 3322476.83 | E138: 3822340.19 | F138: 0 | G138: 0 | H138: 0 | I138: 3822340.19 | J138: 0 | K138: 0 | L138: 0
A139: ="Total "&A136 -> Total Non current liabilities - Borrowing | C139: =SUM(C137:C138) -> 1227561.16 | D139: =SUM(D137:D138) -> 3322476.83 | E139: 3822340.19 | F139: 0 | G139: 0 | H139: 0 | I139: 3822340.19 | J139: 0 | K139: 0 | L139: 0
A141: ='A6-FinPos'!A38&" - non-current" -> Provisions - non-current
A142: Retirement benefits
A144: Refuse landfill site rehabilitation | C144: 0 | D144: 0 | E144: 0 | F144: 0 | G144: 0 | H144: 0 | I144: 0 | J144: 0 | K144: 0 | L144: 0
A145: Other | C145: 51802525.92 | D145: 50185766.67 | E145: 58971647.67 | F145: 51802526 | G145: 51802526 | H145: 51802526 | I145: 58971647.67 | J145: 51802526 | K145: 51802526 | L145: 51802526
A146: ="Total "&A141 -> Total Provisions - non-current | C146: =+C142+C144+C145 -> 51802525.92 | D146: 50185766.67 | E146: 58971647.67 | F146: 51802526 | G146: 51802526 | H146: 51802526 | I146: =+I142+I144+I145 -> 58971647.67 | J146: =+J142+J144+J145 -> 51802526 | K146: 51802526 | L146: 51802526
A148: CHANGES IN NET ASSETS
A149: ='A6-FinPos'!A45 -> Accumulated Surplus/(Deficit)
A150: =A149&" - opening balance" -> Accumulated Surplus/(Deficit) - opening balance | C150: 2785158064 | D150: 3109721651 | E150: 3427958664 | F150: 3584324658 | G150: 3630891115 | H150: 3630891115 | I150: 3949256074 | J150: 3595244898 | K150: 3735117248 | L150: 3676130595
A151: GRAP adjustments | C151: 0 | D151: 0 | E151: 0 | F151: 0 | G151: 0 | H151: 0 | I151: 0 | J151: 0 | K151: 0 | L151: 0
A152: Restated balance | C152: =SUM(C150:C151) -> 2785158064 | D152: =SUM(D150:D151) -> 3109721651 | E152: =SUM(E150:E151) -> 3427958664 | F152: =SUM(F150:F151) -> 3584324658 | G152: 3630891115 | H152: 3630891115 | I152: 3949256074 | J152: 3595244898 | K152: 3735117248 | L152: 3676130595
A153: ='A4-FinPerf RE'!A37 -> Surplus/(Deficit) | C153: ='A4-FinPerf RE'!C45 -> 558474757 | D153: ='A4-FinPerf RE'!D45 -> 488965253.1 | E153: ='A4-FinPerf RE'!E45 -> 799018238.8 | F153: ='A4-FinPerf RE'!F45 -> 425415579 | G153: ='A4-FinPerf RE'!G45 -> 389534868 | H153: ='A4-FinPerf RE'!H45 -> 389534868 | I153: ='A4-FinPerf RE'!I45 -> 602745030.2 | J153: ='A4-FinPerf RE'!J45 -> 489439853 | K153: ='A4-FinPerf RE'!K45 -> 512117604 | L153: ='A4-FinPerf RE'!L45 -> 521738327
A155: Transfers to/from Reserves | C155: 100000 | D155: 100000 | E155: 0 | F155: 0 | G155: 0 | H155: 0 | I155: 0 | J155: 0 | K155: 0 | L155: 0
A156: Depreciation offsets | C156: 0 | D156: 0 | E156: 0 | F156: 0 | G156: 0 | H156: 0 | I156: 0 | J156: 0 | K156: 0 | L156: 0
A157: Other adjustments | C157: 394776.73 | D157: -33590083.45 | E157: -79751994.56 | F157: 535522 | G157: 535522 | H157: 535522 | I157: -19702.38 | J157: 535522 | K157: 535522 | L157: 535522
A158: Accumulated Surplus/(Deficit) | B158: 1 | C158: =SUM(C152:C157) -> 3344127598 | D158: =SUM(D152:D157) -> 3565196821 | E158: =SUM(E152:E157) -> 4147224908 | F158: 4010275759 | G158: 4020961505 | H158: 4020961505 | I158: 4551981402 | J158: 4085220273 | K158: 4247770374 | L158: 4198404444
A159: Reserves
A160: Housing Development Fund
A161: Capital replacement
A162: Self-insurance
A163: Other reserves
A164: Revaluation | C164: 0 | D164: 0 | E164: 0 | F164: 0 | G164: 0 | H164: 0 | I164: 0 | J164: 0 | K164: 0 | L164: 0
A165: Total Reserves | B165: 2 | C165: =SUM(C160:C164) -> 0 | D165: 0 | E165: 0 | F165: 0 | G165: 0 | H165: 0 | I165: 0 | J165: 0 | K165: 0 | L165: 0
A166: ='A6-FinPos'!A48 -> TOTAL COMMUNITY WEALTH/EQUITY | B166: 2 | C166: =C158+C165 -> 3344127598 | D166: 3565196821 | E166: 4147224908 | F166: 4010275759 | G166: 4020961505 | H166: 4020961505 | I166: 4551981402 | J166: 4085220273 | K166: 4247770374 | L166: 4198404444
A172: =head27a -> References
A173: ="1. Must reconcile with "&'Template names'!F103 -> 1. Must reconcile with Table A4 Budgeted Financial Performance (revenue and expenditure)
A174: ="2. Must reconcile with "&'Template names'!F105 -> 2. Must reconcile with Table A6 Budgeted Financial Position
A175: 3. Leases treated as assets to be depreciated as the same as purchased/constructed assets. Includes PPP asset element accounted for as finance leases
A176: 4. Borrowing must reconcile to Table A17
A177: 5. Trade Payable should only include Trade Payables from Exchance Transactions ("True Creditors")
A178: 6. Inventory Consumed - Water - included under "Inventory Consumed" on Table A4 - Detail to be submitted on Table SA1
A179: 7. Inventry Consumed Other - included under "Inventory Consumed" on Table A4 - Detail to be submitted on Table SA1
A180: 8. Inventory Transfers/Adjustments (Include under gains/losses on Table A4)
A181: 9. Inventory Write-offs (Include under losses on Table A4)
